Workbook

Sheet ACCUEILPRO
A1: Accueil
F7: =ACCUEIL!F7 -> 2022-09-18

Sheet ACCUEILPREM
A1: Accueil
F7: =ACCUEIL!F7 -> 2022-09-18

Sheet ACCUEILGP
A1: Accueil
F7: =ACCUEIL!F7 -> 2022-09-18

Sheet ACCUEIL
F7: 2022-09-18

Sheet Accueilagence
A1: Accueil
E7: =ACCUEIL!F7 -> 2022-09-18

Sheet Accueilsecteur
A1: Accueil
E7: =ACCUEIL!F7 -> 2022-09-18

Sheet AccueilDircom
A1: Accueil
E7: =ACCUEIL!F7 -> 2022-09-18

Sheet DC_FICHE
A1: Accueil
A2: BAROMETRE BDD
A4: UNITE: | B4: DIRECTION REGIONALE | E4: ETP perf : | F4: =VLOOKUP(A5,'RECAP DIRCOM'!$G$6:$I$12,3,FALSE) -> 220.19
A5: =VLOOKUP(B5,LISTES!$M$6:$N$12,2,FALSE) -> 262 | B5: BAS-RHIN
C6: Coefficient du critére | E6: Résultats | I6: Ecart au 1ier | M6: Evolution | O6: Rang
E7: du 1ier | G7: DIRECTION | I7: Du mois | K7: Au 31/12/2019
A9: RANG au CLASSEMENT GENERAL | K9: =VLOOKUP($A$5,#REF!,168,FALSE) ->  | M9: =+K9-O9 ->  | O9: =VLOOKUP($A$5,'RECAP DIRCOM'!$G$6:$CY$312,168,FALSE) -> 
A11: CRITERE CLIENTS | C11: 15% | O11: =VLOOKUP($A$5,'RECAP DIRCOM'!$G$6:$CY$312,23,FALSE) -> 43.53058722
B12: PNB Evolution nette Clients BP | C12: 4% | E12: ='RECAP DIRCOM'!#REF! ->  | G12: =VLOOKUP($A$5,'RECAP DIRCOM'!$G$6:$CY$312,6,FALSE) -> 0.8 | I12: =VLOOKUP($A$5,'RECAP DIRCOM'!$G$6:$CY$312,7,FALSE) -> 500% | K12: =VLOOKUP($A$5,#REF!,7,FALSE) ->  | M12: =+K12-I12 ->  | O12: =VLOOKUP($A$5,'RECAP DIRCOM'!$G$6:$CY$312,8,FALSE) -> 0.6183934952
B13: PNB Evolution nette Clients PREMIUM | C13: 5% | E13: ='RECAP DIRCOM'!#REF! ->  | G13: =VLOOKUP($A$5,'RECAP DIRCOM'!$G$6:$CY$312,10,FALSE) -> 4.0 | I13: =VLOOKUP($A$5,'RECAP DIRCOM'!$G$6:$CY$312,11,FALSE) -> 43% | K13: =VLOOKUP($A$5,#REF!,11,FALSE) ->  | M13: =+K13-I13 ->  | O13: =VLOOKUP($A$5,'RECAP DIRCOM'!$G$6:$CY$312,12,FALSE) -> 0.4296169256
B14: PNB Evolution nette Clients Jeunes Equipés | C14: 3% | E14: ='RECAP DIRCOM'!#REF! ->  | G14: =VLOOKUP($A$5,'RECAP DIRCOM'!$G$6:$CY$312,14,FALSE) -> 0.0 | I14: =VLOOKUP($A$5,'RECAP DIRCOM'!$G$6:$CY$312,15,FALSE) -> 0% | K14: =VLOOKUP($A$5,#REF!,15,FALSE) ->  | M14: =+K14-I14 ->  | O14: =VLOOKUP($A$5,'RECAP DIRCOM'!$G$6:$CY$312,16,FALSE) -> 0
B15: PNB Evolution nette Clients Pro Actifs Equipés | C15: 3% | E15: ='RECAP DIRCOM'!W4 -> 0.0 | G15: =VLOOKUP($A$5,'RECAP DIRCOM'!$G$6:$CY$312,18,FALSE) -> 3381.4 | I15: =VLOOKUP($A$5,'RECAP DIRCOM'!$G$6:$CY$312,19,FALSE) -> 1536% | K15: =VLOOKUP($A$5,#REF!,19,FALSE) ->  | M15: =+K15-I15 ->  | O15: =VLOOKUP($A$5,'RECAP DIRCOM'!$G$6:$CY$312,20,FALSE) -> 0.2997458427
A17: CRITERE BANCARISATION | C17: 15% | O17: =VLOOKUP($A$5,'RECAP DIRCOM'!$G$6:$CY$312,48,FALSE) -> 38512.64703
B18: PNB Ventes nettes forfaits | C18: 4% | E18: ='RECAP DIRCOM'!X4 -> 21.9 | G18: =VLOOKUP($A$5,'RECAP DIRCOM'!$G$6:$CY$312,31,FALSE) -> 0.0 | I18: =VLOOKUP($A$5,'RECAP DIRCOM'!$G$6:$CY$312,32,FALSE) -> 0% | K18: =VLOOKUP($A$5,#REF!,32,FALSE) ->  | M18: =+K18-I18 ->  | O18: =VLOOKUP($A$5,'RECAP DIRCOM'!$G$6:$CY$312,33,FALSE) -> 68846.12642
B19: PNB Ventes nettes IZICARTES Débit Différé | C19: 4% | E19: ='RECAP DIRCOM'!AB4 -> 55.3 | G19: =VLOOKUP($A$5,'RECAP DIRCOM'!$G$6:$CY$312,35,FALSE) -> 0.0 | I19: =VLOOKUP($A$5,'RECAP DIRCOM'!$G$6:$CY$312,36,FALSE) -> 100% | K19: =VLOOKUP($A$5,#REF!,36,FALSE) ->  | M19: =+K19-I19 ->  | O19: =VLOOKUP($A$5,'RECAP DIRCOM'!$G$6:$CY$312,37,FALSE) -> 9394
B20: PNB Ventes nettes cartes HDG Débit Différé | C20: 4% | E20: ='RECAP DIRCOM'!#REF! ->  | G20: =VLOOKUP($A$5,'RECAP DIRCOM'!$G$6:$CY$312,39,FALSE) -> 0.3 | I20: =VLOOKUP($A$5,'RECAP DIRCOM'!$G$6:$CY$312,40,FALSE) -> 400% | K20: =VLOOKUP($A$5,#REF!,40,FALSE) ->  | M20: =+K20-I20 ->  | O20: =VLOOKUP($A$5,'RECAP DIRCOM'!$G$6:$CY$312,41,FALSE) -> 0.1004164236
B21: PNB Ventes nettes Forfaits Pro, Carte pro | C21: 3% | E21: ='RECAP DIRCOM'!#REF! ->  | G21: =VLOOKUP($A$5,'RECAP DIRCOM'!$G$6:$CY$312,43,FALSE) -> 1.0 | I21: =VLOOKUP($A$5,'RECAP DIRCOM'!$G$6:$CY$312,44,FALSE) -> 0% | K21: =VLOOKUP($A$5,#REF!,44,FALSE) ->  | M21: =+K21-I21 ->  | O21: =VLOOKUP($A$5,'RECAP DIRCOM'!$G$6:$CY$312,45,FALSE) -> 0
A23: CRITERE EPARGNE | C23: 10% | O23: =VLOOKUP($A$5,'RECAP DIRCOM'!$G$6:$CY$312,69,FALSE) -> 0.3951394197
B24: PNB Epargne Liquide | C24: 3% | E24: ='RECAP DIRCOM'!AM4 -> 312.7 | G24: =VLOOKUP($A$5,'RECAP DIRCOM'!$G$6:$CY$312,56,FALSE) -> 3415.0 | I24: =VLOOKUP($A$5,'RECAP DIRCOM'!$G$6:$CY$312,57,FALSE) -> 1551% | K24: =VLOOKUP($A$5,#REF!,57,FALSE) ->  | M24: =+K24-I24 ->  | O24: =VLOOKUP($A$5,'RECAP DIRCOM'!$G$6:$CY$312,58,FALSE) -> 0.4110971095
B25: PNB CA UC + arbitrage | C25: 4% | E25: ='RECAP DIRCOM'!AQ4 -> 57.0 | G25: =VLOOKUP($A$5,'RECAP DIRCOM'!$G$6:$CY$312,60,FALSE) -> 0.4 | I25: =VLOOKUP($A$5,'RECAP DIRCOM'!$G$6:$CY$312,61,FALSE) -> 35% | K25: =VLOOKUP($A$5,#REF!,61,FALSE) ->  | M25: =+K25-I25 ->  | O25: =VLOOKUP($A$5,'RECAP DIRCOM'!$G$6:$CY$312,62,FALSE) -> 6
B26: PNB Excédent assurance vie | C26: 3% | E26: ='RECAP DIRCOM'!#REF! ->  | G26: =VLOOKUP($A$5,'RECAP DIRCOM'!$G$6:$CY$312,64,FALSE) -> 0.0 | I26: =VLOOKUP($A$5,'RECAP DIRCOM'!$G$6:$CY$312,65,FALSE) -> 0% | K26: =VLOOKUP($A$5,#REF!,65,FALSE) ->  | M26: =+K26-I26 ->  | O26: =VLOOKUP($A$5,'RECAP DIRCOM'!$G$6:$CY$312,66,FALSE) -> 0
A28: CRITERE CREDITS | C28: 15% | O28: =VLOOKUP($A$5,'RECAP DIRCOM'!$G$6:$CY$312,102,FALSE) -> 
B29: PNB crédit conso | C29: 4% | E29: ='RECAP DIRCOM'!BB4 -> 346.9 | G29: =VLOOKUP($A$5,'RECAP DIRCOM'!$G$6:$CY$312,77,FALSE) -> 5.0 | I29: =VLOOKUP($A$5,'RECAP DIRCOM'!$G$6:$CY$312,78,FALSE) -> 0% | K29: =VLOOKUP($A$5,#REF!,78,FALSE) ->  | M29: =+K29-I29 ->  | O29: =VLOOKUP($A$5,'RECAP DIRCOM'!$G$6:$CY$312,79,FALSE) -> 0
B30: PNB ADE crédit conso | C30: 1% | E30: ='RECAP DIRCOM'!#REF! ->  | G30: =VLOOKUP($A$5,'RECAP DIRCOM'!$G$6:$CY$312,81,FALSE) -> 0.0 | I30: =VLOOKUP($A$5,'RECAP DIRCOM'!$G$6:$CY$312,82,FALSE) -> 0% | K30: =VLOOKUP($A$5,#REF!,82,FALSE) ->  | O30: =VLOOKUP($A$5,'RECAP DIRCOM'!$G$6:$CY$312,83,FALSE) -> 0
B31: PNB crédit immo | C31: 4% | E31: ='RECAP DIRCOM'!BF4 -> 47.2 | G31: =VLOOKUP($A$5,'RECAP DIRCOM'!$G$6:$CY$312,85,FALSE) -> 0.0 | I31: =VLOOKUP($A$5,'RECAP DIRCOM'!$G$6:$CY$312,86,FALSE) -> 0% | K31: =VLOOKUP($A$5,#REF!,86,FALSE) ->  | O31: =VLOOKUP($A$5,'RECAP DIRCOM'!$G$6:$CY$312,87,FALSE) -> 0
B32: PNB ADE crédit immo | C32: 2% | E32: ='RECAP DIRCOM'!#REF! ->  | G32: =VLOOKUP($A$5,'RECAP DIRCOM'!$G$6:$CY$312,89,FALSE) -> 0.0 | I32: =VLOOKUP($A$5,'RECAP DIRCOM'!$G$6:$CY$312,90,FALSE) -> 0% | K32: =VLOOKUP($A$5,#REF!,90,FALSE) ->  | O32: =VLOOKUP($A$5,'RECAP DIRCOM'!$G$6:$CY$312,91,FALSE) -> 0
B33: PNB SACCEF | C33: 2% | E33: ='RECAP DIRCOM'!#REF! ->  | G33: =VLOOKUP($A$5,'RECAP DIRCOM'!$G$6:$CY$312,93,FALSE) -> 0.0 | I33: =VLOOKUP($A$5,'RECAP DIRCOM'!$G$6:$CY$312,94,FALSE) -> 27% | K33: =VLOOKUP($A$5,#REF!,94,FALSE) ->  | O33: =VLOOKUP($A$5,'RECAP DIRCOM'!$G$6:$CY$312,95,FALSE) -> 0.2280052039
B34: PNB Crédit MLT + Crédit Bail | C34: 2% | E34: ='RECAP DIRCOM'!BJ4 -> 26.3 | G34: =VLOOKUP($A$5,'RECAP DIRCOM'!$G$6:$CY$312,97,FALSE) -> 0.0 | I34: =VLOOKUP($A$5,'RECAP DIRCOM'!$G$6:$CY$312,98,FALSE) ->  | K34: =VLOOKUP($A$5,#REF!,98,FALSE) ->  | O34: =VLOOKUP($A$5,'RECAP DIRCOM'!$G$6:$CY$312,99,FALSE) -> 
A36: CRITERE IARD PREVOYANCE | C36: 15% | O36: =VLOOKUP($A$5,'RECAP DIRCOM'!$G$6:$CY$312,119,FALSE) -> 
B37: PNB Ventes nettes IARD | C37: 9% | E37: ='RECAP DIRCOM'!BU4 -> 122.6 | G37: =VLOOKUP($A$5,'RECAP DIRCOM'!$G$6:$CY$312,110,FALSE) ->  | I37: =VLOOKUP($A$5,'RECAP DIRCOM'!$G$6:$CY$312,111,FALSE) ->  | K37: =VLOOKUP($A$5,#REF!,111,FALSE) ->  | M37: =+K37-I37 ->  | O37: =VLOOKUP($A$5,'RECAP DIRCOM'!$G$6:$CY$312,112,FALSE) -> 
B38: PNB Ventes nettes Prévoyance | C38: 6% | E38: ='RECAP DIRCOM'!BY4 -> 36.8 | G38: =VLOOKUP($A$5,'RECAP DIRCOM'!$G$6:$CY$312,114,FALSE) ->  | I38: =VLOOKUP($A$5,'RECAP DIRCOM'!$G$6:$CY$312,115,FALSE) ->  | K38: =VLOOKUP($A$5,#REF!,115,FALSE) ->  | M38: =+K38-I38 ->  | O38: =VLOOKUP($A$5,'RECAP DIRCOM'!$G$6:$CY$312,116,FALSE) -> 
A40: CRITERE ACCELERATEURS PNB | C40: 15% | O40: =VLOOKUP($A$5,'RECAP DIRCOM'!$G$6:$CY$312,144,FALSE) -> 
B41: PNB Ventes brutes SED Finalisées | C41: 6% | E41: ='RECAP DIRCOM'!#REF! ->  | G41: =VLOOKUP($A$5,'RECAP DIRCOM'!$G$6:$CY$312,127,FALSE) ->  | I41: =VLOOKUP($A$5,'RECAP DIRCOM'!$G$6:$CY$312,128,FALSE) ->  | K41: =VLOOKUP($A$5,#REF!,128,FALSE) ->  | M41: =+K41-I41 ->  | O41: =VLOOKUP($A$5,'RECAP DIRCOM'!$G$6:$CY$312,129,FALSE) -> 
B42: PNB clients équipés E documents | C42: 3% | E42: ='RECAP DIRCOM'!#REF! ->  | G42: =VLOOKUP($A$5,'RECAP DIRCOM'!$G$6:$CY$312,131,FALSE) ->  | I42: =VLOOKUP($A$5,'RECAP DIRCOM'!$G$6:$CY$312,132,FALSE) ->  | K42: =VLOOKUP($A$5,#REF!,132,FALSE) ->  | M42: =+K42-I42 ->  | O42: =VLOOKUP($A$5,'RECAP DIRCOM'!$G$6:$CY$312,133,FALSE) -> 
B43: Economie opt'in | C43: 3% | E43: ='RECAP DIRCOM'!#REF! ->  | G43: =VLOOKUP($A$5,'RECAP DIRCOM'!$G$6:$CY$312,135,FALSE) ->  | I43: =VLOOKUP($A$5,'RECAP DIRCOM'!$G$6:$CY$312,136,FALSE) ->  | K43: =VLOOKUP($A$5,#REF!,136,FALSE) ->  | M43: =+K43-I43 ->  | O43: =VLOOKUP($A$5,'RECAP DIRCOM'!$G$6:$CY$312,137,FALSE) -> 
B44: Remises commerciales | C44: 3% | E44: ='RECAP DIRCOM'!#REF! ->  | G44: =VLOOKUP($A$5,'RECAP DIRCOM'!$G$6:$CY$312,139,FALSE) ->  | I44: =VLOOKUP($A$5,'RECAP DIRCOM'!$G$6:$CY$312,140,FALSE) ->  | K44: =VLOOKUP($A$5,#REF!,140,FALSE) ->  | M44: =+K44-I44 ->  | O44: =VLOOKUP($A$5,'RECAP DIRCOM'!$G$6:$CY$312,141,FALSE) -> 
A46: CRITERE Qualité-Satisfaction Clients | C46: 15% | O46: =VLOOKUP($A$5,'RECAP DIRCOM'!$G$6:$CY$312,159,FALSE) -> 
B47: Objectifs NPS* | C47: 8% | E47: ='RECAP DIRCOM'!K4 -> 23 | G47: =VLOOKUP($A$5,'RECAP DIRCOM'!$G$6:$CY$312,151,FALSE) ->  | I47: =VLOOKUP($A$5,'RECAP DIRCOM'!$G$6:$CY$312,152,FALSE) ->  | K47: =VLOOKUP($A$5,#REF!,152,FALSE) ->  | M47: =+K47-I47 ->  | O47: =VLOOKUP($A$5,'RECAP DIRCOM'!$G$6:$CY$312,153,FALSE) -> 
B48: Enquête Qualité Haute Définition | C48: 7% | E48: ='RECAP DIRCOM'!N4 -> 69% | G48: =VLOOKUP($A$5,'RECAP DIRCOM'!$G$6:$CY$312,154,FALSE) ->  | I48: =VLOOKUP($A$5,'RECAP DIRCOM'!$G$6:$CY$312,155,FALSE) ->  | K48: =VLOOKUP($A$5,#REF!,155,FALSE) ->  | M48: =+K48-I48 ->  | O48: =VLOOKUP($A$5,'RECAP DIRCOM'!$G$6:$CY$312,156,FALSE) -> 

Sheet DC_TOTAL
B1: Accueil | D1: BAROMETRE BDD - DIRECTIONS REGIONALES
D2: TOTAL GENERAL
D3: =ACCUEIL!F7 -> 2022-09-18
D7: TOTAL GENERAL | G7: Total Satisfaction Clients | J7: Total Bancarisation | M7: Total Epargne | P7: Total IARD Prévoyance | S7: Total Crédits
E8: coef | F8: =+I8+L8+O8+R8+U8 -> 100% | H8: coef | I8: =DC_SATISFACTION!L8 -> 20% | K8: coef | L8: =DC_BANCA!N8 -> 20% | N8: coef | O8: =DC_EPARGNE!N8 -> 20% | Q8: coef | R8: =DC_IARD!N8 -> 20% | T8: coef | U8: =DC_CREDIT!R8 -> 20%
A9: eds | B9: Direction | C9: ="ETP perf "&DATEMAJ!$C$28 -> ETP perf 18-sept | D9: Moyenne ecart au 1er | E9: % Ecart au 1er | F9: Rang CEGEE | G9: Moyenne ecart au 1er | H9: % Ecart au 1er | I9: Rang CEGEE | J9: Moyenne ecart au 1er | K9: % Ecart au 1er | L9: Rang CEGEE | M9: Moyenne ecart au 1er | N9: % Ecart au 1er | O9: Rang CEGEE | P9: Moyenne ecart au 1er | Q9: % Ecart au 1er | R9: Rang CEGEE | S9: Moyenne ecart au 1er | T9: % Ecart au 1er | U9: Rang CEGEE
A10: 50 | B10: Marne-Ardennes | C10: 193 | D10: 4% | E10: 0% | F10: 1 | G10: 15% | H10: 15% | I10: 2 | J10: 0% | K10: 0% | L10: 1 | M10: 17% | N10: 7% | O10: 2 | P10: 0% | Q10: 0% | R10: 1 | S10: 4% | T10: 0% | U10: 1
A11: 262 | B11: Moselle | C11: 223 | D11: 8% | E11: 3% | F11: 2 | G11: 22% | H11: 22% | I11: 3 | J11: 4% | K11: 4% | L11: 2 | M11: 18% | N11: 8% | O11: 3 | P11: 2% | Q11: 2% | R11: 2 | S11: 8% | T11: 3% | U11: 2
A12: 264 | B12: Meurthe et Moselle Meuse | C12: 203 | D12: 22% | E12: 18% | F12: 3 | G12: 33% | H12: 33% | I12: 4 | J12: 25% | K12: 25% | L12: 3 | M12: 28% | N12: 18% | O12: 4 | P12: 21% | Q12: 21% | R12: 3 | S12: 17% | T12: 13% | U12: 3
A13: 30 | B13: Vosges | C13: 117 | D13: 24% | E13: 20% | F13: 4 | G13: 0% | H13: 0% | I13: 1 | J13: 33% | K13: 33% | L13: 5 | M13: 31% | N13: 21% | O13: 5 | P13: 36% | Q13: 36% | R13: 6 | S13: 35% | T13: 31% | U13: 4
A14: 110 | B14: Bas-Rhin | C14: 220 | D14: 27% | E14: 23% | F14: 5 | G14: 43% | H14: 43% | I14: 5 | J14: 27% | K14: 27% | L14: 4 | M14: 10% | N14: 0% | O14: 1 | P14: 31% | Q14: 31% | R14: 5 | S14: 40% | T14: 35% | U14: 6
A15: 160 | B15: Aube Haute Marne | C15: 112 | D15: 38% | E15: 34% | F15: 6 | G15: 51% | H15: 51% | I15: 6 | J15: 43% | K15: 43% | L15: 6 | M15: 45% | N15: 35% | O15: 6 | P15: 29% | Q15: 29% | R15: 4 | S15: 36% | T15: 32% | U15: 5
A16: 80 | B16: Haut-Rhin | C16: 123 | D16: 58% | E16: 53% | F16: 7 | G16: 59% | H16: 59% | I16: 7 | J16: 63% | K16: 63% | L16: 7 | M16: 71% | N16: 61% | O16: 7 | P16: 62% | Q16: 62% | R16: 7 | S16: 48% | T16: 43% | U16: 7
B17: Total CEGEE Directions Régionales | C17: =SUM(C10:C16) -> 1191

Sheet DC_BANCA
B1: Accueil | D1: BAROMETRE BDD - DIRECTIONS REGIONALES
D2: BANCARISATION
D3: =ACCUEIL!F7 -> 2022-09-18
D7: Ventes Nettes produits pondérés | H7: Ventes sur client non détenteur de l’univers | L7: Total Bancarisation
D8: =DATEMAJ!C8 -> au 18/09 | F8: coef | G8: ='RECAP DIRCOM'!AA4 -> 12% | H8: =DATEMAJ!C9 -> au 18/09 | J8: coef | K8: ='RECAP DIRCOM'!AE4 -> 8% | M8: coef | N8: ='RECAP DIRCOM'!AH4 -> 20%
B9: Direction | C9: ="ETP perf "&DATEMAJ!$C$28 -> ETP perf 18-sept | D9: VN | E9: VN / ETP | F9: % Ecart au 1er | G9: Rang | H9: VB | I9: VB / ETP | J9: % Ecart au 1er | K9: Rang | L9: Moyenne ecart au 1er | M9: % Ecart au 1er | N9: Rang CEGEE
A10: 50 | B10: Aube Haute Marne | C10: =VLOOKUP($A10,'RECAP DIRCOM'!$G$6:$CU$12,3,FALSE) -> 112 | D10: =VLOOKUP($A10,'RECAP DIRCOM'!$G$6:$CU$12,18,FALSE) -> 1,075 | E10: =VLOOKUP($A10,'RECAP DIRCOM'!$G$6:$CU$12,19,FALSE) -> 9.57 | F10: =VLOOKUP($A10,'RECAP DIRCOM'!$G$6:$CU$12,20,FALSE) -> 56% | G10: =VLOOKUP($A10,'RECAP DIRCOM'!$G$6:$CU$12,21,FALSE) -> 6 | H10: =VLOOKUP($A10,'RECAP DIRCOM'!$G$6:$CU$12,22,FALSE) -> 4,814 | I10: =VLOOKUP($A10,'RECAP DIRCOM'!$G$6:$CU$12,23,FALSE) -> 42.84 | J10: =VLOOKUP($A10,'RECAP DIRCOM'!$G$6:$CU$12,24,FALSE) -> 23% | K10: =VLOOKUP($A10,'RECAP DIRCOM'!$G$6:$CU$12,25,FALSE) -> 5 | L10: =VLOOKUP($A10,'RECAP DIRCOM'!$G$6:$CU$12,26,FALSE) -> 43% | M10: =VLOOKUP($A10,'RECAP DIRCOM'!$G$6:$CU$12,27,FALSE) -> 43% | N10: =VLOOKUP($A10,'RECAP DIRCOM'!$G$6:$CU$12,28,FALSE) -> 6
A11: 262 | B11: Bas-Rhin | C11: =VLOOKUP($A11,'RECAP DIRCOM'!$G$6:$CU$12,3,FALSE) -> 220 | D11: =VLOOKUP($A11,'RECAP DIRCOM'!$G$6:$CU$12,18,FALSE) -> 3,381 | E11: =VLOOKUP($A11,'RECAP DIRCOM'!$G$6:$CU$12,19,FALSE) -> 15.36 | F11: =VLOOKUP($A11,'RECAP DIRCOM'!$G$6:$CU$12,20,FALSE) -> 30% | G11: =VLOOKUP($A11,'RECAP DIRCOM'!$G$6:$CU$12,21,FALSE) -> 3 | H11: =VLOOKUP($A11,'RECAP DIRCOM'!$G$6:$CU$12,22,FALSE) -> 9,585 | I11: =VLOOKUP($A11,'RECAP DIRCOM'!$G$6:$CU$12,23,FALSE) -> 43.53 | J11: =VLOOKUP($A11,'RECAP DIRCOM'!$G$6:$CU$12,24,FALSE) -> 21% | K11: =VLOOKUP($A11,'RECAP DIRCOM'!$G$6:$CU$12,25,FALSE) -> 4 | L11: =VLOOKUP($A11,'RECAP DIRCOM'!$G$6:$CU$12,26,FALSE) -> 27% | M11: =VLOOKUP($A11,'RECAP DIRCOM'!$G$6:$CU$12,27,FALSE) -> 27% | N11: =VLOOKUP($A11,'RECAP DIRCOM'!$G$6:$CU$12,28,FALSE) -> 4
A12: 264 | B12: Haut-Rhin | C12: =VLOOKUP($A12,'RECAP DIRCOM'!$G$6:$CU$12,3,FALSE) -> 123 | D12: =VLOOKUP($A12,'RECAP DIRCOM'!$G$6:$CU$12,18,FALSE) -> 508 | E12: =VLOOKUP($A12,'RECAP DIRCOM'!$G$6:$CU$12,19,FALSE) -> 4.13 | F12: =VLOOKUP($A12,'RECAP DIRCOM'!$G$6:$CU$12,20,FALSE) -> 81% | G12: =VLOOKUP($A12,'RECAP DIRCOM'!$G$6:$CU$12,21,FALSE) -> 7 | H12: =VLOOKUP($A12,'RECAP DIRCOM'!$G$6:$CU$12,22,FALSE) -> 4,349 | I12: =VLOOKUP($A12,'RECAP DIRCOM'!$G$6:$CU$12,23,FALSE) -> 35.41 | J12: =VLOOKUP($A12,'RECAP DIRCOM'!$G$6:$CU$12,24,FALSE) -> 36% | K12: =VLOOKUP($A12,'RECAP DIRCOM'!$G$6:$CU$12,25,FALSE) -> 7 | L12: =VLOOKUP($A12,'RECAP DIRCOM'!$G$6:$CU$12,26,FALSE) -> 63% | M12: =VLOOKUP($A12,'RECAP DIRCOM'!$G$6:$CU$12,27,FALSE) -> 63% | N12: =VLOOKUP($A12,'RECAP DIRCOM'!$G$6:$CU$12,28,FALSE) -> 7
A13: 30 | B13: Marne-Ardennes | C13: =VLOOKUP($A13,'RECAP DIRCOM'!$G$6:$CU$12,3,FALSE) -> 193 | D13: =VLOOKUP($A13,'RECAP DIRCOM'!$G$6:$CU$12,18,FALSE) -> 4,231 | E13: =VLOOKUP($A13,'RECAP DIRCOM'!$G$6:$CU$12,19,FALSE) -> 21.93 | F13: =VLOOKUP($A13,'RECAP DIRCOM'!$G$6:$CU$12,20,FALSE) -> 0% | G13: =VLOOKUP($A13,'RECAP DIRCOM'!$G$6:$CU$12,21,FALSE) -> 1 | H13: =VLOOKUP($A13,'RECAP DIRCOM'!$G$6:$CU$12,22,FALSE) -> 10,676 | I13: =VLOOKUP($A13,'RECAP DIRCOM'!$G$6:$CU$12,23,FALSE) -> 55.34 | J13: =VLOOKUP($A13,'RECAP DIRCOM'!$G$6:$CU$12,24,FALSE) -> 0% | K13: =VLOOKUP($A13,'RECAP DIRCOM'!$G$6:$CU$12,25,FALSE) -> 1 | L13: =VLOOKUP($A13,'RECAP DIRCOM'!$G$6:$CU$12,26,FALSE) -> 0% | M13: =VLOOKUP($A13,'RECAP DIRCOM'!$G$6:$CU$12,27,FALSE) -> 0% | N13: =VLOOKUP($A13,'RECAP DIRCOM'!$G$6:$CU$12,28,FALSE) -> 1
A14: 110 | B14: Meurthe et Moselle Meuse | C14: =VLOOKUP($A14,'RECAP DIRCOM'!$G$6:$CU$12,3,FALSE) -> 203 | D14: =VLOOKUP($A14,'RECAP DIRCOM'!$G$6:$CU$12,18,FALSE) -> 2,965 | E14: =VLOOKUP($A14,'RECAP DIRCOM'!$G$6:$CU$12,19,FALSE) -> 14.61 | F14: =VLOOKUP($A14,'RECAP DIRCOM'!$G$6:$CU$12,20,FALSE) -> 33% | G14: =VLOOKUP($A14,'RECAP DIRCOM'!$G$6:$CU$12,21,FALSE) -> 4 | H14: =VLOOKUP($A14,'RECAP DIRCOM'!$G$6:$CU$12,22,FALSE) -> 9,933 | I14: =VLOOKUP($A14,'RECAP DIRCOM'!$G$6:$CU$12,23,FALSE) -> 48.96 | J14: =VLOOKUP($A14,'RECAP DIRCOM'!$G$6:$CU$12,24,FALSE) -> 12% | K14: =VLOOKUP($A14,'RECAP DIRCOM'!$G$6:$CU$12,25,FALSE) -> 3 | L14: =VLOOKUP($A14,'RECAP DIRCOM'!$G$6:$CU$12,26,FALSE) -> 25% | M14: =VLOOKUP($A14,'RECAP DIRCOM'!$G$6:$CU$12,27,FALSE) -> 25% | N14: =VLOOKUP($A14,'RECAP DIRCOM'!$G$6:$CU$12,28,FALSE) -> 3
A15: 160 | B15: Moselle | C15: =VLOOKUP($A15,'RECAP DIRCOM'!$G$6:$CU$12,3,FALSE) -> 223 | D15: =VLOOKUP($A15,'RECAP DIRCOM'!$G$6:$CU$12,18,FALSE) -> 4,627 | E15: =VLOOKUP($A15,'RECAP DIRCOM'!$G$6:$CU$12,19,FALSE) -> 20.77 | F15: =VLOOKUP($A15,'RECAP DIRCOM'!$G$6:$CU$12,20,FALSE) -> 5% | G15: =VLOOKUP($A15,'RECAP DIRCOM'!$G$6:$CU$12,21,FALSE) -> 2 | H15: =VLOOKUP($A15,'RECAP DIRCOM'!$G$6:$CU$12,22,FALSE) -> 12,132 | I15: =VLOOKUP($A15,'RECAP DIRCOM'!$G$6:$CU$12,23,FALSE) -> 54.47 | J15: =VLOOKUP($A15,'RECAP DIRCOM'!$G$6:$CU$12,24,FALSE) -> 2% | K15: =VLOOKUP($A15,'RECAP DIRCOM'!$G$6:$CU$12,25,FALSE) -> 2 | L15: =VLOOKUP($A15,'RECAP DIRCOM'!$G$6:$CU$12,26,FALSE) -> 4% | M15: =VLOOKUP($A15,'RECAP DIRCOM'!$G$6:$CU$12,27,FALSE) -> 4% | N15: =VLOOKUP($A15,'RECAP DIRCOM'!$G$6:$CU$12,28,FALSE) -> 2
A16: 80 | B16: Vosges | C16: =VLOOKUP($A16,'RECAP DIRCOM'!$G$6:$CU$12,3,FALSE) -> 117 | D16: =VLOOKUP($A16,'RECAP DIRCOM'!$G$6:$CU$12,18,FALSE) -> 1,625 | E16: =VLOOKUP($A16,'RECAP DIRCOM'!$G$6:$CU$12,19,FALSE) -> 13.90 | F16: =VLOOKUP($A16,'RECAP DIRCOM'!$G$6:$CU$12,20,FALSE) -> 37% | G16: =VLOOKUP($A16,'RECAP DIRCOM'!$G$6:$CU$12,21,FALSE) -> 5 | H16: =VLOOKUP($A16,'RECAP DIRCOM'!$G$6:$CU$12,22,FALSE) -> 4,647 | I16: =VLOOKUP($A16,'RECAP DIRCOM'!$G$6:$CU$12,23,FALSE) -> 39.75 | J16: =VLOOKUP($A16,'RECAP DIRCOM'!$G$6:$CU$12,24,FALSE) -> 28% | K16: =VLOOKUP($A16,'RECAP DIRCOM'!$G$6:$CU$12,25,FALSE) -> 6 | L16: =VLOOKUP($A16,'RECAP DIRCOM'!$G$6:$CU$12,26,FALSE) -> 33% | M16: =VLOOKUP($A16,'RECAP DIRCOM'!$G$6:$CU$12,27,FALSE) -> 33% | N16: =VLOOKUP($A16,'RECAP DIRCOM'!$G$6:$CU$12,28,FALSE) -> 5
B17: Total CEGEE Directions Régionales | C17: =SUM(C10:C16) -> 1191

Sheet DC_EPARGNE
B1: Accueil | D1: BAROMETRE BDD - DIRECTIONS REGIONALES
D2: EPARGNE
D3: =ACCUEIL!F7 -> 2022-09-18
D7: Excédent Epargne hors DAV pondéré | H7: Ventes sur client non détenteur de l’univers | L7: Total Epargne
D8: =DATEMAJ!C14 -> au 18/09 | F8: coef | G8: ='RECAP DIRCOM'!AP4 -> 12% | H8: =DATEMAJ!C15 -> au 18/09 | J8: coef | K8: ='RECAP DIRCOM'!AT4 -> 8% | M8: coef | N8: ='RECAP DIRCOM'!AW4 -> 20%
B9: Direction | C9: ="ETP perf "&DATEMAJ!$C$28 -> ETP perf 18-sept | D9: Excédent | E9: Excédent / ETP | F9: % Ecart au 1er | G9: Rang | H9: VB | I9: VB / ETP | J9: % Ecart au 1er | K9: Rang | L9: Moyenne ecart au 1er | M9: % Ecart au 1er | N9: Rang CEGEE
A10: 50 | B10: Aube Haute Marne | C10: =VLOOKUP($A10,'RECAP DIRCOM'!$G$6:$CU$12,3,FALSE) -> 112 | D10: =VLOOKUP($A10,'RECAP DIRCOM'!$G$6:$CU$12,33,FALSE) -> 15,346 | E10: =VLOOKUP($A10,'RECAP DIRCOM'!$G$6:$CU$12,34,FALSE) -> 136.56 | F10: =VLOOKUP($A10,'RECAP DIRCOM'!$G$6:$CU$12,35,FALSE) -> 56% | G10: =VLOOKUP($A10,'RECAP DIRCOM'!$G$6:$CU$12,36,FALSE) -> 6 | H10: =VLOOKUP($A10,'RECAP DIRCOM'!$G$6:$CU$12,37,FALSE) -> 4,542 | I10: =VLOOKUP($A10,'RECAP DIRCOM'!$G$6:$CU$12,38,FALSE) -> 40.42 | J10: =VLOOKUP($A10,'RECAP DIRCOM'!$G$6:$CU$12,39,FALSE) -> 29% | K10: =VLOOKUP($A10,'RECAP DIRCOM'!$G$6:$CU$12,40,FALSE) -> 5 | L10: =VLOOKUP($A10,'RECAP DIRCOM'!$G$6:$CU$12,41,FALSE) -> 45% | M10: =VLOOKUP($A10,'RECAP DIRCOM'!$G$6:$CU$12,42,FALSE) -> 35% | N10: =VLOOKUP($A10,'RECAP DIRCOM'!$G$6:$CU$12,43,FALSE) -> 6
A11: 262 | B11: Bas-Rhin | C11: =VLOOKUP($A11,'RECAP DIRCOM'!$G$6:$CU$12,3,FALSE) -> 220 | D11: =VLOOKUP($A11,'RECAP DIRCOM'!$G$6:$CU$12,33,FALSE) -> 68,846 | E11: =VLOOKUP($A11,'RECAP DIRCOM'!$G$6:$CU$12,34,FALSE) -> 312.67 | F11: =VLOOKUP($A11,'RECAP DIRCOM'!$G$6:$CU$12,35,FALSE) -> 0% | G11: =VLOOKUP($A11,'RECAP DIRCOM'!$G$6:$CU$12,36,FALSE) -> 1 | H11: =VLOOKUP($A11,'RECAP DIRCOM'!$G$6:$CU$12,37,FALSE) -> 9,394 | I11: =VLOOKUP($A11,'RECAP DIRCOM'!$G$6:$CU$12,38,FALSE) -> 42.66 | J11: =VLOOKUP($A11,'RECAP DIRCOM'!$G$6:$CU$12,39,FALSE) -> 25% | K11: =VLOOKUP($A11,'RECAP DIRCOM'!$G$6:$CU$12,40,FALSE) -> 4 | L11: =VLOOKUP($A11,'RECAP DIRCOM'!$G$6:$CU$12,41,FALSE) -> 10% | M11: =VLOOKUP($A11,'RECAP DIRCOM'!$G$6:$CU$12,42,FALSE) -> 0% | N11: =VLOOKUP($A11,'RECAP DIRCOM'!$G$6:$CU$12,43,FALSE) -> 1
A12: 264 | B12: Haut-Rhin | C12: =VLOOKUP($A12,'RECAP DIRCOM'!$G$6:$CU$12,3,FALSE) -> 123 | D12: =VLOOKUP($A12,'RECAP DIRCOM'!$G$6:$CU$12,33,FALSE) -> 4,550 | E12: =VLOOKUP($A12,'RECAP DIRCOM'!$G$6:$CU$12,34,FALSE) -> 37.04 | F12: =VLOOKUP($A12,'RECAP DIRCOM'!$G$6:$CU$12,35,FALSE) -> 88% | G12: =VLOOKUP($A12,'RECAP DIRCOM'!$G$6:$CU$12,36,FALSE) -> 7 | H12: =VLOOKUP($A12,'RECAP DIRCOM'!$G$6:$CU$12,37,FALSE) -> 3,874 | I12: =VLOOKUP($A12,'RECAP DIRCOM'!$G$6:$CU$12,38,FALSE) -> 31.54 | J12: =VLOOKUP($A12,'RECAP DIRCOM'!$G$6:$CU$12,39,FALSE) -> 45% | K12: =VLOOKUP($A12,'RECAP DIRCOM'!$G$6:$CU$12,40,FALSE) -> 7 | L12: =VLOOKUP($A12,'RECAP DIRCOM'!$G$6:$CU$12,41,FALSE) -> 71% | M12: =VLOOKUP($A12,'RECAP DIRCOM'!$G$6:$CU$12,42,FALSE) -> 61% | N12: =VLOOKUP($A12,'RECAP DIRCOM'!$G$6:$CU$12,43,FALSE) -> 7
A13: 30 | B13: Marne-Ardennes | C13: =VLOOKUP($A13,'RECAP DIRCOM'!$G$6:$CU$12,3,FALSE) -> 193 | D13: =VLOOKUP($A13,'RECAP DIRCOM'!$G$6:$CU$12,33,FALSE) -> 45,480 | E13: =VLOOKUP($A13,'RECAP DIRCOM'!$G$6:$CU$12,34,FALSE) -> 235.73 | F13: =VLOOKUP($A13,'RECAP DIRCOM'!$G$6:$CU$12,35,FALSE) -> 25% | G13: =VLOOKUP($A13,'RECAP DIRCOM'!$G$6:$CU$12,36,FALSE) -> 2 | H13: =VLOOKUP($A13,'RECAP DIRCOM'!$G$6:$CU$12,37,FALSE) -> 10,400 | I13: =VLOOKUP($A13,'RECAP DIRCOM'!$G$6:$CU$12,38,FALSE) -> 53.91 | J13: =VLOOKUP($A13,'RECAP DIRCOM'!$G$6:$CU$12,39,FALSE) -> 5% | K13: =VLOOKUP($A13,'RECAP DIRCOM'!$G$6:$CU$12,40,FALSE) -> 2 | L13: =VLOOKUP($A13,'RECAP DIRCOM'!$G$6:$CU$12,41,FALSE) -> 17% | M13: =VLOOKUP($A13,'RECAP DIRCOM'!$G$6:$CU$12,42,FALSE) -> 7% | N13: =VLOOKUP($A13,'RECAP DIRCOM'!$G$6:$CU$12,43,FALSE) -> 2
A14: 110 | B14: Meurthe et Moselle Meuse | C14: =VLOOKUP($A14,'RECAP DIRCOM'!$G$6:$CU$12,3,FALSE) -> 203 | D14: =VLOOKUP($A14,'RECAP DIRCOM'!$G$6:$CU$12,33,FALSE) -> 43,961 | E14: =VLOOKUP($A14,'RECAP DIRCOM'!$G$6:$CU$12,34,FALSE) -> 216.70 | F14: =VLOOKUP($A14,'RECAP DIRCOM'!$G$6:$CU$12,35,FALSE) -> 31% | G14: =VLOOKUP($A14,'RECAP DIRCOM'!$G$6:$CU$12,36,FALSE) -> 5 | H14: =VLOOKUP($A14,'RECAP DIRCOM'!$G$6:$CU$12,37,FALSE) -> 8,719 | I14: =VLOOKUP($A14,'RECAP DIRCOM'!$G$6:$CU$12,38,FALSE) -> 42.98 | J14: =VLOOKUP($A14,'RECAP DIRCOM'!$G$6:$CU$12,39,FALSE) -> 25% | K14: =VLOOKUP($A14,'RECAP DIRCOM'!$G$6:$CU$12,40,FALSE) -> 3 | L14: =VLOOKUP($A14,'RECAP DIRCOM'!$G$6:$CU$12,41,FALSE) -> 28% | M14: =VLOOKUP($A14,'RECAP DIRCOM'!$G$6:$CU$12,42,FALSE) -> 18% | N14: =VLOOKUP($A14,'RECAP DIRCOM'!$G$6:$CU$12,43,FALSE) -> 4
A15: 160 | B15: Moselle | C15: =VLOOKUP($A15,'RECAP DIRCOM'!$G$6:$CU$12,3,FALSE) -> 223 | D15: =VLOOKUP($A15,'RECAP DIRCOM'!$G$6:$CU$12,33,FALSE) -> 49,230 | E15: =VLOOKUP($A15,'RECAP DIRCOM'!$G$6:$CU$12,34,FALSE) -> 221.02 | F15: =VLOOKUP($A15,'RECAP DIRCOM'!$G$6:$CU$12,35,FALSE) -> 29% | G15: =VLOOKUP($A15,'RECAP DIRCOM'!$G$6:$CU$12,36,FALSE) -> 4 | H15: =VLOOKUP($A15,'RECAP DIRCOM'!$G$6:$CU$12,37,FALSE) -> 12,688 | I15: =VLOOKUP($A15,'RECAP DIRCOM'!$G$6:$CU$12,38,FALSE) -> 56.96 | J15: =VLOOKUP($A15,'RECAP DIRCOM'!$G$6:$CU$12,39,FALSE) -> 0% | K15: =VLOOKUP($A15,'RECAP DIRCOM'!$G$6:$CU$12,40,FALSE) -> 1 | L15: =VLOOKUP($A15,'RECAP DIRCOM'!$G$6:$CU$12,41,FALSE) -> 18% | M15: =VLOOKUP($A15,'RECAP DIRCOM'!$G$6:$CU$12,42,FALSE) -> 8% | N15: =VLOOKUP($A15,'RECAP DIRCOM'!$G$6:$CU$12,43,FALSE) -> 3
A16: 80 | B16: Vosges | C16: =VLOOKUP($A16,'RECAP DIRCOM'!$G$6:$CU$12,3,FALSE) -> 117 | D16: =VLOOKUP($A16,'RECAP DIRCOM'!$G$6:$CU$12,33,FALSE) -> 26,199 | E16: =VLOOKUP($A16,'RECAP DIRCOM'!$G$6:$CU$12,34,FALSE) -> 224.12 | F16: =VLOOKUP($A16,'RECAP DIRCOM'!$G$6:$CU$12,35,FALSE) -> 28% | G16: =VLOOKUP($A16,'RECAP DIRCOM'!$G$6:$CU$12,36,FALSE) -> 3 | H16: =VLOOKUP($A16,'RECAP DIRCOM'!$G$6:$CU$12,37,FALSE) -> 4,333 | I16: =VLOOKUP($A16,'RECAP DIRCOM'!$G$6:$CU$12,38,FALSE) -> 37.07 | J16: =VLOOKUP($A16,'RECAP DIRCOM'!$G$6:$CU$12,39,FALSE) -> 35% | K16: =VLOOKUP($A16,'RECAP DIRCOM'!$G$6:$CU$12,40,FALSE) -> 6 | L16: =VLOOKUP($A16,'RECAP DIRCOM'!$G$6:$CU$12,41,FALSE) -> 31% | M16: =VLOOKUP($A16,'RECAP DIRCOM'!$G$6:$CU$12,42,FALSE) -> 21% | N16: =VLOOKUP($A16,'RECAP DIRCOM'!$G$6:$CU$12,43,FALSE) -> 5
B17: Total CEGEE Directions Régionales | C17: =SUM(C10:C16) -> 1191

Sheet DC_CREDIT
B1: Accueil | D1: BAROMETRE BDD - DIRECTIONS REGIONALES
D2: CREDITS
D3: =ACCUEIL!F7 -> 2022-09-18
D7: Engagements et ventes accessoires pondérés Immo | H7: Engagements et ventes accessoires pondérés Conso | L7: Ventes sur client non détenteur de l’univers | P7: Total Crédits
D8: =DATEMAJ!C18 -> au 18/09 | F8: coef | G8: ='RECAP DIRCOM'!BE4 -> 6% | H8: =DATEMAJ!C19 -> au 18/09 | J8: coef | K8: ='RECAP DIRCOM'!BI4 -> 6% | L8: =DATEMAJ!C20 -> au 18/09 | N8: coef | O8: ='RECAP DIRCOM'!BM4 -> 8% | Q8: coef | R8: ='RECAP DIRCOM'!BP4 -> 20%
B9: Direction | C9: ="ETP perf "&DATEMAJ!$C$28 -> ETP perf 18-sept | D9: PNB | E9: PNB / ETP | F9: % Ecart au 1er | G9: Rang | H9: PNB | I9: PNB / ETP | J9: % Ecart au 1er | K9: Rang | L9: VB | M9: VB / ETP | N9: % Ecart au 1er | O9: Rang | P9: Moyenne ecart au 1er | Q9: % Ecart au 1er | R9: Rang CEGEE
A10: 50 | B10: Aube Haute Marne | C10: =VLOOKUP($A10,'RECAP DIRCOM'!$G$6:$CU$12,3,FALSE) -> 112 | D10: =VLOOKUP($A10,'RECAP DIRCOM'!$G$6:$CU$12,48,FALSE) -> 18,617 | E10: =VLOOKUP($A10,'RECAP DIRCOM'!$G$6:$CU$12,49,FALSE) -> 165.67 | F10: =VLOOKUP($A10,'RECAP DIRCOM'!$G$6:$CU$12,50,FALSE) -> 52% | G10: =VLOOKUP($A10,'RECAP DIRCOM'!$G$6:$CU$12,51,FALSE) -> 6 | H10: =VLOOKUP($A10,'RECAP DIRCOM'!$G$6:$CU$12,52,FALSE) -> 4,474 | I10: =VLOOKUP($A10,'RECAP DIRCOM'!$G$6:$CU$12,53,FALSE) -> 39.81 | J10: =VLOOKUP($A10,'RECAP DIRCOM'!$G$6:$CU$12,54,FALSE) -> 16% | K10: =VLOOKUP($A10,'RECAP DIRCOM'!$G$6:$CU$12,55,FALSE) -> 4 | L10: =VLOOKUP($A10,'RECAP DIRCOM'!$G$6:$CU$12,56,FALSE) -> 1,797 | M10: =VLOOKUP($A10,'RECAP DIRCOM'!$G$6:$CU$12,57,FALSE) -> 15.99 | N10: =VLOOKUP($A10,'RECAP DIRCOM'!$G$6:$CU$12,58,FALSE) -> 39% | O10: =VLOOKUP($A10,'RECAP DIRCOM'!$G$6:$CU$12,59,FALSE) -> 5 | P10: =VLOOKUP($A10,'RECAP DIRCOM'!$G$6:$CU$12,60,FALSE) -> 36% | Q10: =VLOOKUP($A10,'RECAP DIRCOM'!$G$6:$CU$12,61,FALSE) -> 32% | R10: =VLOOKUP($A10,'RECAP DIRCOM'!$G$6:$CU$12,62,FALSE) -> 5
A11: 262 | B11: Bas-Rhin | C11: =VLOOKUP($A11,'RECAP DIRCOM'!$G$6:$CU$12,3,FALSE) -> 220 | D11: =VLOOKUP($A11,'RECAP DIRCOM'!$G$6:$CU$12,48,FALSE) -> 38,513 | E11: =VLOOKUP($A11,'RECAP DIRCOM'!$G$6:$CU$12,49,FALSE) -> 174.91 | F11: =VLOOKUP($A11,'RECAP DIRCOM'!$G$6:$CU$12,50,FALSE) -> 50% | G11: =VLOOKUP($A11,'RECAP DIRCOM'!$G$6:$CU$12,51,FALSE) -> 4 | H11: =VLOOKUP($A11,'RECAP DIRCOM'!$G$6:$CU$12,52,FALSE) -> 7,431 | I11: =VLOOKUP($A11,'RECAP DIRCOM'!$G$6:$CU$12,53,FALSE) -> 33.75 | J11: =VLOOKUP($A11,'RECAP DIRCOM'!$G$6:$CU$12,54,FALSE) -> 29% | K11: =VLOOKUP($A11,'RECAP DIRCOM'!$G$6:$CU$12,55,FALSE) -> 6 | L11: =VLOOKUP($A11,'RECAP DIRCOM'!$G$6:$CU$12,56,FALSE) -> 3,415 | M11: =VLOOKUP($A11,'RECAP DIRCOM'!$G$6:$CU$12,57,FALSE) -> 15.51 | N11: =VLOOKUP($A11,'RECAP DIRCOM'!$G$6:$CU$12,58,FALSE) -> 41% | O11: =VLOOKUP($A11,'RECAP DIRCOM'!$G$6:$CU$12,59,FALSE) -> 6 | P11: =VLOOKUP($A11,'RECAP DIRCOM'!$G$6:$CU$12,60,FALSE) -> 40% | Q11: =VLOOKUP($A11,'RECAP DIRCOM'!$G$6:$CU$12,61,FALSE) -> 35% | R11: =VLOOKUP($A11,'RECAP DIRCOM'!$G$6:$CU$12,62,FALSE) -> 6
A12: 264 | B12: Haut-Rhin | C12: =VLOOKUP($A12,'RECAP DIRCOM'!$G$6:$CU$12,3,FALSE) -> 123 | D12: =VLOOKUP($A12,'RECAP DIRCOM'!$G$6:$CU$12,48,FALSE) -> 17,766 | E12: =VLOOKUP($A12,'RECAP DIRCOM'!$G$6:$CU$12,49,FALSE) -> 144.64 | F12: =VLOOKUP($A12,'RECAP DIRCOM'!$G$6:$CU$12,50,FALSE) -> 58% | G12: =VLOOKUP($A12,'RECAP DIRCOM'!$G$6:$CU$12,51,FALSE) -> 7 | H12: =VLOOKUP($A12,'RECAP DIRCOM'!$G$6:$CU$12,52,FALSE) -> 3,970 | I12: =VLOOKUP($A12,'RECAP DIRCOM'!$G$6:$CU$12,53,FALSE) -> 32.32 | J12: =VLOOKUP($A12,'RECAP DIRCOM'!$G$6:$CU$12,54,FALSE) -> 32% | K12: =VLOOKUP($A12,'RECAP DIRCOM'!$G$6:$CU$12,55,FALSE) -> 7 | L12: =VLOOKUP($A12,'RECAP DIRCOM'!$G$6:$CU$12,56,FALSE) -> 1,544 | M12: =VLOOKUP($A12,'RECAP DIRCOM'!$G$6:$CU$12,57,FALSE) -> 12.57 | N12: =VLOOKUP($A12,'RECAP DIRCOM'!$G$6:$CU$12,58,FALSE) -> 52% | O12: =VLOOKUP($A12,'RECAP DIRCOM'!$G$6:$CU$12,59,FALSE) -> 7 | P12: =VLOOKUP($A12,'RECAP DIRCOM'!$G$6:$CU$12,60,FALSE) -> 48% | Q12: =VLOOKUP($A12,'RECAP DIRCOM'!$G$6:$CU$12,61,FALSE) -> 43% | R12: =VLOOKUP($A12,'RECAP DIRCOM'!$G$6:$CU$12,62,FALSE) -> 7
A13: 30 | B13: Marne-Ardennes | C13: =VLOOKUP($A13,'RECAP DIRCOM'!$G$6:$CU$12,3,FALSE) -> 193 | D13: =VLOOKUP($A13,'RECAP DIRCOM'!$G$6:$CU$12,48,FALSE) -> 66,919 | E13: =VLOOKUP($A13,'RECAP DIRCOM'!$G$6:$CU$12,49,FALSE) -> 346.86 | F13: =VLOOKUP($A13,'RECAP DIRCOM'!$G$6:$CU$12,50,FALSE) -> 0% | G13: =VLOOKUP($A13,'RECAP DIRCOM'!$G$6:$CU$12,51,FALSE) -> 1 | H13: =VLOOKUP($A13,'RECAP DIRCOM'!$G$6:$CU$12,52,FALSE) -> 7,770 | I13: =VLOOKUP($A13,'RECAP DIRCOM'!$G$6:$CU$12,53,FALSE) -> 40.27 | J13: =VLOOKUP($A13,'RECAP DIRCOM'!$G$6:$CU$12,54,FALSE) -> 15% | K13: =VLOOKUP($A13,'RECAP DIRCOM'!$G$6:$CU$12,55,FALSE) -> 3 | L13: =VLOOKUP($A13,'RECAP DIRCOM'!$G$6:$CU$12,56,FALSE) -> 5,081 | M13: =VLOOKUP($A13,'RECAP DIRCOM'!$G$6:$CU$12,57,FALSE) -> 26.34 | N13: =VLOOKUP($A13,'RECAP DIRCOM'!$G$6:$CU$12,58,FALSE) -> 0% | O13: =VLOOKUP($A13,'RECAP DIRCOM'!$G$6:$CU$12,59,FALSE) -> 1 | P13: =VLOOKUP($A13,'RECAP DIRCOM'!$G$6:$CU$12,60,FALSE) -> 4% | Q13: =VLOOKUP($A13,'RECAP DIRCOM'!$G$6:$CU$12,61,FALSE) -> 0% | R13: =VLOOKUP($A13,'RECAP DIRCOM'!$G$6:$CU$12,62,FALSE) -> 1
A14: 110 | B14: Meurthe et Moselle Meuse | C14: =VLOOKUP($A14,'RECAP DIRCOM'!$G$6:$CU$12,3,FALSE) -> 203 | D14: =VLOOKUP($A14,'RECAP DIRCOM'!$G$6:$CU$12,48,FALSE) -> 56,547 | E14: =VLOOKUP($A14,'RECAP DIRCOM'!$G$6:$CU$12,49,FALSE) -> 278.74 | F14: =VLOOKUP($A14,'RECAP DIRCOM'!$G$6:$CU$12,50,FALSE) -> 20% | G14: =VLOOKUP($A14,'RECAP DIRCOM'!$G$6:$CU$12,51,FALSE) -> 3 | H14: =VLOOKUP($A14,'RECAP DIRCOM'!$G$6:$CU$12,52,FALSE) -> 8,722 | I14: =VLOOKUP($A14,'RECAP DIRCOM'!$G$6:$CU$12,53,FALSE) -> 42.99 | J14: =VLOOKUP($A14,'RECAP DIRCOM'!$G$6:$CU$12,54,FALSE) -> 9% | K14: =VLOOKUP($A14,'RECAP DIRCOM'!$G$6:$CU$12,55,FALSE) -> 2 | L14: =VLOOKUP($A14,'RECAP DIRCOM'!$G$6:$CU$12,56,FALSE) -> 4,165 | M14: =VLOOKUP($A14,'RECAP DIRCOM'!$G$6:$CU$12,57,FALSE) -> 20.53 | N14: =VLOOKUP($A14,'RECAP DIRCOM'!$G$6:$CU$12,58,FALSE) -> 22% | O14: =VLOOKUP($A14,'RECAP DIRCOM'!$G$6:$CU$12,59,FALSE) -> 3 | P14: =VLOOKUP($A14,'RECAP DIRCOM'!$G$6:$CU$12,60,FALSE) -> 17% | Q14: =VLOOKUP($A14,'RECAP DIRCOM'!$G$6:$CU$12,61,FALSE) -> 13% | R14: =VLOOKUP($A14,'RECAP DIRCOM'!$G$6:$CU$12,62,FALSE) -> 3
A15: 160 | B15: Moselle | C15: =VLOOKUP($A15,'RECAP DIRCOM'!$G$6:$CU$12,3,FALSE) -> 223 | D15: =VLOOKUP($A15,'RECAP DIRCOM'!$G$6:$CU$12,48,FALSE) -> 72,392 | E15: =VLOOKUP($A15,'RECAP DIRCOM'!$G$6:$CU$12,49,FALSE) -> 325.01 | F15: =VLOOKUP($A15,'RECAP DIRCOM'!$G$6:$CU$12,50,FALSE) -> 6% | G15: =VLOOKUP($A15,'RECAP DIRCOM'!$G$6:$CU$12,51,FALSE) -> 2 | H15: =VLOOKUP($A15,'RECAP DIRCOM'!$G$6:$CU$12,52,FALSE) -> 10,514 | I15: =VLOOKUP($A15,'RECAP DIRCOM'!$G$6:$CU$12,53,FALSE) -> 47.20 | J15: =VLOOKUP($A15,'RECAP DIRCOM'!$G$6:$CU$12,54,FALSE) -> 0% | K15: =VLOOKUP($A15,'RECAP DIRCOM'!$G$6:$CU$12,55,FALSE) -> 1 | L15: =VLOOKUP($A15,'RECAP DIRCOM'!$G$6:$CU$12,56,FALSE) -> 5,042 | M15: =VLOOKUP($A15,'RECAP DIRCOM'!$G$6:$CU$12,57,FALSE) -> 22.64 | N15: =VLOOKUP($A15,'RECAP DIRCOM'!$G$6:$CU$12,58,FALSE) -> 14% | O15: =VLOOKUP($A15,'RECAP DIRCOM'!$G$6:$CU$12,59,FALSE) -> 2 | P15: =VLOOKUP($A15,'RECAP DIRCOM'!$G$6:$CU$12,60,FALSE) -> 8% | Q15: =VLOOKUP($A15,'RECAP DIRCOM'!$G$6:$CU$12,61,FALSE) -> 3% | R15: =VLOOKUP($A15,'RECAP DIRCOM'!$G$6:$CU$12,62,FALSE) -> 2
A16: 80 | B16: Vosges | C16: =VLOOKUP($A16,'RECAP DIRCOM'!$G$6:$CU$12,3,FALSE) -> 117 | D16: =VLOOKUP($A16,'RECAP DIRCOM'!$G$6:$CU$12,48,FALSE) -> 19,799 | E16: =VLOOKUP($A16,'RECAP DIRCOM'!$G$6:$CU$12,49,FALSE) -> 169.37 | F16: =VLOOKUP($A16,'RECAP DIRCOM'!$G$6:$CU$12,50,FALSE) -> 51% | G16: =VLOOKUP($A16,'RECAP DIRCOM'!$G$6:$CU$12,51,FALSE) -> 5 | H16: =VLOOKUP($A16,'RECAP DIRCOM'!$G$6:$CU$12,52,FALSE) -> 4,288 | I16: =VLOOKUP($A16,'RECAP DIRCOM'!$G$6:$CU$12,53,FALSE) -> 36.68 | J16: =VLOOKUP($A16,'RECAP DIRCOM'!$G$6:$CU$12,54,FALSE) -> 22% | K16: =VLOOKUP($A16,'RECAP DIRCOM'!$G$6:$CU$12,55,FALSE) -> 5 | L16: =VLOOKUP($A16,'RECAP DIRCOM'!$G$6:$CU$12,56,FALSE) -> 2,081 | M16: =VLOOKUP($A16,'RECAP DIRCOM'!$G$6:$CU$12,57,FALSE) -> 17.80 | N16: =VLOOKUP($A16,'RECAP DIRCOM'!$G$6:$CU$12,58,FALSE) -> 32% | O16: =VLOOKUP($A16,'RECAP DIRCOM'!$G$6:$CU$12,59,FALSE) -> 4 | P16: =VLOOKUP($A16,'RECAP DIRCOM'!$G$6:$CU$12,60,FALSE) -> 35% | Q16: =VLOOKUP($A16,'RECAP DIRCOM'!$G$6:$CU$12,61,FALSE) -> 31% | R16: =VLOOKUP($A16,'RECAP DIRCOM'!$G$6:$CU$12,62,FALSE) -> 4
B17: Total CEGEE Directions Régionales | C17: =SUM(C10:C16) -> 1191

Sheet DC_IARD
B1: Accueil | D1: BAROMETRE BDD - DIRECTIONS REGIONALES
D2: IARD ET PREVOYANCE
D3: =ACCUEIL!F7 -> 2022-09-18
D7: Ventes Nettes produits pondérés | H7: Ventes sur client non détenteur de l’univers | L7: Total IARD Prévoyance
D8: =DATEMAJ!C23 -> au 18/09 | F8: coef | G8: ='RECAP DIRCOM'!BX4 -> 12% | H8: =DATEMAJ!C24 -> au 18/09 | J8: coef | K8: ='RECAP DIRCOM'!CB4 -> 8% | M8: coef | N8: ='RECAP DIRCOM'!CE4 -> 20%
B9: Direction | C9: ="ETP perf "&DATEMAJ!$C$28 -> ETP perf 18-sept | D9: VN | E9: VN / ETP | F9: % Ecart au 1er | G9: Rang | H9: VB | I9: VB / ETP | J9: % Ecart au 1er | K9: Rang | L9: Moyenne ecart au 1er | M9: % Ecart au 1er | N9: Rang CEGEE
A10: 50 | B10: Aube Haute Marne | C10: =VLOOKUP($A10,'RECAP DIRCOM'!$G$6:$CU$12,3,FALSE) -> 112 | D10: =VLOOKUP($A10,'RECAP DIRCOM'!$G$6:$CU$12,67,FALSE) -> 9,279 | E10: =VLOOKUP($A10,'RECAP DIRCOM'!$G$6:$CU$12,68,FALSE) -> 82.58 | F10: =VLOOKUP($A10,'RECAP DIRCOM'!$G$6:$CU$12,69,FALSE) -> 33% | G10: =VLOOKUP($A10,'RECAP DIRCOM'!$G$6:$CU$12,70,FALSE) -> 4 | H10: =VLOOKUP($A10,'RECAP DIRCOM'!$G$6:$CU$12,71,FALSE) -> 3,159 | I10: =VLOOKUP($A10,'RECAP DIRCOM'!$G$6:$CU$12,72,FALSE) -> 28.11 | J10: =VLOOKUP($A10,'RECAP DIRCOM'!$G$6:$CU$12,73,FALSE) -> 24% | K10: =VLOOKUP($A10,'RECAP DIRCOM'!$G$6:$CU$12,74,FALSE) -> 5 | L10: =VLOOKUP($A10,'RECAP DIRCOM'!$G$6:$CU$12,75,FALSE) -> 29% | M10: =VLOOKUP($A10,'RECAP DIRCOM'!$G$6:$CU$12,76,FALSE) -> 29% | N10: =VLOOKUP($A10,'RECAP DIRCOM'!$G$6:$CU$12,77,FALSE) -> 4
A11: 262 | B11: Bas-Rhin | C11: =VLOOKUP($A11,'RECAP DIRCOM'!$G$6:$CU$12,3,FALSE) -> 220 | D11: =VLOOKUP($A11,'RECAP DIRCOM'!$G$6:$CU$12,67,FALSE) -> 16,331 | E11: =VLOOKUP($A11,'RECAP DIRCOM'!$G$6:$CU$12,68,FALSE) -> 74.17 | F11: =VLOOKUP($A11,'RECAP DIRCOM'!$G$6:$CU$12,69,FALSE) -> 40% | G11: =VLOOKUP($A11,'RECAP DIRCOM'!$G$6:$CU$12,70,FALSE) -> 5 | H11: =VLOOKUP($A11,'RECAP DIRCOM'!$G$6:$CU$12,71,FALSE) -> 6,654 | I11: =VLOOKUP($A11,'RECAP DIRCOM'!$G$6:$CU$12,72,FALSE) -> 30.22 | J11: =VLOOKUP($A11,'RECAP DIRCOM'!$G$6:$CU$12,73,FALSE) -> 18% | K11: =VLOOKUP($A11,'RECAP DIRCOM'!$G$6:$CU$12,74,FALSE) -> 4 | L11: =VLOOKUP($A11,'RECAP DIRCOM'!$G$6:$CU$12,75,FALSE) -> 31% | M11: =VLOOKUP($A11,'RECAP DIRCOM'!$G$6:$CU$12,76,FALSE) -> 31% | N11: =VLOOKUP($A11,'RECAP DIRCOM'!$G$6:$CU$12,77,FALSE) -> 5
A12: 264 | B12: Haut-Rhin | C12: =VLOOKUP($A12,'RECAP DIRCOM'!$G$6:$CU$12,3,FALSE) -> 123 | D12: =VLOOKUP($A12,'RECAP DIRCOM'!$G$6:$CU$12,67,FALSE) -> 3,058 | E12: =VLOOKUP($A12,'RECAP DIRCOM'!$G$6:$CU$12,68,FALSE) -> 24.90 | F12: =VLOOKUP($A12,'RECAP DIRCOM'!$G$6:$CU$12,69,FALSE) -> 80% | G12: =VLOOKUP($A12,'RECAP DIRCOM'!$G$6:$CU$12,70,FALSE) -> 7 | H12: =VLOOKUP($A12,'RECAP DIRCOM'!$G$6:$CU$12,71,FALSE) -> 2,936 | I12: =VLOOKUP($A12,'RECAP DIRCOM'!$G$6:$CU$12,72,FALSE) -> 23.90 | J12: =VLOOKUP($A12,'RECAP DIRCOM'!$G$6:$CU$12,73,FALSE) -> 35% | K12: =VLOOKUP($A12,'RECAP DIRCOM'!$G$6:$CU$12,74,FALSE) -> 7 | L12: =VLOOKUP($A12,'RECAP DIRCOM'!$G$6:$CU$12,75,FALSE) -> 62% | M12: =VLOOKUP($A12,'RECAP DIRCOM'!$G$6:$CU$12,76,FALSE) -> 62% | N12: =VLOOKUP($A12,'RECAP DIRCOM'!$G$6:$CU$12,77,FALSE) -> 7
A13: 30 | B13: Marne-Ardennes | C13: =VLOOKUP($A13,'RECAP DIRCOM'!$G$6:$CU$12,3,FALSE) -> 193 | D13: =VLOOKUP($A13,'RECAP DIRCOM'!$G$6:$CU$12,67,FALSE) -> 23,657 | E13: =VLOOKUP($A13,'RECAP DIRCOM'!$G$6:$CU$12,68,FALSE) -> 122.62 | F13: =VLOOKUP($A13,'RECAP DIRCOM'!$G$6:$CU$12,69,FALSE) -> 0% | G13: =VLOOKUP($A13,'RECAP DIRCOM'!$G$6:$CU$12,70,FALSE) -> 1 | H13: =VLOOKUP($A13,'RECAP DIRCOM'!$G$6:$CU$12,71,FALSE) -> 7,103 | I13: =VLOOKUP($A13,'RECAP DIRCOM'!$G$6:$CU$12,72,FALSE) -> 36.82 | J13: =VLOOKUP($A13,'RECAP DIRCOM'!$G$6:$CU$12,73,FALSE) -> 0% | K13: =VLOOKUP($A13,'RECAP DIRCOM'!$G$6:$CU$12,74,FALSE) -> 1 | L13: =VLOOKUP($A13,'RECAP DIRCOM'!$G$6:$CU$12,75,FALSE) -> 0% | M13: =VLOOKUP($A13,'RECAP DIRCOM'!$G$6:$CU$12,76,FALSE) -> 0% | N13: =VLOOKUP($A13,'RECAP DIRCOM'!$G$6:$CU$12,77,FALSE) -> 1
A14: 110 | B14: Meurthe et Moselle Meuse | C14: =VLOOKUP($A14,'RECAP DIRCOM'!$G$6:$CU$12,3,FALSE) -> 203 | D14: =VLOOKUP($A14,'RECAP DIRCOM'!$G$6:$CU$12,67,FALSE) -> 17,978 | E14: =VLOOKUP($A14,'RECAP DIRCOM'!$G$6:$CU$12,68,FALSE) -> 88.62 | F14: =VLOOKUP($A14,'RECAP DIRCOM'!$G$6:$CU$12,69,FALSE) -> 28% | G14: =VLOOKUP($A14,'RECAP DIRCOM'!$G$6:$CU$12,70,FALSE) -> 3 | H14: =VLOOKUP($A14,'RECAP DIRCOM'!$G$6:$CU$12,71,FALSE) -> 6,680 | I14: =VLOOKUP($A14,'RECAP DIRCOM'!$G$6:$CU$12,72,FALSE) -> 32.93 | J14: =VLOOKUP($A14,'RECAP DIRCOM'!$G$6:$CU$12,73,FALSE) -> 11% | K14: =VLOOKUP($A14,'RECAP DIRCOM'!$G$6:$CU$12,74,FALSE) -> 3 | L14: =VLOOKUP($A14,'RECAP DIRCOM'!$G$6:$CU$12,75,FALSE) -> 21% | M14: =VLOOKUP($A14,'RECAP DIRCOM'!$G$6:$CU$12,76,FALSE) -> 21% | N14: =VLOOKUP($A14,'RECAP DIRCOM'!$G$6:$CU$12,77,FALSE) -> 3
A15: 160 | B15: Moselle | C15: =VLOOKUP($A15,'RECAP DIRCOM'!$G$6:$CU$12,3,FALSE) -> 223 | D15: =VLOOKUP($A15,'RECAP DIRCOM'!$G$6:$CU$12,67,FALSE) -> 26,740 | E15: =VLOOKUP($A15,'RECAP DIRCOM'!$G$6:$CU$12,68,FALSE) -> 120.05 | F15: =VLOOKUP($A15,'RECAP DIRCOM'!$G$6:$CU$12,69,FALSE) -> 2% | G15: =VLOOKUP($A15,'RECAP DIRCOM'!$G$6:$CU$12,70,FALSE) -> 2 | H15: =VLOOKUP($A15,'RECAP DIRCOM'!$G$6:$CU$12,71,FALSE) -> 8,135 | I15: =VLOOKUP($A15,'RECAP DIRCOM'!$G$6:$CU$12,72,FALSE) -> 36.52 | J15: =VLOOKUP($A15,'RECAP DIRCOM'!$G$6:$CU$12,73,FALSE) -> 1% | K15: =VLOOKUP($A15,'RECAP DIRCOM'!$G$6:$CU$12,74,FALSE) -> 2 | L15: =VLOOKUP($A15,'RECAP DIRCOM'!$G$6:$CU$12,75,FALSE) -> 2% | M15: =VLOOKUP($A15,'RECAP DIRCOM'!$G$6:$CU$12,76,FALSE) -> 2% | N15: =VLOOKUP($A15,'RECAP DIRCOM'!$G$6:$CU$12,77,FALSE) -> 2
A16: 80 | B16: Vosges | C16: =VLOOKUP($A16,'RECAP DIRCOM'!$G$6:$CU$12,3,FALSE) -> 117 | D16: =VLOOKUP($A16,'RECAP DIRCOM'!$G$6:$CU$12,67,FALSE) -> 8,421 | E16: =VLOOKUP($A16,'RECAP DIRCOM'!$G$6:$CU$12,68,FALSE) -> 72.04 | F16: =VLOOKUP($A16,'RECAP DIRCOM'!$G$6:$CU$12,69,FALSE) -> 41% | G16: =VLOOKUP($A16,'RECAP DIRCOM'!$G$6:$CU$12,70,FALSE) -> 6 | H16: =VLOOKUP($A16,'RECAP DIRCOM'!$G$6:$CU$12,71,FALSE) -> 3,072 | I16: =VLOOKUP($A16,'RECAP DIRCOM'!$G$6:$CU$12,72,FALSE) -> 26.28 | J16: =VLOOKUP($A16,'RECAP DIRCOM'!$G$6:$CU$12,73,FALSE) -> 29% | K16: =VLOOKUP($A16,'RECAP DIRCOM'!$G$6:$CU$12,74,FALSE) -> 6 | L16: =VLOOKUP($A16,'RECAP DIRCOM'!$G$6:$CU$12,75,FALSE) -> 36% | M16: =VLOOKUP($A16,'RECAP DIRCOM'!$G$6:$CU$12,76,FALSE) -> 36% | N16: =VLOOKUP($A16,'RECAP DIRCOM'!$G$6:$CU$12,77,FALSE) -> 6
B17: Total CEGEE Directions Régionales | C17: =SUM(C10:C16) -> 1191

Sheet DC_SATISFACTION
B1: Accueil | D1: BAROMETRE BDD - DIRECTIONS REGIONALES
D2: SATISFACTION
D3: =ACCUEIL!F7 -> 2022-09-18
D7: NPS à froid (SAE) | G7: NPS à chaud (QHD) | J7: Total Satisfaction Clients
D8: =DATEMAJ!E4 -> au 31/07 | E8: coef | F8: ='RECAP DIRCOM'!M4 -> 10% | G8: =DATEMAJ!C5 -> au 31/07 | H8: coef | I8: ='RECAP DIRCOM'!P4 -> 10% | K8: coef | L8: ='RECAP DIRCOM'!S4 -> 20%
B9: Direction | C9: ="ETP perf "&DATEMAJ!$C$28 -> ETP perf 18-sept | E9: % Ecart au 1er | F9: Rang | H9: % Ecart au 1er | I9: Rang | J9: Moyenne ecart au 1er | K9: % Ecart au 1er | L9: Rang CEGEE
A10: 50 | B10: Aube Haute Marne | C10: =VLOOKUP($A10,'RECAP DIRCOM'!$G$6:$CU$12,3,FALSE) -> 112 | D10: =VLOOKUP($A10,'RECAP DIRCOM'!$G$6:$CU$12,5,FALSE) -> 4.25 | E10: =VLOOKUP($A10,'RECAP DIRCOM'!$G$6:$CU$12,6,FALSE) -> 82% | F10: =VLOOKUP($A10,'RECAP DIRCOM'!$G$6:$CU$12,7,FALSE) -> 6 | G10: =VLOOKUP($A10,'RECAP DIRCOM'!$G$6:$CU$12,8,FALSE) -> 55% | H10: =VLOOKUP($A10,'RECAP DIRCOM'!$G$6:$CU$12,9,FALSE) -> 21% | I10: =VLOOKUP($A10,'RECAP DIRCOM'!$G$6:$CU$12,10,FALSE) -> 6 | J10: =VLOOKUP($A10,'RECAP DIRCOM'!$G$6:$CU$12,11,FALSE) -> 51% | K10: =VLOOKUP($A10,'RECAP DIRCOM'!$G$6:$CU$12,12,FALSE) -> 51% | L10: =VLOOKUP($A10,'RECAP DIRCOM'!$G$6:$CU$12,13,FALSE) -> 6
A11: 262 | B11: Bas-Rhin | C11: =VLOOKUP($A11,'RECAP DIRCOM'!$G$6:$CU$12,3,FALSE) -> 220 | D11: =VLOOKUP($A11,'RECAP DIRCOM'!$G$6:$CU$12,5,FALSE) -> 5.75 | E11: =VLOOKUP($A11,'RECAP DIRCOM'!$G$6:$CU$12,6,FALSE) -> 75% | F11: =VLOOKUP($A11,'RECAP DIRCOM'!$G$6:$CU$12,7,FALSE) -> 5 | G11: =VLOOKUP($A11,'RECAP DIRCOM'!$G$6:$CU$12,8,FALSE) -> 62% | H11: =VLOOKUP($A11,'RECAP DIRCOM'!$G$6:$CU$12,9,FALSE) -> 11% | I11: =VLOOKUP($A11,'RECAP DIRCOM'!$G$6:$CU$12,10,FALSE) -> 4 | J11: =VLOOKUP($A11,'RECAP DIRCOM'!$G$6:$CU$12,11,FALSE) -> 43% | K11: =VLOOKUP($A11,'RECAP DIRCOM'!$G$6:$CU$12,12,FALSE) -> 43% | L11: =VLOOKUP($A11,'RECAP DIRCOM'!$G$6:$CU$12,13,FALSE) -> 5
A12: 264 | B12: Haut-Rhin | C12: =VLOOKUP($A12,'RECAP DIRCOM'!$G$6:$CU$12,3,FALSE) -> 123 | D12: =VLOOKUP($A12,'RECAP DIRCOM'!$G$6:$CU$12,5,FALSE) -> 3 | E12: =VLOOKUP($A12,'RECAP DIRCOM'!$G$6:$CU$12,6,FALSE) -> 87% | F12: =VLOOKUP($A12,'RECAP DIRCOM'!$G$6:$CU$12,7,FALSE) -> 7 | G12: =VLOOKUP($A12,'RECAP DIRCOM'!$G$6:$CU$12,8,FALSE) -> 48% | H12: =VLOOKUP($A12,'RECAP DIRCOM'!$G$6:$CU$12,9,FALSE) -> 30% | I12: =VLOOKUP($A12,'RECAP DIRCOM'!$G$6:$CU$12,10,FALSE) -> 7 | J12: =VLOOKUP($A12,'RECAP DIRCOM'!$G$6:$CU$12,11,FALSE) -> 59% | K12: =VLOOKUP($A12,'RECAP DIRCOM'!$G$6:$CU$12,12,FALSE) -> 59% | L12: =VLOOKUP($A12,'RECAP DIRCOM'!$G$6:$CU$12,13,FALSE) -> 7
A13: 30 | B13: Marne-Ardennes | C13: =VLOOKUP($A13,'RECAP DIRCOM'!$G$6:$CU$12,3,FALSE) -> 193 | D13: =VLOOKUP($A13,'RECAP DIRCOM'!$G$6:$CU$12,5,FALSE) -> 17.25 | E13: =VLOOKUP($A13,'RECAP DIRCOM'!$G$6:$CU$12,6,FALSE) -> 26% | F13: =VLOOKUP($A13,'RECAP DIRCOM'!$G$6:$CU$12,7,FALSE) -> 2 | G13: =VLOOKUP($A13,'RECAP DIRCOM'!$G$6:$CU$12,8,FALSE) -> 66% | H13: =VLOOKUP($A13,'RECAP DIRCOM'!$G$6:$CU$12,9,FALSE) -> 4% | I13: =VLOOKUP($A13,'RECAP DIRCOM'!$G$6:$CU$12,10,FALSE) -> 2 | J13: =VLOOKUP($A13,'RECAP DIRCOM'!$G$6:$CU$12,11,FALSE) -> 15% | K13: =VLOOKUP($A13,'RECAP DIRCOM'!$G$6:$CU$12,12,FALSE) -> 15% | L13: =VLOOKUP($A13,'RECAP DIRCOM'!$G$6:$CU$12,13,FALSE) -> 2
A14: 110 | B14: Meurthe et Moselle Meuse | C14: =VLOOKUP($A14,'RECAP DIRCOM'!$G$6:$CU$12,3,FALSE) -> 203 | D14: =VLOOKUP($A14,'RECAP DIRCOM'!$G$6:$CU$12,5,FALSE) -> 10.75 | E14: =VLOOKUP($A14,'RECAP DIRCOM'!$G$6:$CU$12,6,FALSE) -> 54% | F14: =VLOOKUP($A14,'RECAP DIRCOM'!$G$6:$CU$12,7,FALSE) -> 4 | G14: =VLOOKUP($A14,'RECAP DIRCOM'!$G$6:$CU$12,8,FALSE) -> 61% | H14: =VLOOKUP($A14,'RECAP DIRCOM'!$G$6:$CU$12,9,FALSE) -> 12% | I14: =VLOOKUP($A14,'RECAP DIRCOM'!$G$6:$CU$12,10,FALSE) -> 5 | J14: =VLOOKUP($A14,'RECAP DIRCOM'!$G$6:$CU$12,11,FALSE) -> 33% | K14: =VLOOKUP($A14,'RECAP DIRCOM'!$G$6:$CU$12,12,FALSE) -> 33% | L14: =VLOOKUP($A14,'RECAP DIRCOM'!$G$6:$CU$12,13,FALSE) -> 4
A15: 160 | B15: Moselle | C15: =VLOOKUP($A15,'RECAP DIRCOM'!$G$6:$CU$12,3,FALSE) -> 223 | D15: =VLOOKUP($A15,'RECAP DIRCOM'!$G$6:$CU$12,5,FALSE) -> 15.25 | E15: =VLOOKUP($A15,'RECAP DIRCOM'!$G$6:$CU$12,6,FALSE) -> 34% | F15: =VLOOKUP($A15,'RECAP DIRCOM'!$G$6:$CU$12,7,FALSE) -> 3 | G15: =VLOOKUP($A15,'RECAP DIRCOM'!$G$6:$CU$12,8,FALSE) -> 63% | H15: =VLOOKUP($A15,'RECAP DIRCOM'!$G$6:$CU$12,9,FALSE) -> 9% | I15: =VLOOKUP($A15,'RECAP DIRCOM'!$G$6:$CU$12,10,FALSE) -> 3 | J15: =VLOOKUP($A15,'RECAP DIRCOM'!$G$6:$CU$12,11,FALSE) -> 22% | K15: =VLOOKUP($A15,'RECAP DIRCOM'!$G$6:$CU$12,12,FALSE) -> 22% | L15: =VLOOKUP($A15,'RECAP DIRCOM'!$G$6:$CU$12,13,FALSE) -> 3
A16: 80 | B16: Vosges | C16: =VLOOKUP($A16,'RECAP DIRCOM'!$G$6:$CU$12,3,FALSE) -> 117 | D16: =VLOOKUP($A16,'RECAP DIRCOM'!$G$6:$CU$12,5,FALSE) -> 23.25 | E16: =VLOOKUP($A16,'RECAP DIRCOM'!$G$6:$CU$12,6,FALSE) -> 0% | F16: =VLOOKUP($A16,'RECAP DIRCOM'!$G$6:$CU$12,7,FALSE) -> 1 | G16: =VLOOKUP($A16,'RECAP DIRCOM'!$G$6:$CU$12,8,FALSE) -> 69% | H16: =VLOOKUP($A16,'RECAP DIRCOM'!$G$6:$CU$12,9,FALSE) -> 0% | I16: =VLOOKUP($A16,'RECAP DIRCOM'!$G$6:$CU$12,10,FALSE) -> 1 | J16: =VLOOKUP($A16,'RECAP DIRCOM'!$G$6:$CU$12,11,FALSE) -> 0% | K16: =VLOOKUP($A16,'RECAP DIRCOM'!$G$6:$CU$12,12,FALSE) -> 0% | L16: =VLOOKUP($A16,'RECAP DIRCOM'!$G$6:$CU$12,13,FALSE) -> 1
B17: Total CEGEE Directions Régionales | C17: =SUM(C10:C16) -> 1191

Sheet SE_FICHE
A1: Accueil
A2: BAROMETRE BDD
A4: UNITE: | B4: TERRITOIRE | E4: ETP perf : | F4: =VLOOKUP(A5,'RECAP SECT'!$G$6:$I$23,3,FALSE) -> 46.64
A5: =VLOOKUP(B5,LISTES!$H$6:$I$23,2,FALSE) -> 5130 | B5: COLMAR
C6: Coefficient du critére | E6: Résultats | I6: Ecart au 1ier | M6: Evolution | O6: Rang
E7: du 1ier | G7: du territoire | I7: Du mois | K7: Au 31/12/2019
A9: RANG au CLASSEMENT GENERAL | K9: =VLOOKUP($A$5,#REF!,168,FALSE) ->  | M9: =+K9-O9 ->  | O9: =VLOOKUP($A$5,'RECAP SECT'!$G$6:$CY$312,168,FALSE) ->  | S9: =VLOOKUP($A$5,#REF!,154,FALSE) ->  | U9: =+S9-O9 -> 
A11: CRITERE CONQUETE | C11: 15% | O11: =VLOOKUP($A$5,'RECAP SECT'!$G$6:$CY$312,23,FALSE) -> 43.09605489
B12: PNB Evolution nette Clients BP | C12: 4% | E12: ='RECAP SECT'!#REF! ->  | G12: =VLOOKUP($A$5,'RECAP SECT'!$G$6:$CY$312,6,FALSE) -> 0.9 | I12: =VLOOKUP($A$5,'RECAP SECT'!$G$6:$CY$312,7,FALSE) -> 1500% | K12: =VLOOKUP($A$5,#REF!,7,FALSE) ->  | M12: =+K12-I12 ->  | O12: =VLOOKUP($A$5,'RECAP SECT'!$G$6:$CY$312,8,FALSE) -> 0.5209893936 | S12: =VLOOKUP($A$5,#REF!,6,FALSE) ->  | U12: =+S12-I12 -> 
B13: PNB Evolution nette Clients PREMIUM | C13: 5% | E13: ='RECAP SECT'!#REF! ->  | G13: =VLOOKUP($A$5,'RECAP SECT'!$G$6:$CY$312,10,FALSE) -> 16.0 | I13: =VLOOKUP($A$5,'RECAP SECT'!$G$6:$CY$312,11,FALSE) -> 60% | K13: =VLOOKUP($A$5,#REF!,11,FALSE) ->  | M13: =+K13-I13 ->  | O13: =VLOOKUP($A$5,'RECAP SECT'!$G$6:$CY$312,12,FALSE) -> 0.5682290136 | S13: =VLOOKUP($A$5,#REF!,9,FALSE) ->  | U13: =+S13-I13 -> 
B14: PNB Evolution nette Clients Jeunes Equipés | C14: 3% | E14: ='RECAP SECT'!#REF! ->  | G14: =VLOOKUP($A$5,'RECAP SECT'!$G$6:$CY$312,14,FALSE) -> 0.0 | I14: =VLOOKUP($A$5,'RECAP SECT'!$G$6:$CY$312,15,FALSE) -> 0% | K14: =VLOOKUP($A$5,#REF!,15,FALSE) ->  | M14: =+K14-I14 ->  | O14: =VLOOKUP($A$5,'RECAP SECT'!$G$6:$CY$312,16,FALSE) -> 0 | S14: =VLOOKUP($A$5,#REF!,12,FALSE) ->  | U14: =+S14-I14 -> 
B15: PNB Evolution nette Clients Pro Actifs Equipés | C15: 3% | E15: ='RECAP SECT'!W4 -> 0.0 | G15: =VLOOKUP($A$5,'RECAP SECT'!$G$6:$CY$312,18,FALSE) -> 445.8 | I15: =VLOOKUP($A$5,'RECAP SECT'!$G$6:$CY$312,19,FALSE) -> 956% | K15: =VLOOKUP($A$5,#REF!,19,FALSE) ->  | M15: =+K15-I15 ->  | O15: =VLOOKUP($A$5,'RECAP SECT'!$G$6:$CY$312,20,FALSE) -> 0.7267617261 | S15: =VLOOKUP($A$5,#REF!,15,FALSE) ->  | U15: =+S15-I15 -> 
A17: CRITERE BANCARISATION | C17: 15% | O17: =VLOOKUP($A$5,'RECAP SECT'!$G$6:$CY$312,48,FALSE) -> 7805.182722
B18: PNB Ventes nettes forfaits | C18: 4% | E18: ='RECAP SECT'!X4 -> 35.0 | G18: =VLOOKUP($A$5,'RECAP SECT'!$G$6:$CY$312,31,FALSE) -> 0.0 | I18: =VLOOKUP($A$5,'RECAP SECT'!$G$6:$CY$312,32,FALSE) -> 0% | K18: =VLOOKUP($A$5,#REF!,32,FALSE) ->  | M18: =+K18-I18 ->  | O18: =VLOOKUP($A$5,'RECAP SECT'!$G$6:$CY$312,33,FALSE) -> 7868.979574 | S18: =VLOOKUP($A$5,#REF!,27,FALSE) ->  | U18: =+S18-I18 -> 
B19: PNB Ventes nettes IZICARTES Débit Différé | C19: 4% | E19: ='RECAP SECT'!AB4 -> 79.6 | G19: =VLOOKUP($A$5,'RECAP SECT'!$G$6:$CY$312,35,FALSE) -> 0.7 | I19: =VLOOKUP($A$5,'RECAP SECT'!$G$6:$CY$312,36,FALSE) -> 1500% | K19: =VLOOKUP($A$5,#REF!,36,FALSE) ->  | M19: =+K19-I19 ->  | O19: =VLOOKUP($A$5,'RECAP SECT'!$G$6:$CY$312,37,FALSE) -> 1802 | S19: =VLOOKUP($A$5,#REF!,30,FALSE) ->  | U19: =+S19-I19 -> 
B20: PNB Ventes nettes cartes HDG Débit Différé | C20: 4% | E20: ='RECAP SECT'!#REF! ->  | G20: =VLOOKUP($A$5,'RECAP SECT'!$G$6:$CY$312,39,FALSE) -> 0.5 | I20: =VLOOKUP($A$5,'RECAP SECT'!$G$6:$CY$312,40,FALSE) -> 1800% | K20: =VLOOKUP($A$5,#REF!,40,FALSE) ->  | M20: =+K20-I20 ->  | O20: =VLOOKUP($A$5,'RECAP SECT'!$G$6:$CY$312,41,FALSE) -> 0.5935890261 | S20: =VLOOKUP($A$5,#REF!,33,FALSE) ->  | U20: =+S20-I20 -> 
B21: PNB Ventes nettes Forfaits Pro, Carte pro | C21: 3% | E21: ='RECAP SECT'!#REF! ->  | G21: =VLOOKUP($A$5,'RECAP SECT'!$G$6:$CY$312,43,FALSE) -> 16.0 | I21: =VLOOKUP($A$5,'RECAP SECT'!$G$6:$CY$312,44,FALSE) -> 0% | K21: =VLOOKUP($A$5,#REF!,44,FALSE) ->  | M21: =+K21-I21 ->  | O21: =VLOOKUP($A$5,'RECAP SECT'!$G$6:$CY$312,45,FALSE) -> 0 | S21: =VLOOKUP($A$5,#REF!,39,FALSE) ->  | U21: =+S21-I21 -> 
A23: CRITERE EPARGNE | C23: 10% | O23: =VLOOKUP($A$5,'RECAP SECT'!$G$6:$CY$312,69,FALSE) -> 0.692042701
B24: PNB Epargne Liquide | C24: 3% | E24: ='RECAP SECT'!AM4 -> 495.8 | G24: =VLOOKUP($A$5,'RECAP SECT'!$G$6:$CY$312,56,FALSE) -> 754.0 | I24: =VLOOKUP($A$5,'RECAP SECT'!$G$6:$CY$312,57,FALSE) -> 1617% | K24: =VLOOKUP($A$5,#REF!,57,FALSE) ->  | M24: =+K24-I24 ->  | O24: =VLOOKUP($A$5,'RECAP SECT'!$G$6:$CY$312,58,FALSE) -> 0.5827773577 | S24: =VLOOKUP($A$5,#REF!,51,FALSE) ->  | U24: =+S24-I24 -> 
B25: PNB CA UC + arbitrage | C25: 4% | E25: ='RECAP SECT'!AQ4 -> 76.4 | G25: =VLOOKUP($A$5,'RECAP SECT'!$G$6:$CY$312,60,FALSE) -> 0.5 | I25: =VLOOKUP($A$5,'RECAP SECT'!$G$6:$CY$312,61,FALSE) -> 47% | K25: =VLOOKUP($A$5,#REF!,61,FALSE) ->  | M25: =+K25-I25 ->  | O25: =VLOOKUP($A$5,'RECAP SECT'!$G$6:$CY$312,62,FALSE) -> 18 | S25: =VLOOKUP($A$5,#REF!,57,FALSE) ->  | U25: =+S25-I25 -> 
B26: PNB Excédent assurance vie | C26: 3% | E26: ='RECAP SECT'!#REF! ->  | G26: =VLOOKUP($A$5,'RECAP SECT'!$G$6:$CY$312,64,FALSE) -> 0.0 | I26: =VLOOKUP($A$5,'RECAP SECT'!$G$6:$CY$312,65,FALSE) -> 0% | K26: =VLOOKUP($A$5,#REF!,65,FALSE) ->  | M26: =+K26-I26 ->  | O26: =VLOOKUP($A$5,'RECAP SECT'!$G$6:$CY$312,66,FALSE) -> 0 | S26: =VLOOKUP($A$5,#REF!,60,FALSE) ->  | U26: =+S26-I26 -> 
A28: CRITERE CREDITS | C28: 15% | O28: =VLOOKUP($A$5,'RECAP SECT'!$G$6:$CY$312,102,FALSE) -> 
B29: PNB crédit conso | C29: 4% | E29: ='RECAP SECT'!BB4 -> 541.8 | G29: =VLOOKUP($A$5,'RECAP SECT'!$G$6:$CY$312,77,FALSE) -> 17.0 | I29: =VLOOKUP($A$5,'RECAP SECT'!$G$6:$CY$312,78,FALSE) -> 0% | K29: =VLOOKUP($A$5,#REF!,78,FALSE) ->  | M29: =+K29-I29 ->  | O29: =VLOOKUP($A$5,'RECAP SECT'!$G$6:$CY$312,79,FALSE) -> 0 | S29: =VLOOKUP($A$5,#REF!,75,FALSE) ->  | U29: =+S29-I29 -> 
B30: PNB ADE crédit conso | C30: 1% | E30: ='RECAP SECT'!#REF! ->  | G30: =VLOOKUP($A$5,'RECAP SECT'!$G$6:$CY$312,81,FALSE) -> 0.0 | I30: =VLOOKUP($A$5,'RECAP SECT'!$G$6:$CY$312,82,FALSE) -> 0% | K30: =VLOOKUP($A$5,#REF!,82,FALSE) ->  | O30: =VLOOKUP($A$5,'RECAP SECT'!$G$6:$CY$312,83,FALSE) -> 0 | S30: =VLOOKUP($A$5,#REF!,78,FALSE) -> 
B31: PNB crédit immo | C31: 4% | E31: ='RECAP SECT'!BF4 -> 58.9 | G31: =VLOOKUP($A$5,'RECAP SECT'!$G$6:$CY$312,85,FALSE) -> 0.0 | I31: =VLOOKUP($A$5,'RECAP SECT'!$G$6:$CY$312,86,FALSE) -> 0% | K31: =VLOOKUP($A$5,#REF!,86,FALSE) ->  | O31: =VLOOKUP($A$5,'RECAP SECT'!$G$6:$CY$312,87,FALSE) -> 0 | S31: =VLOOKUP($A$5,#REF!,81,FALSE) -> 
B32: PNB ADE crédit immo | C32: 2% | E32: ='RECAP SECT'!#REF! ->  | G32: =VLOOKUP($A$5,'RECAP SECT'!$G$6:$CY$312,89,FALSE) -> 0.0 | I32: =VLOOKUP($A$5,'RECAP SECT'!$G$6:$CY$312,90,FALSE) -> 0% | K32: =VLOOKUP($A$5,#REF!,90,FALSE) ->  | O32: =VLOOKUP($A$5,'RECAP SECT'!$G$6:$CY$312,91,FALSE) -> 0 | S32: =VLOOKUP($A$5,#REF!,84,FALSE) -> 
B33: PNB SACCEF | C33: 2% | E33: ='RECAP SECT'!#REF! ->  | G33: =VLOOKUP($A$5,'RECAP SECT'!$G$6:$CY$312,93,FALSE) -> 0.0 | I33: =VLOOKUP($A$5,'RECAP SECT'!$G$6:$CY$312,94,FALSE) -> 55% | K33: =VLOOKUP($A$5,#REF!,94,FALSE) ->  | O33: =VLOOKUP($A$5,'RECAP SECT'!$G$6:$CY$312,95,FALSE) -> 0.4540572286 | S33: =VLOOKUP($A$5,#REF!,87,FALSE) -> 
B34: PNB Crédit MLT + Crédit Bail | C34: 2% | E34: ='RECAP SECT'!BJ4 -> 38.7 | G34: =VLOOKUP($A$5,'RECAP SECT'!$G$6:$CY$312,97,FALSE) -> 0.0 | I34: =VLOOKUP($A$5,'RECAP SECT'!$G$6:$CY$312,98,FALSE) ->  | K34: =VLOOKUP($A$5,#REF!,98,FALSE) ->  | O34: =VLOOKUP($A$5,'RECAP SECT'!$G$6:$CY$312,99,FALSE) ->  | S34: =VLOOKUP($A$5,#REF!,90,FALSE) -> 
A36: CRITERE IARD PREVOYANCE | C36: 15% | O36: =VLOOKUP($A$5,'RECAP SECT'!$G$6:$CY$312,119,FALSE) -> 
B37: PNB Ventes nettes IARD | C37: 9% | E37: ='RECAP SECT'!BU4 -> 178.7 | G37: =VLOOKUP($A$5,'RECAP SECT'!$G$6:$CY$312,110,FALSE) ->  | I37: =VLOOKUP($A$5,'RECAP SECT'!$G$6:$CY$312,111,FALSE) ->  | K37: =VLOOKUP($A$5,#REF!,111,FALSE) ->  | M37: =+K37-I37 ->  | O37: =VLOOKUP($A$5,'RECAP SECT'!$G$6:$CY$312,112,FALSE) ->  | S37: =VLOOKUP($A$5,#REF!,102,FALSE) ->  | U37: =+S37-I37 -> 
B38: PNB Ventes nettes Prévoyance | C38: 6% | E38: ='RECAP SECT'!BY4 -> 50.8 | G38: =VLOOKUP($A$5,'RECAP SECT'!$G$6:$CY$312,114,FALSE) ->  | I38: =VLOOKUP($A$5,'RECAP SECT'!$G$6:$CY$312,115,FALSE) ->  | K38: =VLOOKUP($A$5,#REF!,115,FALSE) ->  | M38: =+K38-I38 ->  | O38: =VLOOKUP($A$5,'RECAP SECT'!$G$6:$CY$312,116,FALSE) ->  | S38: =VLOOKUP($A$5,#REF!,105,FALSE) ->  | U38: =+S38-I38 -> 
A40: CRITERE ACCELERATEURS PNB | C40: 15% | O40: =VLOOKUP($A$5,'RECAP SECT'!$G$6:$CY$312,144,FALSE) -> 
B41: PNB Ventes brutes SED Finalisées | C41: 6% | E41: ='RECAP SECT'!#REF! ->  | G41: =VLOOKUP($A$5,'RECAP SECT'!$G$6:$CY$312,127,FALSE) ->  | I41: =VLOOKUP($A$5,'RECAP SECT'!$G$6:$CY$312,128,FALSE) ->  | K41: =VLOOKUP($A$5,#REF!,128,FALSE) ->  | M41: =+K41-I41 ->  | O41: =VLOOKUP($A$5,'RECAP SECT'!$G$6:$CY$312,129,FALSE) ->  | S41: =VLOOKUP($A$5,#REF!,120,FALSE) ->  | U41: =+S41-I41 -> 
B42: PNB clients équipés E documents | C42: 3% | E42: ='RECAP SECT'!#REF! ->  | G42: =VLOOKUP($A$5,'RECAP SECT'!$G$6:$CY$312,131,FALSE) ->  | I42: =VLOOKUP($A$5,'RECAP SECT'!$G$6:$CY$312,132,FALSE) ->  | K42: =VLOOKUP($A$5,#REF!,132,FALSE) ->  | M42: =+K42-I42 ->  | O42: =VLOOKUP($A$5,'RECAP SECT'!$G$6:$CY$312,133,FALSE) ->  | S42: =VLOOKUP($A$5,#REF!,123,FALSE) ->  | U42: =+S42-I42 -> 
B43: Economie opt'in | C43: 3% | E43: ='RECAP SECT'!#REF! ->  | G43: =VLOOKUP($A$5,'RECAP SECT'!$G$6:$CY$312,135,FALSE) ->  | I43: =VLOOKUP($A$5,'RECAP SECT'!$G$6:$CY$312,136,FALSE) ->  | K43: =VLOOKUP($A$5,#REF!,136,FALSE) ->  | M43: =+K43-I43 ->  | O43: =VLOOKUP($A$5,'RECAP SECT'!$G$6:$CY$312,137,FALSE) -> 
B44: Remises commerciales | C44: 3% | E44: ='RECAP SECT'!#REF! ->  | G44: =VLOOKUP($A$5,'RECAP SECT'!$G$6:$CY$312,139,FALSE) ->  | I44: =VLOOKUP($A$5,'RECAP SECT'!$G$6:$CY$312,140,FALSE) ->  | K44: =VLOOKUP($A$5,#REF!,140,FALSE) ->  | M44: =+K44-I44 ->  | O44: =VLOOKUP($A$5,'RECAP SECT'!$G$6:$CY$312,141,FALSE) ->  | S44: =VLOOKUP($A$5,#REF!,126,FALSE) ->  | U44: =+S44-I44 -> 
A46: CRITERE Satisfaction Clients | C46: 15% | O46: =VLOOKUP($A$5,'RECAP SECT'!$G$6:$CY$312,159,FALSE) -> 
B47: Objectifs NPS* | C47: 8% | E47: ='RECAP SECT'!K4 -> 25 | G47: =VLOOKUP($A$5,'RECAP SECT'!$G$6:$CY$312,151,FALSE) ->  | I47: =VLOOKUP($A$5,'RECAP SECT'!$G$6:$CY$312,152,FALSE) ->  | K47: =VLOOKUP($A$5,#REF!,152,FALSE) ->  | M47: =+K47-I47 ->  | O47: =VLOOKUP($A$5,'RECAP SECT'!$G$6:$CY$312,153,FALSE) ->  | S47: =VLOOKUP($A$5,#REF!,138,FALSE) ->  | U47: =+S47-I47 -> 
B48: Enquête Qualité Haute Définition | C48: 7% | E48: ='RECAP SECT'!N4 -> 74% | G48: =VLOOKUP($A$5,'RECAP SECT'!$G$6:$CY$312,154,FALSE) ->  | I48: =VLOOKUP($A$5,'RECAP SECT'!$G$6:$CY$312,155,FALSE) ->  | K48: =VLOOKUP($A$5,#REF!,155,FALSE) ->  | M48: =+K48-I48 ->  | O48: =VLOOKUP($A$5,'RECAP SECT'!$G$6:$CY$312,156,FALSE) ->  | S48: =VLOOKUP($A$5,#REF!,141,FALSE) ->  | U48: =+S48-I48 -> 

Sheet SE_TOTAL
B1: Accueil | F1: BAROMETRE BDD - TERRITOIRES
F2: TOTAL GENERAL
F3: =ACCUEIL!F7 -> 2022-09-18
F7: TOTAL GENERAL | I7: Total Satisfaction Clients | L7: Total Bancarisation | O7: Total Epargne | R7: Total IARD Prévoyance | U7: Total Crédits
G8: coef | H8: =K8+N8+Q8+T8+W8 -> 100% | J8: coef | K8: =SE_SATISFACTION!N8 -> 20% | M8: coef | N8: =SE_BANCA!P8 -> 20% | P8: coef | Q8: =SE_EPARGNE!P8 -> 20% | S8: coef | T8: =SE_IARD!P8 -> 20% | V8: coef | W8: =SE_CREDIT!T8 -> 20%
B9: Direction | C9: eds | D9: Territoire | E9: ="ETP perf "&DATEMAJ!$C$28 -> ETP perf 18-sept | F9: Moyenne ecart au 1er | G9: % Ecart au 1er | H9: Rang CEGEE | I9: Moyenne ecart au 1er | J9: % Ecart au 1er | K9: Rang CEGEE | L9: Moyenne ecart au 1er | M9: % Ecart au 1er | N9: Rang CEGEE | O9: Moyenne ecart au 1er | P9: % Ecart au 1er | Q9: Rang CEGEE | R9: Moyenne ecart au 1er | S9: % Ecart au 1er | T9: Rang CEGEE | U9: Moyenne ecart au 1er | V9: % Ecart au 1er | W9: Rang CEGEE
A10: 50 | B10: MARNE-ARDENNES | C10: 11 | D10: REIMS | E10: 68.0 | F10: 10% | G10: 0% | H10: 1 | I10: 23% | J10: 20% | K10: 7 | L10: 0% | M10: 0% | N10: 1 | O10: 28% | P10: 23% | Q10: 5 | R10: 7% | S10: 6% | T10: 2 | U10: 5% | V10: 0% | W10: 1
A11: 50 | B11: MOSELLE | C11: 44 | D11: MOSELLE NORD | E11: 56.2 | F11: 17% | G11: 7% | H11: 2 | I11: 42% | J11: 39% | K11: 13 | L11: 7% | M11: 7% | N11: 2 | O11: 40% | P11: 35% | Q11: 11 | R11: 1% | S11: 0% | T11: 1 | U11: 8% | V11: 3% | W11: 2
A12: 262 | B12: MARNE-ARDENNES | C12: 6 | D12: CHALONS EN CHAMPAGNE | E12: 37.8 | F12: 18% | G12: 9% | H12: 3 | I12: 3% | J12: 0% | K12: 1 | L12: 23% | M12: 23% | N12: 3 | O12: 38% | P12: 33% | Q12: 10 | R12: 15% | S12: 14% | T12: 3 | U12: 27% | V12: 22% | W12: 7
A13: 262 | B13: MOSELLE | C13: 42 | D13: MOSELLE EST | E13: 58.7 | F13: 22% | G13: 12% | H13: 4 | I13: 12% | J13: 10% | K13: 4 | L13: 25% | M13: 25% | N13: 4 | O13: 43% | P13: 38% | Q13: 12 | R13: 16% | S13: 15% | T13: 4 | U13: 26% | V13: 21% | W13: 6
A14: 262 | B14: MARNE-ARDENNES | C14: 2 | D14: CHARLEVILLE MEZIERES | E14: 48.8 | F14: 24% | G14: 14% | H14: 5 | I14: 26% | J14: 23% | K14: 8 | L14: 40% | M14: 40% | N14: 11 | O14: 24% | P14: 19% | Q14: 3 | R14: 18% | S14: 17% | T14: 5 | U14: 24% | V14: 19% | W14: 4
A15: 264 | B15: BAS-RHIN | C15: 5006 | D15: STRASBOURG | E15: 65.5 | F15: 24% | G15: 14% | H15: 6 | I15: 36% | J15: 33% | K15: 11 | L15: 32% | M15: 32% | N15: 5 | O15: 5% | P15: 0% | Q15: 1 | R15: 20% | S15: 19% | T15: 6 | U15: 40% | V15: 35% | W15: 11
A16: 264 | B16: MOSELLE | C16: 45 | D16: METZ | E16: 72.7 | F16: 27% | G16: 17% | H16: 7 | I16: 29% | J16: 26% | K16: 9 | L16: 39% | M16: 39% | N16: 9 | O16: 19% | P16: 14% | Q16: 2 | R16: 33% | S16: 32% | T16: 9 | U16: 30% | V16: 25% | W16: 8
A17: 30 | B17: AUBE HAUTE MARNE | C17: 21 | D17: CHAUMONT | E17: 33.6 | F17: 28% | G17: 18% | H17: 8 | I17: 18% | J17: 15% | K17: 6 | L17: 44% | M17: 44% | N17: 14 | O17: 31% | P17: 26% | Q17: 6 | R17: 22% | S17: 20% | T17: 8 | U17: 38% | V17: 33% | W17: 10
A18: 30 | B18: MEURTHE ET MOSELLE MEUSE | C18: 26 | D18: NANCY | E18: 54.6 | F18: 29% | G18: 20% | H18: 9 | I18: 31% | J18: 28% | K18: 10 | L18: 39% | M18: 39% | N18: 7 | O18: 32% | P18: 27% | Q18: 7 | R18: 36% | S18: 34% | T18: 10 | U18: 23% | V18: 18% | W18: 3
A19: 30 | B19: VOSGES | C19: 57 | D19: EPINAL | E19: 52.9 | F19: 30% | G19: 20% | H19: 10 | I19: 9% | J19: 6% | K19: 3 | L19: 40% | M19: 40% | N19: 10 | O19: 35% | P19: 30% | Q19: 8 | R19: 40% | S19: 39% | T19: 12 | U19: 42% | V19: 37% | W19: 13
A20: 110 | B20: MEURTHE ET MOSELLE MEUSE | C20: 31 | D20: VERDUN | E20: 48.2 | F20: 31% | G20: 21% | H20: 11 | I20: 13% | J20: 10% | K20: 5 | L20: 35% | M20: 35% | N20: 6 | O20: 50% | P20: 45% | Q20: 14 | R20: 36% | S20: 35% | T20: 11 | U20: 33% | V20: 28% | W20: 9
A21: 110 | B21: MEURTHE ET MOSELLE MEUSE | C21: 27 | D21: PONT A MOUSSON | E21: 59.5 | F21: 33% | G21: 24% | H21: 12 | I21: 59% | J21: 56% | K21: 15 | L21: 39% | M21: 39% | N21: 8 | O21: 36% | P21: 31% | Q21: 9 | R21: 21% | S21: 20% | T21: 7 | U21: 26% | V21: 20% | W21: 5
A22: 110 | B22: VOSGES | C22: 55 | D22: SAINT DIE | E22: 40.3 | F22: 36% | G22: 27% | H22: 13 | I22: 4% | J22: 1% | K22: 2 | L22: 52% | M22: 52% | N22: 15 | O22: 51% | P22: 46% | Q22: 15 | R22: 48% | S22: 47% | T22: 15 | U22: 42% | V22: 36% | W22: 12
A23: 160 | B23: BAS-RHIN | C23: 5060 | D23: HAGUENAU | E23: 55.3 | F23: 38% | G23: 28% | H23: 14 | I23: 38% | J23: 35% | K23: 12 | L23: 42% | M23: 42% | N23: 12 | O23: 25% | P23: 20% | Q23: 4 | R23: 49% | S23: 47% | T23: 16 | U23: 49% | V23: 44% | W23: 17
A24: 160 | B24: BAS-RHIN | C24: 5101 | D24: SELESTAT | E24: 51.3 | F24: 45% | G24: 35% | H24: 15 | I24: 56% | J24: 53% | K24: 14 | L24: 42% | M24: 42% | N24: 13 | O24: 44% | P24: 39% | Q24: 13 | R24: 48% | S24: 47% | T24: 14 | U24: 47% | V24: 42% | W24: 15
A25: 160 | B25: AUBE HAUTE MARNE | C25: 14 | D25: TROYES | E25: 54.2 | F25: 52% | G25: 43% | H25: 16 | I25: 67% | J25: 64% | K25: 18 | L25: 56% | M25: 56% | N25: 16 | O25: 65% | P25: 60% | Q25: 17 | R25: 45% | S25: 44% | T25: 13 | U25: 43% | V25: 38% | W25: 14
A26: 80 | B26: HAUT-RHIN | C26: 5130 | D26: COLMAR | E26: 46.6 | F26: 55% | G26: 45% | H26: 17 | I26: 60% | J26: 57% | K26: 16 | L26: 62% | M26: 62% | N26: 17 | O26: 59% | P26: 54% | Q26: 16 | R26: 57% | S26: 56% | T26: 17 | U26: 52% | V26: 47% | W26: 18
A27: 80 | B27: HAUT-RHIN | C27: 5169 | D27: MULHOUSE | E27: 46.3 | F27: 65% | G27: 56% | H27: 18 | I27: 63% | J27: 60% | K27: 17 | L27: 72% | M27: 72% | N27: 18 | O27: 85% | P27: 80% | Q27: 18 | R27: 71% | S27: 70% | T27: 18 | U27: 49% | V27: 44% | W27: 16
A28: Total CEGEE Directions Régionales | E28: =SUM(E10:E27) -> 950

Sheet SE_BANCA
B1: Accueil | F1: BAROMETRE BDD - TERRITOIRES
F2: BANCARISATION
F3: =ACCUEIL!F7 -> 2022-09-18
F7: Ventes Nettes produits pondérés | J7: Ventes sur client non détenteur de l’univers | N7: Total Bancarisation
F8: =DATEMAJ!C8 -> au 18/09 | H8: coef | I8: ='RECAP DIRCOM'!AA4 -> 12% | J8: =DATEMAJ!C9 -> au 18/09 | L8: coef | M8: ='RECAP DIRCOM'!AE4 -> 8% | O8: coef | P8: ='RECAP DIRCOM'!AH4 -> 20%
B9: Direction | C9: eds | D9: Territoire | E9: ="ETP perf "&DATEMAJ!$C$28 -> ETP perf 18-sept | F9: VN | G9: VN / ETP | H9: % Ecart au 1er | I9: Rang | J9: VB | K9: VB / ETP | L9: % Ecart au 1er | M9: Rang | N9: Moyenne ecart au 1er | O9: % Ecart au 1er | P9: Rang CEGEE
A10: 50 | B10: AUBE HAUTE MARNE | C10: 21 | D10: CHAUMONT | E10: =VLOOKUP($C10,'RECAP SECT'!$G$6:$CU$253,3,FALSE) -> 33.6 | F10: =VLOOKUP($C10,'RECAP SECT'!$G$6:$CU$253,18,FALSE) -> 550 | G10: =VLOOKUP($C10,'RECAP SECT'!$G$6:$CU$253,19,FALSE) -> 16.34 | H10: =VLOOKUP($C10,'RECAP SECT'!$G$6:$CU$253,20,FALSE) -> 53% | I10: =VLOOKUP($C10,'RECAP SECT'!$G$6:$CU$253,21,FALSE) -> 14 | J10: =VLOOKUP($C10,'RECAP SECT'!$G$6:$CU$253,22,FALSE) -> 1,845 | K10: =VLOOKUP($C10,'RECAP SECT'!$G$6:$CU$253,23,FALSE) -> 54.85 | L10: =VLOOKUP($C10,'RECAP SECT'!$G$6:$CU$253,24,FALSE) -> 31% | M10: =VLOOKUP($C10,'RECAP SECT'!$G$6:$CU$253,25,FALSE) -> 11 | N10: =VLOOKUP($C10,'RECAP SECT'!$G$6:$CU$253,26,FALSE) -> 44% | O10: =VLOOKUP($C10,'RECAP SECT'!$G$6:$CU$253,27,FALSE) -> 44% | P10: =VLOOKUP($C10,'RECAP SECT'!$G$6:$CU$253,28,FALSE) -> 14
A11: 50 | B11: AUBE HAUTE MARNE | C11: 14 | D11: TROYES | E11: =VLOOKUP($C11,'RECAP SECT'!$G$6:$CU$253,3,FALSE) -> 54.2 | F11: =VLOOKUP($C11,'RECAP SECT'!$G$6:$CU$253,18,FALSE) -> 526 | G11: =VLOOKUP($C11,'RECAP SECT'!$G$6:$CU$253,19,FALSE) -> 9.70 | H11: =VLOOKUP($C11,'RECAP SECT'!$G$6:$CU$253,20,FALSE) -> 72% | I11: =VLOOKUP($C11,'RECAP SECT'!$G$6:$CU$253,21,FALSE) -> 16 | J11: =VLOOKUP($C11,'RECAP SECT'!$G$6:$CU$253,22,FALSE) -> 2,969 | K11: =VLOOKUP($C11,'RECAP SECT'!$G$6:$CU$253,23,FALSE) -> 54.80 | L11: =VLOOKUP($C11,'RECAP SECT'!$G$6:$CU$253,24,FALSE) -> 31% | M11: =VLOOKUP($C11,'RECAP SECT'!$G$6:$CU$253,25,FALSE) -> 12 | N11: =VLOOKUP($C11,'RECAP SECT'!$G$6:$CU$253,26,FALSE) -> 56% | O11: =VLOOKUP($C11,'RECAP SECT'!$G$6:$CU$253,27,FALSE) -> 56% | P11: =VLOOKUP($C11,'RECAP SECT'!$G$6:$CU$253,28,FALSE) -> 16
A12: 262 | B12: BAS-RHIN | C12: 5060 | D12: HAGUENAU | E12: =VLOOKUP($C12,'RECAP SECT'!$G$6:$CU$253,3,FALSE) -> 55.3 | F12: =VLOOKUP($C12,'RECAP SECT'!$G$6:$CU$253,18,FALSE) -> 1,074 | G12: =VLOOKUP($C12,'RECAP SECT'!$G$6:$CU$253,19,FALSE) -> 19.43 | H12: =VLOOKUP($C12,'RECAP SECT'!$G$6:$CU$253,20,FALSE) -> 44% | I12: =VLOOKUP($C12,'RECAP SECT'!$G$6:$CU$253,21,FALSE) -> 8 | J12: =VLOOKUP($C12,'RECAP SECT'!$G$6:$CU$253,22,FALSE) -> 2,663 | K12: =VLOOKUP($C12,'RECAP SECT'!$G$6:$CU$253,23,FALSE) -> 48.17 | L12: =VLOOKUP($C12,'RECAP SECT'!$G$6:$CU$253,24,FALSE) -> 39% | M12: =VLOOKUP($C12,'RECAP SECT'!$G$6:$CU$253,25,FALSE) -> 16 | N12: =VLOOKUP($C12,'RECAP SECT'!$G$6:$CU$253,26,FALSE) -> 42% | O12: =VLOOKUP($C12,'RECAP SECT'!$G$6:$CU$253,27,FALSE) -> 42% | P12: =VLOOKUP($C12,'RECAP SECT'!$G$6:$CU$253,28,FALSE) -> 12
A13: 262 | B13: BAS-RHIN | C13: 5101 | D13: SELESTAT | E13: =VLOOKUP($C13,'RECAP SECT'!$G$6:$CU$253,3,FALSE) -> 51.3 | F13: =VLOOKUP($C13,'RECAP SECT'!$G$6:$CU$253,18,FALSE) -> 994 | G13: =VLOOKUP($C13,'RECAP SECT'!$G$6:$CU$253,19,FALSE) -> 19.37 | H13: =VLOOKUP($C13,'RECAP SECT'!$G$6:$CU$253,20,FALSE) -> 45% | I13: =VLOOKUP($C13,'RECAP SECT'!$G$6:$CU$253,21,FALSE) -> 9 | J13: =VLOOKUP($C13,'RECAP SECT'!$G$6:$CU$253,22,FALSE) -> 2,482 | K13: =VLOOKUP($C13,'RECAP SECT'!$G$6:$CU$253,23,FALSE) -> 48.35 | L13: =VLOOKUP($C13,'RECAP SECT'!$G$6:$CU$253,24,FALSE) -> 39% | M13: =VLOOKUP($C13,'RECAP SECT'!$G$6:$CU$253,25,FALSE) -> 15 | N13: =VLOOKUP($C13,'RECAP SECT'!$G$6:$CU$253,26,FALSE) -> 42% | O13: =VLOOKUP($C13,'RECAP SECT'!$G$6:$CU$253,27,FALSE) -> 42% | P13: =VLOOKUP($C13,'RECAP SECT'!$G$6:$CU$253,28,FALSE) -> 13
A14: 262 | B14: BAS-RHIN | C14: 5006 | D14: STRASBOURG | E14: =VLOOKUP($C14,'RECAP SECT'!$G$6:$CU$253,3,FALSE) -> 65.5 | F14: =VLOOKUP($C14,'RECAP SECT'!$G$6:$CU$253,18,FALSE) -> 1,313 | G14: =VLOOKUP($C14,'RECAP SECT'!$G$6:$CU$253,19,FALSE) -> 20.06 | H14: =VLOOKUP($C14,'RECAP SECT'!$G$6:$CU$253,20,FALSE) -> 43% | I14: =VLOOKUP($C14,'RECAP SECT'!$G$6:$CU$253,21,FALSE) -> 6 | J14: =VLOOKUP($C14,'RECAP SECT'!$G$6:$CU$253,22,FALSE) -> 4,440 | K14: =VLOOKUP($C14,'RECAP SECT'!$G$6:$CU$253,23,FALSE) -> 67.84 | L14: =VLOOKUP($C14,'RECAP SECT'!$G$6:$CU$253,24,FALSE) -> 15% | M14: =VLOOKUP($C14,'RECAP SECT'!$G$6:$CU$253,25,FALSE) -> 3 | N14: =VLOOKUP($C14,'RECAP SECT'!$G$6:$CU$253,26,FALSE) -> 32% | O14: =VLOOKUP($C14,'RECAP SECT'!$G$6:$CU$253,27,FALSE) -> 32% | P14: =VLOOKUP($C14,'RECAP SECT'!$G$6:$CU$253,28,FALSE) -> 5
A15: 264 | B15: HAUT-RHIN | C15: 5130 | D15: COLMAR | E15: =VLOOKUP($C15,'RECAP SECT'!$G$6:$CU$253,3,FALSE) -> 46.6 | F15: =VLOOKUP($C15,'RECAP SECT'!$G$6:$CU$253,18,FALSE) -> 446 | G15: =VLOOKUP($C15,'RECAP SECT'!$G$6:$CU$253,19,FALSE) -> 9.56 | H15: =VLOOKUP($C15,'RECAP SECT'!$G$6:$CU$253,20,FALSE) -> 73% | I15: =VLOOKUP($C15,'RECAP SECT'!$G$6:$CU$253,21,FALSE) -> 17 | J15: =VLOOKUP($C15,'RECAP SECT'!$G$6:$CU$253,22,FALSE) -> 2,010 | K15: =VLOOKUP($C15,'RECAP SECT'!$G$6:$CU$253,23,FALSE) -> 43.10 | L15: =VLOOKUP($C15,'RECAP SECT'!$G$6:$CU$253,24,FALSE) -> 46% | M15: =VLOOKUP($C15,'RECAP SECT'!$G$6:$CU$253,25,FALSE) -> 18 | N15: =VLOOKUP($C15,'RECAP SECT'!$G$6:$CU$253,26,FALSE) -> 62% | O15: =VLOOKUP($C15,'RECAP SECT'!$G$6:$CU$253,27,FALSE) -> 62% | P15: =VLOOKUP($C15,'RECAP SECT'!$G$6:$CU$253,28,FALSE) -> 17
A16: 264 | B16: HAUT-RHIN | C16: 5169 | D16: MULHOUSE | E16: =VLOOKUP($C16,'RECAP SECT'!$G$6:$CU$253,3,FALSE) -> 46.3 | F16: =VLOOKUP($C16,'RECAP SECT'!$G$6:$CU$253,18,FALSE) -> 62 | G16: =VLOOKUP($C16,'RECAP SECT'!$G$6:$CU$253,19,FALSE) -> 1.33 | H16: =VLOOKUP($C16,'RECAP SECT'!$G$6:$CU$253,20,FALSE) -> 96% | I16: =VLOOKUP($C16,'RECAP SECT'!$G$6:$CU$253,21,FALSE) -> 18 | J16: =VLOOKUP($C16,'RECAP SECT'!$G$6:$CU$253,22,FALSE) -> 2,339 | K16: =VLOOKUP($C16,'RECAP SECT'!$G$6:$CU$253,23,FALSE) -> 50.47 | L16: =VLOOKUP($C16,'RECAP SECT'!$G$6:$CU$253,24,FALSE) -> 37% | M16: =VLOOKUP($C16,'RECAP SECT'!$G$6:$CU$253,25,FALSE) -> 14 | N16: =VLOOKUP($C16,'RECAP SECT'!$G$6:$CU$253,26,FALSE) -> 72% | O16: =VLOOKUP($C16,'RECAP SECT'!$G$6:$CU$253,27,FALSE) -> 72% | P16: =VLOOKUP($C16,'RECAP SECT'!$G$6:$CU$253,28,FALSE) -> 18
A17: 30 | B17: MARNE-ARDENNES | C17: 6 | D17: CHALONS EN CHAMPAGNE | E17: =VLOOKUP($C17,'RECAP SECT'!$G$6:$CU$253,3,FALSE) -> 37.8 | F17: =VLOOKUP($C17,'RECAP SECT'!$G$6:$CU$253,18,FALSE) -> 1,043 | G17: =VLOOKUP($C17,'RECAP SECT'!$G$6:$CU$253,19,FALSE) -> 27.62 | H17: =VLOOKUP($C17,'RECAP SECT'!$G$6:$CU$253,20,FALSE) -> 21% | I17: =VLOOKUP($C17,'RECAP SECT'!$G$6:$CU$253,21,FALSE) -> 3 | J17: =VLOOKUP($C17,'RECAP SECT'!$G$6:$CU$253,22,FALSE) -> 2,198 | K17: =VLOOKUP($C17,'RECAP SECT'!$G$6:$CU$253,23,FALSE) -> 58.19 | L17: =VLOOKUP($C17,'RECAP SECT'!$G$6:$CU$253,24,FALSE) -> 27% | M17: =VLOOKUP($C17,'RECAP SECT'!$G$6:$CU$253,25,FALSE) -> 10 | N17: =VLOOKUP($C17,'RECAP SECT'!$G$6:$CU$253,26,FALSE) -> 23% | O17: =VLOOKUP($C17,'RECAP SECT'!$G$6:$CU$253,27,FALSE) -> 23% | P17: =VLOOKUP($C17,'RECAP SECT'!$G$6:$CU$253,28,FALSE) -> 3
A18: 30 | B18: MARNE-ARDENNES | C18: 2 | D18: CHARLEVILLE MEZIERES | E18: =VLOOKUP($C18,'RECAP SECT'!$G$6:$CU$253,3,FALSE) -> 48.8 | F18: =VLOOKUP($C18,'RECAP SECT'!$G$6:$CU$253,18,FALSE) -> 808 | G18: =VLOOKUP($C18,'RECAP SECT'!$G$6:$CU$253,19,FALSE) -> 16.56 | H18: =VLOOKUP($C18,'RECAP SECT'!$G$6:$CU$253,20,FALSE) -> 53% | I18: =VLOOKUP($C18,'RECAP SECT'!$G$6:$CU$253,21,FALSE) -> 13 | J18: =VLOOKUP($C18,'RECAP SECT'!$G$6:$CU$253,22,FALSE) -> 3,063 | K18: =VLOOKUP($C18,'RECAP SECT'!$G$6:$CU$253,23,FALSE) -> 62.79 | L18: =VLOOKUP($C18,'RECAP SECT'!$G$6:$CU$253,24,FALSE) -> 21% | M18: =VLOOKUP($C18,'RECAP SECT'!$G$6:$CU$253,25,FALSE) -> 5 | N18: =VLOOKUP($C18,'RECAP SECT'!$G$6:$CU$253,26,FALSE) -> 40% | O18: =VLOOKUP($C18,'RECAP SECT'!$G$6:$CU$253,27,FALSE) -> 40% | P18: =VLOOKUP($C18,'RECAP SECT'!$G$6:$CU$253,28,FALSE) -> 11
A19: 30 | B19: MARNE-ARDENNES | C19: 11 | D19: REIMS | E19: =VLOOKUP($C19,'RECAP SECT'!$G$6:$CU$253,3,FALSE) -> 68.0 | F19: =VLOOKUP($C19,'RECAP SECT'!$G$6:$CU$253,18,FALSE) -> 2,380 | G19: =VLOOKUP($C19,'RECAP SECT'!$G$6:$CU$253,19,FALSE) -> 34.98 | H19: =VLOOKUP($C19,'RECAP SECT'!$G$6:$CU$253,20,FALSE) -> 0% | I19: =VLOOKUP($C19,'RECAP SECT'!$G$6:$CU$253,21,FALSE) -> 1 | J19: =VLOOKUP($C19,'RECAP SECT'!$G$6:$CU$253,22,FALSE) -> 5,415 | K19: =VLOOKUP($C19,'RECAP SECT'!$G$6:$CU$253,23,FALSE) -> 79.60 | L19: =VLOOKUP($C19,'RECAP SECT'!$G$6:$CU$253,24,FALSE) -> 0% | M19: =VLOOKUP($C19,'RECAP SECT'!$G$6:$CU$253,25,FALSE) -> 1 | N19: =VLOOKUP($C19,'RECAP SECT'!$G$6:$CU$253,26,FALSE) -> 0% | O19: =VLOOKUP($C19,'RECAP SECT'!$G$6:$CU$253,27,FALSE) -> 0% | P19: =VLOOKUP($C19,'RECAP SECT'!$G$6:$CU$253,28,FALSE) -> 1
A20: 110 | B20: MEURTHE ET MOSELLE MEUSE | C20: 26 | D20: NANCY | E20: =VLOOKUP($C20,'RECAP SECT'!$G$6:$CU$253,3,FALSE) -> 54.6 | F20: =VLOOKUP($C20,'RECAP SECT'!$G$6:$CU$253,18,FALSE) -> 957 | G20: =VLOOKUP($C20,'RECAP SECT'!$G$6:$CU$253,19,FALSE) -> 17.52 | H20: =VLOOKUP($C20,'RECAP SECT'!$G$6:$CU$253,20,FALSE) -> 50% | I20: =VLOOKUP($C20,'RECAP SECT'!$G$6:$CU$253,21,FALSE) -> 11 | J20: =VLOOKUP($C20,'RECAP SECT'!$G$6:$CU$253,22,FALSE) -> 3,384 | K20: =VLOOKUP($C20,'RECAP SECT'!$G$6:$CU$253,23,FALSE) -> 61.93 | L20: =VLOOKUP($C20,'RECAP SECT'!$G$6:$CU$253,24,FALSE) -> 22% | M20: =VLOOKUP($C20,'RECAP SECT'!$G$6:$CU$253,25,FALSE) -> 7 | N20: =VLOOKUP($C20,'RECAP SECT'!$G$6:$CU$253,26,FALSE) -> 39% | O20: =VLOOKUP($C20,'RECAP SECT'!$G$6:$CU$253,27,FALSE) -> 39% | P20: =VLOOKUP($C20,'RECAP SECT'!$G$6:$CU$253,28,FALSE) -> 7
A21: 110 | B21: MEURTHE ET MOSELLE MEUSE | C21: 27 | D21: PONT A MOUSSON | E21: =VLOOKUP($C21,'RECAP SECT'!$G$6:$CU$253,3,FALSE) -> 59.5 | F21: =VLOOKUP($C21,'RECAP SECT'!$G$6:$CU$253,18,FALSE) -> 1,019 | G21: =VLOOKUP($C21,'RECAP SECT'!$G$6:$CU$253,19,FALSE) -> 17.14 | H21: =VLOOKUP($C21,'RECAP SECT'!$G$6:$CU$253,20,FALSE) -> 51% | I21: =VLOOKUP($C21,'RECAP SECT'!$G$6:$CU$253,21,FALSE) -> 12 | J21: =VLOOKUP($C21,'RECAP SECT'!$G$6:$CU$253,22,FALSE) -> 3,708 | K21: =VLOOKUP($C21,'RECAP SECT'!$G$6:$CU$253,23,FALSE) -> 62.35 | L21: =VLOOKUP($C21,'RECAP SECT'!$G$6:$CU$253,24,FALSE) -> 22% | M21: =VLOOKUP($C21,'RECAP SECT'!$G$6:$CU$253,25,FALSE) -> 6 | N21: =VLOOKUP($C21,'RECAP SECT'!$G$6:$CU$253,26,FALSE) -> 39% | O21: =VLOOKUP($C21,'RECAP SECT'!$G$6:$CU$253,27,FALSE) -> 39% | P21: =VLOOKUP($C21,'RECAP SECT'!$G$6:$CU$253,28,FALSE) -> 8
A22: 110 | B22: MEURTHE ET MOSELLE MEUSE | C22: 31 | D22: VERDUN | E22: =VLOOKUP($C22,'RECAP SECT'!$G$6:$CU$253,3,FALSE) -> 48.2 | F22: =VLOOKUP($C22,'RECAP SECT'!$G$6:$CU$253,18,FALSE) -> 988 | G22: =VLOOKUP($C22,'RECAP SECT'!$G$6:$CU$253,19,FALSE) -> 20.49 | H22: =VLOOKUP($C22,'RECAP SECT'!$G$6:$CU$253,20,FALSE) -> 41% | I22: =VLOOKUP($C22,'RECAP SECT'!$G$6:$CU$253,21,FALSE) -> 5 | J22: =VLOOKUP($C22,'RECAP SECT'!$G$6:$CU$253,22,FALSE) -> 2,841 | K22: =VLOOKUP($C22,'RECAP SECT'!$G$6:$CU$253,23,FALSE) -> 58.91 | L22: =VLOOKUP($C22,'RECAP SECT'!$G$6:$CU$253,24,FALSE) -> 26% | M22: =VLOOKUP($C22,'RECAP SECT'!$G$6:$CU$253,25,FALSE) -> 9 | N22: =VLOOKUP($C22,'RECAP SECT'!$G$6:$CU$253,26,FALSE) -> 35% | O22: =VLOOKUP($C22,'RECAP SECT'!$G$6:$CU$253,27,FALSE) -> 35% | P22: =VLOOKUP($C22,'RECAP SECT'!$G$6:$CU$253,28,FALSE) -> 6
A23: 160 | B23: MOSELLE | C23: 45 | D23: METZ | E23: =VLOOKUP($C23,'RECAP SECT'!$G$6:$CU$253,3,FALSE) -> 72.7 | F23: =VLOOKUP($C23,'RECAP SECT'!$G$6:$CU$253,18,FALSE) -> 1,310 | G23: =VLOOKUP($C23,'RECAP SECT'!$G$6:$CU$253,19,FALSE) -> 18.02 | H23: =VLOOKUP($C23,'RECAP SECT'!$G$6:$CU$253,20,FALSE) -> 48% | I23: =VLOOKUP($C23,'RECAP SECT'!$G$6:$CU$253,21,FALSE) -> 10 | J23: =VLOOKUP($C23,'RECAP SECT'!$G$6:$CU$253,22,FALSE) -> 4,312 | K23: =VLOOKUP($C23,'RECAP SECT'!$G$6:$CU$253,23,FALSE) -> 59.31 | L23: =VLOOKUP($C23,'RECAP SECT'!$G$6:$CU$253,24,FALSE) -> 25% | M23: =VLOOKUP($C23,'RECAP SECT'!$G$6:$CU$253,25,FALSE) -> 8 | N23: =VLOOKUP($C23,'RECAP SECT'!$G$6:$CU$253,26,FALSE) -> 39% | O23: =VLOOKUP($C23,'RECAP SECT'!$G$6:$CU$253,27,FALSE) -> 39% | P23: =VLOOKUP($C23,'RECAP SECT'!$G$6:$CU$253,28,FALSE) -> 9
A24: 160 | B24: MOSELLE | C24: 42 | D24: MOSELLE EST | E24: =VLOOKUP($C24,'RECAP SECT'!$G$6:$CU$253,3,FALSE) -> 58.7 | F24: =VLOOKUP($C24,'RECAP SECT'!$G$6:$CU$253,18,FALSE) -> 1,458 | G24: =VLOOKUP($C24,'RECAP SECT'!$G$6:$CU$253,19,FALSE) -> 24.83 | H24: =VLOOKUP($C24,'RECAP SECT'!$G$6:$CU$253,20,FALSE) -> 29% | I24: =VLOOKUP($C24,'RECAP SECT'!$G$6:$CU$253,21,FALSE) -> 4 | J24: =VLOOKUP($C24,'RECAP SECT'!$G$6:$CU$253,22,FALSE) -> 3,772 | K24: =VLOOKUP($C24,'RECAP SECT'!$G$6:$CU$253,23,FALSE) -> 64.25 | L24: =VLOOKUP($C24,'RECAP SECT'!$G$6:$CU$253,24,FALSE) -> 19% | M24: =VLOOKUP($C24,'RECAP SECT'!$G$6:$CU$253,25,FALSE) -> 4 | N24: =VLOOKUP($C24,'RECAP SECT'!$G$6:$CU$253,26,FALSE) -> 25% | O24: =VLOOKUP($C24,'RECAP SECT'!$G$6:$CU$253,27,FALSE) -> 25% | P24: =VLOOKUP($C24,'RECAP SECT'!$G$6:$CU$253,28,FALSE) -> 4
A25: 160 | B25: MOSELLE | C25: 44 | D25: MOSELLE NORD | E25: =VLOOKUP($C25,'RECAP SECT'!$G$6:$CU$253,3,FALSE) -> 56.2 | F25: =VLOOKUP($C25,'RECAP SECT'!$G$6:$CU$253,18,FALSE) -> 1,859 | G25: =VLOOKUP($C25,'RECAP SECT'!$G$6:$CU$253,19,FALSE) -> 33.10 | H25: =VLOOKUP($C25,'RECAP SECT'!$G$6:$CU$253,20,FALSE) -> 5% | I25: =VLOOKUP($C25,'RECAP SECT'!$G$6:$CU$253,21,FALSE) -> 2 | J25: =VLOOKUP($C25,'RECAP SECT'!$G$6:$CU$253,22,FALSE) -> 4,048 | K25: =VLOOKUP($C25,'RECAP SECT'!$G$6:$CU$253,23,FALSE) -> 72.08 | L25: =VLOOKUP($C25,'RECAP SECT'!$G$6:$CU$253,24,FALSE) -> 9% | M25: =VLOOKUP($C25,'RECAP SECT'!$G$6:$CU$253,25,FALSE) -> 2 | N25: =VLOOKUP($C25,'RECAP SECT'!$G$6:$CU$253,26,FALSE) -> 7% | O25: =VLOOKUP($C25,'RECAP SECT'!$G$6:$CU$253,27,FALSE) -> 7% | P25: =VLOOKUP($C25,'RECAP SECT'!$G$6:$CU$253,28,FALSE) -> 2
A26: 80 | B26: VOSGES | C26: 57 | D26: EPINAL | E26: =VLOOKUP($C26,'RECAP SECT'!$G$6:$CU$253,3,FALSE) -> 52.9 | F26: =VLOOKUP($C26,'RECAP SECT'!$G$6:$CU$253,18,FALSE) -> 1,042 | G26: =VLOOKUP($C26,'RECAP SECT'!$G$6:$CU$253,19,FALSE) -> 19.71 | H26: =VLOOKUP($C26,'RECAP SECT'!$G$6:$CU$253,20,FALSE) -> 44% | I26: =VLOOKUP($C26,'RECAP SECT'!$G$6:$CU$253,21,FALSE) -> 7 | J26: =VLOOKUP($C26,'RECAP SECT'!$G$6:$CU$253,22,FALSE) -> 2,805 | K26: =VLOOKUP($C26,'RECAP SECT'!$G$6:$CU$253,23,FALSE) -> 53.04 | L26: =VLOOKUP($C26,'RECAP SECT'!$G$6:$CU$253,24,FALSE) -> 33% | M26: =VLOOKUP($C26,'RECAP SECT'!$G$6:$CU$253,25,FALSE) -> 13 | N26: =VLOOKUP($C26,'RECAP SECT'!$G$6:$CU$253,26,FALSE) -> 40% | O26: =VLOOKUP($C26,'RECAP SECT'!$G$6:$CU$253,27,FALSE) -> 40% | P26: =VLOOKUP($C26,'RECAP SECT'!$G$6:$CU$253,28,FALSE) -> 10
A27: 80 | B27: VOSGES | C27: 55 | D27: SAINT DIE | E27: =VLOOKUP($C27,'RECAP SECT'!$G$6:$CU$253,3,FALSE) -> 40.3 | F27: =VLOOKUP($C27,'RECAP SECT'!$G$6:$CU$253,18,FALSE) -> 583 | G27: =VLOOKUP($C27,'RECAP SECT'!$G$6:$CU$253,19,FALSE) -> 14.49 | H27: =VLOOKUP($C27,'RECAP SECT'!$G$6:$CU$253,20,FALSE) -> 59% | I27: =VLOOKUP($C27,'RECAP SECT'!$G$6:$CU$253,21,FALSE) -> 15 | J27: =VLOOKUP($C27,'RECAP SECT'!$G$6:$CU$253,22,FALSE) -> 1,842 | K27: =VLOOKUP($C27,'RECAP SECT'!$G$6:$CU$253,23,FALSE) -> 45.76 | L27: =VLOOKUP($C27,'RECAP SECT'!$G$6:$CU$253,24,FALSE) -> 43% | M27: =VLOOKUP($C27,'RECAP SECT'!$G$6:$CU$253,25,FALSE) -> 17 | N27: =VLOOKUP($C27,'RECAP SECT'!$G$6:$CU$253,26,FALSE) -> 52% | O27: =VLOOKUP($C27,'RECAP SECT'!$G$6:$CU$253,27,FALSE) -> 52% | P27: =VLOOKUP($C27,'RECAP SECT'!$G$6:$CU$253,28,FALSE) -> 15
A28: Total CEGEE Directions Régionales | E28: =SUM(E10:E27) -> 950

Sheet SE_EPARGNE
B1: Accueil | F1: BAROMETRE BDD - TERRITOIRES
F2: EPARGNE
F3: =ACCUEIL!F7 -> 2022-09-18
F7: Excédent Epargne hors DAV pondéré | J7: Ventes sur client non détenteur de l’univers | N7: Total Epargne
F8: =DATEMAJ!C14 -> au 18/09 | H8: coef | I8: ='RECAP DIRCOM'!AP4 -> 12% | J8: =DATEMAJ!C15 -> au 18/09 | L8: coef | M8: ='RECAP DIRCOM'!AT4 -> 8% | O8: coef | P8: ='RECAP DIRCOM'!AW4 -> 20%
A9: eds | B9: Direction | C9: eds | D9: Territoire | E9: ="ETP perf "&DATEMAJ!$C$28 -> ETP perf 18-sept | F9: Excédent | G9: Excédent / ETP | H9: % Ecart au 1er | I9: Rang | J9: VB | K9: VB / ETP | L9: % Ecart au 1er | M9: Rang | N9: Moyenne ecart au 1er | O9: % Ecart au 1er | P9: Rang CEGEE
A10: 50 | B10: AUBE HAUTE MARNE | C10: 21 | D10: CHAUMONT | E10: =VLOOKUP($C10,'RECAP SECT'!$G$6:$CU$253,3,FALSE) -> 33.6 | F10: =VLOOKUP($C10,'RECAP SECT'!$G$6:$CU$253,33,FALSE) -> 11,563 | G10: =VLOOKUP($C10,'RECAP SECT'!$G$6:$CU$253,34,FALSE) -> 343.72 | H10: =VLOOKUP($C10,'RECAP SECT'!$G$6:$CU$253,35,FALSE) -> 31% | I10: =VLOOKUP($C10,'RECAP SECT'!$G$6:$CU$253,36,FALSE) -> 4 | J10: =VLOOKUP($C10,'RECAP SECT'!$G$6:$CU$253,37,FALSE) -> 1,760 | K10: =VLOOKUP($C10,'RECAP SECT'!$G$6:$CU$253,38,FALSE) -> 52.32 | L10: =VLOOKUP($C10,'RECAP SECT'!$G$6:$CU$253,39,FALSE) -> 32% | M10: =VLOOKUP($C10,'RECAP SECT'!$G$6:$CU$253,40,FALSE) -> 10 | N10: =VLOOKUP($C10,'RECAP SECT'!$G$6:$CU$253,41,FALSE) -> 31% | O10: =VLOOKUP($C10,'RECAP SECT'!$G$6:$CU$253,42,FALSE) -> 26% | P10: =VLOOKUP($C10,'RECAP SECT'!$G$6:$CU$253,43,FALSE) -> 6
A11: 50 | B11: AUBE HAUTE MARNE | C11: 14 | D11: TROYES | E11: =VLOOKUP($C11,'RECAP SECT'!$G$6:$CU$253,3,FALSE) -> 54.2 | F11: =VLOOKUP($C11,'RECAP SECT'!$G$6:$CU$253,33,FALSE) -> 3,783 | G11: =VLOOKUP($C11,'RECAP SECT'!$G$6:$CU$253,34,FALSE) -> 69.82 | H11: =VLOOKUP($C11,'RECAP SECT'!$G$6:$CU$253,35,FALSE) -> 86% | I11: =VLOOKUP($C11,'RECAP SECT'!$G$6:$CU$253,36,FALSE) -> 17 | J11: =VLOOKUP($C11,'RECAP SECT'!$G$6:$CU$253,37,FALSE) -> 2,782 | K11: =VLOOKUP($C11,'RECAP SECT'!$G$6:$CU$253,38,FALSE) -> 51.35 | L11: =VLOOKUP($C11,'RECAP SECT'!$G$6:$CU$253,39,FALSE) -> 33% | M11: =VLOOKUP($C11,'RECAP SECT'!$G$6:$CU$253,40,FALSE) -> 11 | N11: =VLOOKUP($C11,'RECAP SECT'!$G$6:$CU$253,41,FALSE) -> 65% | O11: =VLOOKUP($C11,'RECAP SECT'!$G$6:$CU$253,42,FALSE) -> 60% | P11: =VLOOKUP($C11,'RECAP SECT'!$G$6:$CU$253,43,FALSE) -> 17
A12: 262 | B12: BAS-RHIN | C12: 5060 | D12: HAGUENAU | E12: =VLOOKUP($C12,'RECAP SECT'!$G$6:$CU$253,3,FALSE) -> 55.3 | F12: =VLOOKUP($C12,'RECAP SECT'!$G$6:$CU$253,33,FALSE) -> 23,249 | G12: =VLOOKUP($C12,'RECAP SECT'!$G$6:$CU$253,34,FALSE) -> 420.57 | H12: =VLOOKUP($C12,'RECAP SECT'!$G$6:$CU$253,35,FALSE) -> 15% | I12: =VLOOKUP($C12,'RECAP SECT'!$G$6:$CU$253,36,FALSE) -> 2 | J12: =VLOOKUP($C12,'RECAP SECT'!$G$6:$CU$253,37,FALSE) -> 2,578 | K12: =VLOOKUP($C12,'RECAP SECT'!$G$6:$CU$253,38,FALSE) -> 46.64 | L12: =VLOOKUP($C12,'RECAP SECT'!$G$6:$CU$253,39,FALSE) -> 39% | M12: =VLOOKUP($C12,'RECAP SECT'!$G$6:$CU$253,40,FALSE) -> 15 | N12: =VLOOKUP($C12,'RECAP SECT'!$G$6:$CU$253,41,FALSE) -> 25% | O12: =VLOOKUP($C12,'RECAP SECT'!$G$6:$CU$253,42,FALSE) -> 20% | P12: =VLOOKUP($C12,'RECAP SECT'!$G$6:$CU$253,43,FALSE) -> 4
A13: 262 | B13: BAS-RHIN | C13: 5101 | D13: SELESTAT | E13: =VLOOKUP($C13,'RECAP SECT'!$G$6:$CU$253,3,FALSE) -> 51.3 | F13: =VLOOKUP($C13,'RECAP SECT'!$G$6:$CU$253,33,FALSE) -> 13,150 | G13: =VLOOKUP($C13,'RECAP SECT'!$G$6:$CU$253,34,FALSE) -> 256.18 | H13: =VLOOKUP($C13,'RECAP SECT'!$G$6:$CU$253,35,FALSE) -> 48% | I13: =VLOOKUP($C13,'RECAP SECT'!$G$6:$CU$253,36,FALSE) -> 10 | J13: =VLOOKUP($C13,'RECAP SECT'!$G$6:$CU$253,37,FALSE) -> 2,441 | K13: =VLOOKUP($C13,'RECAP SECT'!$G$6:$CU$253,38,FALSE) -> 47.56 | L13: =VLOOKUP($C13,'RECAP SECT'!$G$6:$CU$253,39,FALSE) -> 38% | M13: =VLOOKUP($C13,'RECAP SECT'!$G$6:$CU$253,40,FALSE) -> 14 | N13: =VLOOKUP($C13,'RECAP SECT'!$G$6:$CU$253,41,FALSE) -> 44% | O13: =VLOOKUP($C13,'RECAP SECT'!$G$6:$CU$253,42,FALSE) -> 39% | P13: =VLOOKUP($C13,'RECAP SECT'!$G$6:$CU$253,43,FALSE) -> 13
A14: 262 | B14: BAS-RHIN | C14: 5006 | D14: STRASBOURG | E14: =VLOOKUP($C14,'RECAP SECT'!$G$6:$CU$253,3,FALSE) -> 65.5 | F14: =VLOOKUP($C14,'RECAP SECT'!$G$6:$CU$253,33,FALSE) -> 32,448 | G14: =VLOOKUP($C14,'RECAP SECT'!$G$6:$CU$253,34,FALSE) -> 495.76 | H14: =VLOOKUP($C14,'RECAP SECT'!$G$6:$CU$253,35,FALSE) -> 0% | I14: =VLOOKUP($C14,'RECAP SECT'!$G$6:$CU$253,36,FALSE) -> 1 | J14: =VLOOKUP($C14,'RECAP SECT'!$G$6:$CU$253,37,FALSE) -> 4,375 | K14: =VLOOKUP($C14,'RECAP SECT'!$G$6:$CU$253,38,FALSE) -> 66.84 | L14: =VLOOKUP($C14,'RECAP SECT'!$G$6:$CU$253,39,FALSE) -> 13% | M14: =VLOOKUP($C14,'RECAP SECT'!$G$6:$CU$253,40,FALSE) -> 4 | N14: =VLOOKUP($C14,'RECAP SECT'!$G$6:$CU$253,41,FALSE) -> 5% | O14: =VLOOKUP($C14,'RECAP SECT'!$G$6:$CU$253,42,FALSE) -> 0% | P14: =VLOOKUP($C14,'RECAP SECT'!$G$6:$CU$253,43,FALSE) -> 1
A15: 264 | B15: HAUT-RHIN | C15: 5130 | D15: COLMAR | E15: =VLOOKUP($C15,'RECAP SECT'!$G$6:$CU$253,3,FALSE) -> 46.6 | F15: =VLOOKUP($C15,'RECAP SECT'!$G$6:$CU$253,33,FALSE) -> 7,869 | G15: =VLOOKUP($C15,'RECAP SECT'!$G$6:$CU$253,34,FALSE) -> 168.72 | H15: =VLOOKUP($C15,'RECAP SECT'!$G$6:$CU$253,35,FALSE) -> 66% | I15: =VLOOKUP($C15,'RECAP SECT'!$G$6:$CU$253,36,FALSE) -> 15 | J15: =VLOOKUP($C15,'RECAP SECT'!$G$6:$CU$253,37,FALSE) -> 1,802 | K15: =VLOOKUP($C15,'RECAP SECT'!$G$6:$CU$253,38,FALSE) -> 38.64 | L15: =VLOOKUP($C15,'RECAP SECT'!$G$6:$CU$253,39,FALSE) -> 49% | M15: =VLOOKUP($C15,'RECAP SECT'!$G$6:$CU$253,40,FALSE) -> 18 | N15: =VLOOKUP($C15,'RECAP SECT'!$G$6:$CU$253,41,FALSE) -> 59% | O15: =VLOOKUP($C15,'RECAP SECT'!$G$6:$CU$253,42,FALSE) -> 54% | P15: =VLOOKUP($C15,'RECAP SECT'!$G$6:$CU$253,43,FALSE) -> 16
A16: 264 | B16: HAUT-RHIN | C16: 5169 | D16: MULHOUSE | E16: =VLOOKUP($C16,'RECAP SECT'!$G$6:$CU$253,3,FALSE) -> 46.3 | F16: =VLOOKUP($C16,'RECAP SECT'!$G$6:$CU$253,33,FALSE) -> -3,319 | G16: =VLOOKUP($C16,'RECAP SECT'!$G$6:$CU$253,34,FALSE) -> -71.62 | H16: =VLOOKUP($C16,'RECAP SECT'!$G$6:$CU$253,35,FALSE) -> 114% | I16: =VLOOKUP($C16,'RECAP SECT'!$G$6:$CU$253,36,FALSE) -> 18 | J16: =VLOOKUP($C16,'RECAP SECT'!$G$6:$CU$253,37,FALSE) -> 2,072 | K16: =VLOOKUP($C16,'RECAP SECT'!$G$6:$CU$253,38,FALSE) -> 44.71 | L16: =VLOOKUP($C16,'RECAP SECT'!$G$6:$CU$253,39,FALSE) -> 41% | M16: =VLOOKUP($C16,'RECAP SECT'!$G$6:$CU$253,40,FALSE) -> 16 | N16: =VLOOKUP($C16,'RECAP SECT'!$G$6:$CU$253,41,FALSE) -> 85% | O16: =VLOOKUP($C16,'RECAP SECT'!$G$6:$CU$253,42,FALSE) -> 80% | P16: =VLOOKUP($C16,'RECAP SECT'!$G$6:$CU$253,43,FALSE) -> 18
A17: 30 | B17: MARNE-ARDENNES | C17: 6 | D17: CHALONS EN CHAMPAGNE | E17: =VLOOKUP($C17,'RECAP SECT'!$G$6:$CU$253,3,FALSE) -> 37.8 | F17: =VLOOKUP($C17,'RECAP SECT'!$G$6:$CU$253,33,FALSE) -> 9,153 | G17: =VLOOKUP($C17,'RECAP SECT'!$G$6:$CU$253,34,FALSE) -> 242.33 | H17: =VLOOKUP($C17,'RECAP SECT'!$G$6:$CU$253,35,FALSE) -> 51% | I17: =VLOOKUP($C17,'RECAP SECT'!$G$6:$CU$253,36,FALSE) -> 11 | J17: =VLOOKUP($C17,'RECAP SECT'!$G$6:$CU$253,37,FALSE) -> 2,380 | K17: =VLOOKUP($C17,'RECAP SECT'!$G$6:$CU$253,38,FALSE) -> 63.01 | L17: =VLOOKUP($C17,'RECAP SECT'!$G$6:$CU$253,39,FALSE) -> 18% | M17: =VLOOKUP($C17,'RECAP SECT'!$G$6:$CU$253,40,FALSE) -> 6 | N17: =VLOOKUP($C17,'RECAP SECT'!$G$6:$CU$253,41,FALSE) -> 38% | O17: =VLOOKUP($C17,'RECAP SECT'!$G$6:$CU$253,42,FALSE) -> 33% | P17: =VLOOKUP($C17,'RECAP SECT'!$G$6:$CU$253,43,FALSE) -> 10
A18: 30 | B18: MARNE-ARDENNES | C18: 2 | D18: CHARLEVILLE MEZIERES | E18: =VLOOKUP($C18,'RECAP SECT'!$G$6:$CU$253,3,FALSE) -> 48.8 | F18: =VLOOKUP($C18,'RECAP SECT'!$G$6:$CU$253,33,FALSE) -> 16,165 | G18: =VLOOKUP($C18,'RECAP SECT'!$G$6:$CU$253,34,FALSE) -> 331.38 | H18: =VLOOKUP($C18,'RECAP SECT'!$G$6:$CU$253,35,FALSE) -> 33% | I18: =VLOOKUP($C18,'RECAP SECT'!$G$6:$CU$253,36,FALSE) -> 5 | J18: =VLOOKUP($C18,'RECAP SECT'!$G$6:$CU$253,37,FALSE) -> 3,309 | K18: =VLOOKUP($C18,'RECAP SECT'!$G$6:$CU$253,38,FALSE) -> 67.84 | L18: =VLOOKUP($C18,'RECAP SECT'!$G$6:$CU$253,39,FALSE) -> 11% | M18: =VLOOKUP($C18,'RECAP SECT'!$G$6:$CU$253,40,FALSE) -> 3 | N18: =VLOOKUP($C18,'RECAP SECT'!$G$6:$CU$253,41,FALSE) -> 24% | O18: =VLOOKUP($C18,'RECAP SECT'!$G$6:$CU$253,42,FALSE) -> 19% | P18: =VLOOKUP($C18,'RECAP SECT'!$G$6:$CU$253,43,FALSE) -> 3
A19: 30 | B19: MARNE-ARDENNES | C19: 11 | D19: REIMS | E19: =VLOOKUP($C19,'RECAP SECT'!$G$6:$CU$253,3,FALSE) -> 68.0 | F19: =VLOOKUP($C19,'RECAP SECT'!$G$6:$CU$253,33,FALSE) -> 20,162 | G19: =VLOOKUP($C19,'RECAP SECT'!$G$6:$CU$253,34,FALSE) -> 296.37 | H19: =VLOOKUP($C19,'RECAP SECT'!$G$6:$CU$253,35,FALSE) -> 40% | I19: =VLOOKUP($C19,'RECAP SECT'!$G$6:$CU$253,36,FALSE) -> 9 | J19: =VLOOKUP($C19,'RECAP SECT'!$G$6:$CU$253,37,FALSE) -> 4,711 | K19: =VLOOKUP($C19,'RECAP SECT'!$G$6:$CU$253,38,FALSE) -> 69.25 | L19: =VLOOKUP($C19,'RECAP SECT'!$G$6:$CU$253,39,FALSE) -> 9% | M19: =VLOOKUP($C19,'RECAP SECT'!$G$6:$CU$253,40,FALSE) -> 2 | N19: =VLOOKUP($C19,'RECAP SECT'!$G$6:$CU$253,41,FALSE) -> 28% | O19: =VLOOKUP($C19,'RECAP SECT'!$G$6:$CU$253,42,FALSE) -> 23% | P19: =VLOOKUP($C19,'RECAP SECT'!$G$6:$CU$253,43,FALSE) -> 5
A20: 110 | B20: MEURTHE ET MOSELLE MEUSE | C20: 26 | D20: NANCY | E20: =VLOOKUP($C20,'RECAP SECT'!$G$6:$CU$253,3,FALSE) -> 54.6 | F20: =VLOOKUP($C20,'RECAP SECT'!$G$6:$CU$253,33,FALSE) -> 16,938 | G20: =VLOOKUP($C20,'RECAP SECT'!$G$6:$CU$253,34,FALSE) -> 309.99 | H20: =VLOOKUP($C20,'RECAP SECT'!$G$6:$CU$253,35,FALSE) -> 37% | I20: =VLOOKUP($C20,'RECAP SECT'!$G$6:$CU$253,36,FALSE) -> 7 | J20: =VLOOKUP($C20,'RECAP SECT'!$G$6:$CU$253,37,FALSE) -> 3,146 | K20: =VLOOKUP($C20,'RECAP SECT'!$G$6:$CU$253,38,FALSE) -> 57.58 | L20: =VLOOKUP($C20,'RECAP SECT'!$G$6:$CU$253,39,FALSE) -> 25% | M20: =VLOOKUP($C20,'RECAP SECT'!$G$6:$CU$253,40,FALSE) -> 8 | N20: =VLOOKUP($C20,'RECAP SECT'!$G$6:$CU$253,41,FALSE) -> 32% | O20: =VLOOKUP($C20,'RECAP SECT'!$G$6:$CU$253,42,FALSE) -> 27% | P20: =VLOOKUP($C20,'RECAP SECT'!$G$6:$CU$253,43,FALSE) -> 7
A21: 110 | B21: MEURTHE ET MOSELLE MEUSE | C21: 27 | D21: PONT A MOUSSON | E21: =VLOOKUP($C21,'RECAP SECT'!$G$6:$CU$253,3,FALSE) -> 59.5 | F21: =VLOOKUP($C21,'RECAP SECT'!$G$6:$CU$253,33,FALSE) -> 18,136 | G21: =VLOOKUP($C21,'RECAP SECT'!$G$6:$CU$253,34,FALSE) -> 304.97 | H21: =VLOOKUP($C21,'RECAP SECT'!$G$6:$CU$253,35,FALSE) -> 38% | I21: =VLOOKUP($C21,'RECAP SECT'!$G$6:$CU$253,36,FALSE) -> 8 | J21: =VLOOKUP($C21,'RECAP SECT'!$G$6:$CU$253,37,FALSE) -> 3,040 | K21: =VLOOKUP($C21,'RECAP SECT'!$G$6:$CU$253,38,FALSE) -> 51.12 | L21: =VLOOKUP($C21,'RECAP SECT'!$G$6:$CU$253,39,FALSE) -> 33% | M21: =VLOOKUP($C21,'RECAP SECT'!$G$6:$CU$253,40,FALSE) -> 12 | N21: =VLOOKUP($C21,'RECAP SECT'!$G$6:$CU$253,41,FALSE) -> 36% | O21: =VLOOKUP($C21,'RECAP SECT'!$G$6:$CU$253,42,FALSE) -> 31% | P21: =VLOOKUP($C21,'RECAP SECT'!$G$6:$CU$253,43,FALSE) -> 9
A22: 110 | B22: MEURTHE ET MOSELLE MEUSE | C22: 31 | D22: VERDUN | E22: =VLOOKUP($C22,'RECAP SECT'!$G$6:$CU$253,3,FALSE) -> 48.2 | F22: =VLOOKUP($C22,'RECAP SECT'!$G$6:$CU$253,33,FALSE) -> 8,887 | G22: =VLOOKUP($C22,'RECAP SECT'!$G$6:$CU$253,34,FALSE) -> 184.27 | H22: =VLOOKUP($C22,'RECAP SECT'!$G$6:$CU$253,35,FALSE) -> 63% | I22: =VLOOKUP($C22,'RECAP SECT'!$G$6:$CU$253,36,FALSE) -> 13 | J22: =VLOOKUP($C22,'RECAP SECT'!$G$6:$CU$253,37,FALSE) -> 2,533 | K22: =VLOOKUP($C22,'RECAP SECT'!$G$6:$CU$253,38,FALSE) -> 52.52 | L22: =VLOOKUP($C22,'RECAP SECT'!$G$6:$CU$253,39,FALSE) -> 31% | M22: =VLOOKUP($C22,'RECAP SECT'!$G$6:$CU$253,40,FALSE) -> 9 | N22: =VLOOKUP($C22,'RECAP SECT'!$G$6:$CU$253,41,FALSE) -> 50% | O22: =VLOOKUP($C22,'RECAP SECT'!$G$6:$CU$253,42,FALSE) -> 45% | P22: =VLOOKUP($C22,'RECAP SECT'!$G$6:$CU$253,43,FALSE) -> 14
A23: 160 | B23: MOSELLE | C23: 45 | D23: METZ | E23: =VLOOKUP($C23,'RECAP SECT'!$G$6:$CU$253,3,FALSE) -> 72.7 | F23: =VLOOKUP($C23,'RECAP SECT'!$G$6:$CU$253,33,FALSE) -> 29,199 | G23: =VLOOKUP($C23,'RECAP SECT'!$G$6:$CU$253,34,FALSE) -> 401.64 | H23: =VLOOKUP($C23,'RECAP SECT'!$G$6:$CU$253,35,FALSE) -> 19% | I23: =VLOOKUP($C23,'RECAP SECT'!$G$6:$CU$253,36,FALSE) -> 3 | J23: =VLOOKUP($C23,'RECAP SECT'!$G$6:$CU$253,37,FALSE) -> 4,510 | K23: =VLOOKUP($C23,'RECAP SECT'!$G$6:$CU$253,38,FALSE) -> 62.04 | L23: =VLOOKUP($C23,'RECAP SECT'!$G$6:$CU$253,39,FALSE) -> 19% | M23: =VLOOKUP($C23,'RECAP SECT'!$G$6:$CU$253,40,FALSE) -> 7 | N23: =VLOOKUP($C23,'RECAP SECT'!$G$6:$CU$253,41,FALSE) -> 19% | O23: =VLOOKUP($C23,'RECAP SECT'!$G$6:$CU$253,42,FALSE) -> 14% | P23: =VLOOKUP($C23,'RECAP SECT'!$G$6:$CU$253,43,FALSE) -> 2
A24: 160 | B24: MOSELLE | C24: 42 | D24: MOSELLE EST | E24: =VLOOKUP($C24,'RECAP SECT'!$G$6:$CU$253,3,FALSE) -> 58.7 | F24: =VLOOKUP($C24,'RECAP SECT'!$G$6:$CU$253,33,FALSE) -> 10,711 | G24: =VLOOKUP($C24,'RECAP SECT'!$G$6:$CU$253,34,FALSE) -> 182.43 | H24: =VLOOKUP($C24,'RECAP SECT'!$G$6:$CU$253,35,FALSE) -> 63% | I24: =VLOOKUP($C24,'RECAP SECT'!$G$6:$CU$253,36,FALSE) -> 14 | J24: =VLOOKUP($C24,'RECAP SECT'!$G$6:$CU$253,37,FALSE) -> 3,886 | K24: =VLOOKUP($C24,'RECAP SECT'!$G$6:$CU$253,38,FALSE) -> 66.19 | L24: =VLOOKUP($C24,'RECAP SECT'!$G$6:$CU$253,39,FALSE) -> 13% | M24: =VLOOKUP($C24,'RECAP SECT'!$G$6:$CU$253,40,FALSE) -> 5 | N24: =VLOOKUP($C24,'RECAP SECT'!$G$6:$CU$253,41,FALSE) -> 43% | O24: =VLOOKUP($C24,'RECAP SECT'!$G$6:$CU$253,42,FALSE) -> 38% | P24: =VLOOKUP($C24,'RECAP SECT'!$G$6:$CU$253,43,FALSE) -> 12
A25: 160 | B25: MOSELLE | C25: 44 | D25: MOSELLE NORD | E25: =VLOOKUP($C25,'RECAP SECT'!$G$6:$CU$253,3,FALSE) -> 56.2 | F25: =VLOOKUP($C25,'RECAP SECT'!$G$6:$CU$253,33,FALSE) -> 9,320 | G25: =VLOOKUP($C25,'RECAP SECT'!$G$6:$CU$253,34,FALSE) -> 165.96 | H25: =VLOOKUP($C25,'RECAP SECT'!$G$6:$CU$253,35,FALSE) -> 67% | I25: =VLOOKUP($C25,'RECAP SECT'!$G$6:$CU$253,36,FALSE) -> 16 | J25: =VLOOKUP($C25,'RECAP SECT'!$G$6:$CU$253,37,FALSE) -> 4,292 | K25: =VLOOKUP($C25,'RECAP SECT'!$G$6:$CU$253,38,FALSE) -> 76.42 | L25: =VLOOKUP($C25,'RECAP SECT'!$G$6:$CU$253,39,FALSE) -> 0% | M25: =VLOOKUP($C25,'RECAP SECT'!$G$6:$CU$253,40,FALSE) -> 1 | N25: =VLOOKUP($C25,'RECAP SECT'!$G$6:$CU$253,41,FALSE) -> 40% | O25: =VLOOKUP($C25,'RECAP SECT'!$G$6:$CU$253,42,FALSE) -> 35% | P25: =VLOOKUP($C25,'RECAP SECT'!$G$6:$CU$253,43,FALSE) -> 11
A26: 80 | B26: VOSGES | C26: 57 | D26: EPINAL | E26: =VLOOKUP($C26,'RECAP SECT'!$G$6:$CU$253,3,FALSE) -> 52.9 | F26: =VLOOKUP($C26,'RECAP SECT'!$G$6:$CU$253,33,FALSE) -> 16,964 | G26: =VLOOKUP($C26,'RECAP SECT'!$G$6:$CU$253,34,FALSE) -> 320.81 | H26: =VLOOKUP($C26,'RECAP SECT'!$G$6:$CU$253,35,FALSE) -> 35% | I26: =VLOOKUP($C26,'RECAP SECT'!$G$6:$CU$253,36,FALSE) -> 6 | J26: =VLOOKUP($C26,'RECAP SECT'!$G$6:$CU$253,37,FALSE) -> 2,668 | K26: =VLOOKUP($C26,'RECAP SECT'!$G$6:$CU$253,38,FALSE) -> 50.45 | L26: =VLOOKUP($C26,'RECAP SECT'!$G$6:$CU$253,39,FALSE) -> 34% | M26: =VLOOKUP($C26,'RECAP SECT'!$G$6:$CU$253,40,FALSE) -> 13 | N26: =VLOOKUP($C26,'RECAP SECT'!$G$6:$CU$253,41,FALSE) -> 35% | O26: =VLOOKUP($C26,'RECAP SECT'!$G$6:$CU$253,42,FALSE) -> 30% | P26: =VLOOKUP($C26,'RECAP SECT'!$G$6:$CU$253,43,FALSE) -> 8
A27: 80 | B27: VOSGES | C27: 55 | D27: SAINT DIE | E27: =VLOOKUP($C27,'RECAP SECT'!$G$6:$CU$253,3,FALSE) -> 40.3 | F27: =VLOOKUP($C27,'RECAP SECT'!$G$6:$CU$253,33,FALSE) -> 9,235 | G27: =VLOOKUP($C27,'RECAP SECT'!$G$6:$CU$253,34,FALSE) -> 229.44 | H27: =VLOOKUP($C27,'RECAP SECT'!$G$6:$CU$253,35,FALSE) -> 54% | I27: =VLOOKUP($C27,'RECAP SECT'!$G$6:$CU$253,36,FALSE) -> 12 | J27: =VLOOKUP($C27,'RECAP SECT'!$G$6:$CU$253,37,FALSE) -> 1,665 | K27: =VLOOKUP($C27,'RECAP SECT'!$G$6:$CU$253,38,FALSE) -> 41.37 | L27: =VLOOKUP($C27,'RECAP SECT'!$G$6:$CU$253,39,FALSE) -> 46% | M27: =VLOOKUP($C27,'RECAP SECT'!$G$6:$CU$253,40,FALSE) -> 17 | N27: =VLOOKUP($C27,'RECAP SECT'!$G$6:$CU$253,41,FALSE) -> 51% | O27: =VLOOKUP($C27,'RECAP SECT'!$G$6:$CU$253,42,FALSE) -> 46% | P27: =VLOOKUP($C27,'RECAP SECT'!$G$6:$CU$253,43,FALSE) -> 15
A28: Total CEGEE Directions Régionales | E28: =SUM(E10:E27) -> 950

Sheet SE_CREDIT
B1: Accueil | F1: BAROMETRE BDD - TERRITOIRES
F2: CREDITS
F3: =ACCUEIL!F7 -> 2022-09-18
F7: Engagements et ventes accessoires pondérés Immo | J7: Engagements et ventes accessoires pondérés Conso | N7: Ventes sur client non détenteur de l’univers | R7: Total Crédits
F8: =DATEMAJ!C18 -> au 18/09 | H8: coef | I8: ='RECAP DIRCOM'!BE4 -> 6% | J8: =DATEMAJ!C19 -> au 18/09 | L8: coef | M8: ='RECAP DIRCOM'!BI4 -> 6% | N8: =DATEMAJ!C20 -> au 18/09 | P8: coef | Q8: ='RECAP DIRCOM'!BM4 -> 8% | S8: coef | T8: ='RECAP DIRCOM'!BP4 -> 20%
B9: Direction | C9: eds | D9: Territoire | E9: ="ETP perf "&DATEMAJ!$C$28 -> ETP perf 18-sept | F9: PNB | G9: PNB / ETP | H9: % Ecart au 1er | I9: Rang | J9: PNB | K9: PNB / ETP | L9: % Ecart au 1er | M9: Rang | N9: VB | O9: VB / ETP | P9: % Ecart au 1er | Q9: Rang | R9: Moyenne ecart au 1er | S9: % Ecart au 1er | T9: Rang CEGEE
A10: 50 | B10: AUBE HAUTE MARNE | C10: 21 | D10: CHAUMONT | E10: =VLOOKUP($C10,'RECAP SECT'!$G$6:$CU$253,3,FALSE) -> 33.6 | F10: =VLOOKUP($C10,'RECAP SECT'!$G$6:$CU$253,48,FALSE) -> 6,695 | G10: =VLOOKUP($C10,'RECAP SECT'!$G$6:$CU$253,49,FALSE) -> 199.03 | H10: =VLOOKUP($C10,'RECAP SECT'!$G$6:$CU$253,50,FALSE) -> 63% | I10: =VLOOKUP($C10,'RECAP SECT'!$G$6:$CU$253,51,FALSE) -> 15 | J10: =VLOOKUP($C10,'RECAP SECT'!$G$6:$CU$253,52,FALSE) -> 1,847 | K10: =VLOOKUP($C10,'RECAP SECT'!$G$6:$CU$253,53,FALSE) -> 54.90 | L10: =VLOOKUP($C10,'RECAP SECT'!$G$6:$CU$253,54,FALSE) -> 7% | M10: =VLOOKUP($C10,'RECAP SECT'!$G$6:$CU$253,55,FALSE) -> 4 | N10: =VLOOKUP($C10,'RECAP SECT'!$G$6:$CU$253,56,FALSE) -> 740 | O10: =VLOOKUP($C10,'RECAP SECT'!$G$6:$CU$253,57,FALSE) -> 22.00 | P10: =VLOOKUP($C10,'RECAP SECT'!$G$6:$CU$253,58,FALSE) -> 43% | Q10: =VLOOKUP($C10,'RECAP SECT'!$G$6:$CU$253,59,FALSE) -> 12 | R10: =VLOOKUP($C10,'RECAP SECT'!$G$6:$CU$253,60,FALSE) -> 38% | S10: =VLOOKUP($C10,'RECAP SECT'!$G$6:$CU$253,61,FALSE) -> 33% | T10: =VLOOKUP($C10,'RECAP SECT'!$G$6:$CU$253,62,FALSE) -> 10
A11: 50 | B11: AUBE HAUTE MARNE | C11: 14 | D11: TROYES | E11: =VLOOKUP($C11,'RECAP SECT'!$G$6:$CU$253,3,FALSE) -> 54.2 | F11: =VLOOKUP($C11,'RECAP SECT'!$G$6:$CU$253,48,FALSE) -> 11,921 | G11: =VLOOKUP($C11,'RECAP SECT'!$G$6:$CU$253,49,FALSE) -> 220.03 | H11: =VLOOKUP($C11,'RECAP SECT'!$G$6:$CU$253,50,FALSE) -> 59% | I11: =VLOOKUP($C11,'RECAP SECT'!$G$6:$CU$253,51,FALSE) -> 12 | J11: =VLOOKUP($C11,'RECAP SECT'!$G$6:$CU$253,52,FALSE) -> 2,627 | K11: =VLOOKUP($C11,'RECAP SECT'!$G$6:$CU$253,53,FALSE) -> 48.49 | L11: =VLOOKUP($C11,'RECAP SECT'!$G$6:$CU$253,54,FALSE) -> 18% | M11: =VLOOKUP($C11,'RECAP SECT'!$G$6:$CU$253,55,FALSE) -> 12 | N11: =VLOOKUP($C11,'RECAP SECT'!$G$6:$CU$253,56,FALSE) -> 1,057 | O11: =VLOOKUP($C11,'RECAP SECT'!$G$6:$CU$253,57,FALSE) -> 19.51 | P11: =VLOOKUP($C11,'RECAP SECT'!$G$6:$CU$253,58,FALSE) -> 50% | Q11: =VLOOKUP($C11,'RECAP SECT'!$G$6:$CU$253,59,FALSE) -> 14 | R11: =VLOOKUP($C11,'RECAP SECT'!$G$6:$CU$253,60,FALSE) -> 43% | S11: =VLOOKUP($C11,'RECAP SECT'!$G$6:$CU$253,61,FALSE) -> 38% | T11: =VLOOKUP($C11,'RECAP SECT'!$G$6:$CU$253,62,FALSE) -> 14
A12: 262 | B12: BAS-RHIN | C12: 5060 | D12: HAGUENAU | E12: =VLOOKUP($C12,'RECAP SECT'!$G$6:$CU$253,3,FALSE) -> 55.3 | F12: =VLOOKUP($C12,'RECAP SECT'!$G$6:$CU$253,48,FALSE) -> 9,084 | G12: =VLOOKUP($C12,'RECAP SECT'!$G$6:$CU$253,49,FALSE) -> 164.32 | H12: =VLOOKUP($C12,'RECAP SECT'!$G$6:$CU$253,50,FALSE) -> 70% | I12: =VLOOKUP($C12,'RECAP SECT'!$G$6:$CU$253,51,FALSE) -> 18 | J12: =VLOOKUP($C12,'RECAP SECT'!$G$6:$CU$253,52,FALSE) -> 2,648 | K12: =VLOOKUP($C12,'RECAP SECT'!$G$6:$CU$253,53,FALSE) -> 47.90 | L12: =VLOOKUP($C12,'RECAP SECT'!$G$6:$CU$253,54,FALSE) -> 19% | M12: =VLOOKUP($C12,'RECAP SECT'!$G$6:$CU$253,55,FALSE) -> 13 | N12: =VLOOKUP($C12,'RECAP SECT'!$G$6:$CU$253,56,FALSE) -> 914 | O12: =VLOOKUP($C12,'RECAP SECT'!$G$6:$CU$253,57,FALSE) -> 16.53 | P12: =VLOOKUP($C12,'RECAP SECT'!$G$6:$CU$253,58,FALSE) -> 57% | Q12: =VLOOKUP($C12,'RECAP SECT'!$G$6:$CU$253,59,FALSE) -> 17 | R12: =VLOOKUP($C12,'RECAP SECT'!$G$6:$CU$253,60,FALSE) -> 49% | S12: =VLOOKUP($C12,'RECAP SECT'!$G$6:$CU$253,61,FALSE) -> 44% | T12: =VLOOKUP($C12,'RECAP SECT'!$G$6:$CU$253,62,FALSE) -> 17
A13: 262 | B13: BAS-RHIN | C13: 5101 | D13: SELESTAT | E13: =VLOOKUP($C13,'RECAP SECT'!$G$6:$CU$253,3,FALSE) -> 51.3 | F13: =VLOOKUP($C13,'RECAP SECT'!$G$6:$CU$253,48,FALSE) -> 10,779 | G13: =VLOOKUP($C13,'RECAP SECT'!$G$6:$CU$253,49,FALSE) -> 209.99 | H13: =VLOOKUP($C13,'RECAP SECT'!$G$6:$CU$253,50,FALSE) -> 61% | I13: =VLOOKUP($C13,'RECAP SECT'!$G$6:$CU$253,51,FALSE) -> 14 | J13: =VLOOKUP($C13,'RECAP SECT'!$G$6:$CU$253,52,FALSE) -> 2,238 | K13: =VLOOKUP($C13,'RECAP SECT'!$G$6:$CU$253,53,FALSE) -> 43.60 | L13: =VLOOKUP($C13,'RECAP SECT'!$G$6:$CU$253,54,FALSE) -> 26% | M13: =VLOOKUP($C13,'RECAP SECT'!$G$6:$CU$253,55,FALSE) -> 14 | N13: =VLOOKUP($C13,'RECAP SECT'!$G$6:$CU$253,56,FALSE) -> 960 | O13: =VLOOKUP($C13,'RECAP SECT'!$G$6:$CU$253,57,FALSE) -> 18.70 | P13: =VLOOKUP($C13,'RECAP SECT'!$G$6:$CU$253,58,FALSE) -> 52% | Q13: =VLOOKUP($C13,'RECAP SECT'!$G$6:$CU$253,59,FALSE) -> 15 | R13: =VLOOKUP($C13,'RECAP SECT'!$G$6:$CU$253,60,FALSE) -> 47% | S13: =VLOOKUP($C13,'RECAP SECT'!$G$6:$CU$253,61,FALSE) -> 42% | T13: =VLOOKUP($C13,'RECAP SECT'!$G$6:$CU$253,62,FALSE) -> 15
A14: 262 | B14: BAS-RHIN | C14: 5006 | D14: STRASBOURG | E14: =VLOOKUP($C14,'RECAP SECT'!$G$6:$CU$253,3,FALSE) -> 65.5 | F14: =VLOOKUP($C14,'RECAP SECT'!$G$6:$CU$253,48,FALSE) -> 18,650 | G14: =VLOOKUP($C14,'RECAP SECT'!$G$6:$CU$253,49,FALSE) -> 284.95 | H14: =VLOOKUP($C14,'RECAP SECT'!$G$6:$CU$253,50,FALSE) -> 47% | I14: =VLOOKUP($C14,'RECAP SECT'!$G$6:$CU$253,51,FALSE) -> 9 | J14: =VLOOKUP($C14,'RECAP SECT'!$G$6:$CU$253,52,FALSE) -> 2,545 | K14: =VLOOKUP($C14,'RECAP SECT'!$G$6:$CU$253,53,FALSE) -> 38.88 | L14: =VLOOKUP($C14,'RECAP SECT'!$G$6:$CU$253,54,FALSE) -> 34% | M14: =VLOOKUP($C14,'RECAP SECT'!$G$6:$CU$253,55,FALSE) -> 18 | N14: =VLOOKUP($C14,'RECAP SECT'!$G$6:$CU$253,56,FALSE) -> 1,541 | O14: =VLOOKUP($C14,'RECAP SECT'!$G$6:$CU$253,57,FALSE) -> 23.54 | P14: =VLOOKUP($C14,'RECAP SECT'!$G$6:$CU$253,58,FALSE) -> 39% | Q14: =VLOOKUP($C14,'RECAP SECT'!$G$6:$CU$253,59,FALSE) -> 9 | R14: =VLOOKUP($C14,'RECAP SECT'!$G$6:$CU$253,60,FALSE) -> 40% | S14: =VLOOKUP($C14,'RECAP SECT'!$G$6:$CU$253,61,FALSE) -> 35% | T14: =VLOOKUP($C14,'RECAP SECT'!$G$6:$CU$253,62,FALSE) -> 11
A15: 264 | B15: HAUT-RHIN | C15: 5130 | D15: COLMAR | E15: =VLOOKUP($C15,'RECAP SECT'!$G$6:$CU$253,3,FALSE) -> 46.6 | F15: =VLOOKUP($C15,'RECAP SECT'!$G$6:$CU$253,48,FALSE) -> 7,805 | G15: =VLOOKUP($C15,'RECAP SECT'!$G$6:$CU$253,49,FALSE) -> 167.35 | H15: =VLOOKUP($C15,'RECAP SECT'!$G$6:$CU$253,50,FALSE) -> 69% | I15: =VLOOKUP($C15,'RECAP SECT'!$G$6:$CU$253,51,FALSE) -> 17 | J15: =VLOOKUP($C15,'RECAP SECT'!$G$6:$CU$253,52,FALSE) -> 2,015 | K15: =VLOOKUP($C15,'RECAP SECT'!$G$6:$CU$253,53,FALSE) -> 43.20 | L15: =VLOOKUP($C15,'RECAP SECT'!$G$6:$CU$253,54,FALSE) -> 27% | M15: =VLOOKUP($C15,'RECAP SECT'!$G$6:$CU$253,55,FALSE) -> 16 | N15: =VLOOKUP($C15,'RECAP SECT'!$G$6:$CU$253,56,FALSE) -> 754 | O15: =VLOOKUP($C15,'RECAP SECT'!$G$6:$CU$253,57,FALSE) -> 16.17 | P15: =VLOOKUP($C15,'RECAP SECT'!$G$6:$CU$253,58,FALSE) -> 58% | Q15: =VLOOKUP($C15,'RECAP SECT'!$G$6:$CU$253,59,FALSE) -> 18 | R15: =VLOOKUP($C15,'RECAP SECT'!$G$6:$CU$253,60,FALSE) -> 52% | S15: =VLOOKUP($C15,'RECAP SECT'!$G$6:$CU$253,61,FALSE) -> 47% | T15: =VLOOKUP($C15,'RECAP SECT'!$G$6:$CU$253,62,FALSE) -> 18
A16: 264 | B16: HAUT-RHIN | C16: 5169 | D16: MULHOUSE | E16: =VLOOKUP($C16,'RECAP SECT'!$G$6:$CU$253,3,FALSE) -> 46.3 | F16: =VLOOKUP($C16,'RECAP SECT'!$G$6:$CU$253,48,FALSE) -> 9,961 | G16: =VLOOKUP($C16,'RECAP SECT'!$G$6:$CU$253,49,FALSE) -> 214.95 | H16: =VLOOKUP($C16,'RECAP SECT'!$G$6:$CU$253,50,FALSE) -> 60% | I16: =VLOOKUP($C16,'RECAP SECT'!$G$6:$CU$253,51,FALSE) -> 13 | J16: =VLOOKUP($C16,'RECAP SECT'!$G$6:$CU$253,52,FALSE) -> 1,955 | K16: =VLOOKUP($C16,'RECAP SECT'!$G$6:$CU$253,53,FALSE) -> 42.18 | L16: =VLOOKUP($C16,'RECAP SECT'!$G$6:$CU$253,54,FALSE) -> 28% | M16: =VLOOKUP($C16,'RECAP SECT'!$G$6:$CU$253,55,FALSE) -> 17 | N16: =VLOOKUP($C16,'RECAP SECT'!$G$6:$CU$253,56,FALSE) -> 790 | O16: =VLOOKUP($C16,'RECAP SECT'!$G$6:$CU$253,57,FALSE) -> 17.05 | P16: =VLOOKUP($C16,'RECAP SECT'!$G$6:$CU$253,58,FALSE) -> 56% | Q16: =VLOOKUP($C16,'RECAP SECT'!$G$6:$CU$253,59,FALSE) -> 16 | R16: =VLOOKUP($C16,'RECAP SECT'!$G$6:$CU$253,60,FALSE) -> 49% | S16: =VLOOKUP($C16,'RECAP SECT'!$G$6:$CU$253,61,FALSE) -> 44% | T16: =VLOOKUP($C16,'RECAP SECT'!$G$6:$CU$253,62,FALSE) -> 16
A17: 30 | B17: MARNE-ARDENNES | C17: 6 | D17: CHALONS EN CHAMPAGNE | E17: =VLOOKUP($C17,'RECAP SECT'!$G$6:$CU$253,3,FALSE) -> 37.8 | F17: =VLOOKUP($C17,'RECAP SECT'!$G$6:$CU$253,48,FALSE) -> 12,129 | G17: =VLOOKUP($C17,'RECAP SECT'!$G$6:$CU$253,49,FALSE) -> 321.12 | H17: =VLOOKUP($C17,'RECAP SECT'!$G$6:$CU$253,50,FALSE) -> 41% | I17: =VLOOKUP($C17,'RECAP SECT'!$G$6:$CU$253,51,FALSE) -> 8 | J17: =VLOOKUP($C17,'RECAP SECT'!$G$6:$CU$253,52,FALSE) -> 2,050 | K17: =VLOOKUP($C17,'RECAP SECT'!$G$6:$CU$253,53,FALSE) -> 54.27 | L17: =VLOOKUP($C17,'RECAP SECT'!$G$6:$CU$253,54,FALSE) -> 8% | M17: =VLOOKUP($C17,'RECAP SECT'!$G$6:$CU$253,55,FALSE) -> 5 | N17: =VLOOKUP($C17,'RECAP SECT'!$G$6:$CU$253,56,FALSE) -> 995 | O17: =VLOOKUP($C17,'RECAP SECT'!$G$6:$CU$253,57,FALSE) -> 26.34 | P17: =VLOOKUP($C17,'RECAP SECT'!$G$6:$CU$253,58,FALSE) -> 32% | Q17: =VLOOKUP($C17,'RECAP SECT'!$G$6:$CU$253,59,FALSE) -> 6 | R17: =VLOOKUP($C17,'RECAP SECT'!$G$6:$CU$253,60,FALSE) -> 27% | S17: =VLOOKUP($C17,'RECAP SECT'!$G$6:$CU$253,61,FALSE) -> 22% | T17: =VLOOKUP($C17,'RECAP SECT'!$G$6:$CU$253,62,FALSE) -> 7
A18: 30 | B18: MARNE-ARDENNES | C18: 2 | D18: CHARLEVILLE MEZIERES | E18: =VLOOKUP($C18,'RECAP SECT'!$G$6:$CU$253,3,FALSE) -> 48.8 | F18: =VLOOKUP($C18,'RECAP SECT'!$G$6:$CU$253,48,FALSE) -> 17,934 | G18: =VLOOKUP($C18,'RECAP SECT'!$G$6:$CU$253,49,FALSE) -> 367.65 | H18: =VLOOKUP($C18,'RECAP SECT'!$G$6:$CU$253,50,FALSE) -> 32% | I18: =VLOOKUP($C18,'RECAP SECT'!$G$6:$CU$253,51,FALSE) -> 5 | J18: =VLOOKUP($C18,'RECAP SECT'!$G$6:$CU$253,52,FALSE) -> 2,398 | K18: =VLOOKUP($C18,'RECAP SECT'!$G$6:$CU$253,53,FALSE) -> 49.16 | L18: =VLOOKUP($C18,'RECAP SECT'!$G$6:$CU$253,54,FALSE) -> 17% | M18: =VLOOKUP($C18,'RECAP SECT'!$G$6:$CU$253,55,FALSE) -> 10 | N18: =VLOOKUP($C18,'RECAP SECT'!$G$6:$CU$253,56,FALSE) -> 1,450 | O18: =VLOOKUP($C18,'RECAP SECT'!$G$6:$CU$253,57,FALSE) -> 29.73 | P18: =VLOOKUP($C18,'RECAP SECT'!$G$6:$CU$253,58,FALSE) -> 23% | Q18: =VLOOKUP($C18,'RECAP SECT'!$G$6:$CU$253,59,FALSE) -> 3 | R18: =VLOOKUP($C18,'RECAP SECT'!$G$6:$CU$253,60,FALSE) -> 24% | S18: =VLOOKUP($C18,'RECAP SECT'!$G$6:$CU$253,61,FALSE) -> 19% | T18: =VLOOKUP($C18,'RECAP SECT'!$G$6:$CU$253,62,FALSE) -> 4
A19: 30 | B19: MARNE-ARDENNES | C19: 11 | D19: REIMS | E19: =VLOOKUP($C19,'RECAP SECT'!$G$6:$CU$253,3,FALSE) -> 68.0 | F19: =VLOOKUP($C19,'RECAP SECT'!$G$6:$CU$253,48,FALSE) -> 36,856 | G19: =VLOOKUP($C19,'RECAP SECT'!$G$6:$CU$253,49,FALSE) -> 541.77 | H19: =VLOOKUP($C19,'RECAP SECT'!$G$6:$CU$253,50,FALSE) -> 0% | I19: =VLOOKUP($C19,'RECAP SECT'!$G$6:$CU$253,51,FALSE) -> 1 | J19: =VLOOKUP($C19,'RECAP SECT'!$G$6:$CU$253,52,FALSE) -> 3,322 | K19: =VLOOKUP($C19,'RECAP SECT'!$G$6:$CU$253,53,FALSE) -> 48.84 | L19: =VLOOKUP($C19,'RECAP SECT'!$G$6:$CU$253,54,FALSE) -> 17% | M19: =VLOOKUP($C19,'RECAP SECT'!$G$6:$CU$253,55,FALSE) -> 11 | N19: =VLOOKUP($C19,'RECAP SECT'!$G$6:$CU$253,56,FALSE) -> 2,636 | O19: =VLOOKUP($C19,'RECAP SECT'!$G$6:$CU$253,57,FALSE) -> 38.75 | P19: =VLOOKUP($C19,'RECAP SECT'!$G$6:$CU$253,58,FALSE) -> 0% | Q19: =VLOOKUP($C19,'RECAP SECT'!$G$6:$CU$253,59,FALSE) -> 1 | R19: =VLOOKUP($C19,'RECAP SECT'!$G$6:$CU$253,60,FALSE) -> 5% | S19: =VLOOKUP($C19,'RECAP SECT'!$G$6:$CU$253,61,FALSE) -> 0% | T19: =VLOOKUP($C19,'RECAP SECT'!$G$6:$CU$253,62,FALSE) -> 1
A20: 110 | B20: MEURTHE ET MOSELLE MEUSE | C20: 26 | D20: NANCY | E20: =VLOOKUP($C20,'RECAP SECT'!$G$6:$CU$253,3,FALSE) -> 54.6 | F20: =VLOOKUP($C20,'RECAP SECT'!$G$6:$CU$253,48,FALSE) -> 21,697 | G20: =VLOOKUP($C20,'RECAP SECT'!$G$6:$CU$253,49,FALSE) -> 397.08 | H20: =VLOOKUP($C20,'RECAP SECT'!$G$6:$CU$253,50,FALSE) -> 27% | I20: =VLOOKUP($C20,'RECAP SECT'!$G$6:$CU$253,51,FALSE) -> 3 | J20: =VLOOKUP($C20,'RECAP SECT'!$G$6:$CU$253,52,FALSE) -> 2,820 | K20: =VLOOKUP($C20,'RECAP SECT'!$G$6:$CU$253,53,FALSE) -> 51.61 | L20: =VLOOKUP($C20,'RECAP SECT'!$G$6:$CU$253,54,FALSE) -> 12% | M20: =VLOOKUP($C20,'RECAP SECT'!$G$6:$CU$253,55,FALSE) -> 8 | N20: =VLOOKUP($C20,'RECAP SECT'!$G$6:$CU$253,56,FALSE) -> 1,532 | O20: =VLOOKUP($C20,'RECAP SECT'!$G$6:$CU$253,57,FALSE) -> 28.04 | P20: =VLOOKUP($C20,'RECAP SECT'!$G$6:$CU$253,58,FALSE) -> 28% | Q20: =VLOOKUP($C20,'RECAP SECT'!$G$6:$CU$253,59,FALSE) -> 4 | R20: =VLOOKUP($C20,'RECAP SECT'!$G$6:$CU$253,60,FALSE) -> 23% | S20: =VLOOKUP($C20,'RECAP SECT'!$G$6:$CU$253,61,FALSE) -> 18% | T20: =VLOOKUP($C20,'RECAP SECT'!$G$6:$CU$253,62,FALSE) -> 3
A21: 110 | B21: MEURTHE ET MOSELLE MEUSE | C21: 27 | D21: PONT A MOUSSON | E21: =VLOOKUP($C21,'RECAP SECT'!$G$6:$CU$253,3,FALSE) -> 59.5 | F21: =VLOOKUP($C21,'RECAP SECT'!$G$6:$CU$253,48,FALSE) -> 22,124 | G21: =VLOOKUP($C21,'RECAP SECT'!$G$6:$CU$253,49,FALSE) -> 372.02 | H21: =VLOOKUP($C21,'RECAP SECT'!$G$6:$CU$253,50,FALSE) -> 31% | I21: =VLOOKUP($C21,'RECAP SECT'!$G$6:$CU$253,51,FALSE) -> 4 | J21: =VLOOKUP($C21,'RECAP SECT'!$G$6:$CU$253,52,FALSE) -> 3,101 | K21: =VLOOKUP($C21,'RECAP SECT'!$G$6:$CU$253,53,FALSE) -> 52.14 | L21: =VLOOKUP($C21,'RECAP SECT'!$G$6:$CU$253,54,FALSE) -> 12% | M21: =VLOOKUP($C21,'RECAP SECT'!$G$6:$CU$253,55,FALSE) -> 7 | N21: =VLOOKUP($C21,'RECAP SECT'!$G$6:$CU$253,56,FALSE) -> 1,569 | O21: =VLOOKUP($C21,'RECAP SECT'!$G$6:$CU$253,57,FALSE) -> 26.38 | P21: =VLOOKUP($C21,'RECAP SECT'!$G$6:$CU$253,58,FALSE) -> 32% | Q21: =VLOOKUP($C21,'RECAP SECT'!$G$6:$CU$253,59,FALSE) -> 5 | R21: =VLOOKUP($C21,'RECAP SECT'!$G$6:$CU$253,60,FALSE) -> 26% | S21: =VLOOKUP($C21,'RECAP SECT'!$G$6:$CU$253,61,FALSE) -> 20% | T21: =VLOOKUP($C21,'RECAP SECT'!$G$6:$CU$253,62,FALSE) -> 5
A22: 110 | B22: MEURTHE ET MOSELLE MEUSE | C22: 31 | D22: VERDUN | E22: =VLOOKUP($C22,'RECAP SECT'!$G$6:$CU$253,3,FALSE) -> 48.2 | F22: =VLOOKUP($C22,'RECAP SECT'!$G$6:$CU$253,48,FALSE) -> 12,727 | G22: =VLOOKUP($C22,'RECAP SECT'!$G$6:$CU$253,49,FALSE) -> 263.87 | H22: =VLOOKUP($C22,'RECAP SECT'!$G$6:$CU$253,50,FALSE) -> 51% | I22: =VLOOKUP($C22,'RECAP SECT'!$G$6:$CU$253,51,FALSE) -> 10 | J22: =VLOOKUP($C22,'RECAP SECT'!$G$6:$CU$253,52,FALSE) -> 2,801 | K22: =VLOOKUP($C22,'RECAP SECT'!$G$6:$CU$253,53,FALSE) -> 58.08 | L22: =VLOOKUP($C22,'RECAP SECT'!$G$6:$CU$253,54,FALSE) -> 1% | M22: =VLOOKUP($C22,'RECAP SECT'!$G$6:$CU$253,55,FALSE) -> 2 | N22: =VLOOKUP($C22,'RECAP SECT'!$G$6:$CU$253,56,FALSE) -> 1,064 | O22: =VLOOKUP($C22,'RECAP SECT'!$G$6:$CU$253,57,FALSE) -> 22.06 | P22: =VLOOKUP($C22,'RECAP SECT'!$G$6:$CU$253,58,FALSE) -> 43% | Q22: =VLOOKUP($C22,'RECAP SECT'!$G$6:$CU$253,59,FALSE) -> 11 | R22: =VLOOKUP($C22,'RECAP SECT'!$G$6:$CU$253,60,FALSE) -> 33% | S22: =VLOOKUP($C22,'RECAP SECT'!$G$6:$CU$253,61,FALSE) -> 28% | T22: =VLOOKUP($C22,'RECAP SECT'!$G$6:$CU$253,62,FALSE) -> 9
A23: 160 | B23: MOSELLE | C23: 45 | D23: METZ | E23: =VLOOKUP($C23,'RECAP SECT'!$G$6:$CU$253,3,FALSE) -> 72.7 | F23: =VLOOKUP($C23,'RECAP SECT'!$G$6:$CU$253,48,FALSE) -> 23,575 | G23: =VLOOKUP($C23,'RECAP SECT'!$G$6:$CU$253,49,FALSE) -> 324.28 | H23: =VLOOKUP($C23,'RECAP SECT'!$G$6:$CU$253,50,FALSE) -> 40% | I23: =VLOOKUP($C23,'RECAP SECT'!$G$6:$CU$253,51,FALSE) -> 7 | J23: =VLOOKUP($C23,'RECAP SECT'!$G$6:$CU$253,52,FALSE) -> 3,868 | K23: =VLOOKUP($C23,'RECAP SECT'!$G$6:$CU$253,53,FALSE) -> 53.20 | L23: =VLOOKUP($C23,'RECAP SECT'!$G$6:$CU$253,54,FALSE) -> 10% | M23: =VLOOKUP($C23,'RECAP SECT'!$G$6:$CU$253,55,FALSE) -> 6 | N23: =VLOOKUP($C23,'RECAP SECT'!$G$6:$CU$253,56,FALSE) -> 1,744 | O23: =VLOOKUP($C23,'RECAP SECT'!$G$6:$CU$253,57,FALSE) -> 23.99 | P23: =VLOOKUP($C23,'RECAP SECT'!$G$6:$CU$253,58,FALSE) -> 38% | Q23: =VLOOKUP($C23,'RECAP SECT'!$G$6:$CU$253,59,FALSE) -> 8 | R23: =VLOOKUP($C23,'RECAP SECT'!$G$6:$CU$253,60,FALSE) -> 30% | S23: =VLOOKUP($C23,'RECAP SECT'!$G$6:$CU$253,61,FALSE) -> 25% | T23: =VLOOKUP($C23,'RECAP SECT'!$G$6:$CU$253,62,FALSE) -> 8
A24: 160 | B24: MOSELLE | C24: 42 | D24: MOSELLE EST | E24: =VLOOKUP($C24,'RECAP SECT'!$G$6:$CU$253,3,FALSE) -> 58.7 | F24: =VLOOKUP($C24,'RECAP SECT'!$G$6:$CU$253,48,FALSE) -> 19,732 | G24: =VLOOKUP($C24,'RECAP SECT'!$G$6:$CU$253,49,FALSE) -> 336.09 | H24: =VLOOKUP($C24,'RECAP SECT'!$G$6:$CU$253,50,FALSE) -> 38% | I24: =VLOOKUP($C24,'RECAP SECT'!$G$6:$CU$253,51,FALSE) -> 6 | J24: =VLOOKUP($C24,'RECAP SECT'!$G$6:$CU$253,52,FALSE) -> 3,337 | K24: =VLOOKUP($C24,'RECAP SECT'!$G$6:$CU$253,53,FALSE) -> 56.83 | L24: =VLOOKUP($C24,'RECAP SECT'!$G$6:$CU$253,54,FALSE) -> 4% | M24: =VLOOKUP($C24,'RECAP SECT'!$G$6:$CU$253,55,FALSE) -> 3 | N24: =VLOOKUP($C24,'RECAP SECT'!$G$6:$CU$253,56,FALSE) -> 1,478 | O24: =VLOOKUP($C24,'RECAP SECT'!$G$6:$CU$253,57,FALSE) -> 25.17 | P24: =VLOOKUP($C24,'RECAP SECT'!$G$6:$CU$253,58,FALSE) -> 35% | Q24: =VLOOKUP($C24,'RECAP SECT'!$G$6:$CU$253,59,FALSE) -> 7 | R24: =VLOOKUP($C24,'RECAP SECT'!$G$6:$CU$253,60,FALSE) -> 26% | S24: =VLOOKUP($C24,'RECAP SECT'!$G$6:$CU$253,61,FALSE) -> 21% | T24: =VLOOKUP($C24,'RECAP SECT'!$G$6:$CU$253,62,FALSE) -> 6
A25: 160 | B25: MOSELLE | C25: 44 | D25: MOSELLE NORD | E25: =VLOOKUP($C25,'RECAP SECT'!$G$6:$CU$253,3,FALSE) -> 56.2 | F25: =VLOOKUP($C25,'RECAP SECT'!$G$6:$CU$253,48,FALSE) -> 29,085 | G25: =VLOOKUP($C25,'RECAP SECT'!$G$6:$CU$253,49,FALSE) -> 517.90 | H25: =VLOOKUP($C25,'RECAP SECT'!$G$6:$CU$253,50,FALSE) -> 4% | I25: =VLOOKUP($C25,'RECAP SECT'!$G$6:$CU$253,51,FALSE) -> 2 | J25: =VLOOKUP($C25,'RECAP SECT'!$G$6:$CU$253,52,FALSE) -> 3,309 | K25: =VLOOKUP($C25,'RECAP SECT'!$G$6:$CU$253,53,FALSE) -> 58.93 | L25: =VLOOKUP($C25,'RECAP SECT'!$G$6:$CU$253,54,FALSE) -> 0% | M25: =VLOOKUP($C25,'RECAP SECT'!$G$6:$CU$253,55,FALSE) -> 1 | N25: =VLOOKUP($C25,'RECAP SECT'!$G$6:$CU$253,56,FALSE) -> 1,820 | O25: =VLOOKUP($C25,'RECAP SECT'!$G$6:$CU$253,57,FALSE) -> 32.41 | P25: =VLOOKUP($C25,'RECAP SECT'!$G$6:$CU$253,58,FALSE) -> 16% | Q25: =VLOOKUP($C25,'RECAP SECT'!$G$6:$CU$253,59,FALSE) -> 2 | R25: =VLOOKUP($C25,'RECAP SECT'!$G$6:$CU$253,60,FALSE) -> 8% | S25: =VLOOKUP($C25,'RECAP SECT'!$G$6:$CU$253,61,FALSE) -> 3% | T25: =VLOOKUP($C25,'RECAP SECT'!$G$6:$CU$253,62,FALSE) -> 2
A26: 80 | B26: VOSGES | C26: 57 | D26: EPINAL | E26: =VLOOKUP($C26,'RECAP SECT'!$G$6:$CU$253,3,FALSE) -> 52.9 | F26: =VLOOKUP($C26,'RECAP SECT'!$G$6:$CU$253,48,FALSE) -> 11,887 | G26: =VLOOKUP($C26,'RECAP SECT'!$G$6:$CU$253,49,FALSE) -> 224.79 | H26: =VLOOKUP($C26,'RECAP SECT'!$G$6:$CU$253,50,FALSE) -> 59% | I26: =VLOOKUP($C26,'RECAP SECT'!$G$6:$CU$253,51,FALSE) -> 11 | J26: =VLOOKUP($C26,'RECAP SECT'!$G$6:$CU$253,52,FALSE) -> 2,292 | K26: =VLOOKUP($C26,'RECAP SECT'!$G$6:$CU$253,53,FALSE) -> 43.34 | L26: =VLOOKUP($C26,'RECAP SECT'!$G$6:$CU$253,54,FALSE) -> 26% | M26: =VLOOKUP($C26,'RECAP SECT'!$G$6:$CU$253,55,FALSE) -> 15 | N26: =VLOOKUP($C26,'RECAP SECT'!$G$6:$CU$253,56,FALSE) -> 1,211 | O26: =VLOOKUP($C26,'RECAP SECT'!$G$6:$CU$253,57,FALSE) -> 22.90 | P26: =VLOOKUP($C26,'RECAP SECT'!$G$6:$CU$253,58,FALSE) -> 41% | Q26: =VLOOKUP($C26,'RECAP SECT'!$G$6:$CU$253,59,FALSE) -> 10 | R26: =VLOOKUP($C26,'RECAP SECT'!$G$6:$CU$253,60,FALSE) -> 42% | S26: =VLOOKUP($C26,'RECAP SECT'!$G$6:$CU$253,61,FALSE) -> 37% | T26: =VLOOKUP($C26,'RECAP SECT'!$G$6:$CU$253,62,FALSE) -> 13
A27: 80 | B27: VOSGES | C27: 55 | D27: SAINT DIE | E27: =VLOOKUP($C27,'RECAP SECT'!$G$6:$CU$253,3,FALSE) -> 40.3 | F27: =VLOOKUP($C27,'RECAP SECT'!$G$6:$CU$253,48,FALSE) -> 7,912 | G27: =VLOOKUP($C27,'RECAP SECT'!$G$6:$CU$253,49,FALSE) -> 196.58 | H27: =VLOOKUP($C27,'RECAP SECT'!$G$6:$CU$253,50,FALSE) -> 64% | I27: =VLOOKUP($C27,'RECAP SECT'!$G$6:$CU$253,51,FALSE) -> 16 | J27: =VLOOKUP($C27,'RECAP SECT'!$G$6:$CU$253,52,FALSE) -> 1,996 | K27: =VLOOKUP($C27,'RECAP SECT'!$G$6:$CU$253,53,FALSE) -> 49.59 | L27: =VLOOKUP($C27,'RECAP SECT'!$G$6:$CU$253,54,FALSE) -> 16% | M27: =VLOOKUP($C27,'RECAP SECT'!$G$6:$CU$253,55,FALSE) -> 9 | N27: =VLOOKUP($C27,'RECAP SECT'!$G$6:$CU$253,56,FALSE) -> 870 | O27: =VLOOKUP($C27,'RECAP SECT'!$G$6:$CU$253,57,FALSE) -> 21.61 | P27: =VLOOKUP($C27,'RECAP SECT'!$G$6:$CU$253,58,FALSE) -> 44% | Q27: =VLOOKUP($C27,'RECAP SECT'!$G$6:$CU$253,59,FALSE) -> 13 | R27: =VLOOKUP($C27,'RECAP SECT'!$G$6:$CU$253,60,FALSE) -> 42% | S27: =VLOOKUP($C27,'RECAP SECT'!$G$6:$CU$253,61,FALSE) -> 36% | T27: =VLOOKUP($C27,'RECAP SECT'!$G$6:$CU$253,62,FALSE) -> 12
A28: Total CEGEE Directions Régionales | E28: =SUM(E10:E27) -> 950

Sheet SE_IARD
B1: Accueil | F1: BAROMETRE BDD - TERRITOIRES
F2: IARD ET PREVOYANCE
F3: =ACCUEIL!F7 -> 2022-09-18
F7: Ventes Nettes produits pondérés | J7: Ventes sur client non détenteur de l’univers | N7: Total IARD Prévoyance
F8: =DATEMAJ!C23 -> au 18/09 | H8: coef | I8: ='RECAP DIRCOM'!BX4 -> 12% | J8: =DATEMAJ!C24 -> au 18/09 | L8: coef | M8: ='RECAP DIRCOM'!CB4 -> 8% | O8: coef | P8: ='RECAP DIRCOM'!CE4 -> 20%
B9: Direction | C9: eds | D9: Territoire | E9: ="ETP perf "&DATEMAJ!$C$28 -> ETP perf 18-sept | F9: VN | G9: VN / ETP | H9: % Ecart au 1er | I9: Rang | J9: VB | K9: VB / ETP | L9: % Ecart au 1er | M9: Rang | N9: Moyenne ecart au 1er | O9: % Ecart au 1er | P9: Rang CEGEE
A10: 50 | B10: AUBE HAUTE MARNE | C10: 21 | D10: CHAUMONT | E10: =VLOOKUP($C10,'RECAP SECT'!$G$6:$CU$253,3,FALSE) -> 33.6 | F10: =VLOOKUP($C10,'RECAP SECT'!$G$6:$CU$253,67,FALSE) -> 4,926 | G10: =VLOOKUP($C10,'RECAP SECT'!$G$6:$CU$253,68,FALSE) -> 146.43 | H10: =VLOOKUP($C10,'RECAP SECT'!$G$6:$CU$253,69,FALSE) -> 18% | I10: =VLOOKUP($C10,'RECAP SECT'!$G$6:$CU$253,70,FALSE) -> 6 | J10: =VLOOKUP($C10,'RECAP SECT'!$G$6:$CU$253,71,FALSE) -> 1,252 | K10: =VLOOKUP($C10,'RECAP SECT'!$G$6:$CU$253,72,FALSE) -> 37.22 | L10: =VLOOKUP($C10,'RECAP SECT'!$G$6:$CU$253,73,FALSE) -> 27% | M10: =VLOOKUP($C10,'RECAP SECT'!$G$6:$CU$253,74,FALSE) -> 10 | N10: =VLOOKUP($C10,'RECAP SECT'!$G$6:$CU$253,75,FALSE) -> 22% | O10: =VLOOKUP($C10,'RECAP SECT'!$G$6:$CU$253,76,FALSE) -> 20% | P10: =VLOOKUP($C10,'RECAP SECT'!$G$6:$CU$253,77,FALSE) -> 8
A11: 50 | B11: AUBE HAUTE MARNE | C11: 14 | D11: TROYES | E11: =VLOOKUP($C11,'RECAP SECT'!$G$6:$CU$253,3,FALSE) -> 54.2 | F11: =VLOOKUP($C11,'RECAP SECT'!$G$6:$CU$253,67,FALSE) -> 4,353 | G11: =VLOOKUP($C11,'RECAP SECT'!$G$6:$CU$253,68,FALSE) -> 80.34 | H11: =VLOOKUP($C11,'RECAP SECT'!$G$6:$CU$253,69,FALSE) -> 55% | I11: =VLOOKUP($C11,'RECAP SECT'!$G$6:$CU$253,70,FALSE) -> 14 | J11: =VLOOKUP($C11,'RECAP SECT'!$G$6:$CU$253,71,FALSE) -> 1,907 | K11: =VLOOKUP($C11,'RECAP SECT'!$G$6:$CU$253,72,FALSE) -> 35.20 | L11: =VLOOKUP($C11,'RECAP SECT'!$G$6:$CU$253,73,FALSE) -> 31% | M11: =VLOOKUP($C11,'RECAP SECT'!$G$6:$CU$253,74,FALSE) -> 12 | N11: =VLOOKUP($C11,'RECAP SECT'!$G$6:$CU$253,75,FALSE) -> 45% | O11: =VLOOKUP($C11,'RECAP SECT'!$G$6:$CU$253,76,FALSE) -> 44% | P11: =VLOOKUP($C11,'RECAP SECT'!$G$6:$CU$253,77,FALSE) -> 13
A12: 262 | B12: BAS-RHIN | C12: 5060 | D12: HAGUENAU | E12: =VLOOKUP($C12,'RECAP SECT'!$G$6:$CU$253,3,FALSE) -> 55.3 | F12: =VLOOKUP($C12,'RECAP SECT'!$G$6:$CU$253,67,FALSE) -> 4,248 | G12: =VLOOKUP($C12,'RECAP SECT'!$G$6:$CU$253,68,FALSE) -> 76.85 | H12: =VLOOKUP($C12,'RECAP SECT'!$G$6:$CU$253,69,FALSE) -> 57% | I12: =VLOOKUP($C12,'RECAP SECT'!$G$6:$CU$253,70,FALSE) -> 16 | J12: =VLOOKUP($C12,'RECAP SECT'!$G$6:$CU$253,71,FALSE) -> 1,803 | K12: =VLOOKUP($C12,'RECAP SECT'!$G$6:$CU$253,72,FALSE) -> 32.62 | L12: =VLOOKUP($C12,'RECAP SECT'!$G$6:$CU$253,73,FALSE) -> 36% | M12: =VLOOKUP($C12,'RECAP SECT'!$G$6:$CU$253,74,FALSE) -> 15 | N12: =VLOOKUP($C12,'RECAP SECT'!$G$6:$CU$253,75,FALSE) -> 49% | O12: =VLOOKUP($C12,'RECAP SECT'!$G$6:$CU$253,76,FALSE) -> 47% | P12: =VLOOKUP($C12,'RECAP SECT'!$G$6:$CU$253,77,FALSE) -> 16
A13: 262 | B13: BAS-RHIN | C13: 5101 | D13: SELESTAT | E13: =VLOOKUP($C13,'RECAP SECT'!$G$6:$CU$253,3,FALSE) -> 51.3 | F13: =VLOOKUP($C13,'RECAP SECT'!$G$6:$CU$253,67,FALSE) -> 3,982 | G13: =VLOOKUP($C13,'RECAP SECT'!$G$6:$CU$253,68,FALSE) -> 77.58 | H13: =VLOOKUP($C13,'RECAP SECT'!$G$6:$CU$253,69,FALSE) -> 57% | I13: =VLOOKUP($C13,'RECAP SECT'!$G$6:$CU$253,70,FALSE) -> 15 | J13: =VLOOKUP($C13,'RECAP SECT'!$G$6:$CU$253,71,FALSE) -> 1,688 | K13: =VLOOKUP($C13,'RECAP SECT'!$G$6:$CU$253,72,FALSE) -> 32.89 | L13: =VLOOKUP($C13,'RECAP SECT'!$G$6:$CU$253,73,FALSE) -> 35% | M13: =VLOOKUP($C13,'RECAP SECT'!$G$6:$CU$253,74,FALSE) -> 14 | N13: =VLOOKUP($C13,'RECAP SECT'!$G$6:$CU$253,75,FALSE) -> 48% | O13: =VLOOKUP($C13,'RECAP SECT'!$G$6:$CU$253,76,FALSE) -> 47% | P13: =VLOOKUP($C13,'RECAP SECT'!$G$6:$CU$253,77,FALSE) -> 14
A14: 262 | B14: BAS-RHIN | C14: 5006 | D14: STRASBOURG | E14: =VLOOKUP($C14,'RECAP SECT'!$G$6:$CU$253,3,FALSE) -> 65.5 | F14: =VLOOKUP($C14,'RECAP SECT'!$G$6:$CU$253,67,FALSE) -> 8,101 | G14: =VLOOKUP($C14,'RECAP SECT'!$G$6:$CU$253,68,FALSE) -> 123.77 | H14: =VLOOKUP($C14,'RECAP SECT'!$G$6:$CU$253,69,FALSE) -> 31% | I14: =VLOOKUP($C14,'RECAP SECT'!$G$6:$CU$253,70,FALSE) -> 8 | J14: =VLOOKUP($C14,'RECAP SECT'!$G$6:$CU$253,71,FALSE) -> 3,163 | K14: =VLOOKUP($C14,'RECAP SECT'!$G$6:$CU$253,72,FALSE) -> 48.33 | L14: =VLOOKUP($C14,'RECAP SECT'!$G$6:$CU$253,73,FALSE) -> 5% | M14: =VLOOKUP($C14,'RECAP SECT'!$G$6:$CU$253,74,FALSE) -> 3 | N14: =VLOOKUP($C14,'RECAP SECT'!$G$6:$CU$253,75,FALSE) -> 20% | O14: =VLOOKUP($C14,'RECAP SECT'!$G$6:$CU$253,76,FALSE) -> 19% | P14: =VLOOKUP($C14,'RECAP SECT'!$G$6:$CU$253,77,FALSE) -> 6
A15: 264 | B15: HAUT-RHIN | C15: 5130 | D15: COLMAR | E15: =VLOOKUP($C15,'RECAP SECT'!$G$6:$CU$253,3,FALSE) -> 46.6 | F15: =VLOOKUP($C15,'RECAP SECT'!$G$6:$CU$253,67,FALSE) -> 2,567 | G15: =VLOOKUP($C15,'RECAP SECT'!$G$6:$CU$253,68,FALSE) -> 55.04 | H15: =VLOOKUP($C15,'RECAP SECT'!$G$6:$CU$253,69,FALSE) -> 69% | I15: =VLOOKUP($C15,'RECAP SECT'!$G$6:$CU$253,70,FALSE) -> 17 | J15: =VLOOKUP($C15,'RECAP SECT'!$G$6:$CU$253,71,FALSE) -> 1,451 | K15: =VLOOKUP($C15,'RECAP SECT'!$G$6:$CU$253,72,FALSE) -> 31.11 | L15: =VLOOKUP($C15,'RECAP SECT'!$G$6:$CU$253,73,FALSE) -> 39% | M15: =VLOOKUP($C15,'RECAP SECT'!$G$6:$CU$253,74,FALSE) -> 18 | N15: =VLOOKUP($C15,'RECAP SECT'!$G$6:$CU$253,75,FALSE) -> 57% | O15: =VLOOKUP($C15,'RECAP SECT'!$G$6:$CU$253,76,FALSE) -> 56% | P15: =VLOOKUP($C15,'RECAP SECT'!$G$6:$CU$253,77,FALSE) -> 17
A16: 264 | B16: HAUT-RHIN | C16: 5169 | D16: MULHOUSE | E16: =VLOOKUP($C16,'RECAP SECT'!$G$6:$CU$253,3,FALSE) -> 46.3 | F16: =VLOOKUP($C16,'RECAP SECT'!$G$6:$CU$253,67,FALSE) -> 491 | G16: =VLOOKUP($C16,'RECAP SECT'!$G$6:$CU$253,68,FALSE) -> 10.60 | H16: =VLOOKUP($C16,'RECAP SECT'!$G$6:$CU$253,69,FALSE) -> 94% | I16: =VLOOKUP($C16,'RECAP SECT'!$G$6:$CU$253,70,FALSE) -> 18 | J16: =VLOOKUP($C16,'RECAP SECT'!$G$6:$CU$253,71,FALSE) -> 1,485 | K16: =VLOOKUP($C16,'RECAP SECT'!$G$6:$CU$253,72,FALSE) -> 32.05 | L16: =VLOOKUP($C16,'RECAP SECT'!$G$6:$CU$253,73,FALSE) -> 37% | M16: =VLOOKUP($C16,'RECAP SECT'!$G$6:$CU$253,74,FALSE) -> 16 | N16: =VLOOKUP($C16,'RECAP SECT'!$G$6:$CU$253,75,FALSE) -> 71% | O16: =VLOOKUP($C16,'RECAP SECT'!$G$6:$CU$253,76,FALSE) -> 70% | P16: =VLOOKUP($C16,'RECAP SECT'!$G$6:$CU$253,77,FALSE) -> 18
A17: 30 | B17: MARNE-ARDENNES | C17: 6 | D17: CHALONS EN CHAMPAGNE | E17: =VLOOKUP($C17,'RECAP SECT'!$G$6:$CU$253,3,FALSE) -> 37.8 | F17: =VLOOKUP($C17,'RECAP SECT'!$G$6:$CU$253,67,FALSE) -> 5,748 | G17: =VLOOKUP($C17,'RECAP SECT'!$G$6:$CU$253,68,FALSE) -> 152.18 | H17: =VLOOKUP($C17,'RECAP SECT'!$G$6:$CU$253,69,FALSE) -> 15% | I17: =VLOOKUP($C17,'RECAP SECT'!$G$6:$CU$253,70,FALSE) -> 3 | J17: =VLOOKUP($C17,'RECAP SECT'!$G$6:$CU$253,71,FALSE) -> 1,641 | K17: =VLOOKUP($C17,'RECAP SECT'!$G$6:$CU$253,72,FALSE) -> 43.45 | L17: =VLOOKUP($C17,'RECAP SECT'!$G$6:$CU$253,73,FALSE) -> 14% | M17: =VLOOKUP($C17,'RECAP SECT'!$G$6:$CU$253,74,FALSE) -> 6 | N17: =VLOOKUP($C17,'RECAP SECT'!$G$6:$CU$253,75,FALSE) -> 15% | O17: =VLOOKUP($C17,'RECAP SECT'!$G$6:$CU$253,76,FALSE) -> 14% | P17: =VLOOKUP($C17,'RECAP SECT'!$G$6:$CU$253,77,FALSE) -> 3
A18: 30 | B18: MARNE-ARDENNES | C18: 2 | D18: CHARLEVILLE MEZIERES | E18: =VLOOKUP($C18,'RECAP SECT'!$G$6:$CU$253,3,FALSE) -> 48.8 | F18: =VLOOKUP($C18,'RECAP SECT'!$G$6:$CU$253,67,FALSE) -> 7,184 | G18: =VLOOKUP($C18,'RECAP SECT'!$G$6:$CU$253,68,FALSE) -> 147.27 | H18: =VLOOKUP($C18,'RECAP SECT'!$G$6:$CU$253,69,FALSE) -> 18% | I18: =VLOOKUP($C18,'RECAP SECT'!$G$6:$CU$253,70,FALSE) -> 5 | J18: =VLOOKUP($C18,'RECAP SECT'!$G$6:$CU$253,71,FALSE) -> 2,007 | K18: =VLOOKUP($C18,'RECAP SECT'!$G$6:$CU$253,72,FALSE) -> 41.14 | L18: =VLOOKUP($C18,'RECAP SECT'!$G$6:$CU$253,73,FALSE) -> 19% | M18: =VLOOKUP($C18,'RECAP SECT'!$G$6:$CU$253,74,FALSE) -> 7 | N18: =VLOOKUP($C18,'RECAP SECT'!$G$6:$CU$253,75,FALSE) -> 18% | O18: =VLOOKUP($C18,'RECAP SECT'!$G$6:$CU$253,76,FALSE) -> 17% | P18: =VLOOKUP($C18,'RECAP SECT'!$G$6:$CU$253,77,FALSE) -> 5
A19: 30 | B19: MARNE-ARDENNES | C19: 11 | D19: REIMS | E19: =VLOOKUP($C19,'RECAP SECT'!$G$6:$CU$253,3,FALSE) -> 68.0 | F19: =VLOOKUP($C19,'RECAP SECT'!$G$6:$CU$253,67,FALSE) -> 10,725 | G19: =VLOOKUP($C19,'RECAP SECT'!$G$6:$CU$253,68,FALSE) -> 157.65 | H19: =VLOOKUP($C19,'RECAP SECT'!$G$6:$CU$253,69,FALSE) -> 12% | I19: =VLOOKUP($C19,'RECAP SECT'!$G$6:$CU$253,70,FALSE) -> 2 | J19: =VLOOKUP($C19,'RECAP SECT'!$G$6:$CU$253,71,FALSE) -> 3,455 | K19: =VLOOKUP($C19,'RECAP SECT'!$G$6:$CU$253,72,FALSE) -> 50.79 | L19: =VLOOKUP($C19,'RECAP SECT'!$G$6:$CU$253,73,FALSE) -> 0% | M19: =VLOOKUP($C19,'RECAP SECT'!$G$6:$CU$253,74,FALSE) -> 1 | N19: =VLOOKUP($C19,'RECAP SECT'!$G$6:$CU$253,75,FALSE) -> 7% | O19: =VLOOKUP($C19,'RECAP SECT'!$G$6:$CU$253,76,FALSE) -> 6% | P19: =VLOOKUP($C19,'RECAP SECT'!$G$6:$CU$253,77,FALSE) -> 2
A20: 110 | B20: MEURTHE ET MOSELLE MEUSE | C20: 26 | D20: NANCY | E20: =VLOOKUP($C20,'RECAP SECT'!$G$6:$CU$253,3,FALSE) -> 54.6 | F20: =VLOOKUP($C20,'RECAP SECT'!$G$6:$CU$253,67,FALSE) -> 5,255 | G20: =VLOOKUP($C20,'RECAP SECT'!$G$6:$CU$253,68,FALSE) -> 96.17 | H20: =VLOOKUP($C20,'RECAP SECT'!$G$6:$CU$253,69,FALSE) -> 46% | I20: =VLOOKUP($C20,'RECAP SECT'!$G$6:$CU$253,70,FALSE) -> 12 | J20: =VLOOKUP($C20,'RECAP SECT'!$G$6:$CU$253,71,FALSE) -> 2,230 | K20: =VLOOKUP($C20,'RECAP SECT'!$G$6:$CU$253,72,FALSE) -> 40.81 | L20: =VLOOKUP($C20,'RECAP SECT'!$G$6:$CU$253,73,FALSE) -> 20% | M20: =VLOOKUP($C20,'RECAP SECT'!$G$6:$CU$253,74,FALSE) -> 8 | N20: =VLOOKUP($C20,'RECAP SECT'!$G$6:$CU$253,75,FALSE) -> 36% | O20: =VLOOKUP($C20,'RECAP SECT'!$G$6:$CU$253,76,FALSE) -> 34% | P20: =VLOOKUP($C20,'RECAP SECT'!$G$6:$CU$253,77,FALSE) -> 10
A21: 110 | B21: MEURTHE ET MOSELLE MEUSE | C21: 27 | D21: PONT A MOUSSON | E21: =VLOOKUP($C21,'RECAP SECT'!$G$6:$CU$253,3,FALSE) -> 59.5 | F21: =VLOOKUP($C21,'RECAP SECT'!$G$6:$CU$253,67,FALSE) -> 7,654 | G21: =VLOOKUP($C21,'RECAP SECT'!$G$6:$CU$253,68,FALSE) -> 128.70 | H21: =VLOOKUP($C21,'RECAP SECT'!$G$6:$CU$253,69,FALSE) -> 28% | I21: =VLOOKUP($C21,'RECAP SECT'!$G$6:$CU$253,70,FALSE) -> 7 | J21: =VLOOKUP($C21,'RECAP SECT'!$G$6:$CU$253,71,FALSE) -> 2,670 | K21: =VLOOKUP($C21,'RECAP SECT'!$G$6:$CU$253,72,FALSE) -> 44.90 | L21: =VLOOKUP($C21,'RECAP SECT'!$G$6:$CU$253,73,FALSE) -> 12% | M21: =VLOOKUP($C21,'RECAP SECT'!$G$6:$CU$253,74,FALSE) -> 4 | N21: =VLOOKUP($C21,'RECAP SECT'!$G$6:$CU$253,75,FALSE) -> 21% | O21: =VLOOKUP($C21,'RECAP SECT'!$G$6:$CU$253,76,FALSE) -> 20% | P21: =VLOOKUP($C21,'RECAP SECT'!$G$6:$CU$253,77,FALSE) -> 7
A22: 110 | B22: MEURTHE ET MOSELLE MEUSE | C22: 31 | D22: VERDUN | E22: =VLOOKUP($C22,'RECAP SECT'!$G$6:$CU$253,3,FALSE) -> 48.2 | F22: =VLOOKUP($C22,'RECAP SECT'!$G$6:$CU$253,67,FALSE) -> 5,069 | G22: =VLOOKUP($C22,'RECAP SECT'!$G$6:$CU$253,68,FALSE) -> 105.10 | H22: =VLOOKUP($C22,'RECAP SECT'!$G$6:$CU$253,69,FALSE) -> 41% | I22: =VLOOKUP($C22,'RECAP SECT'!$G$6:$CU$253,70,FALSE) -> 10 | J22: =VLOOKUP($C22,'RECAP SECT'!$G$6:$CU$253,71,FALSE) -> 1,780 | K22: =VLOOKUP($C22,'RECAP SECT'!$G$6:$CU$253,72,FALSE) -> 36.91 | L22: =VLOOKUP($C22,'RECAP SECT'!$G$6:$CU$253,73,FALSE) -> 27% | M22: =VLOOKUP($C22,'RECAP SECT'!$G$6:$CU$253,74,FALSE) -> 11 | N22: =VLOOKUP($C22,'RECAP SECT'!$G$6:$CU$253,75,FALSE) -> 36% | O22: =VLOOKUP($C22,'RECAP SECT'!$G$6:$CU$253,76,FALSE) -> 35% | P22: =VLOOKUP($C22,'RECAP SECT'!$G$6:$CU$253,77,FALSE) -> 11
A23: 160 | B23: MOSELLE | C23: 45 | D23: METZ | E23: =VLOOKUP($C23,'RECAP SECT'!$G$6:$CU$253,3,FALSE) -> 72.7 | F23: =VLOOKUP($C23,'RECAP SECT'!$G$6:$CU$253,67,FALSE) -> 8,033 | G23: =VLOOKUP($C23,'RECAP SECT'!$G$6:$CU$253,68,FALSE) -> 110.50 | H23: =VLOOKUP($C23,'RECAP SECT'!$G$6:$CU$253,69,FALSE) -> 38% | I23: =VLOOKUP($C23,'RECAP SECT'!$G$6:$CU$253,70,FALSE) -> 9 | J23: =VLOOKUP($C23,'RECAP SECT'!$G$6:$CU$253,71,FALSE) -> 2,794 | K23: =VLOOKUP($C23,'RECAP SECT'!$G$6:$CU$253,72,FALSE) -> 38.43 | L23: =VLOOKUP($C23,'RECAP SECT'!$G$6:$CU$253,73,FALSE) -> 24% | M23: =VLOOKUP($C23,'RECAP SECT'!$G$6:$CU$253,74,FALSE) -> 9 | N23: =VLOOKUP($C23,'RECAP SECT'!$G$6:$CU$253,75,FALSE) -> 33% | O23: =VLOOKUP($C23,'RECAP SECT'!$G$6:$CU$253,76,FALSE) -> 32% | P23: =VLOOKUP($C23,'RECAP SECT'!$G$6:$CU$253,77,FALSE) -> 9
A24: 160 | B24: MOSELLE | C24: 42 | D24: MOSELLE EST | E24: =VLOOKUP($C24,'RECAP SECT'!$G$6:$CU$253,3,FALSE) -> 58.7 | F24: =VLOOKUP($C24,'RECAP SECT'!$G$6:$CU$253,67,FALSE) -> 8,670 | G24: =VLOOKUP($C24,'RECAP SECT'!$G$6:$CU$253,68,FALSE) -> 147.68 | H24: =VLOOKUP($C24,'RECAP SECT'!$G$6:$CU$253,69,FALSE) -> 17% | I24: =VLOOKUP($C24,'RECAP SECT'!$G$6:$CU$253,70,FALSE) -> 4 | J24: =VLOOKUP($C24,'RECAP SECT'!$G$6:$CU$253,71,FALSE) -> 2,567 | K24: =VLOOKUP($C24,'RECAP SECT'!$G$6:$CU$253,72,FALSE) -> 43.72 | L24: =VLOOKUP($C24,'RECAP SECT'!$G$6:$CU$253,73,FALSE) -> 14% | M24: =VLOOKUP($C24,'RECAP SECT'!$G$6:$CU$253,74,FALSE) -> 5 | N24: =VLOOKUP($C24,'RECAP SECT'!$G$6:$CU$253,75,FALSE) -> 16% | O24: =VLOOKUP($C24,'RECAP SECT'!$G$6:$CU$253,76,FALSE) -> 15% | P24: =VLOOKUP($C24,'RECAP SECT'!$G$6:$CU$253,77,FALSE) -> 4
A25: 160 | B25: MOSELLE | C25: 44 | D25: MOSELLE NORD | E25: =VLOOKUP($C25,'RECAP SECT'!$G$6:$CU$253,3,FALSE) -> 56.2 | F25: =VLOOKUP($C25,'RECAP SECT'!$G$6:$CU$253,67,FALSE) -> 10,037 | G25: =VLOOKUP($C25,'RECAP SECT'!$G$6:$CU$253,68,FALSE) -> 178.72 | H25: =VLOOKUP($C25,'RECAP SECT'!$G$6:$CU$253,69,FALSE) -> 0% | I25: =VLOOKUP($C25,'RECAP SECT'!$G$6:$CU$253,70,FALSE) -> 1 | J25: =VLOOKUP($C25,'RECAP SECT'!$G$6:$CU$253,71,FALSE) -> 2,774 | K25: =VLOOKUP($C25,'RECAP SECT'!$G$6:$CU$253,72,FALSE) -> 49.39 | L25: =VLOOKUP($C25,'RECAP SECT'!$G$6:$CU$253,73,FALSE) -> 3% | M25: =VLOOKUP($C25,'RECAP SECT'!$G$6:$CU$253,74,FALSE) -> 2 | N25: =VLOOKUP($C25,'RECAP SECT'!$G$6:$CU$253,75,FALSE) -> 1% | O25: =VLOOKUP($C25,'RECAP SECT'!$G$6:$CU$253,76,FALSE) -> 0% | P25: =VLOOKUP($C25,'RECAP SECT'!$G$6:$CU$253,77,FALSE) -> 1
A26: 80 | B26: VOSGES | C26: 57 | D26: EPINAL | E26: =VLOOKUP($C26,'RECAP SECT'!$G$6:$CU$253,3,FALSE) -> 52.9 | F26: =VLOOKUP($C26,'RECAP SECT'!$G$6:$CU$253,67,FALSE) -> 5,182 | G26: =VLOOKUP($C26,'RECAP SECT'!$G$6:$CU$253,68,FALSE) -> 98.00 | H26: =VLOOKUP($C26,'RECAP SECT'!$G$6:$CU$253,69,FALSE) -> 45% | I26: =VLOOKUP($C26,'RECAP SECT'!$G$6:$CU$253,70,FALSE) -> 11 | J26: =VLOOKUP($C26,'RECAP SECT'!$G$6:$CU$253,71,FALSE) -> 1,812 | K26: =VLOOKUP($C26,'RECAP SECT'!$G$6:$CU$253,72,FALSE) -> 34.27 | L26: =VLOOKUP($C26,'RECAP SECT'!$G$6:$CU$253,73,FALSE) -> 33% | M26: =VLOOKUP($C26,'RECAP SECT'!$G$6:$CU$253,74,FALSE) -> 13 | N26: =VLOOKUP($C26,'RECAP SECT'!$G$6:$CU$253,75,FALSE) -> 40% | O26: =VLOOKUP($C26,'RECAP SECT'!$G$6:$CU$253,76,FALSE) -> 39% | P26: =VLOOKUP($C26,'RECAP SECT'!$G$6:$CU$253,77,FALSE) -> 12
A27: 80 | B27: VOSGES | C27: 55 | D27: SAINT DIE | E27: =VLOOKUP($C27,'RECAP SECT'!$G$6:$CU$253,3,FALSE) -> 40.3 | F27: =VLOOKUP($C27,'RECAP SECT'!$G$6:$CU$253,67,FALSE) -> 3,239 | G27: =VLOOKUP($C27,'RECAP SECT'!$G$6:$CU$253,68,FALSE) -> 80.47 | H27: =VLOOKUP($C27,'RECAP SECT'!$G$6:$CU$253,69,FALSE) -> 55% | I27: =VLOOKUP($C27,'RECAP SECT'!$G$6:$CU$253,70,FALSE) -> 13 | J27: =VLOOKUP($C27,'RECAP SECT'!$G$6:$CU$253,71,FALSE) -> 1,260 | K27: =VLOOKUP($C27,'RECAP SECT'!$G$6:$CU$253,72,FALSE) -> 31.30 | L27: =VLOOKUP($C27,'RECAP SECT'!$G$6:$CU$253,73,FALSE) -> 38% | M27: =VLOOKUP($C27,'RECAP SECT'!$G$6:$CU$253,74,FALSE) -> 17 | N27: =VLOOKUP($C27,'RECAP SECT'!$G$6:$CU$253,75,FALSE) -> 48% | O27: =VLOOKUP($C27,'RECAP SECT'!$G$6:$CU$253,76,FALSE) -> 47% | P27: =VLOOKUP($C27,'RECAP SECT'!$G$6:$CU$253,77,FALSE) -> 15
A28: Total CEGEE Directions Régionales | E28: =SUM(E10:E27) -> 950

Sheet SE_SATISFACTION
B1: Accueil | F1: BAROMETRE BDD - TERRITOIRES
F2: SATISFACTION
F3: =ACCUEIL!F7 -> 2022-09-18
F7: NPS à froid (SAE) | I7: NPS à chaud (QHD) | L7: Total Satisfaction Clients
F8: =DATEMAJ!E4 -> au 31/07 | G8: coef | H8: ='RECAP DIRCOM'!M4 -> 10% | I8: =DATEMAJ!C5 -> au 31/07 | J8: coef | K8: ='RECAP DIRCOM'!P4 -> 10% | M8: coef | N8: ='RECAP DIRCOM'!S4 -> 20%
B9: Direction | C9: eds | D9: Territoire | E9: ="ETP perf "&DATEMAJ!$C$28 -> ETP perf 18-sept | G9: % Ecart au 1er | H9: Rang | J9: % Ecart au 1er | K9: Rang | L9: Moyenne ecart au 1er | M9: % Ecart au 1er | N9: Rang CEGEE
A10: 50 | B10: AUBE HAUTE MARNE | C10: 21 | D10: CHAUMONT | E10: =VLOOKUP($C10,'RECAP SECT'!$G$6:$CU$253,3,FALSE) -> 33.6 | F10: =VLOOKUP($C10,'RECAP SECT'!$G$6:$CU$253,5,FALSE) -> 19 | G10: =VLOOKUP($C10,'RECAP SECT'!$G$6:$CU$253,6,FALSE) -> 25% | H10: =VLOOKUP($C10,'RECAP SECT'!$G$6:$CU$253,7,FALSE) -> 6 | I10: =VLOOKUP($C10,'RECAP SECT'!$G$6:$CU$253,8,FALSE) -> 65% | J10: =VLOOKUP($C10,'RECAP SECT'!$G$6:$CU$253,9,FALSE) -> 11% | K10: =VLOOKUP($C10,'RECAP SECT'!$G$6:$CU$253,10,FALSE) -> 8 | L10: =VLOOKUP($C10,'RECAP SECT'!$G$6:$CU$253,11,FALSE) -> 18% | M10: =VLOOKUP($C10,'RECAP SECT'!$G$6:$CU$253,12,FALSE) -> 15% | N10: =VLOOKUP($C10,'RECAP SECT'!$G$6:$CU$253,13,FALSE) -> 6
A11: 50 | B11: AUBE HAUTE MARNE | C11: 14 | D11: TROYES | E11: =VLOOKUP($C11,'RECAP SECT'!$G$6:$CU$253,3,FALSE) -> 54.2 | F11: =VLOOKUP($C11,'RECAP SECT'!$G$6:$CU$253,5,FALSE) -> 0 | G11: =VLOOKUP($C11,'RECAP SECT'!$G$6:$CU$253,6,FALSE) -> 100% | H11: =VLOOKUP($C11,'RECAP SECT'!$G$6:$CU$253,7,FALSE) -> 18 | I11: =VLOOKUP($C11,'RECAP SECT'!$G$6:$CU$253,8,FALSE) -> 48% | J11: =VLOOKUP($C11,'RECAP SECT'!$G$6:$CU$253,9,FALSE) -> 35% | K11: =VLOOKUP($C11,'RECAP SECT'!$G$6:$CU$253,10,FALSE) -> 17 | L11: =VLOOKUP($C11,'RECAP SECT'!$G$6:$CU$253,11,FALSE) -> 67% | M11: =VLOOKUP($C11,'RECAP SECT'!$G$6:$CU$253,12,FALSE) -> 64% | N11: =VLOOKUP($C11,'RECAP SECT'!$G$6:$CU$253,13,FALSE) -> 18
A12: 262 | B12: BAS-RHIN | C12: 5060 | D12: HAGUENAU | E12: =VLOOKUP($C12,'RECAP SECT'!$G$6:$CU$253,3,FALSE) -> 55.3 | F12: =VLOOKUP($C12,'RECAP SECT'!$G$6:$CU$253,5,FALSE) -> 10 | G12: =VLOOKUP($C12,'RECAP SECT'!$G$6:$CU$253,6,FALSE) -> 60% | H12: =VLOOKUP($C12,'RECAP SECT'!$G$6:$CU$253,7,FALSE) -> 11 | I12: =VLOOKUP($C12,'RECAP SECT'!$G$6:$CU$253,8,FALSE) -> 62% | J12: =VLOOKUP($C12,'RECAP SECT'!$G$6:$CU$253,9,FALSE) -> 17% | K12: =VLOOKUP($C12,'RECAP SECT'!$G$6:$CU$253,10,FALSE) -> 11 | L12: =VLOOKUP($C12,'RECAP SECT'!$G$6:$CU$253,11,FALSE) -> 38% | M12: =VLOOKUP($C12,'RECAP SECT'!$G$6:$CU$253,12,FALSE) -> 35% | N12: =VLOOKUP($C12,'RECAP SECT'!$G$6:$CU$253,13,FALSE) -> 12
A13: 262 | B13: BAS-RHIN | C13: 5101 | D13: SELESTAT | E13: =VLOOKUP($C13,'RECAP SECT'!$G$6:$CU$253,3,FALSE) -> 51.3 | F13: =VLOOKUP($C13,'RECAP SECT'!$G$6:$CU$253,5,FALSE) -> 1.75 | G13: =VLOOKUP($C13,'RECAP SECT'!$G$6:$CU$253,6,FALSE) -> 93% | H13: =VLOOKUP($C13,'RECAP SECT'!$G$6:$CU$253,7,FALSE) -> 17 | I13: =VLOOKUP($C13,'RECAP SECT'!$G$6:$CU$253,8,FALSE) -> 59% | J13: =VLOOKUP($C13,'RECAP SECT'!$G$6:$CU$253,9,FALSE) -> 19% | K13: =VLOOKUP($C13,'RECAP SECT'!$G$6:$CU$253,10,FALSE) -> 14 | L13: =VLOOKUP($C13,'RECAP SECT'!$G$6:$CU$253,11,FALSE) -> 56% | M13: =VLOOKUP($C13,'RECAP SECT'!$G$6:$CU$253,12,FALSE) -> 53% | N13: =VLOOKUP($C13,'RECAP SECT'!$G$6:$CU$253,13,FALSE) -> 14
A14: 262 | B14: BAS-RHIN | C14: 5006 | D14: STRASBOURG | E14: =VLOOKUP($C14,'RECAP SECT'!$G$6:$CU$253,3,FALSE) -> 65.5 | F14: =VLOOKUP($C14,'RECAP SECT'!$G$6:$CU$253,5,FALSE) -> 9.75 | G14: =VLOOKUP($C14,'RECAP SECT'!$G$6:$CU$253,6,FALSE) -> 61% | H14: =VLOOKUP($C14,'RECAP SECT'!$G$6:$CU$253,7,FALSE) -> 12 | I14: =VLOOKUP($C14,'RECAP SECT'!$G$6:$CU$253,8,FALSE) -> 66% | J14: =VLOOKUP($C14,'RECAP SECT'!$G$6:$CU$253,9,FALSE) -> 10% | K14: =VLOOKUP($C14,'RECAP SECT'!$G$6:$CU$253,10,FALSE) -> 7 | L14: =VLOOKUP($C14,'RECAP SECT'!$G$6:$CU$253,11,FALSE) -> 36% | M14: =VLOOKUP($C14,'RECAP SECT'!$G$6:$CU$253,12,FALSE) -> 33% | N14: =VLOOKUP($C14,'RECAP SECT'!$G$6:$CU$253,13,FALSE) -> 11
A15: 264 | B15: HAUT-RHIN | C15: 5130 | D15: COLMAR | E15: =VLOOKUP($C15,'RECAP SECT'!$G$6:$CU$253,3,FALSE) -> 46.6 | F15: =VLOOKUP($C15,'RECAP SECT'!$G$6:$CU$253,5,FALSE) -> 2.5 | G15: =VLOOKUP($C15,'RECAP SECT'!$G$6:$CU$253,6,FALSE) -> 90% | H15: =VLOOKUP($C15,'RECAP SECT'!$G$6:$CU$253,7,FALSE) -> 15 | I15: =VLOOKUP($C15,'RECAP SECT'!$G$6:$CU$253,8,FALSE) -> 52% | J15: =VLOOKUP($C15,'RECAP SECT'!$G$6:$CU$253,9,FALSE) -> 29% | K15: =VLOOKUP($C15,'RECAP SECT'!$G$6:$CU$253,10,FALSE) -> 16 | L15: =VLOOKUP($C15,'RECAP SECT'!$G$6:$CU$253,11,FALSE) -> 60% | M15: =VLOOKUP($C15,'RECAP SECT'!$G$6:$CU$253,12,FALSE) -> 57% | N15: =VLOOKUP($C15,'RECAP SECT'!$G$6:$CU$253,13,FALSE) -> 16
A16: 264 | B16: HAUT-RHIN | C16: 5169 | D16: MULHOUSE | E16: =VLOOKUP($C16,'RECAP SECT'!$G$6:$CU$253,3,FALSE) -> 46.3 | F16: =VLOOKUP($C16,'RECAP SECT'!$G$6:$CU$253,5,FALSE) -> 3 | G16: =VLOOKUP($C16,'RECAP SECT'!$G$6:$CU$253,6,FALSE) -> 88% | H16: =VLOOKUP($C16,'RECAP SECT'!$G$6:$CU$253,7,FALSE) -> 14 | I16: =VLOOKUP($C16,'RECAP SECT'!$G$6:$CU$253,8,FALSE) -> 46% | J16: =VLOOKUP($C16,'RECAP SECT'!$G$6:$CU$253,9,FALSE) -> 38% | K16: =VLOOKUP($C16,'RECAP SECT'!$G$6:$CU$253,10,FALSE) -> 18 | L16: =VLOOKUP($C16,'RECAP SECT'!$G$6:$CU$253,11,FALSE) -> 63% | M16: =VLOOKUP($C16,'RECAP SECT'!$G$6:$CU$253,12,FALSE) -> 60% | N16: =VLOOKUP($C16,'RECAP SECT'!$G$6:$CU$253,13,FALSE) -> 17
A17: 30 | B17: MARNE-ARDENNES | C17: 6 | D17: CHALONS EN CHAMPAGNE | E17: =VLOOKUP($C17,'RECAP SECT'!$G$6:$CU$253,3,FALSE) -> 37.8 | F17: =VLOOKUP($C17,'RECAP SECT'!$G$6:$CU$253,5,FALSE) -> 23.75 | G17: =VLOOKUP($C17,'RECAP SECT'!$G$6:$CU$253,6,FALSE) -> 6% | H17: =VLOOKUP($C17,'RECAP SECT'!$G$6:$CU$253,7,FALSE) -> 2 | I17: =VLOOKUP($C17,'RECAP SECT'!$G$6:$CU$253,8,FALSE) -> 74% | J17: =VLOOKUP($C17,'RECAP SECT'!$G$6:$CU$253,9,FALSE) -> 0% | K17: =VLOOKUP($C17,'RECAP SECT'!$G$6:$CU$253,10,FALSE) -> 1 | L17: =VLOOKUP($C17,'RECAP SECT'!$G$6:$CU$253,11,FALSE) -> 3% | M17: =VLOOKUP($C17,'RECAP SECT'!$G$6:$CU$253,12,FALSE) -> 0% | N17: =VLOOKUP($C17,'RECAP SECT'!$G$6:$CU$253,13,FALSE) -> 1
A18: 30 | B18: MARNE-ARDENNES | C18: 2 | D18: CHARLEVILLE MEZIERES | E18: =VLOOKUP($C18,'RECAP SECT'!$G$6:$CU$253,3,FALSE) -> 48.8 | F18: =VLOOKUP($C18,'RECAP SECT'!$G$6:$CU$253,5,FALSE) -> 14.5 | G18: =VLOOKUP($C18,'RECAP SECT'!$G$6:$CU$253,6,FALSE) -> 43% | H18: =VLOOKUP($C18,'RECAP SECT'!$G$6:$CU$253,7,FALSE) -> 9 | I18: =VLOOKUP($C18,'RECAP SECT'!$G$6:$CU$253,8,FALSE) -> 66% | J18: =VLOOKUP($C18,'RECAP SECT'!$G$6:$CU$253,9,FALSE) -> 10% | K18: =VLOOKUP($C18,'RECAP SECT'!$G$6:$CU$253,10,FALSE) -> 6 | L18: =VLOOKUP($C18,'RECAP SECT'!$G$6:$CU$253,11,FALSE) -> 26% | M18: =VLOOKUP($C18,'RECAP SECT'!$G$6:$CU$253,12,FALSE) -> 23% | N18: =VLOOKUP($C18,'RECAP SECT'!$G$6:$CU$253,13,FALSE) -> 8
A19: 30 | B19: MARNE-ARDENNES | C19: 11 | D19: REIMS | E19: =VLOOKUP($C19,'RECAP SECT'!$G$6:$CU$253,3,FALSE) -> 68.0 | F19: =VLOOKUP($C19,'RECAP SECT'!$G$6:$CU$253,5,FALSE) -> 17.5 | G19: =VLOOKUP($C19,'RECAP SECT'!$G$6:$CU$253,6,FALSE) -> 31% | H19: =VLOOKUP($C19,'RECAP SECT'!$G$6:$CU$253,7,FALSE) -> 7 | I19: =VLOOKUP($C19,'RECAP SECT'!$G$6:$CU$253,8,FALSE) -> 63% | J19: =VLOOKUP($C19,'RECAP SECT'!$G$6:$CU$253,9,FALSE) -> 15% | K19: =VLOOKUP($C19,'RECAP SECT'!$G$6:$CU$253,10,FALSE) -> 10 | L19: =VLOOKUP($C19,'RECAP SECT'!$G$6:$CU$253,11,FALSE) -> 23% | M19: =VLOOKUP($C19,'RECAP SECT'!$G$6:$CU$253,12,FALSE) -> 20% | N19: =VLOOKUP($C19,'RECAP SECT'!$G$6:$CU$253,13,FALSE) -> 7
A20: 110 | B20: MEURTHE ET MOSELLE MEUSE | C20: 26 | D20: NANCY | E20: =VLOOKUP($C20,'RECAP SECT'!$G$6:$CU$253,3,FALSE) -> 54.6 | F20: =VLOOKUP($C20,'RECAP SECT'!$G$6:$CU$253,5,FALSE) -> 13.25 | G20: =VLOOKUP($C20,'RECAP SECT'!$G$6:$CU$253,6,FALSE) -> 48% | H20: =VLOOKUP($C20,'RECAP SECT'!$G$6:$CU$253,7,FALSE) -> 10 | I20: =VLOOKUP($C20,'RECAP SECT'!$G$6:$CU$253,8,FALSE) -> 63% | J20: =VLOOKUP($C20,'RECAP SECT'!$G$6:$CU$253,9,FALSE) -> 15% | K20: =VLOOKUP($C20,'RECAP SECT'!$G$6:$CU$253,10,FALSE) -> 9 | L20: =VLOOKUP($C20,'RECAP SECT'!$G$6:$CU$253,11,FALSE) -> 31% | M20: =VLOOKUP($C20,'RECAP SECT'!$G$6:$CU$253,12,FALSE) -> 28% | N20: =VLOOKUP($C20,'RECAP SECT'!$G$6:$CU$253,13,FALSE) -> 10
A21: 110 | B21: MEURTHE ET MOSELLE MEUSE | C21: 27 | D21: PONT A MOUSSON | E21: =VLOOKUP($C21,'RECAP SECT'!$G$6:$CU$253,3,FALSE) -> 59.5 | F21: =VLOOKUP($C21,'RECAP SECT'!$G$6:$CU$253,5,FALSE) -> 2.25 | G21: =VLOOKUP($C21,'RECAP SECT'!$G$6:$CU$253,6,FALSE) -> 91% | H21: =VLOOKUP($C21,'RECAP SECT'!$G$6:$CU$253,7,FALSE) -> 16 | I21: =VLOOKUP($C21,'RECAP SECT'!$G$6:$CU$253,8,FALSE) -> 55% | J21: =VLOOKUP($C21,'RECAP SECT'!$G$6:$CU$253,9,FALSE) -> 26% | K21: =VLOOKUP($C21,'RECAP SECT'!$G$6:$CU$253,10,FALSE) -> 15 | L21: =VLOOKUP($C21,'RECAP SECT'!$G$6:$CU$253,11,FALSE) -> 59% | M21: =VLOOKUP($C21,'RECAP SECT'!$G$6:$CU$253,12,FALSE) -> 56% | N21: =VLOOKUP($C21,'RECAP SECT'!$G$6:$CU$253,13,FALSE) -> 15
A22: 110 | B22: MEURTHE ET MOSELLE MEUSE | C22: 31 | D22: VERDUN | E22: =VLOOKUP($C22,'RECAP SECT'!$G$6:$CU$253,3,FALSE) -> 48.2 | F22: =VLOOKUP($C22,'RECAP SECT'!$G$6:$CU$253,5,FALSE) -> 20.75 | G22: =VLOOKUP($C22,'RECAP SECT'!$G$6:$CU$253,6,FALSE) -> 18% | H22: =VLOOKUP($C22,'RECAP SECT'!$G$6:$CU$253,7,FALSE) -> 5 | I22: =VLOOKUP($C22,'RECAP SECT'!$G$6:$CU$253,8,FALSE) -> 67% | J22: =VLOOKUP($C22,'RECAP SECT'!$G$6:$CU$253,9,FALSE) -> 9% | K22: =VLOOKUP($C22,'RECAP SECT'!$G$6:$CU$253,10,FALSE) -> 4 | L22: =VLOOKUP($C22,'RECAP SECT'!$G$6:$CU$253,11,FALSE) -> 13% | M22: =VLOOKUP($C22,'RECAP SECT'!$G$6:$CU$253,12,FALSE) -> 10% | N22: =VLOOKUP($C22,'RECAP SECT'!$G$6:$CU$253,13,FALSE) -> 5
A23: 160 | B23: MOSELLE | C23: 45 | D23: METZ | E23: =VLOOKUP($C23,'RECAP SECT'!$G$6:$CU$253,3,FALSE) -> 72.7 | F23: =VLOOKUP($C23,'RECAP SECT'!$G$6:$CU$253,5,FALSE) -> 15.25 | G23: =VLOOKUP($C23,'RECAP SECT'!$G$6:$CU$253,6,FALSE) -> 40% | H23: =VLOOKUP($C23,'RECAP SECT'!$G$6:$CU$253,7,FALSE) -> 8 | I23: =VLOOKUP($C23,'RECAP SECT'!$G$6:$CU$253,8,FALSE) -> 60% | J23: =VLOOKUP($C23,'RECAP SECT'!$G$6:$CU$253,9,FALSE) -> 19% | K23: =VLOOKUP($C23,'RECAP SECT'!$G$6:$CU$253,10,FALSE) -> 13 | L23: =VLOOKUP($C23,'RECAP SECT'!$G$6:$CU$253,11,FALSE) -> 29% | M23: =VLOOKUP($C23,'RECAP SECT'!$G$6:$CU$253,12,FALSE) -> 26% | N23: =VLOOKUP($C23,'RECAP SECT'!$G$6:$CU$253,13,FALSE) -> 9
A24: 160 | B24: MOSELLE | C24: 42 | D24: MOSELLE EST | E24: =VLOOKUP($C24,'RECAP SECT'!$G$6:$CU$253,3,FALSE) -> 58.7 | F24: =VLOOKUP($C24,'RECAP SECT'!$G$6:$CU$253,5,FALSE) -> 21.25 | G24: =VLOOKUP($C24,'RECAP SECT'!$G$6:$CU$253,6,FALSE) -> 16% | H24: =VLOOKUP($C24,'RECAP SECT'!$G$6:$CU$253,7,FALSE) -> 4 | I24: =VLOOKUP($C24,'RECAP SECT'!$G$6:$CU$253,8,FALSE) -> 67% | J24: =VLOOKUP($C24,'RECAP SECT'!$G$6:$CU$253,9,FALSE) -> 9% | K24: =VLOOKUP($C24,'RECAP SECT'!$G$6:$CU$253,10,FALSE) -> 5 | L24: =VLOOKUP($C24,'RECAP SECT'!$G$6:$CU$253,11,FALSE) -> 12% | M24: =VLOOKUP($C24,'RECAP SECT'!$G$6:$CU$253,12,FALSE) -> 10% | N24: =VLOOKUP($C24,'RECAP SECT'!$G$6:$CU$253,13,FALSE) -> 4
A25: 160 | B25: MOSELLE | C25: 44 | D25: MOSELLE NORD | E25: =VLOOKUP($C25,'RECAP SECT'!$G$6:$CU$253,3,FALSE) -> 56.2 | F25: =VLOOKUP($C25,'RECAP SECT'!$G$6:$CU$253,5,FALSE) -> 8.25 | G25: =VLOOKUP($C25,'RECAP SECT'!$G$6:$CU$253,6,FALSE) -> 67% | H25: =VLOOKUP($C25,'RECAP SECT'!$G$6:$CU$253,7,FALSE) -> 13 | I25: =VLOOKUP($C25,'RECAP SECT'!$G$6:$CU$253,8,FALSE) -> 61% | J25: =VLOOKUP($C25,'RECAP SECT'!$G$6:$CU$253,9,FALSE) -> 17% | K25: =VLOOKUP($C25,'RECAP SECT'!$G$6:$CU$253,10,FALSE) -> 12 | L25: =VLOOKUP($C25,'RECAP SECT'!$G$6:$CU$253,11,FALSE) -> 42% | M25: =VLOOKUP($C25,'RECAP SECT'!$G$6:$CU$253,12,FALSE) -> 39% | N25: =VLOOKUP($C25,'RECAP SECT'!$G$6:$CU$253,13,FALSE) -> 13
A26: 80 | B26: VOSGES | C26: 57 | D26: EPINAL | E26: =VLOOKUP($C26,'RECAP SECT'!$G$6:$CU$253,3,FALSE) -> 52.9 | F26: =VLOOKUP($C26,'RECAP SECT'!$G$6:$CU$253,5,FALSE) -> 22.25 | G26: =VLOOKUP($C26,'RECAP SECT'!$G$6:$CU$253,6,FALSE) -> 12% | H26: =VLOOKUP($C26,'RECAP SECT'!$G$6:$CU$253,7,FALSE) -> 3 | I26: =VLOOKUP($C26,'RECAP SECT'!$G$6:$CU$253,8,FALSE) -> 70% | J26: =VLOOKUP($C26,'RECAP SECT'!$G$6:$CU$253,9,FALSE) -> 6% | K26: =VLOOKUP($C26,'RECAP SECT'!$G$6:$CU$253,10,FALSE) -> 2 | L26: =VLOOKUP($C26,'RECAP SECT'!$G$6:$CU$253,11,FALSE) -> 9% | M26: =VLOOKUP($C26,'RECAP SECT'!$G$6:$CU$253,12,FALSE) -> 6% | N26: =VLOOKUP($C26,'RECAP SECT'!$G$6:$CU$253,13,FALSE) -> 3
A27: 80 | B27: VOSGES | C27: 55 | D27: SAINT DIE | E27: =VLOOKUP($C27,'RECAP SECT'!$G$6:$CU$253,3,FALSE) -> 40.3 | F27: =VLOOKUP($C27,'RECAP SECT'!$G$6:$CU$253,5,FALSE) -> 25.25 | G27: =VLOOKUP($C27,'RECAP SECT'!$G$6:$CU$253,6,FALSE) -> 0% | H27: =VLOOKUP($C27,'RECAP SECT'!$G$6:$CU$253,7,FALSE) -> 1 | I27: =VLOOKUP($C27,'RECAP SECT'!$G$6:$CU$253,8,FALSE) -> 69% | J27: =VLOOKUP($C27,'RECAP SECT'!$G$6:$CU$253,9,FALSE) -> 7% | K27: =VLOOKUP($C27,'RECAP SECT'!$G$6:$CU$253,10,FALSE) -> 3 | L27: =VLOOKUP($C27,'RECAP SECT'!$G$6:$CU$253,11,FALSE) -> 4% | M27: =VLOOKUP($C27,'RECAP SECT'!$G$6:$CU$253,12,FALSE) -> 1% | N27: =VLOOKUP($C27,'RECAP SECT'!$G$6:$CU$253,13,FALSE) -> 2
A28: Total CEGEE Directions Régionales | E28: =SUM(E10:E27) -> 950

Sheet AG_CLASS
B1: Accueil | H1: BAROMETRE BDD - AGENCES
H2: CLASSEMENTS
H3: =ACCUEIL!F7 -> 2022-09-18
H8: CLASSEMENT GENERAL | I8: CRITERE Satisfaction Clients | J8: NPS à froid (SAE) | K8: NPS à chaud (QHD) | L8: CRITERE BANCARISATION | M8: Ventes Nettes produits pondérés | N8: Ventes sur client non détenteur de l’univers | O8: CRITERE EPARGNE | P8: Excédent Epargne hors DAV pondéré | Q8: Ventes sur client non détenteur de l’univers | R8: CRITERE IARD PREVOYANCE | S8: Ventes Nettes produits pondérés | T8: Ventes sur client non détenteur de l’univers | U8: CRITERE CREDITS | V8: Engagements et ventes accessoires pondérés Immo | W8: Engagements et ventes accessoires pondérés Conso | X8: Ventes sur client non détenteur de l’univers
B9: Direction | C9: eds | D9: Territoire | E9: eds | F9: Agence | G9: ="ETP perf "&DATEMAJ!$C$28 -> ETP perf 18-sept | H9: Rang | I9: Rang | J9: Rang | K9: Rang | L9: Rang | M9: Rang | N9: Rang | O9: Rang | P9: Rang | Q9: Rang | R9: Rang | S9: Rang | T9: Rang | U9: Rang | V9: Rang | W9: Rang | X9: Rang
A10: 50 | B10: MOSELLE | C10: 44 | D10: MOSELLE NORD | E10: 557508 | F10: NILVANGE | G10: 1.5 | H10: 1 | I10: 66 | J10: 73 | K10: 48 | L10: 1 | M10: 1 | N10: 1 | O10: 2 | P10: 115 | Q10: 1 | R10: 1 | S10: 1 | T10: 1 | U10: 1 | V10: 1 | W10: 1 | X10: 1
A11: 50 | B11: VOSGES | C11: 57 | D11: EPINAL | E11: 488288 | F11: EPINAL LEOPOLD BOURG | G11: 2.0 | H11: 2 | I11: 2 | J11: 2 | K11: 3 | L11: 24 | M11: 12 | N11: 55 | O11: 5 | P11: 4 | Q11: 33 | R11: 55 | S11: 21 | T11: 149 | U11: 25 | V11: 21 | W11: 60 | X11: 32
A12: 50 | B12: MARNE ARDENNES | C12: 11 | D12: REIMS | E12: 551305 | F12: REIMS HIPPODROME | G12: 5.2 | H12: 3 | I12: 68 | J12: 67 | K12: 75 | L12: 12 | M12: 37 | N12: 4 | O12: 22 | P12: 32 | Q12: 19 | R12: 7 | S12: 12 | T12: 10 | U12: 6 | V12: 7 | W12: 67 | X12: 4
A13: 50 | B13: MARNE ARDENNES | C13: 6 | D13: CHALONS EN CHAMPAGNE | E13: 451115 | F13: MOURMELON LE GRAND | G13: 2.8 | H13: 4 | I13: 78 | J13: 116 | K13: 11 | L13: 2 | M13: 2 | N13: 11 | O13: 16 | P13: 41 | Q13: 6 | R13: 15 | S13: 38 | T13: 5 | U13: 16 | V13: 39 | W13: 4 | X13: 45
A14: 50 | B14: MOSELLE | C14: 44 | D14: MOSELLE NORD | E14: 557660 | F14: UCKANGE | G14: 1.8 | H14: 5 | I14: 220 | J14: 178 | K14: 224 | L14: 11 | M14: 32 | N14: 7 | O14: 19 | P14: 153 | Q14: 2 | R14: 2 | S14: 2 | T14: 4 | U14: 2 | V14: 2 | W14: 33 | X14: 2
A15: 50 | B15: MARNE ARDENNES | C15: 6 | D15: CHALONS EN CHAMPAGNE | E15: 551330 | F15: MONTMIRAIL | G15: 2.8 | H15: 6 | I15: 11 | J15: 15 | K15: 17 | L15: 17 | M15: 9 | N15: 51 | O15: 40 | P15: 38 | Q15: 80 | R15: 9 | S15: 8 | T15: 21 | U15: 73 | V15: 59 | W15: 176 | X15: 41
A16: 50 | B16: MARNE ARDENNES | C16: 2 | D16: CHARLEVILLE MEZIERES | E16: 508820 | F16: VOUZIERS | G16: 2.9 | H16: 7 | I16: 29 | J16: 20 | K16: 83 | L16: 35 | M16: 38 | N16: 45 | O16: 33 | P16: 22 | Q16: 131 | R16: 3 | S16: 3 | T16: 13 | U16: 35 | V16: 83 | W16: 7 | X16: 51
A17: 50 | B17: MARNE ARDENNES | C17: 11 | D17: REIMS | E17: 551340 | F17: BETHENY | G17: 2.3 | H17: 8 | I17: 45 | J17: 34 | K17: 107 | L17: 6 | M17: 7 | N17: 10 | O17: 28 | P17: 57 | Q17: 13 | R17: 84 | S17: 92 | T17: 84 | U17: 12 | V17: 5 | W17: 116 | X17: 15
A18: 50 | B18: MEURTHE ET MOSELLE MEUSE | C18: 26 | D18: NANCY | E18: 554476 | F18: NANCY ARTEM | G18: 2.8 | H18: 9 | I18: 40 | J18: 50 | K18: 19 | L18: 9 | M18: 14 | N18: 17 | O18: 154 | P18: 167 | Q18: 96 | R18: 48 | S18: 42 | T18: 87 | U18: 3 | V18: 3 | W18: 91 | X18: 3
A19: 50 | B19: MARNE ARDENNES | C19: 11 | D19: REIMS | E19: 551349 | F19: REIMS SAINT REMI | G19: 2.9 | H19: 10 | I19: 123 | J19: 134 | K19: 86 | L19: 3 | M19: 3 | N19: 9 | O19: 91 | P19: 141 | Q19: 14 | R19: 18 | S19: 22 | T19: 12 | U19: 10 | V19: 6 | W19: 55 | X19: 12
A20: 50 | B20: MOSELLE | C20: 44 | D20: MOSELLE NORD | E20: 557113 | F20: AUDUN LE TICHE | G20: 2.1 | H20: 11 | I20: 118 | J20: 166 | K20: 14 | L20: 8 | M20: 21 | N20: 6 | O20: 25 | P20: 66 | Q20: 5 | R20: 21 | S20: 41 | T20: 14 | U20: 13 | V20: 17 | W20: 11 | X20: 34
A21: 50 | B21: MARNE ARDENNES | C21: 6 | D21: CHALONS EN CHAMPAGNE | E21: 451120 | F21: SARRY | G21: 2.3 | H21: 12 | I21: 6 | J21: 7 | K21: 5 | L21: 28 | M21: 16 | N21: 76 | O21: 117 | P21: 144 | Q21: 39 | R21: 46 | S21: 39 | T21: 86 | U21: 71 | V21: 52 | W21: 105 | X21: 80
A22: 50 | B22: MOSELLE | C22: 45 | D22: METZ | E22: 457443 | F22: METZ REPUBLIQUE | G22: 3.5 | H22: 13 | I22: 41 | J22: 40 | K22: 44 | L22: 77 | M22: 69 | N22: 114 | O22: 3 | P22: 2 | Q22: 71 | R22: 12 | S22: 7 | T22: 36 | U22: 105 | V22: 117 | W22: 90 | X22: 117
A23: 50 | B23: MOSELLE | C23: 42 | D23: MOSELLE EST | E23: 457165 | F23: BITCHE | G23: 2.5 | H23: 14 | I23: 15 | J23: 12 | K23: 37 | L23: 15 | M23: 6 | N23: 59 | O23: 100 | P23: 154 | Q23: 17 | R23: 20 | S23: 17 | T23: 42 | U23: 115 | V23: 121 | W23: 53 | X23: 182
A24: 50 | B24: MARNE ARDENNES | C24: 11 | D24: REIMS | E24: 551365 | F24: DORMANS | G24: 2.6 | H24: 15 | I24: 56 | J24: 56 | K24: 67 | L24: 4 | M24: 4 | N24: 18 | O24: 136 | P24: 189 | Q24: 28 | R24: 37 | S24: 46 | T24: 43 | U24: 27 | V24: 27 | W24: 155 | X24: 14
A25: 50 | B25: MEURTHE ET MOSELLE MEUSE | C25: 27 | D25: PONT A MOUSSON | E25: 554381 | F25: LAXOU ARISTIDE BRIAND | G25: 2.3 | H25: 16 | I25: 163 | J25: 185 | K25: 148 | L25: 5 | M25: 8 | N25: 8 | O25: 58 | P25: 112 | Q25: 8 | R25: 16 | S25: 36 | T25: 8 | U25: 8 | V25: 9 | W25: 37 | X25: 8
A26: 50 | B26: BAS RHIN | C26: 5006 | D26: STRASBOURG | E26: 4048 | F26: STRASBOURG KOENIGSHOFFEN | G26: 1.7 | H26: 17 | I26: 175 | J26: 208 | K26: 156 | L26: 10 | M26: 18 | N26: 14 | O26: 7 | P26: 29 | Q26: 3 | R26: 8 | S26: 76 | T26: 2 | U26: 20 | V26: 72 | W26: 16 | X26: 13
A27: 50 | B27: BAS RHIN | C27: 5006 | D27: STRASBOURG | E27: 4037 | F27: MUNDOLSHEIM | G27: 3.8 | H27: 18 | I27: 54 | J27: 45 | K27: 87 | L27: 20 | M27: 24 | N27: 24 | O27: 159 | P27: 219 | Q27: 15 | R27: 10 | S27: 9 | T27: 18 | U27: 26 | V27: 30 | W27: 136 | X27: 16
A28: 262 | B28: MOSELLE | C28: 45 | D28: METZ | E28: 457453 | F28: MONTIGNY LES METZ | G28: 6.9 | H28: 19 | I28: 10 | J28: 14 | K28: 20 | L28: 48 | M28: 40 | N28: 89 | O28: 66 | P28: 123 | Q28: 12 | R28: 110 | S28: 88 | T28: 158 | U28: 40 | V28: 32 | W28: 64 | X28: 57
A29: 262 | B29: MARNE ARDENNES | C29: 11 | D29: REIMS | E29: 451350 | F29: REIMS CENTRE VILLE | G29: 6.4 | H29: 20 | I29: 184 | J29: 194 | K29: 168 | L29: 7 | M29: 10 | N29: 15 | O29: 73 | P29: 101 | Q29: 36 | R29: 22 | S29: 29 | T29: 24 | U29: 4 | V29: 10 | W29: 38 | X29: 5
A30: 262 | B30: MOSELLE | C30: 42 | D30: MOSELLE EST | E30: 457308 | F30: FORBACH CENTRALE | G30: 10.3 | H30: 21 | I30: 89 | J30: 73 | K30: 130 | L30: 18 | M30: 15 | N30: 34 | O30: 89 | P30: 118 | Q30: 31 | R30: 25 | S30: 25 | T30: 29 | U30: 29 | V30: 49 | W30: 15 | X30: 52
A31: 262 | B31: MEURTHE ET MOSELLE MEUSE | C31: 26 | D31: NANCY | E31: 554601 | F31: SAINT MAX | G31: 3.5 | H31: 22 | I31: 22 | J31: 26 | K31: 30 | L31: 101 | M31: 86 | N31: 138 | O31: 15 | P31: 10 | Q31: 97 | R31: 34 | S31: 28 | T31: 94 | U31: 76 | V31: 71 | W31: 75 | X31: 91
A32: 262 | B32: MARNE ARDENNES | C32: 2 | D32: CHARLEVILLE MEZIERES | E32: 408801 | F32: CHARLEVILLE JEAN JAURES | G32: 8.9 | H32: 23 | I32: 64 | J32: 75 | K32: 34 | L32: 66 | M32: 76 | N32: 58 | O32: 29 | P32: 42 | Q32: 26 | R32: 31 | S32: 27 | T32: 83 | U32: 41 | V32: 19 | W32: 177 | X32: 29
A33: 262 | B33: AUBE HAUTE MARNE | C33: 21 | D33: CHAUMONT | E33: 510590 | F33: CHAUMONT REPUBLIQUE | G33: 2.9 | H33: 24 | I33: 44 | J33: 59 | K33: 21 | L33: 117 | M33: 146 | N33: 70 | O33: 31 | P33: 36 | Q33: 48 | R33: 28 | S33: 18 | T33: 64 | U33: 57 | V33: 108 | W33: 26 | X33: 61
A34: 262 | B34: MOSELLE | C34: 45 | D34: METZ | E34: 557439 | F34: METZ POMPIDOU | G34: 2.5 | H34: 25 | I34: 52 | J34: 51 | K34: 72 | L34: 56 | M34: 93 | N34: 28 | O34: 10 | P34: 14 | Q34: 34 | R34: 107 | S34: 156 | T34: 46 | U34: 68 | V34: 45 | W34: 88 | X34: 92
A35: 262 | B35: MOSELLE | C35: 45 | D35: METZ | E35: 457446 | F35: METZ SAINT LOUIS | G35: 5.8 | H35: 26 | I35: 102 | J35: 109 | K35: 79 | L35: 27 | M35: 26 | N35: 42 | O35: 59 | P35: 111 | Q35: 11 | R35: 67 | S35: 53 | T35: 88 | U35: 24 | V35: 16 | W35: 102 | X35: 28
A36: 262 | B36: MEURTHE ET MOSELLE MEUSE | C36: 27 | D36: PONT A MOUSSON | E36: 554531 | F36: POMPEY | G36: 3.1 | H36: 27 | I36: 207 | J36: 185 | K36: 209 | L36: 13 | M36: 30 | N36: 13 | O36: 45 | P36: 80 | Q36: 16 | R36: 36 | S36: 63 | T36: 22 | U36: 5 | V36: 13 | W36: 5 | X36: 17
A37: 262 | B37: MEURTHE ET MOSELLE MEUSE | C37: 26 | D37: NANCY | E37: 554356 | F37: JARVILLE LA MALGRANGE | G37: 4.2 | H37: 28 | I37: 33 | J37: 41 | K37: 26 | L37: 30 | M37: 13 | N37: 85 | O37: 169 | P37: 197 | Q37: 57 | R37: 68 | S37: 72 | T37: 71 | U37: 51 | V37: 48 | W37: 121 | X37: 44
A38: 262 | B38: MARNE ARDENNES | C38: 11 | D38: REIMS | E38: 451370 | F38: EPERNAY | G38: 8.9 | H38: 29 | I38: 69 | J38: 78 | K38: 40 | L38: 34 | M38: 27 | N38: 61 | O38: 44 | P38: 48 | Q38: 61 | R38: 93 | S38: 99 | T38: 92 | U38: 46 | V38: 60 | W38: 74 | X38: 39
A39: 262 | B39: MARNE ARDENNES | C39: 11 | D39: REIMS | E39: 451301 | F39: REIMS HOTEL DE VILLE | G39: 7.0 | H39: 30 | I39: 96 | J39: 96 | K39: 97 | L39: 49 | M39: 53 | N39: 49 | O39: 78 | P39: 104 | Q39: 35 | R39: 14 | S39: 13 | T39: 26 | U39: 42 | V39: 24 | W39: 143 | X39: 38
A40: 262 | B40: MARNE ARDENNES | C40: 6 | D40: CHALONS EN CHAMPAGNE | E40: 551354 | F40: VERTUS | G40: 2.0 | H40: 31 | I40: 1 | J40: 1 | K40: 1 | L40: 150 | M40: 111 | N40: 210 | O40: 37 | P40: 23 | Q40: 146 | R40: 195 | S40: 207 | T40: 156 | U40: 129 | V40: 175 | W40: 71 | X40: 145
A41: 262 | B41: MARNE ARDENNES | C41: 2 | D41: CHARLEVILLE MEZIERES | E41: 508839 | F41: GIVET | G41: 3.4 | H41: 32 | I41: 73 | J41: 72 | K41: 99 | L41: 53 | M41: 70 | N41: 41 | O41: 148 | P41: 190 | Q41: 40 | R41: 11 | S41: 4 | T41: 51 | U41: 44 | V41: 61 | W41: 34 | X41: 55
A42: 262 | B42: MOSELLE | C42: 42 | D42: MOSELLE EST | E42: 557250 | F42: CREUTZWALD | G42: 2.5 | H42: 33 | I42: 20 | J42: 17 | K42: 42 | L42: 136 | M42: 159 | N42: 92 | O42: 72 | P42: 89 | Q42: 43 | R42: 39 | S42: 24 | T42: 113 | U42: 70 | V42: 81 | W42: 19 | X42: 150
A43: 262 | B43: MARNE ARDENNES | C43: 11 | D43: REIMS | E43: 551314 | F43: FISMES | G43: 2.7 | H43: 34 | I43: 18 | J43: 29 | K43: 9 | L43: 26 | M43: 25 | N43: 36 | O43: 220 | P43: 232 | Q43: 37 | R43: 124 | S43: 162 | T43: 53 | U43: 53 | V43: 35 | W43: 184 | X43: 31
A44: 262 | B44: VOSGES | C44: 57 | D44: EPINAL | E44: 588336 | F44: GOLBEY | G44: 2.8 | H44: 35 | I44: 39 | J44: 38 | K44: 36 | L44: 113 | M44: 116 | N44: 113 | O44: 49 | P44: 40 | Q44: 109 | R44: 51 | S44: 43 | T44: 89 | U44: 72 | V44: 107 | W44: 78 | X44: 47
A45: 262 | B45: MARNE ARDENNES | C45: 11 | D45: REIMS | E45: 551367 | F45: AY CHAMPAGNE | G45: 2.7 | H45: 36 | I45: 43 | J45: 36 | K45: 73 | L45: 99 | M45: 139 | N45: 57 | O45: 96 | P45: 73 | Q45: 172 | R45: 49 | S45: 49 | T45: 49 | U45: 48 | V45: 26 | W45: 201 | X45: 27
A46: 262 | B46: MEURTHE ET MOSELLE MEUSE | C46: 27 | D46: PONT A MOUSSON | E46: 554506 | F46: CHALIGNY NEUVES MAISONS | G46: 3.5 | H46: 37 | I46: 159 | J46: 150 | K46: 177 | L46: 16 | M46: 22 | N46: 22 | O46: 175 | P46: 207 | Q46: 50 | R46: 13 | S46: 15 | T46: 20 | U46: 18 | V46: 23 | W46: 32 | X46: 18
A47: 262 | B47: MARNE ARDENNES | C47: 11 | D47: REIMS | E47: 551369 | F47: DAMERY | G47: 1.6 | H47: 38 | I47: 80 | J47: 56 | K47: 153 | L47: 21 | M47: 34 | N47: 19 | O47: 236 | P47: 237 | Q47: 167 | R47: 29 | S47: 47 | T47: 19 | U47: 15 | V47: 18 | W47: 61 | X47: 11
A48: 262 | B48: MARNE ARDENNES | C48: 2 | D48: CHARLEVILLE MEZIERES | E48: 508833 | F48: VILLERS SEMEUSE CORA | G48: 3.1 | H48: 39 | I48: 192 | J48: 208 | K48: 169 | L48: 80 | M48: 134 | N48: 37 | O48: 27 | P48: 44 | Q48: 21 | R48: 4 | S48: 5 | T48: 11 | U48: 21 | V48: 36 | W48: 23 | X48: 24
A49: 262 | B49: MOSELLE | C49: 45 | D49: METZ | E49: 557432 | F49: MAIZIERES LES METZ | G49: 2.5 | H49: 40 | I49: 193 | J49: 194 | K49: 175 | L49: 22 | M49: 60 | N49: 5 | O49: 93 | P49: 138 | Q49: 18 | R49: 60 | S49: 74 | T49: 38 | U49: 7 | V49: 4 | W49: 96 | X49: 6
A50: 262 | B50: MEURTHE ET MOSELLE MEUSE | C50: 31 | D50: VERDUN | E50: 554413 | F50: LONGWY BAS | G50: 3.4 | H50: 41 | I50: 12 | J50: 9 | K50: 53 | L50: 70 | M50: 57 | N50: 108 | O50: 147 | P50: 134 | Q50: 153 | R50: 108 | S50: 82 | T50: 169 | U50: 85 | V50: 70 | W50: 72 | X50: 143
A51: 262 | B51: MEURTHE ET MOSELLE MEUSE | C51: 31 | D51: VERDUN | E51: 455678 | F51: VERDUN CENTRALE | G51: 10.1 | H51: 42 | I51: 21 | J51: 16 | K51: 58 | L51: 68 | M51: 74 | N51: 67 | O51: 193 | P51: 210 | Q51: 84 | R51: 134 | S51: 141 | T51: 117 | U51: 38 | V51: 41 | W51: 69 | X51: 40
A52: 262 | B52: MARNE ARDENNES | C52: 11 | D52: REIMS | E52: 451361 | F52: PIERRY LECLERC | G52: 1.8 | H52: 43 | I52: 57 | J52: 58 | K52: 65 | L52: 67 | M52: 59 | N52: 90 | O52: 18 | P52: 16 | Q52: 72 | R52: 121 | S52: 100 | T52: 157 | U52: 111 | V52: 62 | W52: 196 | X52: 88
A53: 262 | B53: MOSELLE | C53: 44 | D53: MOSELLE NORD | E53: 557352 | F53: HETTANGE GRANDE | G53: 3.1 | H53: 44 | I53: 143 | J53: 112 | K53: 190 | L53: 33 | M53: 63 | N53: 21 | O53: 123 | P53: 143 | Q53: 53 | R53: 47 | S53: 51 | T53: 44 | U53: 14 | V53: 44 | W53: 6 | X53: 22
A54: 262 | B54: BAS RHIN | C54: 5101 | D54: SELESTAT | E54: 4113 | F54: BARR | G54: 2.9 | H54: 45 | I54: 27 | J54: 45 | K54: 4 | L54: 36 | M54: 23 | N54: 79 | O54: 99 | P54: 114 | Q54: 47 | R54: 137 | S54: 108 | T54: 180 | U54: 143 | V54: 50 | W54: 240 | X54: 81
A55: 262 | B55: MEURTHE ET MOSELLE MEUSE | C55: 27 | D55: PONT A MOUSSON | E55: 554516 | F55: PAGNY SUR MOSELLE | G55: 2.7 | H55: 46 | I55: 109 | J55: 98 | K55: 118 | L55: 74 | M55: 64 | N55: 107 | O55: 53 | P55: 43 | Q55: 99 | R55: 27 | S55: 31 | T55: 31 | U55: 58 | V55: 47 | W55: 81 | X55: 68
A56: 262 | B56: MOSELLE | C56: 42 | D56: MOSELLE EST | E56: 457583 | F56: SAINT AVOLD | G56: 7.0 | H56: 47 | I56: 60 | J56: 71 | K56: 47 | L56: 44 | M56: 42 | N56: 72 | O56: 116 | P56: 133 | Q56: 45 | R56: 62 | S56: 54 | T56: 72 | U56: 82 | V56: 80 | W56: 113 | X56: 86
A57: 262 | B57: MOSELLE | C57: 45 | D57: METZ | E57: 457574 | F57: ROMBAS | G57: 2.5 | H57: 48 | I57: 48 | J57: 37 | K57: 96 | L57: 82 | M57: 82 | N57: 93 | O57: 109 | P57: 129 | Q57: 44 | R57: 19 | S57: 16 | T57: 63 | U57: 128 | V57: 123 | W57: 104 | X57: 154
A58: 262 | B58: MARNE ARDENNES | C58: 11 | D58: REIMS | E58: 551310 | F58: REIMS CHATILLONS | G58: 3.9 | H58: 49 | I58: 124 | J58: 102 | K58: 158 | L58: 29 | M58: 33 | N58: 39 | O58: 112 | P58: 103 | Q58: 106 | R58: 58 | S58: 71 | T58: 35 | U58: 37 | V58: 43 | W58: 138 | X58: 21
A59: 262 | B59: BAS RHIN | C59: 5006 | D59: STRASBOURG | E59: 4038 | F59: OBERHAUSBERGEN | G59: 3.3 | H59: 50 | I59: 61 | J59: 64 | K59: 64 | L59: 60 | M59: 95 | N59: 32 | O59: 12 | P59: 17 | Q59: 32 | R59: 203 | S59: 231 | T59: 66 | U59: 77 | V59: 51 | W59: 139 | X59: 83
A60: 262 | B60: MOSELLE | C60: 44 | D60: MOSELLE NORD | E60: 457350 | F60: HAYANGE | G60: 6.2 | H60: 51 | I60: 115 | J60: 101 | K60: 145 | L60: 45 | M60: 44 | N60: 69 | O60: 121 | P60: 174 | Q60: 22 | R60: 26 | S60: 20 | T60: 34 | U60: 50 | V60: 33 | W60: 110 | X60: 53
A61: 262 | B61: MARNE ARDENNES | C61: 6 | D61: CHALONS EN CHAMPAGNE | E61: 551110 | F61: CHALONS ROOSEVELT | G61: 4.3 | H61: 52 | I61: 31 | J61: 26 | K61: 78 | L61: 115 | M61: 96 | N61: 143 | O61: 145 | P61: 168 | Q61: 76 | R61: 23 | S61: 10 | T61: 106 | U61: 113 | V61: 77 | W61: 157 | X61: 108
A62: 262 | B62: MARNE ARDENNES | C62: 11 | D62: REIMS | E62: 451336 | F62: TINQUEUX | G62: 4.9 | H62: 53 | I62: 145 | J62: 133 | K62: 170 | L62: 42 | M62: 35 | N62: 74 | O62: 8 | P62: 6 | Q62: 55 | R62: 99 | S62: 104 | T62: 85 | U62: 55 | V62: 22 | W62: 158 | X62: 54
A63: 262 | B63: MEURTHE ET MOSELLE MEUSE | C63: 31 | D63: VERDUN | E63: 555406 | F63: LIGNY EN BARROIS | G63: 2.5 | H63: 54 | I63: 16 | J63: 11 | K63: 61 | L63: 114 | M63: 115 | N63: 116 | O63: 11 | P63: 5 | Q63: 117 | R63: 211 | S63: 201 | T63: 195 | U63: 183 | V63: 218 | W63: 135 | X63: 174
A64: 262 | B64: MARNE ARDENNES | C64: 11 | D64: REIMS | E64: 551306 | F64: REIMS SAINT MARCEAUX | G64: 3.9 | H64: 55 | I64: 58 | J64: 43 | K64: 109 | L64: 25 | M64: 11 | N64: 56 | O64: 235 | P64: 235 | Q64: 59 | R64: 79 | S64: 89 | T64: 69 | U64: 60 | V64: 57 | W64: 122 | X64: 43
A65: 262 | B65: MEURTHE ET MOSELLE MEUSE | C65: 26 | D65: NANCY | E65: 554636 | F65: TOMBLAINE | G65: 2.6 | H65: 56 | I65: 14 | J65: 24 | K65: 6 | L65: 172 | M65: 181 | N65: 133 | O65: 51 | P65: 52 | Q65: 74 | R65: 132 | S65: 145 | T65: 108 | U65: 123 | V65: 139 | W65: 118 | X65: 97
A66: 262 | B66: MEURTHE ET MOSELLE MEUSE | C66: 26 | D66: NANCY | E66: 454481 | F66: NANCY PLACE DOMBASLE | G66: 7.8 | H66: 57 | I66: 140 | J66: 138 | K66: 154 | L66: 62 | M66: 98 | N66: 35 | O66: 61 | P66: 116 | Q66: 9 | R66: 90 | S66: 124 | T66: 58 | U66: 19 | V66: 11 | W66: 106 | X66: 20
A67: 262 | B67: MOSELLE | C67: 42 | D67: MOSELLE EST | E67: 457617 | F67: SARREGUEMINES | G67: 6.5 | H67: 58 | I67: 146 | J67: 155 | K67: 127 | L67: 50 | M67: 54 | N67: 50 | O67: 54 | P67: 82 | Q67: 23 | R67: 59 | S67: 62 | T67: 59 | U67: 36 | V67: 29 | W67: 92 | X67: 36
A68: 262 | B68: MEURTHE ET MOSELLE MEUSE | C68: 27 | D68: PONT A MOUSSON | E68: 554686 | F68: VEZELISE | G68: 1.9 | H68: 59 | I68: 3 | J68: 3 | K68: 13 | L68: 139 | M68: 137 | N68: 145 | O68: 90 | P68: 64 | Q68: 197 | R68: 142 | S68: 129 | T68: 162 | U68: 228 | V68: 213 | W68: 172 | X68: 234
A69: 262 | B69: VOSGES | C69: 55 | D69: SAINT DIE | E69: 488326 | F69: GERARDMER | G69: 3.8 | H69: 60 | I69: 84 | J69: 75 | K69: 117 | L69: 110 | M69: 110 | N69: 112 | O69: 24 | P69: 15 | Q69: 142 | R69: 113 | S69: 118 | T69: 109 | U69: 65 | V69: 63 | W69: 59 | X69: 73
A70: 262 | B70: MOSELLE | C70: 44 | D70: MOSELLE NORD | E70: 557303 | F70: FAMECK | G70: 2.8 | H70: 61 | I70: 49 | J70: 52 | K70: 39 | L70: 83 | M70: 173 | N70: 20 | O70: 55 | P70: 60 | Q70: 64 | R70: 221 | S70: 228 | T70: 170 | U70: 39 | V70: 55 | W70: 28 | X70: 50
A71: 262 | B71: BAS RHIN | C71: 5006 | D71: STRASBOURG | E71: 4054 | F71: STRASBOURG MONTAGNE VERTE | G71: 2.7 | H71: 62 | I71: 42 | J71: 19 | K71: 139 | L71: 94 | M71: 154 | N71: 38 | O71: 70 | P71: 69 | Q71: 82 | R71: 38 | S71: 57 | T71: 27 | U71: 218 | V71: 241 | W71: 189 | X71: 140
A72: 262 | B72: MOSELLE | C72: 44 | D72: MOSELLE NORD | E72: 457632 | F72: THIONVILLE CENTRALE | G72: 10.6 | H72: 63 | I72: 132 | J72: 138 | K72: 111 | L72: 31 | M72: 29 | N72: 47 | O72: 163 | P72: 200 | Q72: 41 | R72: 33 | S72: 44 | T72: 45 | U72: 49 | V72: 34 | W72: 100 | X72: 58
A73: 262 | B73: MOSELLE | C73: 45 | D73: METZ | E73: 557447 | F73: METZ SAINT MAXIMIN | G73: 2.3 | H73: 64 | I73: 154 | J73: 170 | K73: 141 | L73: 72 | M73: 125 | N73: 31 | O73: 36 | P73: 81 | Q73: 10 | R73: 5 | S73: 6 | T73: 15 | U73: 94 | V73: 111 | W73: 31 | X73: 188
A74: 264 | B74: MEURTHE ET MOSELLE MEUSE | C74: 26 | D74: NANCY | E74: 554116 | F74: BACCARAT | G74: 2.8 | H74: 65 | I74: 4 | J74: 4 | K74: 18 | L74: 146 | M74: 114 | N74: 202 | O74: 131 | P74: 96 | Q74: 224 | R74: 141 | S74: 136 | T74: 146 | U74: 200 | V74: 147 | W74: 173 | X74: 215
A75: 264 | B75: MOSELLE | C75: 44 | D75: MOSELLE NORD | E75: 457348 | F75: HAGONDANGE | G75: 8.1 | H75: 66 | I75: 117 | J75: 120 | K75: 104 | L75: 55 | M75: 49 | N75: 83 | O75: 114 | P75: 108 | Q75: 85 | R75: 50 | S75: 40 | T75: 93 | U75: 56 | V75: 40 | W75: 108 | X75: 56
A76: 264 | B76: BAS RHIN | C76: 5006 | D76: STRASBOURG | E76: 4024 | F76: STRASBOURG AUSTERLITZ | G76: 1.1 | H76: 67 | I76: 238 | J76: 194 | K76: 239 | L76: 51 | M76: 163 | N76: 2 | O76: 4 | P76: 7 | Q76: 7 | R76: 43 | S76: 202 | T76: 3 | U76: 33 | V76: 14 | W76: 140 | X76: 35
A77: 264 | B77: AUBE HAUTE MARNE | C77: 21 | D77: CHAUMONT | E77: 410541 | F77: LANGRES | G77: 8.2 | H77: 68 | I77: 67 | J77: 66 | K77: 74 | L77: 96 | M77: 65 | N77: 170 | O77: 103 | P77: 90 | Q77: 128 | R77: 56 | S77: 35 | T77: 125 | U77: 109 | V77: 181 | W77: 42 | X77: 142
A78: 264 | B78: MOSELLE | C78: 42 | D78: MOSELLE EST | E78: 557668 | F78: VALMONT | G78: 2.8 | H78: 69 | I78: 36 | J78: 23 | K78: 105 | L78: 179 | M78: 178 | N78: 152 | O78: 26 | P78: 18 | Q78: 111 | R78: 95 | S78: 78 | T78: 136 | U78: 161 | V78: 190 | W78: 70 | X78: 202
A79: 264 | B79: VOSGES | C79: 55 | D79: SAINT DIE | E79: 488246 | F79: CORNIMONT LA BRESSE | G79: 2.7 | H79: 70 | I79: 17 | J79: 20 | K79: 22 | L79: 95 | M79: 99 | N79: 91 | O79: 200 | P79: 183 | Q79: 220 | R79: 87 | S79: 61 | T79: 161 | U79: 145 | V79: 210 | W79: 52 | X79: 172
A80: 264 | B80: MARNE ARDENNES | C80: 6 | D80: CHALONS EN CHAMPAGNE | E80: 451101 | F80: CHALONS VIVIERS | G80: 9.4 | H80: 71 | I80: 32 | J80: 43 | K80: 16 | L80: 127 | M80: 108 | N80: 154 | O80: 141 | P80: 162 | Q80: 77 | R80: 83 | S80: 81 | T80: 110 | U80: 91 | V80: 87 | W80: 123 | X80: 84
A81: 264 | B81: BAS RHIN | C81: 5006 | D81: STRASBOURG | E81: 4043 | F81: STRASBOURG HALLES | G81: 7.8 | H81: 72 | I81: 152 | J81: 208 | K81: 98 | L81: 39 | M81: 75 | N81: 23 | O81: 86 | P81: 131 | Q81: 20 | R81: 6 | S81: 11 | T81: 9 | U81: 131 | V81: 76 | W81: 234 | X81: 60
A82: 264 | B82: MEURTHE ET MOSELLE MEUSE | C82: 31 | D82: VERDUN | E82: 555679 | F82: VERDUN MAZEL | G82: 3.6 | H82: 73 | I82: 19 | J82: 26 | K82: 15 | L82: 120 | M82: 109 | N82: 131 | O82: 102 | P82: 78 | Q82: 178 | R82: 133 | S82: 102 | T82: 175 | U82: 176 | V82: 151 | W82: 191 | X82: 126
A83: 264 | B83: MOSELLE | C83: 42 | D83: MOSELLE EST | E83: 557305 | F83: FAULQUEMONT | G83: 4.1 | H83: 74 | I83: 227 | J83: 170 | K83: 229 | L83: 19 | M83: 39 | N83: 16 | O83: 171 | P83: 224 | Q83: 24 | R83: 40 | S83: 67 | T83: 23 | U83: 11 | V83: 12 | W83: 99 | X83: 7
A84: 264 | B84: MOSELLE | C84: 44 | D84: MOSELLE NORD | E84: 457306 | F84: FLORANGE | G84: 4.7 | H84: 75 | I84: 229 | J84: 206 | K84: 221 | L84: 32 | M84: 41 | N84: 40 | O84: 88 | P84: 125 | Q84: 25 | R84: 75 | S84: 95 | T84: 56 | U84: 9 | V84: 8 | W84: 25 | X84: 19
A85: 264 | B85: VOSGES | C85: 57 | D85: EPINAL | E85: 588396 | F85: LE VAL D AJOL | G85: 2.4 | H85: 76 | I85: 5 | J85: 5 | K85: 10 | L85: 168 | M85: 149 | N85: 192 | O85: 101 | P85: 77 | Q85: 182 | R85: 167 | S85: 138 | T85: 213 | U85: 220 | V85: 171 | W85: 231 | X85: 161
A86: 264 | B86: BAS RHIN | C86: 5060 | D86: HAGUENAU | E86: 4071 | F86: WISSEMBOURG | G86: 7.9 | H86: 77 | I86: 38 | J86: 42 | K86: 27 | L86: 88 | M86: 88 | N86: 95 | O86: 65 | P86: 56 | Q86: 107 | R86: 120 | S86: 130 | T86: 107 | U86: 210 | V86: 221 | W86: 160 | X86: 195
A87: 264 | B87: MARNE ARDENNES | C87: 11 | D87: REIMS | E87: 551341 | F87: REIMS JEAN JAURES | G87: 3.0 | H87: 78 | I87: 176 | J87: 158 | K87: 184 | L87: 40 | M87: 66 | N87: 26 | O87: 50 | P87: 51 | Q87: 65 | R87: 86 | S87: 128 | T87: 41 | U87: 32 | V87: 25 | W87: 193 | X87: 9
A88: 264 | B88: MEURTHE ET MOSELLE MEUSE | C88: 31 | D88: VERDUN | E88: 454414 | F88: LONGWY HAUT | G88: 3.3 | H88: 79 | I88: 112 | J88: 118 | K88: 84 | L88: 85 | M88: 105 | N88: 66 | O88: 80 | P88: 74 | Q88: 114 | R88: 32 | S88: 45 | T88: 39 | U88: 84 | V88: 90 | W88: 87 | X88: 100
A89: 264 | B89: MARNE ARDENNES | C89: 6 | D89: CHALONS EN CHAMPAGNE | E89: 551103 | F89: FAGNIERES LECLERC | G89: 2.9 | H89: 80 | I89: 99 | J89: 128 | K89: 28 | L89: 131 | M89: 131 | N89: 125 | O89: 124 | P89: 152 | Q89: 49 | R89: 17 | S89: 14 | T89: 37 | U89: 81 | V89: 104 | W89: 54 | X89: 96
A90: 264 | B90: VOSGES | C90: 55 | D90: SAINT DIE | E90: 588551 | F90: RAMBERVILLERS | G90: 2.6 | H90: 81 | I90: 24 | J90: 22 | K90: 56 | L90: 166 | M90: 196 | N90: 88 | O90: 120 | P90: 93 | Q90: 174 | R90: 215 | S90: 213 | T90: 182 | U90: 43 | V90: 68 | W90: 66 | X90: 30
A91: 264 | B91: VOSGES | C91: 57 | D91: EPINAL | E91: 488561 | F91: REMIREMONT | G91: 7.2 | H91: 82 | I91: 13 | J91: 13 | K91: 33 | L91: 105 | M91: 71 | N91: 190 | O91: 165 | P91: 151 | Q91: 173 | R91: 135 | S91: 87 | T91: 220 | U91: 186 | V91: 100 | W91: 228 | X91: 133
A92: 264 | B92: BAS RHIN | C92: 5101 | D92: SELESTAT | E92: 4104 | F92: ERSTEIN | G92: 4.2 | H92: 83 | I92: 208 | J92: 191 | K92: 207 | L92: 14 | M92: 5 | N92: 71 | O92: 56 | P92: 47 | Q92: 98 | R92: 57 | S92: 26 | T92: 153 | U92: 78 | V92: 53 | W92: 150 | X92: 74
A93: 264 | B93: MOSELLE | C93: 44 | D93: MOSELLE NORD | E93: 457158 | F93: YUTZ | G93: 4.8 | H93: 84 | I93: 155 | J93: 185 | K93: 128 | L93: 57 | M93: 48 | N93: 97 | O93: 97 | P93: 99 | Q93: 90 | R93: 30 | S93: 30 | T93: 61 | U93: 45 | V93: 56 | W93: 35 | X93: 64
A94: 264 | B94: MOSELLE | C94: 42 | D94: MOSELLE EST | E94: 557523 | F94: PHALSBOURG | G94: 2.5 | H94: 85 | I94: 108 | J94: 110 | K94: 93 | L94: 134 | M94: 150 | N94: 106 | O94: 34 | P94: 33 | Q94: 70 | R94: 44 | S94: 19 | T94: 138 | U94: 101 | V94: 143 | W94: 73 | X94: 103
A95: 264 | B95: BAS RHIN | C95: 5060 | D95: HAGUENAU | E95: 4092 | F95: HOCHFELDEN | G95: 1.9 | H95: 86 | I95: 85 | J95: 98 | K95: 49 | L95: 122 | M95: 152 | N95: 78 | O95: 38 | P95: 28 | Q95: 102 | R95: 101 | S95: 126 | T95: 65 | U95: 103 | V95: 64 | W95: 148 | X95: 118
A96: 30 | B96: BAS RHIN | C96: 5060 | D96: HAGUENAU | E96: 4030 | F96: BRUMATH | G96: 3.8 | H96: 87 | I96: 219 | J96: 208 | K96: 213 | L96: 89 | M96: 55 | N96: 178 | O96: 1 | P96: 1 | Q96: 93 | R96: 217 | S96: 212 | T96: 214 | U96: 192 | V96: 144 | W96: 171 | X96: 208
A97: 30 | B97: AUBE HAUTE MARNE | C97: 14 | D97: TROYES | E97: 510570 | F97: NOGENT SUR SEINE | G97: 4.2 | H97: 88 | I97: 26 | J97: 24 | K97: 52 | L97: 109 | M97: 106 | N97: 115 | O97: 158 | P97: 166 | Q97: 103 | R97: 145 | S97: 120 | T97: 190 | U97: 142 | V97: 92 | W97: 167 | X97: 131
A98: 30 | B98: AUBE HAUTE MARNE | C98: 21 | D98: CHAUMONT | E98: 451154 | F98: JOINVILLE | G98: 1.8 | H98: 89 | I98: 75 | J98: 87 | K98: 50 | L98: 69 | M98: 90 | N98: 48 | O98: 232 | P98: 233 | Q98: 79 | R98: 24 | S98: 23 | T98: 30 | U98: 97 | V98: 157 | W98: 107 | X98: 67
A99: 30 | B99: MOSELLE | C99: 45 | D99: METZ | E99: 557434 | F99: MARLY | G99: 3.1 | H99: 90 | I99: 35 | J99: 31 | K99: 77 | L99: 112 | M99: 83 | N99: 168 | O99: 127 | P99: 102 | Q99: 183 | R99: 175 | S99: 150 | T99: 210 | U99: 100 | V99: 73 | W99: 162 | X99: 89
A100: 30 | B100: BAS RHIN | C100: 5006 | D100: STRASBOURG | E100: 4047 | F100: STRASBOURG CRONENBOURG | G100: 4.4 | H100: 91 | I100: 113 | J100: 148 | K100: 35 | L100: 47 | M100: 36 | N100: 94 | O100: 48 | P100: 53 | Q100: 54 | R100: 118 | S100: 122 | T100: 114 | U100: 144 | V100: 89 | W100: 187 | X100: 123
A101: 30 | B101: MARNE ARDENNES | C101: 2 | D101: CHARLEVILLE MEZIERES | E101: 408840 | F101: RETHEL | G101: 4.4 | H101: 92 | I101: 133 | J101: 128 | K101: 123 | L101: 65 | M101: 58 | N101: 87 | O101: 84 | P101: 72 | Q101: 133 | R101: 76 | S101: 55 | T101: 131 | U101: 75 | V101: 85 | W101: 86 | X101: 63
A102: 30 | B102: VOSGES | C102: 57 | D102: EPINAL | E102: 588631 | F102: THAON LES VOSGES | G102: 4.5 | H102: 93 | I102: 97 | J102: 81 | K102: 131 | L102: 81 | M102: 61 | N102: 140 | O102: 115 | P102: 100 | Q102: 134 | R102: 92 | S102: 119 | T102: 62 | U102: 86 | V102: 159 | W102: 43 | X102: 111
A103: 30 | B103: MOSELLE | C103: 44 | D103: MOSELLE NORD | E103: 557347 | F103: GUENANGE | G103: 4.6 | H103: 94 | I103: 204 | J103: 194 | K103: 197 | L103: 37 | M103: 28 | N103: 75 | O103: 144 | P103: 169 | Q103: 68 | R103: 41 | S103: 33 | T103: 95 | U103: 31 | V103: 20 | W103: 76 | X103: 37
A104: 30 | B104: BAS RHIN | C104: 5006 | D104: STRASBOURG | E104: 4010 | F104: STRASBOURG MEINAU | G104: 3.0 | H104: 95 | I104: 95 | J104: 78 | K104: 142 | L104: 91 | M104: 126 | N104: 53 | O104: 113 | P104: 105 | Q104: 87 | R104: 53 | S104: 91 | T104: 16 | U104: 153 | V104: 178 | W104: 84 | X104: 173
A105: 30 | B105: MARNE ARDENNES | C105: 6 | D105: CHALONS EN CHAMPAGNE | E105: 451381 | F105: SEZANNE | G105: 4.7 | H105: 96 | I105: 81 | J105: 77 | K105: 102 | L105: 90 | M105: 84 | N105: 111 | O105: 35 | P105: 24 | Q105: 129 | R105: 212 | S105: 215 | T105: 167 | U105: 98 | V105: 78 | W105: 164 | X105: 78
A106: 30 | B106: VOSGES | C106: 55 | D106: SAINT DIE | E106: 588186 | F106: BRUYERES | G106: 3.5 | H106: 97 | I106: 30 | J106: 30 | K106: 57 | L106: 125 | M106: 130 | N106: 122 | O106: 186 | P106: 194 | Q106: 110 | R106: 158 | S106: 194 | T106: 70 | U106: 93 | V106: 131 | W106: 127 | X106: 59
A107: 30 | B107: BAS RHIN | C107: 5006 | D107: STRASBOURG | E107: 4006 | F107: STRASBOURG NEUDORF | G107: 8.0 | H107: 98 | I107: 25 | J107: 38 | K107: 8 | L107: 181 | M107: 189 | N107: 136 | O107: 110 | P107: 84 | Q107: 176 | R107: 89 | S107: 90 | T107: 102 | U107: 201 | V107: 141 | W107: 230 | X107: 130
A108: 30 | B108: VOSGES | C108: 57 | D108: EPINAL | E108: 488281 | F108: ELOYES | G108: 3.4 | H108: 99 | I108: 46 | J108: 35 | K108: 90 | L108: 160 | M108: 136 | N108: 197 | O108: 43 | P108: 30 | Q108: 141 | R108: 214 | S108: 191 | T108: 221 | U108: 110 | V108: 172 | W108: 36 | X108: 162
A109: 30 | B109: MOSELLE | C109: 45 | D109: METZ | E109: 557444 | F109: SAINT JULIEN LES METZ | G109: 3.7 | H109: 100 | I109: 226 | J109: 170 | K109: 226 | L109: 79 | M109: 113 | N109: 46 | O109: 14 | P109: 19 | Q109: 27 | R109: 65 | S109: 107 | T109: 17 | U109: 47 | V109: 106 | W109: 9 | X109: 79
A110: 30 | B110: MEURTHE ET MOSELLE MEUSE | C110: 27 | D110: PONT A MOUSSON | E110: 554416 | F110: LUDRES | G110: 3.6 | H110: 101 | I110: 76 | J110: 81 | K110: 59 | L110: 128 | M110: 107 | N110: 157 | O110: 75 | P110: 62 | Q110: 158 | R110: 123 | S110: 77 | T110: 215 | U110: 116 | V110: 84 | W110: 147 | X110: 115
A111: 30 | B111: MARNE ARDENNES | C111: 6 | D111: CHALONS EN CHAMPAGNE | E111: 551128 | F111: SAINTE MENEHOULD | G111: 3.0 | H111: 102 | I111: 55 | J111: 54 | K111: 69 | L111: 100 | M111: 47 | N111: 230 | O111: 173 | P111: 149 | Q111: 218 | R111: 74 | S111: 50 | T111: 133 | U111: 171 | V111: 183 | W111: 77 | X111: 217
A112: 30 | B112: MARNE ARDENNES | C112: 2 | D112: CHARLEVILLE MEZIERES | E112: 408822 | F112: CHARLEVILLE MEZIERES | G112: 5.0 | H112: 103 | I112: 172 | J112: 151 | K112: 195 | L112: 143 | M112: 211 | N112: 33 | O112: 9 | P112: 34 | Q112: 4 | R112: 82 | S112: 134 | T112: 28 | U112: 54 | V112: 42 | W112: 202 | X112: 23
A113: 30 | B113: VOSGES | C113: 55 | D113: SAINT DIE | E113: 588666 | F113: VAGNEY | G113: 3.4 | H113: 104 | I113: 28 | J113: 32 | K113: 46 | L113: 167 | M113: 127 | N113: 222 | O113: 63 | P113: 39 | Q113: 188 | R113: 184 | S113: 135 | T113: 237 | U113: 180 | V113: 198 | W113: 128 | X113: 180
A114: 30 | B114: MEURTHE ET MOSELLE MEUSE | C114: 27 | D114: PONT A MOUSSON | E114: 554376 | F114: LAXOU BOUFFLERS | G114: 2.7 | H114: 105 | I114: 235 | J114: 208 | K114: 234 | L114: 23 | M114: 68 | N114: 3 | O114: 190 | P114: 195 | Q114: 119 | R114: 61 | S114: 143 | T114: 7 | U114: 17 | V114: 28 | W114: 44 | X114: 10
A115: 30 | B115: MOSELLE | C115: 45 | D115: METZ | E115: 557105 | F115: ARS SUR MOSELLE | G115: 3.0 | H115: 106 | I115: 101 | J115: 52 | K115: 194 | L115: 129 | M115: 166 | N115: 68 | O115: 138 | P115: 157 | Q115: 75 | R115: 162 | S115: 196 | T115: 74 | U115: 30 | V115: 31 | W115: 40 | X115: 46
A116: 30 | B116: MEURTHE ET MOSELLE MEUSE | C116: 31 | D116: VERDUN | E116: 554700 | F116: VILLERUPT | G116: 2.8 | H116: 107 | I116: 59 | J116: 54 | K116: 81 | L116: 84 | M116: 78 | N116: 109 | O116: 118 | P116: 119 | Q116: 73 | R116: 126 | S116: 113 | T116: 148 | U116: 204 | V116: 201 | W116: 103 | X116: 236
A117: 30 | B117: VOSGES | C117: 57 | D117: EPINAL | E117: 588716 | F117: XERTIGNY | G117: 2.8 | H117: 108 | I117: 65 | J117: 81 | K117: 25 | L117: 140 | M117: 101 | N117: 205 | O117: 71 | P117: 63 | Q117: 120 | R117: 114 | S117: 59 | T117: 224 | U117: 174 | V117: 179 | W117: 141 | X117: 160
A118: 30 | B118: BAS RHIN | C118: 5060 | D118: HAGUENAU | E118: 4057 | F118: BISCHWILLER | G118: 7.0 | H118: 109 | I118: 79 | J118: 87 | K118: 62 | L118: 61 | M118: 31 | N118: 175 | O118: 149 | P118: 122 | Q118: 199 | R118: 112 | S118: 94 | T118: 143 | U118: 168 | V118: 224 | W118: 51 | X118: 218
A119: 30 | B119: VOSGES | C119: 55 | D119: SAINT DIE | E119: 588386 | F119: LE THILLOT | G119: 2.6 | H119: 110 | I119: 9 | J119: 10 | K119: 24 | L119: 145 | M119: 81 | N119: 236 | O119: 194 | P119: 163 | Q119: 231 | R119: 188 | S119: 166 | T119: 217 | U119: 202 | V119: 215 | W119: 170 | X119: 175
A120: 30 | B120: MEURTHE ET MOSELLE MEUSE | C120: 31 | D120: VERDUN | E120: 455151 | F120: BAR LE DUC | G120: 9.9 | H120: 111 | I120: 63 | J120: 78 | K120: 29 | L120: 126 | M120: 104 | N120: 161 | O120: 155 | P120: 156 | Q120: 115 | R120: 98 | S120: 85 | T120: 124 | U120: 139 | V120: 174 | W120: 65 | X120: 176
A121: 30 | B121: BAS RHIN | C121: 5060 | D121: HAGUENAU | E121: 4041 | F121: HOERDT | G121: 1.7 | H121: 112 | I121: 70 | J121: 67 | K121: 82 | L121: 155 | M121: 140 | N121: 182 | O121: 20 | P121: 9 | Q121: 177 | R121: 147 | S121: 111 | T121: 208 | U121: 217 | V121: 98 | W121: 224 | X121: 219
A122: 30 | B122: BAS RHIN | C122: 5101 | D122: SELESTAT | E122: 4121 | F122: SCHIRMECK | G122: 2.8 | H122: 113 | I122: 53 | J122: 81 | K122: 12 | L122: 59 | M122: 43 | N122: 128 | O122: 203 | P122: 222 | Q122: 81 | R122: 209 | S122: 192 | T122: 209 | U122: 99 | V122: 101 | W122: 95 | X122: 105
A123: 30 | B123: VOSGES | C123: 57 | D123: EPINAL | E123: 488286 | F123: EPINAL ARISTIDE BRIAND | G123: 8.2 | H123: 114 | I123: 165 | J123: 170 | K123: 157 | L123: 38 | M123: 46 | N123: 43 | O123: 64 | P123: 79 | Q123: 46 | R123: 85 | S123: 112 | T123: 60 | U123: 127 | V123: 110 | W123: 204 | X123: 66
A124: 30 | B124: MEURTHE ET MOSELLE MEUSE | C124: 27 | D124: PONT A MOUSSON | E124: 554357 | F124: JOEUF | G124: 3.1 | H124: 115 | I124: 71 | J124: 61 | K124: 106 | L124: 124 | M124: 155 | N124: 81 | O124: 185 | P124: 182 | Q124: 159 | R124: 159 | S124: 186 | T124: 100 | U124: 66 | V124: 102 | W124: 13 | X124: 119
A125: 30 | B125: MEURTHE ET MOSELLE MEUSE | C125: 26 | D125: NANCY | E125: 454426 | F125: LUNEVILLE CARNOT | G125: 8.3 | H125: 116 | I125: 161 | J125: 140 | K125: 196 | L125: 92 | M125: 119 | N125: 64 | O125: 57 | P125: 50 | Q125: 95 | R125: 149 | S125: 185 | T125: 77 | U125: 34 | V125: 58 | W125: 27 | X125: 42
A126: 30 | B126: MOSELLE | C126: 42 | D126: MOSELLE EST | E126: 457543 | F126: PUTTELANGE AUX LACS | G126: 2.4 | H126: 117 | I126: 120 | J126: 127 | K126: 100 | L126: 87 | M126: 87 | N126: 100 | O126: 156 | P126: 181 | Q126: 63 | R126: 72 | S126: 93 | T126: 48 | U126: 87 | V126: 54 | W126: 216 | X126: 49
A127: 30 | B127: MARNE ARDENNES | C127: 2 | D127: CHARLEVILLE MEZIERES | E127: 508802 | F127: CHARLEVILLE NEVERS | G127: 2.8 | H127: 118 | I127: 23 | J127: 33 | K127: 23 | L127: 208 | M127: 193 | N127: 213 | O127: 219 | P127: 220 | Q127: 164 | R127: 88 | S127: 60 | T127: 165 | U127: 117 | V127: 79 | W127: 83 | X127: 196
A128: 30 | B128: MEURTHE ET MOSELLE MEUSE | C128: 27 | D128: PONT A MOUSSON | E128: 454535 | F128: PONT A MOUSSON CENTRALE | G128: 5.3 | H128: 119 | I128: 232 | J128: 194 | K128: 227 | L128: 43 | M128: 67 | N128: 29 | O128: 142 | P128: 113 | Q128: 186 | R128: 54 | S128: 66 | T128: 33 | U128: 28 | V128: 15 | W128: 151 | X128: 25
A129: 30 | B129: VOSGES | C129: 55 | D129: SAINT DIE | E129: 588316 | F129: FRAIZE | G129: 3.6 | H129: 120 | I129: 92 | J129: 107 | K129: 54 | L129: 158 | M129: 144 | N129: 174 | O129: 85 | P129: 76 | Q129: 125 | R129: 91 | S129: 58 | T129: 176 | U129: 112 | V129: 149 | W129: 93 | X129: 94
A130: 30 | B130: MEURTHE ET MOSELLE MEUSE | C130: 31 | D130: VERDUN | E130: 554412 | F130: LONGUYON | G130: 2.8 | H130: 121 | I130: 88 | J130: 104 | K130: 38 | L130: 75 | M130: 89 | N130: 60 | O130: 146 | P130: 140 | Q130: 130 | R130: 130 | S130: 105 | T130: 163 | U130: 150 | V130: 135 | W130: 152 | X130: 122
A131: 30 | B131: BAS RHIN | C131: 5006 | D131: STRASBOURG | E131: 4019 | F131: STRASBOURG ANVERS | G131: 4.5 | H131: 122 | I131: 174 | J131: 190 | K131: 164 | L131: 46 | M131: 52 | N131: 54 | O131: 67 | P131: 94 | Q131: 30 | R131: 78 | S131: 83 | T131: 81 | U131: 104 | V131: 37 | W131: 226 | X131: 90
A132: 30 | B132: BAS RHIN | C132: 5006 | D132: STRASBOURG | E132: 4023 | F132: STRASBOURG VOSGES | G132: 2.9 | H132: 123 | I132: 106 | J132: 87 | K132: 144 | L132: 103 | M132: 103 | N132: 105 | O132: 13 | P132: 11 | Q132: 58 | R132: 189 | S132: 181 | T132: 194 | U132: 207 | V132: 113 | W132: 236 | X132: 144
A133: 30 | B133: MOSELLE | C133: 45 | D133: METZ | E133: 557612 | F133: SAINTE MARIE AUX CHENES | G133: 3.7 | H133: 124 | I133: 34 | J133: 65 | K133: 2 | L133: 223 | M133: 203 | N133: 233 | O133: 60 | P133: 25 | Q133: 239 | R133: 116 | S133: 73 | T133: 197 | U133: 216 | V133: 223 | W133: 215 | X133: 136
A134: 30 | B134: MOSELLE | C134: 44 | D134: MOSELLE NORD | E134: 557307 | F134: FONTOY | G134: 1.9 | H134: 125 | I134: 62 | J134: 61 | K134: 68 | L134: 187 | M134: 176 | N134: 183 | O134: 119 | P134: 86 | Q134: 198 | R134: 206 | S134: 198 | T134: 191 | U134: 64 | V134: 86 | W134: 12 | X134: 129
A135: 110 | B135: MEURTHE ET MOSELLE MEUSE | C135: 26 | D135: NANCY | E135: 554296 | F135: ESSEY LES NANCY | G135: 3.6 | H135: 126 | I135: 47 | J135: 47 | K135: 45 | L135: 130 | M135: 132 | N135: 123 | O135: 153 | P135: 128 | Q135: 192 | R135: 198 | S135: 187 | T135: 198 | U135: 141 | V135: 152 | W135: 192 | X135: 69
A136: 110 | B136: MOSELLE | C136: 42 | D136: MOSELLE EST | E136: 457435 | F136: MERLEBACH | G136: 2.7 | H136: 127 | I136: 94 | J136: 98 | K136: 76 | L136: 137 | M136: 198 | N136: 44 | O136: 188 | P136: 217 | Q136: 56 | R136: 125 | S136: 182 | T136: 32 | U136: 67 | V136: 161 | W136: 10 | X136: 98
A137: 110 | B137: MEURTHE ET MOSELLE MEUSE | C137: 31 | D137: VERDUN | E137: 555624 | F137: STENAY | G137: 3.3 | H137: 128 | I137: 177 | J137: 208 | K137: 159 | L137: 52 | M137: 85 | N137: 27 | O137: 160 | P137: 171 | Q137: 94 | R137: 177 | S137: 209 | T137: 91 | U137: 22 | V137: 82 | W137: 2 | X137: 62
A138: 110 | B138: AUBE HAUTE MARNE | C138: 21 | D138: CHAUMONT | E138: 451156 | F138: SAINT DIZIER CENTRE | G138: 8.5 | H138: 129 | I138: 135 | J138: 120 | K138: 151 | L138: 116 | M138: 138 | N138: 82 | O138: 130 | P138: 124 | Q138: 112 | R138: 70 | S138: 69 | T138: 82 | U138: 102 | V138: 142 | W138: 115 | X138: 76
A139: 110 | B139: MEURTHE ET MOSELLE MEUSE | C139: 27 | D139: PONT A MOUSSON | E139: 554496 | F139: NANCY TROIS MAISONS | G139: 2.3 | H139: 130 | I139: 166 | J139: 205 | K139: 132 | L139: 104 | M139: 120 | N139: 84 | O139: 150 | P139: 142 | Q139: 144 | R139: 66 | S139: 70 | T139: 55 | U139: 52 | V139: 119 | W139: 21 | X139: 65
A140: 110 | B140: MOSELLE | C140: 44 | D140: MOSELLE NORD | E140: 457192 | F140: CATTENOM | G140: 1.6 | H140: 131 | I140: 125 | J140: 116 | K140: 136 | L140: 86 | M140: 72 | N140: 130 | O140: 133 | P140: 158 | Q140: 60 | R140: 148 | S140: 147 | T140: 150 | U140: 83 | V140: 66 | W140: 63 | X140: 158
A141: 110 | B141: HAUT RHIN | C141: 5130 | D141: COLMAR | E141: 4143 | F141: MUNSTER | G141: 4.3 | H141: 132 | I141: 139 | J141: 170 | K141: 71 | L141: 78 | M141: 45 | N141: 193 | O141: 105 | P141: 75 | Q141: 206 | R141: 96 | S141: 65 | T141: 166 | U141: 133 | V141: 169 | W141: 56 | X141: 183
A142: 110 | B142: MEURTHE ET MOSELLE MEUSE | C142: 31 | D142: VERDUN | E142: 455566 | F142: REVIGNY SUR ORNAIN | G142: 2.7 | H142: 133 | I142: 104 | J142: 104 | K142: 92 | L142: 154 | M142: 121 | N142: 206 | O142: 81 | P142: 58 | Q142: 200 | R142: 105 | S142: 79 | T142: 173 | U142: 156 | V142: 235 | W142: 29 | X142: 222
A143: 110 | B143: BAS RHIN | C143: 5006 | D143: STRASBOURG | E143: 4027 | F143: SCHILTIGHEIM CENTRE | G143: 4.0 | H143: 134 | I143: 202 | J143: 208 | K143: 181 | L143: 54 | M143: 51 | N143: 77 | O143: 69 | P143: 68 | Q143: 83 | R143: 73 | S143: 96 | T143: 52 | U143: 126 | V143: 115 | W143: 145 | X143: 110
A144: 110 | B144: VOSGES | C144: 55 | D144: SAINT DIE | E144: 588461 | F144: MOYENMOUTIER | G144: 4.4 | H144: 135 | I144: 87 | J144: 86 | K144: 91 | L144: 102 | M144: 50 | N144: 229 | O144: 128 | P144: 98 | Q144: 210 | R144: 138 | S144: 123 | T144: 164 | U144: 209 | V144: 240 | W144: 112 | X144: 216
A145: 110 | B145: VOSGES | C145: 57 | D145: EPINAL | E145: 588201 | F145: CHANTRAINE | G145: 3.7 | H145: 136 | I145: 90 | J145: 93 | K145: 89 | L145: 93 | M145: 73 | N145: 146 | O145: 95 | P145: 83 | Q145: 122 | R145: 186 | S145: 154 | T145: 230 | U145: 197 | V145: 138 | W145: 219 | X145: 138
A146: 110 | B146: BAS RHIN | C146: 5101 | D146: SELESTAT | E146: 4126 | F146: MUTZIG | G146: 2.7 | H146: 137 | I146: 156 | J146: 208 | K146: 110 | L146: 41 | M146: 20 | N146: 119 | O146: 76 | P146: 88 | Q146: 62 | R146: 161 | S146: 161 | T146: 137 | U146: 162 | V146: 88 | W146: 239 | X146: 75
A147: 110 | B147: BAS RHIN | C147: 5006 | D147: STRASBOURG | E147: 4020 | F147: STRASBOURG ROBERTSAU | G147: 5.3 | H147: 138 | I147: 129 | J147: 140 | K147: 94 | L147: 163 | M147: 162 | N147: 159 | O147: 6 | P147: 3 | Q147: 121 | R147: 207 | S147: 173 | T147: 231 | U147: 206 | V147: 176 | W147: 182 | X147: 207
A148: 110 | B148: BAS RHIN | C148: 5006 | D148: STRASBOURG | E148: 4039 | F148: REICHSTETT | G148: 1.6 | H148: 139 | I148: 127 | J148: 120 | K148: 125 | L148: 147 | M148: 143 | N148: 151 | O148: 46 | P148: 35 | Q148: 116 | R148: 117 | S148: 114 | T148: 120 | U148: 185 | V148: 112 | W148: 212 | X148: 151
A149: 110 | B149: BAS RHIN | C149: 5060 | D149: HAGUENAU | E149: 4031 | F149: TRUCHTERSHEIM | G149: 2.3 | H149: 140 | I149: 51 | J149: 47 | K149: 80 | L149: 64 | M149: 17 | N149: 226 | O149: 129 | P149: 87 | Q149: 227 | R149: 227 | S149: 217 | T149: 233 | U149: 235 | V149: 211 | W149: 218 | X149: 238
A150: 110 | B150: MARNE ARDENNES | C150: 2 | D150: CHARLEVILLE MEZIERES | E150: 408862 | F150: REVIN | G150: 3.8 | H150: 141 | I150: 83 | J150: 96 | K150: 51 | L150: 186 | M150: 180 | N150: 176 | O150: 196 | P150: 202 | Q150: 113 | R150: 80 | S150: 64 | T150: 123 | U150: 137 | V150: 125 | W150: 154 | X150: 107
A151: 110 | B151: VOSGES | C151: 57 | D151: EPINAL | E151: 488706 | F151: VITTEL | G151: 3.1 | H151: 142 | I151: 111 | J151: 124 | K151: 66 | L151: 178 | M151: 153 | N151: 211 | O151: 125 | P151: 95 | Q151: 211 | R151: 106 | S151: 98 | T151: 122 | U151: 120 | V151: 137 | W151: 137 | X151: 87
A152: 110 | B152: VOSGES | C152: 57 | D152: EPINAL | E152: 588206 | F152: CHARMES | G152: 2.7 | H152: 143 | I152: 110 | J152: 145 | K152: 32 | L152: 182 | M152: 194 | N152: 124 | O152: 74 | P152: 46 | Q152: 216 | R152: 129 | S152: 148 | T152: 98 | U152: 164 | V152: 238 | W152: 85 | X152: 137
A153: 110 | B153: MEURTHE ET MOSELLE MEUSE | C153: 26 | D153: NANCY | E153: 554166 | F153: BLAINVILLE | G153: 2.9 | H153: 144 | I153: 178 | J153: 208 | K153: 160 | L153: 71 | M153: 62 | N153: 103 | O153: 157 | P153: 137 | Q153: 169 | R153: 63 | S153: 52 | T153: 78 | U153: 130 | V153: 116 | W153: 159 | X153: 104
A154: 110 | B154: MOSELLE | C154: 42 | D154: MOSELLE EST | E154: 557503 | F154: NEUNKIRCH | G154: 3.2 | H154: 145 | I154: 7 | J154: 6 | K154: 7 | L154: 220 | M154: 205 | N154: 228 | O154: 226 | P154: 211 | Q154: 223 | R154: 231 | S154: 225 | T154: 234 | U154: 212 | V154: 197 | W154: 156 | X154: 220
A155: 110 | B155: MEURTHE ET MOSELLE MEUSE | C155: 26 | D155: NANCY | E155: 554486 | F155: NANCY POINT CENTRAL | G155: 3.0 | H155: 146 | I155: 134 | J155: 94 | K155: 186 | L155: 192 | M155: 215 | N155: 102 | O155: 30 | P155: 26 | Q155: 89 | R155: 157 | S155: 170 | T155: 116 | U155: 135 | V155: 99 | W155: 101 | X155: 184
A156: 110 | B156: AUBE HAUTE MARNE | C156: 21 | D156: CHAUMONT | E156: 410566 | F156: CHAUMONT HOTEL DE VILLE | G156: 10.4 | H156: 147 | I156: 93 | J156: 87 | K156: 108 | L156: 184 | M156: 175 | N156: 167 | O156: 92 | P156: 71 | Q156: 162 | R156: 156 | S156: 132 | T156: 203 | U156: 177 | V156: 165 | W156: 133 | X156: 190
A157: 110 | B157: MOSELLE | C157: 45 | D157: METZ | E157: 557441 | F157: METZ PLAPPEVILLE | G157: 2.4 | H157: 148 | I157: 164 | J157: 140 | K157: 198 | L157: 183 | M157: 199 | N157: 117 | O157: 17 | P157: 8 | Q157: 143 | R157: 169 | S157: 157 | T157: 172 | U157: 95 | V157: 177 | W157: 24 | X157: 169
A158: 110 | B158: BAS RHIN | C158: 5101 | D158: SELESTAT | E158: 4127 | F158: ROSHEIM | G158: 1.7 | H158: 149 | I158: 128 | J158: 131 | K158: 115 | L158: 201 | M158: 192 | N158: 198 | O158: 23 | P158: 12 | Q158: 163 | R158: 187 | S158: 164 | T158: 204 | U158: 146 | V158: 136 | W158: 200 | X158: 71
A159: 110 | B159: HAUT RHIN | C159: 5130 | D159: COLMAR | E159: 4157 | F159: NEUF BRISACH | G159: 2.6 | H159: 150 | I159: 196 | J159: 182 | K159: 192 | L159: 123 | M159: 160 | N159: 73 | O159: 108 | P159: 130 | Q159: 42 | R159: 69 | S159: 75 | T159: 68 | U159: 89 | V159: 160 | W159: 49 | X159: 102
A160: 110 | B160: BAS RHIN | C160: 5006 | D160: STRASBOURG | E160: 4045 | F160: STRASBOURG FRANCS BOURGEOIS | G160: 4.2 | H160: 151 | I160: 119 | J160: 140 | K160: 63 | L160: 73 | M160: 77 | N160: 80 | O160: 183 | P160: 213 | Q160: 52 | R160: 146 | S160: 133 | T160: 171 | U160: 205 | V160: 124 | W160: 223 | X160: 165
A161: 110 | B161: MEURTHE ET MOSELLE MEUSE | C161: 27 | D161: PONT A MOUSSON | E161: 454355 | F161: JARNY | G161: 4.1 | H161: 152 | I161: 103 | J161: 113 | K161: 70 | L161: 151 | M161: 147 | N161: 149 | O161: 132 | P161: 106 | Q161: 175 | R161: 127 | S161: 125 | T161: 135 | U161: 214 | V161: 203 | W161: 185 | X161: 197
A162: 110 | B162: MOSELLE | C162: 45 | D162: METZ | E162: 557459 | F162: MOULINS LES METZ | G162: 2.5 | H162: 153 | I162: 72 | J162: 47 | K162: 146 | L162: 195 | M162: 167 | N162: 223 | O162: 189 | P162: 179 | Q162: 181 | R162: 153 | S162: 116 | T162: 219 | U162: 158 | V162: 189 | W162: 79 | X162: 187
A163: 110 | B163: AUBE HAUTE MARNE | C163: 14 | D163: TROYES | E163: 510513 | F163: SAINT PARRES AUX TERTRES | G163: 2.5 | H163: 154 | I163: 236 | J163: 208 | K163: 235 | L163: 58 | M163: 97 | N163: 30 | O163: 134 | P163: 185 | Q163: 29 | R163: 52 | S163: 56 | T163: 47 | U163: 106 | V163: 94 | W163: 126 | X163: 99
A164: 110 | B164: MEURTHE ET MOSELLE MEUSE | C164: 27 | D164: PONT A MOUSSON | E164: 454651 | F164: TOUL | G164: 9.7 | H164: 155 | I164: 211 | J164: 162 | K164: 219 | L164: 173 | M164: 187 | N164: 129 | O164: 94 | P164: 91 | Q164: 92 | R164: 81 | S164: 101 | T164: 57 | U164: 62 | V164: 46 | W164: 82 | X164: 77
A165: 110 | B165: MOSELLE | C165: 42 | D165: MOSELLE EST | E165: 557210 | F165: CHATEAU SALINS | G165: 1.7 | H165: 156 | I165: 173 | J165: 208 | K165: 152 | L165: 121 | M165: 117 | N165: 127 | O165: 177 | P165: 172 | Q165: 170 | R165: 35 | S165: 32 | T165: 79 | U165: 151 | V165: 212 | W165: 47 | X165: 206
A166: 110 | B166: BAS RHIN | C166: 5060 | D166: HAGUENAU | E166: 4085 | F166: INGWILLER | G166: 3.5 | H166: 157 | I166: 126 | J166: 107 | K166: 161 | L166: 153 | M166: 157 | N166: 139 | O166: 172 | P166: 170 | Q166: 156 | R166: 136 | S166: 146 | T166: 115 | U166: 125 | V166: 168 | W166: 50 | X166: 185
A167: 110 | B167: VOSGES | C167: 55 | D167: SAINT DIE | E167: 488556 | F167: RAON L ETAPE | G167: 2.2 | H167: 158 | I167: 74 | J167: 61 | K167: 124 | L167: 226 | M167: 231 | N167: 142 | O167: 230 | P167: 228 | Q167: 184 | R167: 160 | S167: 184 | T167: 103 | U167: 69 | V167: 233 | W167: 8 | X167: 72
A168: 110 | B168: MARNE ARDENNES | C168: 11 | D168: REIMS | E168: 551309 | F168: REIMS EUROPE | G168: 2.9 | H168: 159 | I168: 138 | J168: 81 | K168: 211 | L168: 138 | M168: 184 | N168: 62 | O168: 210 | P168: 225 | Q168: 86 | R168: 97 | S168: 131 | T168: 50 | U168: 140 | V168: 75 | W168: 235 | X168: 70
A169: 110 | B169: MARNE ARDENNES | C169: 2 | D169: CHARLEVILLE MEZIERES | E169: 408806 | F169: SEDAN | G169: 7.6 | H169: 160 | I169: 98 | J169: 118 | K169: 41 | L169: 161 | M169: 148 | N169: 184 | O169: 167 | P169: 180 | Q169: 101 | R169: 219 | S169: 200 | T169: 235 | U169: 107 | V169: 109 | W169: 117 | X169: 95
A170: 110 | B170: AUBE HAUTE MARNE | C170: 14 | D170: TROYES | E170: 510523 | F170: LA CHAPELLE ST LUC | G170: 4.7 | H170: 161 | I170: 233 | J170: 194 | K170: 230 | L170: 118 | M170: 165 | N170: 52 | O170: 104 | P170: 132 | Q170: 38 | R170: 45 | S170: 68 | T170: 25 | U170: 118 | V170: 128 | W170: 132 | X170: 93
A171: 110 | B171: BAS RHIN | C171: 5006 | D171: STRASBOURG | E171: 4028 | F171: BISCHHEIM | G171: 3.2 | H171: 162 | I171: 171 | J171: 208 | K171: 147 | L171: 174 | M171: 179 | N171: 144 | O171: 47 | P171: 49 | Q171: 66 | R171: 77 | S171: 86 | T171: 67 | U171: 195 | V171: 187 | W171: 175 | X171: 178
A172: 110 | B172: MEURTHE ET MOSELLE MEUSE | C172: 26 | D172: NANCY | E172: 554266 | F172: DOMBASLE SUR MEURTHE | G172: 3.3 | H172: 163 | I172: 182 | J172: 208 | K172: 162 | L172: 214 | M172: 216 | N172: 185 | O172: 42 | P172: 31 | Q172: 136 | R172: 103 | S172: 127 | T172: 75 | U172: 80 | V172: 140 | W172: 20 | X172: 159
A173: 110 | B173: BAS RHIN | C173: 5101 | D173: SELESTAT | E173: 4007 | F173: ILLKIRCH CENTRE | G173: 6.5 | H173: 164 | I173: 183 | J173: 165 | K173: 182 | L173: 141 | M173: 129 | N173: 165 | O173: 178 | P173: 178 | Q173: 155 | R173: 42 | S173: 34 | T173: 96 | U173: 134 | V173: 96 | W173: 142 | X173: 139
A174: 110 | B174: BAS RHIN | C174: 5101 | D174: SELESTAT | E174: 4008 | F174: FEGERSHEIM | G174: 2.4 | H174: 165 | I174: 114 | J174: 115 | K174: 112 | L174: 111 | M174: 56 | N174: 224 | O174: 83 | P174: 54 | Q174: 217 | R174: 204 | S174: 177 | T174: 226 | U174: 234 | V174: 220 | W174: 227 | X174: 223
A175: 110 | B175: HAUT RHIN | C175: 5169 | D175: MULHOUSE | E175: 4180 | F175: RIEDISHEIM | G175: 3.3 | H175: 166 | I175: 86 | J175: 67 | K175: 149 | L175: 169 | M175: 142 | N175: 204 | O175: 225 | P175: 215 | Q175: 213 | R175: 115 | S175: 97 | T175: 142 | U175: 221 | V175: 114 | W175: 229 | X175: 209
A176: 110 | B176: MARNE ARDENNES | C176: 6 | D176: CHALONS EN CHAMPAGNE | E176: 451166 | F176: VITRY LE FRANCOIS | G176: 3.7 | H176: 167 | I176: 218 | J176: 208 | K176: 212 | L176: 76 | M176: 92 | N176: 65 | O176: 234 | P176: 234 | Q176: 51 | R176: 139 | S176: 155 | T176: 112 | U176: 23 | V176: 69 | W176: 17 | X176: 26
A177: 160 | B177: MARNE ARDENNES | C177: 2 | D177: CHARLEVILLE MEZIERES | E177: 508815 | F177: CARIGNAN | G177: 2.7 | H177: 168 | I177: 82 | J177: 70 | K177: 121 | L177: 156 | M177: 174 | N177: 104 | O177: 168 | P177: 176 | Q177: 118 | R177: 224 | S177: 224 | T177: 189 | U177: 179 | V177: 129 | W177: 205 | X177: 127
A178: 160 | B178: BAS RHIN | C178: 5101 | D178: SELESTAT | E178: 4107 | F178: VILLE | G178: 2.2 | H178: 169 | I178: 212 | J178: 208 | K178: 200 | L178: 63 | M178: 19 | N178: 218 | O178: 39 | P178: 21 | Q178: 196 | R178: 150 | S178: 115 | T178: 212 | U178: 232 | V178: 234 | W178: 188 | X178: 230
A179: 160 | B179: MOSELLE | C179: 45 | D179: METZ | E179: 557436 | F179: METZ CATHEDRALE | G179: 4.0 | H179: 170 | I179: 222 | J179: 208 | K179: 216 | L179: 106 | M179: 91 | N179: 134 | O179: 62 | P179: 45 | Q179: 154 | R179: 100 | S179: 84 | T179: 129 | U179: 169 | V179: 184 | W179: 134 | X179: 157
A180: 160 | B180: MOSELLE | C180: 45 | D180: METZ | E180: 557559 | F180: REMILLY | G180: 3.4 | H180: 171 | I180: 144 | J180: 128 | K180: 172 | L180: 142 | M180: 122 | N180: 179 | O180: 139 | P180: 120 | Q180: 161 | R180: 202 | S180: 214 | T180: 147 | U180: 90 | V180: 126 | W180: 58 | X180: 106
A181: 160 | B181: AUBE HAUTE MARNE | C181: 14 | D181: TROYES | E181: 410550 | F181: BAR SUR AUBE | G181: 5.2 | H181: 172 | I181: 91 | J181: 92 | K181: 103 | L181: 171 | M181: 156 | N181: 180 | O181: 205 | P181: 192 | Q181: 207 | R181: 193 | S181: 188 | T181: 188 | U181: 159 | V181: 209 | W181: 62 | X181: 198
A182: 160 | B182: MOSELLE | C182: 42 | D182: MOSELLE EST | E182: 457614 | F182: SARREBOURG | G182: 7.5 | H182: 173 | I182: 136 | J182: 134 | K182: 119 | L182: 162 | M182: 145 | N182: 189 | O182: 161 | P182: 159 | Q182: 126 | R182: 144 | S182: 121 | T182: 186 | U182: 166 | V182: 148 | W182: 111 | X182: 201
A183: 160 | B183: HAUT RHIN | C183: 5169 | D183: MULHOUSE | E183: 4170 | F183: MULHOUSE REUNION | G183: 7.7 | H183: 174 | I183: 147 | J183: 124 | K183: 191 | L183: 149 | M183: 161 | N183: 121 | O183: 208 | P183: 208 | Q183: 151 | R183: 104 | S183: 142 | T183: 54 | U183: 124 | V183: 93 | W183: 120 | X183: 135
A184: 160 | B184: BAS RHIN | C184: 5006 | D184: STRASBOURG | E184: 4029 | F184: SCHILTIGHEIM KLEBER | G184: 0.8 | H184: 175 | I184: 149 | J184: 149 | K184: 165 | L184: 236 | M184: 233 | N184: 166 | O184: 52 | P184: 37 | Q184: 132 | R184: 109 | S184: 216 | T184: 6 | U184: 121 | V184: 167 | W184: 89 | X184: 113
A185: 160 | B185: MOSELLE | C185: 45 | D185: METZ | E185: 557712 | F185: WOIPPY | G185: 4.4 | H185: 176 | I185: 203 | J185: 134 | K185: 231 | L185: 108 | M185: 102 | N185: 120 | O185: 122 | P185: 135 | Q185: 67 | R185: 111 | S185: 103 | T185: 118 | U185: 154 | V185: 130 | W185: 129 | X185: 166
A186: 160 | B186: HAUT RHIN | C186: 5130 | D186: COLMAR | E186: 4132 | F186: COLMAR MARAICHERS | G186: 3.7 | H186: 177 | I186: 141 | J186: 145 | K186: 155 | L186: 132 | M186: 112 | N186: 158 | O186: 98 | P186: 85 | Q186: 140 | R186: 183 | S186: 159 | T186: 202 | U186: 213 | V186: 219 | W186: 131 | X186: 225
A187: 160 | B187: BAS RHIN | C187: 5060 | D187: HAGUENAU | E187: 4082 | F187: BOUXWILLER | G187: 2.3 | H187: 178 | I187: 50 | J187: 59 | K187: 43 | L187: 199 | M187: 190 | N187: 199 | O187: 239 | P187: 239 | Q187: 138 | R187: 122 | S187: 137 | T187: 99 | U187: 122 | V187: 97 | W187: 144 | X187: 109
A188: 160 | B188: MOSELLE | C188: 44 | D188: MOSELLE NORD | E188: 457180 | F188: BOUSSE | G188: 2.5 | H188: 179 | I188: 8 | J188: 8 | K188: 31 | L188: 224 | M188: 169 | N188: 241 | O188: 199 | P188: 145 | Q188: 241 | R188: 237 | S188: 229 | T188: 241 | U188: 241 | V188: 236 | W188: 241 | X188: 241
A189: 160 | B189: BAS RHIN | C189: 5101 | D189: SELESTAT | E189: 4109 | F189: MARCKOLSHEIM | G189: 2.5 | H189: 180 | I189: 142 | J189: 194 | K189: 60 | L189: 148 | M189: 124 | N189: 191 | O189: 202 | P189: 209 | Q189: 123 | R189: 155 | S189: 175 | T189: 105 | U189: 160 | V189: 192 | W189: 125 | X189: 134
A190: 160 | B190: MEURTHE ET MOSELLE MEUSE | C190: 27 | D190: PONT A MOUSSON | E190: 454696 | F190: VILLERS GENERAL LECLERC | G190: 4.0 | H190: 181 | I190: 168 | J190: 208 | K190: 129 | L190: 203 | M190: 212 | N190: 147 | O190: 21 | P190: 13 | Q190: 148 | R190: 180 | S190: 167 | T190: 177 | U190: 224 | V190: 188 | W190: 214 | X190: 191
A191: 160 | B191: MARNE ARDENNES | C191: 2 | D191: CHARLEVILLE MEZIERES | E191: 508860 | F191: ROCROI | G191: 2.4 | H191: 182 | I191: 214 | J191: 206 | K191: 203 | L191: 97 | M191: 100 | N191: 99 | O191: 184 | P191: 184 | Q191: 149 | R191: 143 | S191: 151 | T191: 128 | U191: 119 | V191: 95 | W191: 174 | X191: 85
A192: 160 | B192: MARNE ARDENNES | C192: 11 | D192: REIMS | E192: 451308 | F192: REIMS SAINT THOMAS | G192: 5.5 | H192: 183 | I192: 237 | J192: 191 | K192: 237 | L192: 107 | M192: 118 | N192: 96 | O192: 216 | P192: 227 | Q192: 91 | R192: 102 | S192: 106 | T192: 97 | U192: 63 | V192: 38 | W192: 161 | X192: 48
A193: 160 | B193: MOSELLE | C193: 45 | D193: METZ | E193: 557440 | F193: METZ MOZART | G193: 3.0 | H193: 184 | I193: 158 | J193: 208 | K193: 116 | L193: 159 | M193: 128 | N193: 208 | O193: 82 | P193: 55 | Q193: 212 | R193: 151 | S193: 110 | T193: 218 | U193: 226 | V193: 164 | W193: 232 | X193: 193
A194: 160 | B194: AUBE HAUTE MARNE | C194: 14 | D194: TROYES | E194: 410510 | F194: TROYES GAMBETTA | G194: 8.7 | H194: 185 | I194: 198 | J194: 185 | K194: 193 | L194: 133 | M194: 133 | N194: 135 | O194: 179 | P194: 173 | Q194: 171 | R194: 119 | S194: 117 | T194: 121 | U194: 138 | V194: 91 | W194: 186 | X194: 114
A195: 160 | B195: MEURTHE ET MOSELLE MEUSE | C195: 27 | D195: PONT A MOUSSON | E195: 554196 | F195: CHAMPIGNEULLES | G195: 2.5 | H195: 186 | I195: 170 | J195: 208 | K195: 138 | L195: 202 | M195: 182 | N195: 219 | O195: 152 | P195: 127 | Q195: 191 | R195: 71 | S195: 48 | T195: 119 | U195: 181 | V195: 103 | W195: 198 | X195: 181
A196: 160 | B196: BAS RHIN | C196: 5060 | D196: HAGUENAU | E196: 4060 | F196: HAGUENAU HOUBLON | G196: 8.6 | H196: 187 | I196: 186 | J196: 162 | K196: 188 | L196: 180 | M196: 164 | N196: 195 | O196: 87 | P196: 65 | Q196: 187 | R196: 131 | S196: 109 | T196: 160 | U196: 194 | V196: 199 | W196: 146 | X196: 204
A197: 160 | B197: MEURTHE ET MOSELLE MEUSE | C197: 26 | D197: NANCY | E197: 554491 | F197: NANCY SAINT SEBASTIEN | G197: 3.5 | H197: 188 | I197: 122 | J197: 114 | K197: 134 | L197: 207 | M197: 220 | N197: 137 | O197: 164 | P197: 136 | Q197: 204 | R197: 199 | S197: 199 | T197: 178 | U197: 163 | V197: 120 | W197: 165 | X197: 152
A198: 160 | B198: MOSELLE | C198: 45 | D198: METZ | E198: 557433 | F198: MARANGE SILVANGE | G198: 2.8 | H198: 189 | I198: 180 | J198: 166 | K198: 180 | L198: 189 | M198: 170 | N198: 200 | O198: 166 | P198: 146 | Q198: 190 | R198: 154 | S198: 149 | T198: 159 | U198: 79 | V198: 196 | W198: 18 | X198: 125
A199: 160 | B199: MEURTHE ET MOSELLE MEUSE | C199: 26 | D199: NANCY | E199: 454671 | F199: VANDOEUVRE LES NANCY | G199: 4.0 | H199: 190 | I199: 187 | J199: 151 | K199: 208 | L199: 157 | M199: 171 | N199: 110 | O199: 143 | P199: 109 | Q199: 214 | R199: 152 | S199: 153 | T199: 144 | U199: 152 | V199: 65 | W199: 181 | X199: 186
A200: 160 | B200: HAUT RHIN | C200: 5169 | D200: MULHOUSE | E200: 4178 | F200: SAINT LOUIS | G200: 6.5 | H200: 191 | I200: 181 | J200: 159 | K200: 189 | L200: 152 | M200: 158 | N200: 132 | O200: 79 | P200: 67 | Q200: 135 | R200: 163 | S200: 160 | T200: 140 | U200: 219 | V200: 150 | W200: 211 | X200: 210
A201: 160 | B201: MARNE ARDENNES | C201: 2 | D201: CHARLEVILLE MEZIERES | E201: 508819 | F201: MOUZON | G201: 1.9 | H201: 192 | I201: 131 | J201: 134 | K201: 114 | L201: 231 | M201: 237 | N201: 101 | O201: 68 | P201: 61 | Q201: 104 | R201: 233 | S201: 238 | T201: 89 | U201: 136 | V201: 154 | W201: 233 | X201: 33
A202: 160 | B202: VOSGES | C202: 57 | D202: EPINAL | E202: 488256 | F202: DARNEY | G202: 1.6 | H202: 193 | I202: 37 | J202: 18 | K202: 135 | L202: 229 | M202: 228 | N202: 187 | O202: 237 | P202: 236 | Q202: 236 | R202: 170 | S202: 179 | T202: 126 | U202: 229 | V202: 216 | W202: 179 | X202: 239
A203: 160 | B203: BAS RHIN | C203: 5101 | D203: SELESTAT | E203: 4101 | F203: SELESTAT CENTRE | G203: 7.9 | H203: 194 | I203: 185 | J203: 182 | K203: 176 | L203: 135 | M203: 94 | N203: 201 | O203: 180 | P203: 150 | Q203: 226 | R203: 140 | S203: 140 | T203: 130 | U203: 182 | V203: 207 | W203: 119 | X203: 188
A204: 160 | B204: HAUT RHIN | C204: 5130 | D204: COLMAR | E204: 4130 | F204: COLMAR REPUBLIQUE | G204: 6.0 | H204: 195 | I204: 205 | J204: 170 | K204: 210 | L204: 176 | M204: 141 | N204: 217 | O204: 170 | P204: 147 | Q204: 201 | R204: 64 | S204: 37 | T204: 145 | U204: 199 | V204: 173 | W204: 183 | X204: 192
... 47 more rows

Sheet AG_FICHE
A1: Accueil
A2: BAROMETRE GRAND PUBLIC
A4: UNITE: | B4: Agence | E4: ETP perf : | F4: =VLOOKUP(A5,'RECAP AG'!$G$6:$CY$248,3,FALSE) -> 5.47
A5: =VLOOKUP(B5,LISTES!$C$6:$D$246,2,FALSE) -> 4189 | B5: ALTKIRCH
C6: Coefficient du critère | E6: Résultats | I6: Ecart au 1ier | K6: =IF(OR(A5=4017,A5=4022),"Rang estimé","Rang") -> Rang
E7: du 1ier | G7: de l'Agence
A9: RANG GRAND PUBLIC | K9: =VLOOKUP($A$5,'RECAP AG'!$G$6:$CY$248,96,FALSE) -> 241
A11: SATISFACTION CLIENTS | C11: 20% | K11: =VLOOKUP($A$5,'RECAP AG'!$G$6:$CY$248,13,FALSE) -> 241
B12: NPS à froid (SAE) | C12: 10% | E12: =+'RECAP AG'!K4 -> 57 | G12: =VLOOKUP($A$5,'RECAP AG'!$G$6:$CY$248,5,FALSE) -> 0.0 | I12: =VLOOKUP($A$5,'RECAP AG'!$G$6:$CY$248,6,FALSE) -> 100% | K12: =VLOOKUP($A$5,'RECAP AG'!$G$6:$CY$248,7,FALSE) -> 208
B13: NPS à chaud (QHD) | C13: 10% | E13: =+'RECAP AG'!N4 -> 89% | G13: =VLOOKUP($A$5,'RECAP AG'!$G$6:$CY$248,8,FALSE) -> 10% | I13: =VLOOKUP($A$5,'RECAP AG'!$G$6:$CY$248,9,FALSE) -> 88% | K13: =VLOOKUP($A$5,'RECAP AG'!$G$6:$CY$248,10,FALSE) -> 241
A15: BANCARISATION | C15: 20% | K15: =VLOOKUP($A$5,'RECAP AG'!$G$6:$CY$248,28,FALSE) -> 238
B16: Ventes Nettes produits pondérés | C16: 12% | E16: ='RECAP AG'!X4 -> 102.3 | G16: =VLOOKUP($A$5,'RECAP AG'!$G$6:$CY$248,19,FALSE) -> -10.9 | I16: =VLOOKUP($A$5,'RECAP AG'!$G$6:$CY$248,20,FALSE) -> 111% | K16: =VLOOKUP($A$5,'RECAP AG'!$G$6:$CY$248,21,FALSE) -> 234
B17: Ventes sur client non détenteur de l’univers | C17: 8% | E17: ='RECAP AG'!AB4 -> 142.2 | G17: =VLOOKUP($A$5,'RECAP AG'!$G$6:$CY$248,23,FALSE) -> 31.8 | I17: =VLOOKUP($A$5,'RECAP AG'!$G$6:$CY$248,24,FALSE) -> 78% | K17: =VLOOKUP($A$5,'RECAP AG'!$G$6:$CY$248,25,FALSE) -> 235
A19: EPARGNE | C19: 20% | K19: =VLOOKUP($A$5,'RECAP AG'!$G$6:$CY$248,43,FALSE) -> 233
B20: Excédent Epargne hors DAV pondéré | C20: 12% | E20: ='RECAP AG'!AM4 -> 3197.6 | G20: =VLOOKUP($A$5,'RECAP AG'!$G$6:$CY$248,34,FALSE) -> -318.7 | I20: =VLOOKUP($A$5,'RECAP AG'!$G$6:$CY$248,35,FALSE) -> 110% | K20: =VLOOKUP($A$5,'RECAP AG'!$G$6:$CY$248,36,FALSE) -> 230
B21: Ventes sur client non détenteur de l’univers | C21: 8% | E21: ='RECAP AG'!AQ4 -> 271.4 | G21: =VLOOKUP($A$5,'RECAP AG'!$G$6:$CY$248,38,FALSE) -> 30.3 | I21: =VLOOKUP($A$5,'RECAP AG'!$G$6:$CY$248,39,FALSE) -> 89% | K21: =VLOOKUP($A$5,'RECAP AG'!$G$6:$CY$248,40,FALSE) -> 235
A23: IARD PREVOYANCE | C23: 20% | K23: =VLOOKUP($A$5,'RECAP AG'!$G$6:$CY$248,77,FALSE) -> 238
B24: Ventes Nettes produits pondérés | C24: 12% | E24: ='RECAP AG'!BU4 -> 661.7 | G24: =VLOOKUP($A$5,'RECAP AG'!$G$6:$CY$248,68,FALSE) -> -69.1 | I24: =VLOOKUP($A$5,'RECAP AG'!$G$6:$CY$248,69,FALSE) -> 103% | K24: =VLOOKUP($A$5,'RECAP AG'!$G$6:$CY$248,70,FALSE) -> 237
B25: Ventes sur client non détenteur de l’univers | C25: 8% | E25: ='RECAP AG'!BY4 -> 146.8 | G25: =VLOOKUP($A$5,'RECAP AG'!$G$6:$CY$248,72,FALSE) -> 23.6 | I25: =VLOOKUP($A$5,'RECAP AG'!$G$6:$CY$248,73,FALSE) -> 84% | K25: =VLOOKUP($A$5,'RECAP AG'!$G$6:$CY$248,74,FALSE) -> 223
A27: CREDITS | C27: 20% | K27: =VLOOKUP($A$5,'RECAP AG'!$G$6:$CY$248,62,FALSE) -> 238
B28: Engagements et ventes accessoires pondérés Immo | C28: 6% | E28: ='RECAP AG'!BB4 -> 1250.9 | G28: =VLOOKUP($A$5,'RECAP AG'!$G$6:$CY$248,49,FALSE) -> 85.4 | I28: =VLOOKUP($A$5,'RECAP AG'!$G$6:$CY$248,50,FALSE) -> 93% | K28: =VLOOKUP($A$5,'RECAP AG'!$G$6:$CY$248,51,FALSE) -> 239
B29: Engagements et ventes accessoires pondérés Conso | C29: 6% | E29: ='RECAP AG'!BF4 -> 102.6 | G29: =VLOOKUP($A$5,'RECAP AG'!$G$6:$CY$248,53,FALSE) -> 33.8 | I29: =VLOOKUP($A$5,'RECAP AG'!$G$6:$CY$248,54,FALSE) -> 67% | K29: =VLOOKUP($A$5,'RECAP AG'!$G$6:$CY$248,55,FALSE) -> 213
B30: Ventes sur client non détenteur de l’univers | C30: 8% | E30: ='RECAP AG'!BJ4 -> 83.1 | G30: =VLOOKUP($A$5,'RECAP AG'!$G$6:$CY$248,57,FALSE) -> 11.0 | I30: =VLOOKUP($A$5,'RECAP AG'!$G$6:$CY$248,58,FALSE) -> 87% | K30: =VLOOKUP($A$5,'RECAP AG'!$G$6:$CY$248,59,FALSE) -> 233

Sheet AG_TOTAL
B1: Accueil | H1: BAROMETRE BDD - AGENCES
H2: TOTAL GENERAL
H3: =ACCUEIL!F7 -> 2022-09-18
H7: TOTAL GENERAL | K7: Total Satisfaction Clients | N7: Total Bancarisation | Q7: Total Epargne | T7: Total IARD Prévoyance | W7: Total Crédits
I8: coef | J8: =M8+P8+S8+V8+Y8 -> 100% | L8: coef | M8: =AG_SATISFACTION!P8 -> 20% | O8: coef | P8: =AG_BANCA!R8 -> 20% | R8: coef | S8: =AG_EPARGNE!R8 -> 20% | U8: coef | V8: =AG_IARD!R8 -> 20% | X8: coef | Y8: =AG_CREDIT!V8 -> 20%
B9: Direction | C9: eds | D9: Territoire | E9: eds | F9: Agence | G9: ="ETP perf "&DATEMAJ!$C$28 -> ETP perf 18-sept | H9: Moyenne ecart au 1er | I9: % Ecart au 1er | J9: Rang CEGEE | K9: Moyenne ecart au 1er | L9: % Ecart au 1er | M9: Rang CEGEE | N9: Moyenne ecart au 1er | O9: % Ecart au 1er | P9: Rang CEGEE | Q9: Moyenne ecart au 1er | R9: % Ecart au 1er | S9: Rang CEGEE | T9: Moyenne ecart au 1er | U9: % Ecart au 1er | V9: Rang CEGEE | W9: Moyenne ecart au 1er | X9: % Ecart au 1er | Y9: Rang CEGEE
A10: 50 | B10: MOSELLE | C10: 44 | D10: MOSELLE NORD | E10: 557508 | F10: NILVANGE | G10: 1.5 | H10: 12% | I10: 0% | J10: 1 | K10: 38% | L10: 38% | M10: 66 | N10: 0% | O10: 0% | P10: 1 | Q10: 56% | R10: 24% | S10: 2 | T10: 0% | U10: 0% | V10: 1 | W10: 0% | X10: 0% | Y10: 1
A11: 50 | B11: VOSGES | C11: 57 | D11: EPINAL | E11: 488288 | F11: EPINAL LEOPOLD BOURG | G11: 2.0 | H11: 43% | I11: 30% | J11: 2 | K11: 5% | L11: 5% | M11: 2 | N11: 54% | O11: 54% | P11: 24 | Q11: 64% | R11: 33% | S11: 5 | T11: 69% | U11: 69% | V11: 55 | W11: 53% | X11: 53% | Y11: 25
A12: 50 | B12: MARNE ARDENNES | C12: 11 | D12: REIMS | E12: 551305 | F12: REIMS HIPPODROME | G12: 5.2 | H12: 45% | I12: 33% | J12: 3 | K12: 39% | L12: 39% | M12: 68 | N12: 49% | O12: 49% | P12: 12 | Q12: 74% | R12: 42% | S12: 22 | T12: 56% | U12: 56% | V12: 7 | W12: 39% | X12: 39% | Y12: 6
A13: 50 | B13: MARNE ARDENNES | C13: 6 | D13: CHALONS EN CHAMPAGNE | E13: 451115 | F13: MOURMELON LE GRAND | G13: 2.8 | H13: 45% | I13: 33% | J13: 4 | K13: 43% | L13: 43% | M13: 78 | N13: 37% | O13: 37% | P13: 2 | Q13: 72% | R13: 40% | S13: 16 | T13: 60% | U13: 60% | V13: 15 | W13: 47% | X13: 47% | Y13: 16
A14: 50 | B14: MOSELLE | C14: 44 | D14: MOSELLE NORD | E14: 557660 | F14: UCKANGE | G14: 1.8 | H14: 46% | I14: 34% | J14: 5 | K14: 75% | L14: 75% | M14: 220 | N14: 49% | O14: 49% | P14: 11 | Q14: 72% | R14: 41% | S14: 19 | T14: 39% | U14: 39% | V14: 2 | W14: 28% | X14: 28% | Y14: 2
A15: 50 | B15: MARNE ARDENNES | C15: 6 | D15: CHALONS EN CHAMPAGNE | E15: 551330 | F15: MONTMIRAIL | G15: 2.8 | H15: 47% | I15: 35% | J15: 6 | K15: 18% | L15: 18% | M15: 11 | N15: 52% | O15: 52% | P15: 17 | Q15: 78% | R15: 47% | S15: 40 | T15: 57% | U15: 57% | V15: 9 | W15: 63% | X15: 63% | Y15: 73
A16: 50 | B16: MARNE ARDENNES | C16: 2 | D16: CHARLEVILLE MEZIERES | E16: 508820 | F16: VOUZIERS | G16: 2.9 | H16: 47% | I16: 35% | J16: 7 | K16: 28% | L16: 28% | M16: 29 | N16: 59% | O16: 59% | P16: 35 | Q16: 77% | R16: 45% | S16: 33 | T16: 50% | U16: 50% | V16: 3 | W16: 55% | X16: 55% | Y16: 35
A17: 50 | B17: MARNE ARDENNES | C17: 11 | D17: REIMS | E17: 551340 | F17: BETHENY | G17: 2.3 | H17: 48% | I17: 35% | J17: 8 | K17: 33% | L17: 33% | M17: 45 | N17: 43% | O17: 43% | P17: 6 | Q17: 76% | R17: 44% | S17: 28 | T17: 74% | U17: 74% | V17: 84 | W17: 45% | X17: 45% | Y17: 12
A18: 50 | B18: MEURTHE ET MOSELLE MEUSE | C18: 26 | D18: NANCY | E18: 554476 | F18: NANCY ARTEM | G18: 2.8 | H18: 48% | I18: 36% | J18: 9 | K18: 30% | L18: 30% | M18: 40 | N18: 48% | O18: 48% | P18: 9 | Q18: 90% | R18: 59% | S18: 154 | T18: 68% | U18: 68% | V18: 48 | W18: 35% | X18: 35% | Y18: 3
A19: 50 | B19: MARNE ARDENNES | C19: 11 | D19: REIMS | E19: 551349 | F19: REIMS SAINT REMI | G19: 2.9 | H19: 50% | I19: 37% | J19: 10 | K19: 53% | L19: 53% | M19: 123 | N19: 39% | O19: 39% | P19: 3 | Q19: 84% | R19: 53% | S19: 91 | T19: 61% | U19: 61% | V19: 18 | W19: 43% | X19: 43% | Y19: 10
A20: 50 | B20: MOSELLE | C20: 44 | D20: MOSELLE NORD | E20: 557113 | F20: AUDUN LE TICHE | G20: 2.1 | H20: 50% | I20: 38% | J20: 11 | K20: 52% | L20: 52% | M20: 118 | N20: 47% | O20: 47% | P20: 8 | Q20: 74% | R20: 43% | S20: 25 | T20: 63% | U20: 63% | V20: 21 | W20: 47% | X20: 47% | Y20: 13
A21: 50 | B21: MARNE ARDENNES | C21: 6 | D21: CHALONS EN CHAMPAGNE | E21: 451120 | F21: SARRY | G21: 2.3 | H21: 50% | I21: 38% | J21: 12 | K21: 10% | L21: 10% | M21: 6 | N21: 56% | O21: 56% | P21: 28 | Q21: 86% | R21: 55% | S21: 117 | T21: 68% | U21: 68% | V21: 46 | W21: 62% | X21: 62% | Y21: 71
A22: 50 | B22: MOSELLE | C22: 45 | D22: METZ | E22: 457443 | F22: METZ REPUBLIQUE | G22: 3.5 | H22: 51% | I22: 38% | J22: 13 | K22: 31% | L22: 31% | M22: 41 | N22: 68% | O22: 68% | P22: 77 | Q22: 60% | R22: 28% | S22: 3 | T22: 59% | U22: 59% | V22: 12 | W22: 68% | X22: 68% | Y22: 105
A23: 50 | B23: MOSELLE | C23: 42 | D23: MOSELLE EST | E23: 457165 | F23: BITCHE | G23: 2.5 | H23: 51% | I23: 39% | J23: 14 | K23: 20% | L23: 20% | M23: 15 | N23: 50% | O23: 50% | P23: 15 | Q23: 85% | R23: 54% | S23: 100 | T23: 63% | U23: 63% | V23: 20 | W23: 68% | X23: 68% | Y23: 115
A24: 50 | B24: MARNE ARDENNES | C24: 11 | D24: REIMS | E24: 551365 | F24: DORMANS | G24: 2.6 | H24: 51% | I24: 39% | J24: 15 | K24: 36% | L24: 36% | M24: 56 | N24: 42% | O24: 42% | P24: 4 | Q24: 89% | R24: 57% | S24: 136 | T24: 67% | U24: 67% | V24: 37 | W24: 53% | X24: 53% | Y24: 27
A25: 50 | B25: MEURTHE ET MOSELLE MEUSE | C25: 27 | D25: PONT A MOUSSON | E25: 554381 | F25: LAXOU ARISTIDE BRIAND | G25: 2.3 | H25: 51% | I25: 39% | J25: 16 | K25: 64% | L25: 64% | M25: 163 | N25: 42% | O25: 42% | P25: 5 | Q25: 81% | R25: 49% | S25: 58 | T25: 60% | U25: 60% | V25: 16 | W25: 40% | X25: 40% | Y25: 8
A26: 50 | B26: BAS RHIN | C26: 5006 | D26: STRASBOURG | E26: 4048 | F26: STRASBOURG KOENIGSHOFFEN | G26: 1.7 | H26: 51% | I26: 39% | J26: 17 | K26: 67% | L26: 67% | M26: 175 | N26: 48% | O26: 48% | P26: 10 | Q26: 68% | R26: 36% | S26: 7 | T26: 57% | U26: 57% | V26: 8 | W26: 49% | X26: 49% | Y26: 20
A27: 50 | B27: BAS RHIN | C27: 5006 | D27: STRASBOURG | E27: 4037 | F27: MUNDOLSHEIM | G27: 3.8 | H27: 52% | I27: 39% | J27: 18 | K27: 36% | L27: 36% | M27: 54 | N27: 52% | O27: 52% | P27: 20 | Q27: 90% | R27: 59% | S27: 159 | T27: 58% | U27: 58% | V27: 10 | W27: 53% | X27: 53% | Y27: 26
A28: 262 | B28: MOSELLE | C28: 45 | D28: METZ | E28: 457453 | F28: MONTIGNY LES METZ | G28: 6.9 | H28: 53% | I28: 40% | J28: 19 | K28: 18% | L28: 18% | M28: 10 | N28: 62% | O28: 62% | P28: 48 | Q28: 82% | R28: 50% | S28: 66 | T28: 76% | U28: 76% | V28: 110 | W28: 57% | X28: 57% | Y28: 40
A29: 262 | B29: MARNE ARDENNES | C29: 11 | D29: REIMS | E29: 451350 | F29: REIMS CENTRE VILLE | G29: 6.4 | H29: 53% | I29: 41% | J29: 20 | K29: 68% | L29: 68% | M29: 184 | N29: 46% | O29: 46% | P29: 7 | Q29: 83% | R29: 51% | S29: 73 | T29: 63% | U29: 63% | V29: 22 | W29: 37% | X29: 37% | Y29: 4
A30: 262 | B30: MOSELLE | C30: 42 | D30: MOSELLE EST | E30: 457308 | F30: FORBACH CENTRALE | G30: 10.3 | H30: 53% | I30: 41% | J30: 21 | K30: 44% | L30: 44% | M30: 89 | N30: 52% | O30: 52% | P30: 18 | Q30: 84% | R30: 53% | S30: 89 | T30: 63% | U30: 63% | V30: 25 | W30: 53% | X30: 53% | Y30: 29
A31: 262 | B31: MEURTHE ET MOSELLE MEUSE | C31: 26 | D31: NANCY | E31: 554601 | F31: SAINT MAX | G31: 3.5 | H31: 53% | I31: 41% | J31: 22 | K31: 24% | L31: 24% | M31: 22 | N31: 71% | O31: 71% | P31: 101 | Q31: 72% | R31: 40% | S31: 15 | T31: 67% | U31: 67% | V31: 34 | W31: 63% | X31: 63% | Y31: 76
A32: 262 | B32: MARNE ARDENNES | C32: 2 | D32: CHARLEVILLE MEZIERES | E32: 408801 | F32: CHARLEVILLE JEAN JAURES | G32: 8.9 | H32: 54% | I32: 42% | J32: 23 | K32: 38% | L32: 38% | M32: 64 | N32: 66% | O32: 66% | P32: 66 | Q32: 76% | R32: 44% | S32: 29 | T32: 66% | U32: 66% | V32: 31 | W32: 57% | X32: 57% | Y32: 41
A33: 262 | B33: AUBE HAUTE MARNE | C33: 21 | D33: CHAUMONT | E33: 510590 | F33: CHAUMONT REPUBLIQUE | G33: 2.9 | H33: 55% | I33: 42% | J33: 24 | K33: 32% | L33: 32% | M33: 44 | N33: 73% | O33: 73% | P33: 117 | Q33: 77% | R33: 45% | S33: 31 | T33: 64% | U33: 64% | V33: 28 | W33: 60% | X33: 60% | Y33: 57
A34: 262 | B34: MOSELLE | C34: 45 | D34: METZ | E34: 557439 | F34: METZ POMPIDOU | G34: 2.5 | H34: 55% | I34: 43% | J34: 25 | K34: 36% | L34: 36% | M34: 52 | N34: 64% | O34: 64% | P34: 56 | Q34: 70% | R34: 38% | S34: 10 | T34: 76% | U34: 76% | V34: 107 | W34: 61% | X34: 61% | Y34: 68
A35: 262 | B35: MOSELLE | C35: 45 | D35: METZ | E35: 457446 | F35: METZ SAINT LOUIS | G35: 5.8 | H35: 55% | I35: 43% | J35: 26 | K35: 48% | L35: 48% | M35: 102 | N35: 56% | O35: 56% | P35: 27 | Q35: 81% | R35: 49% | S35: 59 | T35: 70% | U35: 70% | V35: 67 | W35: 52% | X35: 52% | Y35: 24
A36: 262 | B36: MEURTHE ET MOSELLE MEUSE | C36: 27 | D36: PONT A MOUSSON | E36: 554531 | F36: POMPEY | G36: 3.1 | H36: 55% | I36: 43% | J36: 27 | K36: 72% | L36: 72% | M36: 207 | N36: 50% | O36: 50% | P36: 13 | Q36: 79% | R36: 47% | S36: 45 | T36: 67% | U36: 67% | V36: 36 | W36: 39% | X36: 39% | Y36: 5
A37: 262 | B37: MEURTHE ET MOSELLE MEUSE | C37: 26 | D37: NANCY | E37: 554356 | F37: JARVILLE LA MALGRANGE | G37: 4.2 | H37: 55% | I37: 43% | J37: 28 | K37: 29% | L37: 29% | M37: 33 | N37: 57% | O37: 57% | P37: 30 | Q37: 92% | R37: 60% | S37: 169 | T37: 71% | U37: 71% | V37: 68 | W37: 59% | X37: 59% | Y37: 51
A38: 262 | B38: MARNE ARDENNES | C38: 11 | D38: REIMS | E38: 451370 | F38: EPERNAY | G38: 8.9 | H38: 55% | I38: 43% | J38: 29 | K38: 39% | L38: 39% | M38: 69 | N38: 58% | O38: 58% | P38: 34 | Q38: 79% | R38: 47% | S38: 44 | T38: 74% | U38: 74% | V38: 93 | W38: 58% | X38: 58% | Y38: 46
A39: 262 | B39: MARNE ARDENNES | C39: 11 | D39: REIMS | E39: 451301 | F39: REIMS HOTEL DE VILLE | G39: 7.0 | H39: 55% | I39: 43% | J39: 30 | K39: 47% | L39: 47% | M39: 96 | N39: 62% | O39: 62% | P39: 49 | Q39: 83% | R39: 52% | S39: 78 | T39: 60% | U39: 60% | V39: 14 | W39: 57% | X39: 57% | Y39: 42
A40: 262 | B40: MARNE ARDENNES | C40: 6 | D40: CHALONS EN CHAMPAGNE | E40: 551354 | F40: VERTUS | G40: 2.0 | H40: 55% | I40: 43% | J40: 31 | K40: 0% | L40: 0% | M40: 1 | N40: 77% | O40: 77% | P40: 150 | Q40: 77% | R40: 46% | S40: 37 | T40: 85% | U40: 85% | V40: 195 | W40: 70% | X40: 70% | Y40: 129
A41: 262 | B41: MARNE ARDENNES | C41: 2 | D41: CHARLEVILLE MEZIERES | E41: 508839 | F41: GIVET | G41: 3.4 | H41: 56% | I41: 43% | J41: 32 | K41: 41% | L41: 41% | M41: 73 | N41: 63% | O41: 63% | P41: 53 | Q41: 90% | R41: 58% | S41: 148 | T41: 58% | U41: 58% | V41: 11 | W41: 58% | X41: 58% | Y41: 44
A42: 262 | B42: MOSELLE | C42: 42 | D42: MOSELLE EST | E42: 557250 | F42: CREUTZWALD | G42: 2.5 | H42: 56% | I42: 43% | J42: 33 | K42: 23% | L42: 23% | M42: 20 | N42: 75% | O42: 75% | P42: 136 | Q42: 82% | R42: 51% | S42: 72 | T42: 67% | U42: 67% | V42: 39 | W42: 62% | X42: 62% | Y42: 70
A43: 262 | B43: MARNE ARDENNES | C43: 11 | D43: REIMS | E43: 551314 | F43: FISMES | G43: 2.7 | H43: 56% | I43: 43% | J43: 34 | K43: 22% | L43: 22% | M43: 18 | N43: 55% | O43: 55% | P43: 26 | Q43: 97% | R43: 65% | S43: 220 | T43: 77% | U43: 77% | V43: 124 | W43: 59% | X43: 59% | Y43: 53
A44: 262 | B44: VOSGES | C44: 57 | D44: EPINAL | E44: 588336 | F44: GOLBEY | G44: 2.8 | H44: 56% | I44: 44% | J44: 35 | K44: 30% | L44: 30% | M44: 39 | N44: 73% | O44: 73% | P44: 113 | Q44: 79% | R44: 48% | S44: 49 | T44: 68% | U44: 68% | V44: 51 | W44: 62% | X44: 62% | Y44: 72
A45: 262 | B45: MARNE ARDENNES | C45: 11 | D45: REIMS | E45: 551367 | F45: AY CHAMPAGNE | G45: 2.7 | H45: 57% | I45: 44% | J45: 36 | K45: 32% | L45: 32% | M45: 43 | N45: 71% | O45: 71% | P45: 99 | Q45: 85% | R45: 53% | S45: 96 | T45: 68% | U45: 68% | V45: 49 | W45: 59% | X45: 59% | Y45: 48
A46: 262 | B46: MEURTHE ET MOSELLE MEUSE | C46: 27 | D46: PONT A MOUSSON | E46: 554506 | F46: CHALIGNY NEUVES MAISONS | G46: 3.5 | H46: 57% | I46: 44% | J46: 37 | K46: 64% | L46: 64% | M46: 159 | N46: 52% | O46: 52% | P46: 16 | Q46: 92% | R46: 60% | S46: 175 | T46: 59% | U46: 59% | V46: 13 | W46: 48% | X46: 48% | Y46: 18
A47: 262 | B47: MARNE ARDENNES | C47: 11 | D47: REIMS | E47: 551369 | F47: DAMERY | G47: 1.6 | H47: 57% | I47: 44% | J47: 38 | K47: 43% | L47: 43% | M47: 80 | N47: 52% | O47: 52% | P47: 21 | Q47: 107% | R47: 75% | S47: 236 | T47: 66% | U47: 66% | V47: 29 | W47: 47% | X47: 47% | Y47: 15
A48: 262 | B48: MARNE ARDENNES | C48: 2 | D48: CHARLEVILLE MEZIERES | E48: 508833 | F48: VILLERS SEMEUSE CORA | G48: 3.1 | H48: 57% | I48: 44% | J48: 39 | K48: 69% | L48: 69% | M48: 192 | N48: 68% | O48: 68% | P48: 80 | Q48: 76% | R48: 44% | S48: 27 | T48: 54% | U48: 54% | V48: 4 | W48: 49% | X48: 49% | Y48: 21
A49: 262 | B49: MOSELLE | C49: 45 | D49: METZ | E49: 557432 | F49: MAIZIERES LES METZ | G49: 2.5 | H49: 57% | I49: 45% | J49: 40 | K49: 69% | L49: 69% | M49: 193 | N49: 53% | O49: 53% | P49: 22 | Q49: 84% | R49: 53% | S49: 93 | T49: 70% | U49: 70% | V49: 60 | W49: 40% | X49: 40% | Y49: 7
A50: 262 | B50: MEURTHE ET MOSELLE MEUSE | C50: 31 | D50: VERDUN | E50: 554413 | F50: LONGWY BAS | G50: 3.4 | H50: 57% | I50: 45% | J50: 41 | K50: 19% | L50: 19% | M50: 12 | N50: 67% | O50: 67% | P50: 70 | Q50: 90% | R50: 58% | S50: 147 | T50: 76% | U50: 76% | V50: 108 | W50: 66% | X50: 66% | Y50: 85
A51: 262 | B51: MEURTHE ET MOSELLE MEUSE | C51: 31 | D51: VERDUN | E51: 455678 | F51: VERDUN CENTRALE | G51: 10.1 | H51: 57% | I51: 45% | J51: 42 | K51: 24% | L51: 24% | M51: 21 | N51: 66% | O51: 66% | P51: 68 | Q51: 94% | R51: 62% | S51: 193 | T51: 78% | U51: 78% | V51: 134 | W51: 56% | X51: 56% | Y51: 38
A52: 262 | B52: MARNE ARDENNES | C52: 11 | D52: REIMS | E52: 451361 | F52: PIERRY LECLERC | G52: 1.8 | H52: 57% | I52: 45% | J52: 43 | K52: 36% | L52: 36% | M52: 57 | N52: 66% | O52: 66% | P52: 67 | Q52: 72% | R52: 41% | S52: 18 | T52: 77% | U52: 77% | V52: 121 | W52: 68% | X52: 68% | Y52: 111
A53: 262 | B53: MOSELLE | C53: 44 | D53: MOSELLE NORD | E53: 557352 | F53: HETTANGE GRANDE | G53: 3.1 | H53: 57% | I53: 45% | J53: 44 | K53: 59% | L53: 59% | M53: 143 | N53: 58% | O53: 58% | P53: 33 | Q53: 87% | R53: 56% | S53: 123 | T53: 68% | U53: 68% | V53: 47 | W53: 47% | X53: 47% | Y53: 14
A54: 262 | B54: BAS RHIN | C54: 5101 | D54: SELESTAT | E54: 4113 | F54: BARR | G54: 2.9 | H54: 57% | I54: 45% | J54: 45 | K54: 27% | L54: 27% | M54: 27 | N54: 59% | O54: 59% | P54: 36 | Q54: 85% | R54: 54% | S54: 99 | T54: 78% | U54: 78% | V54: 137 | W54: 70% | X54: 70% | Y54: 143
A55: 262 | B55: MEURTHE ET MOSELLE MEUSE | C55: 27 | D55: PONT A MOUSSON | E55: 554516 | F55: PAGNY SUR MOSELLE | G55: 2.7 | H55: 58% | I55: 45% | J55: 46 | K55: 49% | L55: 49% | M55: 109 | N55: 67% | O55: 67% | P55: 74 | Q55: 80% | R55: 48% | S55: 53 | T55: 64% | U55: 64% | V55: 27 | W55: 60% | X55: 60% | Y55: 58
A56: 262 | B56: MOSELLE | C56: 42 | D56: MOSELLE EST | E56: 457583 | F56: SAINT AVOLD | G56: 7.0 | H56: 58% | I56: 45% | J56: 47 | K56: 37% | L56: 37% | M56: 60 | N56: 61% | O56: 61% | P56: 44 | Q56: 86% | R56: 55% | S56: 116 | T56: 70% | U56: 70% | V56: 62 | W56: 65% | X56: 65% | Y56: 82
A57: 262 | B57: MOSELLE | C57: 45 | D57: METZ | E57: 457574 | F57: ROMBAS | G57: 2.5 | H57: 58% | I57: 45% | J57: 48 | K57: 34% | L57: 34% | M57: 48 | N57: 68% | O57: 68% | P57: 82 | Q57: 86% | R57: 54% | S57: 109 | T57: 63% | U57: 63% | V57: 19 | W57: 70% | X57: 70% | Y57: 128
A58: 262 | B58: MARNE ARDENNES | C58: 11 | D58: REIMS | E58: 551310 | F58: REIMS CHATILLONS | G58: 3.9 | H58: 58% | I58: 45% | J58: 49 | K58: 53% | L58: 53% | M58: 124 | N58: 57% | O58: 57% | P58: 29 | Q58: 86% | R58: 54% | S58: 112 | T58: 69% | U58: 69% | V58: 58 | W58: 56% | X58: 56% | Y58: 37
A59: 262 | B59: BAS RHIN | C59: 5006 | D59: STRASBOURG | E59: 4038 | F59: OBERHAUSBERGEN | G59: 3.3 | H59: 58% | I59: 46% | J59: 50 | K59: 37% | L59: 37% | M59: 61 | N59: 65% | O59: 65% | P59: 60 | Q59: 70% | R59: 39% | S59: 12 | T59: 85% | U59: 85% | V59: 203 | W59: 64% | X59: 64% | Y59: 77
A60: 262 | B60: MOSELLE | C60: 44 | D60: MOSELLE NORD | E60: 457350 | F60: HAYANGE | G60: 6.2 | H60: 58% | I60: 46% | J60: 51 | K60: 51% | L60: 51% | M60: 115 | N60: 62% | O60: 62% | P60: 45 | Q60: 87% | R60: 55% | S60: 121 | T60: 64% | U60: 64% | V60: 26 | W60: 59% | X60: 59% | Y60: 50
A61: 262 | B61: MARNE ARDENNES | C61: 6 | D61: CHALONS EN CHAMPAGNE | E61: 551110 | F61: CHALONS ROOSEVELT | G61: 4.3 | H61: 58% | I61: 46% | J61: 52 | K61: 29% | L61: 29% | M61: 31 | N61: 73% | O61: 73% | P61: 115 | Q61: 90% | R61: 58% | S61: 145 | T61: 63% | U61: 63% | V61: 23 | W61: 68% | X61: 68% | Y61: 113
A62: 262 | B62: MARNE ARDENNES | C62: 11 | D62: REIMS | E62: 451336 | F62: TINQUEUX | G62: 4.9 | H62: 58% | I62: 46% | J62: 53 | K62: 60% | L62: 60% | M62: 145 | N62: 60% | O62: 60% | P62: 42 | Q62: 68% | R62: 37% | S62: 8 | T62: 75% | U62: 75% | V62: 99 | W62: 60% | X62: 60% | Y62: 55
A63: 262 | B63: MEURTHE ET MOSELLE MEUSE | C63: 31 | D63: VERDUN | E63: 555406 | F63: LIGNY EN BARROIS | G63: 2.5 | H63: 58% | I63: 46% | J63: 54 | K63: 20% | L63: 20% | M63: 16 | N63: 73% | O63: 73% | P63: 114 | Q63: 70% | R63: 38% | S63: 11 | T63: 86% | U63: 86% | V63: 211 | W63: 74% | X63: 74% | Y63: 183
A64: 262 | B64: MARNE ARDENNES | C64: 11 | D64: REIMS | E64: 551306 | F64: REIMS SAINT MARCEAUX | G64: 3.9 | H64: 59% | I64: 46% | J64: 55 | K64: 37% | L64: 37% | M64: 58 | N64: 54% | O64: 54% | P64: 25 | Q64: 102% | R64: 70% | S64: 235 | T64: 73% | U64: 73% | V64: 79 | W64: 60% | X64: 60% | Y64: 60
A65: 262 | B65: MEURTHE ET MOSELLE MEUSE | C65: 26 | D65: NANCY | E65: 554636 | F65: TOMBLAINE | G65: 2.6 | H65: 59% | I65: 46% | J65: 56 | K65: 20% | L65: 20% | M65: 14 | N65: 80% | O65: 80% | P65: 172 | Q65: 80% | R65: 48% | S65: 51 | T65: 78% | U65: 78% | V65: 132 | W65: 69% | X65: 69% | Y65: 123
A66: 262 | B66: MEURTHE ET MOSELLE MEUSE | C66: 26 | D66: NANCY | E66: 454481 | F66: NANCY PLACE DOMBASLE | G66: 7.8 | H66: 59% | I66: 47% | J66: 57 | K66: 58% | L66: 58% | M66: 140 | N66: 65% | O66: 65% | P66: 62 | Q66: 81% | R66: 49% | S66: 61 | T66: 74% | U66: 74% | V66: 90 | W66: 48% | X66: 48% | Y66: 19
A67: 262 | B67: MOSELLE | C67: 42 | D67: MOSELLE EST | E67: 457617 | F67: SARREGUEMINES | G67: 6.5 | H67: 59% | I67: 47% | J67: 58 | K67: 60% | L67: 60% | M67: 146 | N67: 62% | O67: 62% | P67: 50 | Q67: 80% | R67: 48% | S67: 54 | T67: 70% | U67: 70% | V67: 59 | W67: 56% | X67: 56% | Y67: 36
A68: 262 | B68: MEURTHE ET MOSELLE MEUSE | C68: 27 | D68: PONT A MOUSSON | E68: 554686 | F68: VEZELISE | G68: 1.9 | H68: 59% | I68: 47% | J68: 59 | K68: 9% | L68: 9% | M68: 3 | N68: 76% | O68: 76% | P68: 139 | Q68: 84% | R68: 53% | S68: 90 | T68: 79% | U68: 79% | V68: 142 | W68: 79% | X68: 79% | Y68: 228
A69: 262 | B69: VOSGES | C69: 55 | D69: SAINT DIE | E69: 488326 | F69: GERARDMER | G69: 3.8 | H69: 59% | I69: 47% | J69: 60 | K69: 44% | L69: 44% | M69: 84 | N69: 72% | O69: 72% | P69: 110 | Q69: 74% | R69: 43% | S69: 24 | T69: 76% | U69: 76% | V69: 113 | W69: 61% | X69: 61% | Y69: 65
A70: 262 | B70: MOSELLE | C70: 44 | D70: MOSELLE NORD | E70: 557303 | F70: FAMECK | G70: 2.8 | H70: 59% | I70: 47% | J70: 61 | K70: 34% | L70: 34% | M70: 49 | N70: 69% | O70: 69% | P70: 83 | Q70: 80% | R70: 49% | S70: 55 | T70: 88% | U70: 88% | V70: 221 | W70: 56% | X70: 56% | Y70: 39
A71: 262 | B71: BAS RHIN | C71: 5006 | D71: STRASBOURG | E71: 4054 | F71: STRASBOURG MONTAGNE VERTE | G71: 2.7 | H71: 59% | I71: 47% | J71: 62 | K71: 31% | L71: 31% | M71: 42 | N71: 70% | O71: 70% | P71: 94 | Q71: 82% | R71: 50% | S71: 70 | T71: 67% | U71: 67% | V71: 38 | W71: 78% | X71: 78% | Y71: 218
A72: 262 | B72: MOSELLE | C72: 44 | D72: MOSELLE NORD | E72: 457632 | F72: THIONVILLE CENTRALE | G72: 10.6 | H72: 59% | I72: 47% | J72: 63 | K72: 55% | L72: 55% | M72: 132 | N72: 57% | O72: 57% | P72: 31 | Q72: 91% | R72: 59% | S72: 163 | T72: 67% | U72: 67% | V72: 33 | W72: 59% | X72: 59% | Y72: 49
A73: 262 | B73: MOSELLE | C73: 45 | D73: METZ | E73: 557447 | F73: METZ SAINT MAXIMIN | G73: 2.3 | H73: 59% | I73: 47% | J73: 64 | K73: 63% | L73: 63% | M73: 154 | N73: 67% | O73: 67% | P73: 72 | Q73: 77% | R73: 46% | S73: 36 | T73: 55% | U73: 55% | V73: 5 | W73: 67% | X73: 67% | Y73: 94
A74: 264 | B74: MEURTHE ET MOSELLE MEUSE | C74: 26 | D74: NANCY | E74: 554116 | F74: BACCARAT | G74: 2.8 | H74: 59% | I74: 47% | J74: 65 | K74: 9% | L74: 9% | M74: 4 | N74: 77% | O74: 77% | P74: 146 | Q74: 88% | R74: 57% | S74: 131 | T74: 79% | U74: 79% | V74: 141 | W74: 76% | X74: 76% | Y74: 200
A75: 264 | B75: MOSELLE | C75: 44 | D75: MOSELLE NORD | E75: 457348 | F75: HAGONDANGE | G75: 8.1 | H75: 60% | I75: 47% | J75: 66 | K75: 52% | L75: 52% | M75: 117 | N75: 63% | O75: 63% | P75: 55 | Q75: 86% | R75: 55% | S75: 114 | T75: 68% | U75: 68% | V75: 50 | W75: 60% | X75: 60% | Y75: 56
A76: 264 | B76: BAS RHIN | C76: 5006 | D76: STRASBOURG | E76: 4024 | F76: STRASBOURG AUSTERLITZ | G76: 1.1 | H76: 60% | I76: 47% | J76: 67 | K76: 83% | L76: 83% | M76: 238 | N76: 62% | O76: 62% | P76: 51 | Q76: 63% | R76: 31% | S76: 4 | T76: 68% | U76: 68% | V76: 43 | W76: 54% | X76: 54% | Y76: 33
A77: 264 | B77: AUBE HAUTE MARNE | C77: 21 | D77: CHAUMONT | E77: 410541 | F77: LANGRES | G77: 8.2 | H77: 60% | I77: 47% | J77: 68 | K77: 39% | L77: 39% | M77: 67 | N77: 70% | O77: 70% | P77: 96 | Q77: 85% | R77: 54% | S77: 103 | T77: 69% | U77: 69% | V77: 56 | W77: 68% | X77: 68% | Y77: 109
A78: 264 | B78: MOSELLE | C78: 42 | D78: MOSELLE EST | E78: 557668 | F78: VALMONT | G78: 2.8 | H78: 60% | I78: 48% | J78: 69 | K78: 30% | L78: 30% | M78: 36 | N78: 81% | O78: 81% | P78: 179 | Q78: 74% | R78: 43% | S78: 26 | T78: 74% | U78: 74% | V78: 95 | W78: 72% | X78: 72% | Y78: 161
A79: 264 | B79: VOSGES | C79: 55 | D79: SAINT DIE | E79: 488246 | F79: CORNIMONT LA BRESSE | G79: 2.7 | H79: 60% | I79: 48% | J79: 70 | K79: 22% | L79: 22% | M79: 17 | N79: 70% | O79: 70% | P79: 95 | Q79: 95% | R79: 63% | S79: 200 | T79: 74% | U79: 74% | V79: 87 | W79: 71% | X79: 71% | Y79: 145
A80: 264 | B80: MARNE ARDENNES | C80: 6 | D80: CHALONS EN CHAMPAGNE | E80: 451101 | F80: CHALONS VIVIERS | G80: 9.4 | H80: 60% | I80: 48% | J80: 71 | K80: 29% | L80: 29% | M80: 32 | N80: 74% | O80: 74% | P80: 127 | Q80: 89% | R80: 58% | S80: 141 | T80: 73% | U80: 73% | V80: 83 | W80: 66% | X80: 66% | Y80: 91
A81: 264 | B81: BAS RHIN | C81: 5006 | D81: STRASBOURG | E81: 4043 | F81: STRASBOURG HALLES | G81: 7.8 | H81: 60% | I81: 48% | J81: 72 | K81: 62% | L81: 62% | M81: 152 | N81: 60% | O81: 60% | P81: 39 | Q81: 84% | R81: 52% | S81: 86 | T81: 56% | U81: 56% | V81: 6 | W81: 70% | X81: 70% | Y81: 131
A82: 264 | B82: MEURTHE ET MOSELLE MEUSE | C82: 31 | D82: VERDUN | E82: 555679 | F82: VERDUN MAZEL | G82: 3.6 | H82: 60% | I82: 48% | J82: 73 | K82: 22% | L82: 22% | M82: 19 | N82: 73% | O82: 73% | P82: 120 | Q82: 85% | R82: 54% | S82: 102 | T82: 78% | U82: 78% | V82: 133 | W82: 73% | X82: 73% | Y82: 176
A83: 264 | B83: MOSELLE | C83: 42 | D83: MOSELLE EST | E83: 557305 | F83: FAULQUEMONT | G83: 4.1 | H83: 60% | I83: 48% | J83: 74 | K83: 77% | L83: 77% | M83: 227 | N83: 52% | O83: 52% | P83: 19 | Q83: 92% | R83: 60% | S83: 171 | T83: 67% | U83: 67% | V83: 40 | W83: 45% | X83: 45% | Y83: 11
A84: 264 | B84: MOSELLE | C84: 44 | D84: MOSELLE NORD | E84: 457306 | F84: FLORANGE | G84: 4.7 | H84: 60% | I84: 48% | J84: 75 | K84: 77% | L84: 77% | M84: 229 | N84: 58% | O84: 58% | P84: 32 | Q84: 84% | R84: 53% | S84: 88 | T84: 72% | U84: 72% | V84: 75 | W84: 42% | X84: 42% | Y84: 9
A85: 264 | B85: VOSGES | C85: 57 | D85: EPINAL | E85: 588396 | F85: LE VAL D AJOL | G85: 2.4 | H85: 60% | I85: 48% | J85: 76 | K85: 10% | L85: 10% | M85: 5 | N85: 79% | O85: 79% | P85: 168 | Q85: 85% | R85: 54% | S85: 101 | T85: 82% | U85: 82% | V85: 167 | W85: 78% | X85: 78% | Y85: 220
A86: 264 | B86: BAS RHIN | C86: 5060 | D86: HAGUENAU | E86: 4071 | F86: WISSEMBOURG | G86: 7.9 | H86: 60% | I86: 48% | J86: 77 | K86: 30% | L86: 30% | M86: 38 | N86: 69% | O86: 69% | P86: 88 | Q86: 82% | R86: 50% | S86: 65 | T86: 77% | U86: 77% | V86: 120 | W86: 76% | X86: 76% | Y86: 210
A87: 264 | B87: MARNE ARDENNES | C87: 11 | D87: REIMS | E87: 551341 | F87: REIMS JEAN JAURES | G87: 3.0 | H87: 61% | I87: 48% | J87: 78 | K87: 67% | L87: 67% | M87: 176 | N87: 60% | O87: 60% | P87: 40 | Q87: 79% | R87: 48% | S87: 50 | T87: 74% | U87: 74% | V87: 86 | W87: 54% | X87: 54% | Y87: 32
A88: 264 | B88: MEURTHE ET MOSELLE MEUSE | C88: 31 | D88: VERDUN | E88: 454414 | F88: LONGWY HAUT | G88: 3.3 | H88: 61% | I88: 48% | J88: 79 | K88: 50% | L88: 50% | M88: 112 | N88: 69% | O88: 69% | P88: 85 | Q88: 84% | R88: 52% | S88: 80 | T88: 66% | U88: 66% | V88: 32 | W88: 65% | X88: 65% | Y88: 84
A89: 264 | B89: MARNE ARDENNES | C89: 6 | D89: CHALONS EN CHAMPAGNE | E89: 551103 | F89: FAGNIERES LECLERC | G89: 2.9 | H89: 61% | I89: 48% | J89: 80 | K89: 47% | L89: 47% | M89: 99 | N89: 75% | O89: 75% | P89: 131 | Q89: 88% | R89: 56% | S89: 124 | T89: 61% | U89: 61% | V89: 17 | W89: 65% | X89: 65% | Y89: 81
A90: 264 | B90: VOSGES | C90: 55 | D90: SAINT DIE | E90: 588551 | F90: RAMBERVILLERS | G90: 2.6 | H90: 61% | I90: 48% | J90: 81 | K90: 26% | L90: 26% | M90: 24 | N90: 79% | O90: 79% | P90: 166 | Q90: 87% | R90: 55% | S90: 120 | T90: 86% | U90: 86% | V90: 215 | W90: 57% | X90: 57% | Y90: 43
A91: 264 | B91: VOSGES | C91: 57 | D91: EPINAL | E91: 488561 | F91: REMIREMONT | G91: 7.2 | H91: 61% | I91: 48% | J91: 82 | K91: 20% | L91: 20% | M91: 13 | N91: 72% | O91: 72% | P91: 105 | Q91: 91% | R91: 60% | S91: 165 | T91: 78% | U91: 78% | V91: 135 | W91: 75% | X91: 75% | Y91: 186
A92: 264 | B92: BAS RHIN | C92: 5101 | D92: SELESTAT | E92: 4104 | F92: ERSTEIN | G92: 4.2 | H92: 61% | I92: 48% | J92: 83 | K92: 72% | L92: 72% | M92: 208 | N92: 50% | O92: 50% | P92: 14 | Q92: 80% | R92: 49% | S92: 56 | T92: 69% | U92: 69% | V92: 57 | W92: 64% | X92: 64% | Y92: 78
A93: 264 | B93: MOSELLE | C93: 44 | D93: MOSELLE NORD | E93: 457158 | F93: YUTZ | G93: 4.8 | H93: 61% | I93: 48% | J93: 84 | K93: 63% | L93: 63% | M93: 155 | N93: 64% | O93: 64% | P93: 57 | Q93: 85% | R93: 53% | S93: 97 | T93: 66% | U93: 66% | V93: 30 | W93: 58% | X93: 58% | Y93: 45
A94: 264 | B94: MOSELLE | C94: 42 | D94: MOSELLE EST | E94: 557523 | F94: PHALSBOURG | G94: 2.5 | H94: 61% | I94: 48% | J94: 85 | K94: 49% | L94: 49% | M94: 108 | N94: 75% | O94: 75% | P94: 134 | Q94: 77% | R94: 45% | S94: 34 | T94: 68% | U94: 68% | V94: 44 | W94: 67% | X94: 67% | Y94: 101
A95: 264 | B95: BAS RHIN | C95: 5060 | D95: HAGUENAU | E95: 4092 | F95: HOCHFELDEN | G95: 1.9 | H95: 61% | I95: 49% | J95: 86 | K95: 44% | L95: 44% | M95: 85 | N95: 74% | O95: 74% | P95: 122 | Q95: 77% | R95: 46% | S95: 38 | T95: 75% | U95: 75% | V95: 101 | W95: 67% | X95: 67% | Y95: 103
A96: 30 | B96: BAS RHIN | C96: 5060 | D96: HAGUENAU | E96: 4030 | F96: BRUMATH | G96: 3.8 | H96: 61% | I96: 49% | J96: 87 | K96: 75% | L96: 75% | M96: 219 | N96: 69% | O96: 69% | P96: 89 | Q96: 32% | R96: 0% | S96: 1 | T96: 87% | U96: 87% | V96: 217 | W96: 75% | X96: 75% | Y96: 192
A97: 30 | B97: AUBE HAUTE MARNE | C97: 14 | D97: TROYES | E97: 510570 | F97: NOGENT SUR SEINE | G97: 4.2 | H97: 61% | I97: 49% | J97: 88 | K97: 26% | L97: 26% | M97: 26 | N97: 72% | O97: 72% | P97: 109 | Q97: 90% | R97: 59% | S97: 158 | T97: 79% | U97: 79% | V97: 145 | W97: 70% | X97: 70% | Y97: 142
A98: 30 | B98: AUBE HAUTE MARNE | C98: 21 | D98: CHAUMONT | E98: 451154 | F98: JOINVILLE | G98: 1.8 | H98: 61% | I98: 49% | J98: 89 | K98: 42% | L98: 42% | M98: 75 | N98: 66% | O98: 66% | P98: 69 | Q98: 101% | R98: 69% | S98: 232 | T98: 63% | U98: 63% | V98: 24 | W98: 67% | X98: 67% | Y98: 97
A99: 30 | B99: MOSELLE | C99: 45 | D99: METZ | E99: 557434 | F99: MARLY | G99: 3.1 | H99: 61% | I99: 49% | J99: 90 | K99: 30% | L99: 30% | M99: 35 | N99: 72% | O99: 72% | P99: 112 | Q99: 88% | R99: 56% | S99: 127 | T99: 82% | U99: 82% | V99: 175 | W99: 67% | X99: 67% | Y99: 100
A100: 30 | B100: BAS RHIN | C100: 5006 | D100: STRASBOURG | E100: 4047 | F100: STRASBOURG CRONENBOURG | G100: 4.4 | H100: 62% | I100: 49% | J100: 91 | K100: 51% | L100: 51% | M100: 113 | N100: 62% | O100: 62% | P100: 47 | Q100: 79% | R100: 48% | S100: 48 | T100: 77% | U100: 77% | V100: 118 | W100: 71% | X100: 71% | Y100: 144
A101: 30 | B101: MARNE ARDENNES | C101: 2 | D101: CHARLEVILLE MEZIERES | E101: 408840 | F101: RETHEL | G101: 4.4 | H101: 62% | I101: 49% | J101: 92 | K101: 55% | L101: 55% | M101: 133 | N101: 66% | O101: 66% | P101: 65 | Q101: 84% | R101: 52% | S101: 84 | T101: 72% | U101: 72% | V101: 76 | W101: 63% | X101: 63% | Y101: 75
A102: 30 | B102: VOSGES | C102: 57 | D102: EPINAL | E102: 588631 | F102: THAON LES VOSGES | G102: 4.5 | H102: 62% | I102: 49% | J102: 93 | K102: 47% | L102: 47% | M102: 97 | N102: 68% | O102: 68% | P102: 81 | Q102: 86% | R102: 55% | S102: 115 | T102: 74% | U102: 74% | V102: 92 | W102: 66% | X102: 66% | Y102: 86
A103: 30 | B103: MOSELLE | C103: 44 | D103: MOSELLE NORD | E103: 557347 | F103: GUENANGE | G103: 4.6 | H103: 62% | I103: 50% | J103: 94 | K103: 71% | L103: 71% | M103: 204 | N103: 59% | O103: 59% | P103: 37 | Q103: 89% | R103: 58% | S103: 144 | T103: 67% | U103: 67% | V103: 41 | W103: 54% | X103: 54% | Y103: 31
A104: 30 | B104: BAS RHIN | C104: 5006 | D104: STRASBOURG | E104: 4010 | F104: STRASBOURG MEINAU | G104: 3.0 | H104: 62% | I104: 50% | J104: 95 | K104: 46% | L104: 46% | M104: 95 | N104: 70% | O104: 70% | P104: 91 | Q104: 86% | R104: 54% | S104: 113 | T104: 68% | U104: 68% | V104: 53 | W104: 71% | X104: 71% | Y104: 153
A105: 30 | B105: MARNE ARDENNES | C105: 6 | D105: CHALONS EN CHAMPAGNE | E105: 451381 | F105: SEZANNE | G105: 4.7 | H105: 62% | I105: 50% | J105: 96 | K105: 43% | L105: 43% | M105: 81 | N105: 69% | O105: 69% | P105: 90 | Q105: 77% | R105: 45% | S105: 35 | T105: 86% | U105: 86% | V105: 212 | W105: 67% | X105: 67% | Y105: 98
A106: 30 | B106: VOSGES | C106: 55 | D106: SAINT DIE | E106: 588186 | F106: BRUYERES | G106: 3.5 | H106: 62% | I106: 50% | J106: 97 | K106: 28% | L106: 28% | M106: 30 | N106: 74% | O106: 74% | P106: 125 | Q106: 93% | R106: 61% | S106: 186 | T106: 81% | U106: 81% | V106: 158 | W106: 67% | X106: 67% | Y106: 93
A107: 30 | B107: BAS RHIN | C107: 5006 | D107: STRASBOURG | E107: 4006 | F107: STRASBOURG NEUDORF | G107: 8.0 | H107: 62% | I107: 50% | J107: 98 | K107: 26% | L107: 26% | M107: 25 | N107: 81% | O107: 81% | P107: 181 | Q107: 86% | R107: 54% | S107: 110 | T107: 74% | U107: 74% | V107: 89 | W107: 76% | X107: 76% | Y107: 201
A108: 30 | B108: VOSGES | C108: 57 | D108: EPINAL | E108: 488281 | F108: ELOYES | G108: 3.4 | H108: 62% | I108: 50% | J108: 99 | K108: 33% | L108: 33% | M108: 46 | N108: 79% | O108: 79% | P108: 160 | Q108: 79% | R108: 47% | S108: 43 | T108: 86% | U108: 86% | V108: 214 | W108: 68% | X108: 68% | Y108: 110
A109: 30 | B109: MOSELLE | C109: 45 | D109: METZ | E109: 557444 | F109: SAINT JULIEN LES METZ | G109: 3.7 | H109: 62% | I109: 50% | J109: 100 | K109: 76% | L109: 76% | M109: 226 | N109: 68% | O109: 68% | P109: 79 | Q109: 71% | R109: 39% | S109: 14 | T109: 70% | U109: 70% | V109: 65 | W109: 58% | X109: 58% | Y109: 47
A110: 30 | B110: MEURTHE ET MOSELLE MEUSE | C110: 27 | D110: PONT A MOUSSON | E110: 554416 | F110: LUDRES | G110: 3.6 | H110: 63% | I110: 50% | J110: 101 | K110: 42% | L110: 42% | M110: 76 | N110: 74% | O110: 74% | P110: 128 | Q110: 83% | R110: 52% | S110: 75 | T110: 77% | U110: 77% | V110: 123 | W110: 68% | X110: 68% | Y110: 116
A111: 30 | B111: MARNE ARDENNES | C111: 6 | D111: CHALONS EN CHAMPAGNE | E111: 551128 | F111: SAINTE MENEHOULD | G111: 3.0 | H111: 63% | I111: 50% | J111: 102 | K111: 36% | L111: 36% | M111: 55 | N111: 71% | O111: 71% | P111: 100 | Q111: 92% | R111: 60% | S111: 173 | T111: 72% | U111: 72% | V111: 74 | W111: 73% | X111: 73% | Y111: 171
A112: 30 | B112: MARNE ARDENNES | C112: 2 | D112: CHARLEVILLE MEZIERES | E112: 408822 | F112: CHARLEVILLE MEZIERES | G112: 5.0 | H112: 63% | I112: 50% | J112: 103 | K112: 67% | L112: 67% | M112: 172 | N112: 77% | O112: 77% | P112: 143 | Q112: 69% | R112: 37% | S112: 9 | T112: 73% | U112: 73% | V112: 82 | W112: 60% | X112: 60% | Y112: 54
A113: 30 | B113: VOSGES | C113: 55 | D113: SAINT DIE | E113: 588666 | F113: VAGNEY | G113: 3.4 | H113: 63% | I113: 50% | J113: 104 | K113: 27% | L113: 27% | M113: 28 | N113: 79% | O113: 79% | P113: 167 | Q113: 81% | R113: 49% | S113: 63 | T113: 83% | U113: 83% | V113: 184 | W113: 74% | X113: 74% | Y113: 180
A114: 30 | B114: MEURTHE ET MOSELLE MEUSE | C114: 27 | D114: PONT A MOUSSON | E114: 554376 | F114: LAXOU BOUFFLERS | G114: 2.7 | H114: 63% | I114: 50% | J114: 105 | K114: 81% | L114: 81% | M114: 235 | N114: 54% | O114: 54% | P114: 23 | Q114: 93% | R114: 62% | S114: 190 | T114: 70% | U114: 70% | V114: 61 | W114: 47% | X114: 47% | Y114: 17
A115: 30 | B115: MOSELLE | C115: 45 | D115: METZ | E115: 557105 | F115: ARS SUR MOSELLE | G115: 3.0 | H115: 63% | I115: 50% | J115: 106 | K115: 48% | L115: 48% | M115: 101 | N115: 75% | O115: 75% | P115: 129 | Q115: 89% | R115: 57% | S115: 138 | T115: 81% | U115: 81% | V115: 162 | W115: 54% | X115: 54% | Y115: 30
A116: 30 | B116: MEURTHE ET MOSELLE MEUSE | C116: 31 | D116: VERDUN | E116: 554700 | F116: VILLERUPT | G116: 2.8 | H116: 63% | I116: 50% | J116: 107 | K116: 37% | L116: 37% | M116: 59 | N116: 69% | O116: 69% | P116: 84 | Q116: 87% | R116: 55% | S116: 118 | T116: 77% | U116: 77% | V116: 126 | W116: 76% | X116: 76% | Y116: 204
A117: 30 | B117: VOSGES | C117: 57 | D117: EPINAL | E117: 588716 | F117: XERTIGNY | G117: 2.8 | H117: 63% | I117: 50% | J117: 108 | K117: 38% | L117: 38% | M117: 65 | N117: 76% | O117: 76% | P117: 140 | Q117: 82% | R117: 51% | S117: 71 | T117: 76% | U117: 76% | V117: 114 | W117: 73% | X117: 73% | Y117: 174
A118: 30 | B118: BAS RHIN | C118: 5060 | D118: HAGUENAU | E118: 4057 | F118: BISCHWILLER | G118: 7.0 | H118: 63% | I118: 51% | J118: 109 | K118: 43% | L118: 43% | M118: 79 | N118: 65% | O118: 65% | P118: 61 | Q118: 90% | R118: 58% | S118: 149 | T118: 76% | U118: 76% | V118: 112 | W118: 73% | X118: 73% | Y118: 168
A119: 30 | B119: VOSGES | C119: 55 | D119: SAINT DIE | E119: 588386 | F119: LE THILLOT | G119: 2.6 | H119: 63% | I119: 51% | J119: 110 | K119: 16% | L119: 16% | M119: 9 | N119: 77% | O119: 77% | P119: 145 | Q119: 94% | R119: 62% | S119: 194 | T119: 84% | U119: 84% | V119: 188 | W119: 76% | X119: 76% | Y119: 202
A120: 30 | B120: MEURTHE ET MOSELLE MEUSE | C120: 31 | D120: VERDUN | E120: 455151 | F120: BAR LE DUC | G120: 9.9 | H120: 63% | I120: 51% | J120: 111 | K120: 38% | L120: 38% | M120: 63 | N120: 74% | O120: 74% | P120: 126 | Q120: 90% | R120: 59% | S120: 155 | T120: 74% | U120: 74% | V120: 98 | W120: 70% | X120: 70% | Y120: 139
A121: 30 | B121: BAS RHIN | C121: 5060 | D121: HAGUENAU | E121: 4041 | F121: HOERDT | G121: 1.7 | H121: 63% | I121: 51% | J121: 112 | K121: 39% | L121: 39% | M121: 70 | N121: 78% | O121: 78% | P121: 155 | Q121: 73% | R121: 41% | S121: 20 | T121: 80% | U121: 80% | V121: 147 | W121: 77% | X121: 77% | Y121: 217
A122: 30 | B122: BAS RHIN | C122: 5101 | D122: SELESTAT | E122: 4121 | F122: SCHIRMECK | G122: 2.8 | H122: 63% | I122: 51% | J122: 113 | K122: 36% | L122: 36% | M122: 53 | N122: 65% | O122: 65% | P122: 59 | Q122: 95% | R122: 63% | S122: 203 | T122: 86% | U122: 86% | V122: 209 | W122: 67% | X122: 67% | Y122: 99
A123: 30 | B123: VOSGES | C123: 57 | D123: EPINAL | E123: 488286 | F123: EPINAL ARISTIDE BRIAND | G123: 8.2 | H123: 63% | I123: 51% | J123: 114 | K123: 64% | L123: 64% | M123: 165 | N123: 60% | O123: 60% | P123: 38 | Q123: 81% | R123: 50% | S123: 64 | T123: 74% | U123: 74% | V123: 85 | W123: 70% | X123: 70% | Y123: 127
A124: 30 | B124: MEURTHE ET MOSELLE MEUSE | C124: 27 | D124: PONT A MOUSSON | E124: 554357 | F124: JOEUF | G124: 3.1 | H124: 63% | I124: 51% | J124: 115 | K124: 40% | L124: 40% | M124: 71 | N124: 74% | O124: 74% | P124: 124 | Q124: 93% | R124: 61% | S124: 185 | T124: 81% | U124: 81% | V124: 159 | W124: 61% | X124: 61% | Y124: 66
A125: 30 | B125: MEURTHE ET MOSELLE MEUSE | C125: 26 | D125: NANCY | E125: 454426 | F125: LUNEVILLE CARNOT | G125: 8.3 | H125: 63% | I125: 51% | J125: 116 | K125: 64% | L125: 64% | M125: 161 | N125: 70% | O125: 70% | P125: 92 | Q125: 80% | R125: 49% | S125: 57 | T125: 80% | U125: 80% | V125: 149 | W125: 55% | X125: 55% | Y125: 34
A126: 30 | B126: MOSELLE | C126: 42 | D126: MOSELLE EST | E126: 457543 | F126: PUTTELANGE AUX LACS | G126: 2.4 | H126: 63% | I126: 51% | J126: 117 | K126: 52% | L126: 52% | M126: 120 | N126: 69% | O126: 69% | P126: 87 | Q126: 90% | R126: 59% | S126: 156 | T126: 72% | U126: 72% | V126: 72 | W126: 66% | X126: 66% | Y126: 87
A127: 30 | B127: MARNE ARDENNES | C127: 2 | D127: CHARLEVILLE MEZIERES | E127: 508802 | F127: CHARLEVILLE NEVERS | G127: 2.8 | H127: 64% | I127: 51% | J127: 118 | K127: 25% | L127: 25% | M127: 23 | N127: 85% | O127: 85% | P127: 208 | Q127: 97% | R127: 65% | S127: 219 | T127: 74% | U127: 74% | V127: 88 | W127: 68% | X127: 68% | Y127: 117
A128: 30 | B128: MEURTHE ET MOSELLE MEUSE | C128: 27 | D128: PONT A MOUSSON | E128: 454535 | F128: PONT A MOUSSON CENTRALE | G128: 5.3 | H128: 64% | I128: 51% | J128: 119 | K128: 78% | L128: 78% | M128: 232 | N128: 60% | O128: 60% | P128: 43 | Q128: 89% | R128: 58% | S128: 142 | T128: 69% | U128: 69% | V128: 54 | W128: 53% | X128: 53% | Y128: 28
A129: 30 | B129: VOSGES | C129: 55 | D129: SAINT DIE | E129: 588316 | F129: FRAIZE | G129: 3.6 | H129: 64% | I129: 51% | J129: 120 | K129: 45% | L129: 45% | M129: 92 | N129: 78% | O129: 78% | P129: 158 | Q129: 84% | R129: 52% | S129: 85 | T129: 74% | U129: 74% | V129: 91 | W129: 68% | X129: 68% | Y129: 112
A130: 30 | B130: MEURTHE ET MOSELLE MEUSE | C130: 31 | D130: VERDUN | E130: 554412 | F130: LONGUYON | G130: 2.8 | H130: 64% | I130: 51% | J130: 121 | K130: 44% | L130: 44% | M130: 88 | N130: 67% | O130: 67% | P130: 75 | Q130: 90% | R130: 58% | S130: 146 | T130: 78% | U130: 78% | V130: 130 | W130: 71% | X130: 71% | Y130: 150
A131: 30 | B131: BAS RHIN | C131: 5006 | D131: STRASBOURG | E131: 4019 | F131: STRASBOURG ANVERS | G131: 4.5 | H131: 64% | I131: 51% | J131: 122 | K131: 67% | L131: 67% | M131: 174 | N131: 62% | O131: 62% | P131: 46 | Q131: 82% | R131: 50% | S131: 67 | T131: 72% | U131: 72% | V131: 78 | W131: 67% | X131: 67% | Y131: 104
A132: 30 | B132: BAS RHIN | C132: 5006 | D132: STRASBOURG | E132: 4023 | F132: STRASBOURG VOSGES | G132: 2.9 | H132: 64% | I132: 51% | J132: 123 | K132: 48% | L132: 48% | M132: 106 | N132: 72% | O132: 72% | P132: 103 | Q132: 71% | R132: 39% | S132: 13 | T132: 84% | U132: 84% | V132: 189 | W132: 76% | X132: 76% | Y132: 207
A133: 30 | B133: MOSELLE | C133: 45 | D133: METZ | E133: 557612 | F133: SAINTE MARIE AUX CHENES | G133: 3.7 | H133: 64% | I133: 52% | J133: 124 | K133: 29% | L133: 29% | M133: 34 | N133: 88% | O133: 88% | P133: 223 | Q133: 81% | R133: 49% | S133: 60 | T133: 76% | U133: 76% | V133: 116 | W133: 77% | X133: 77% | Y133: 216
A134: 30 | B134: MOSELLE | C134: 44 | D134: MOSELLE NORD | E134: 557307 | F134: FONTOY | G134: 1.9 | H134: 64% | I134: 52% | J134: 125 | K134: 37% | L134: 37% | M134: 62 | N134: 82% | O134: 82% | P134: 187 | Q134: 87% | R134: 55% | S134: 119 | T134: 85% | U134: 85% | V134: 206 | W134: 61% | X134: 61% | Y134: 64
A135: 110 | B135: MEURTHE ET MOSELLE MEUSE | C135: 26 | D135: NANCY | E135: 554296 | F135: ESSEY LES NANCY | G135: 3.6 | H135: 64% | I135: 52% | J135: 126 | K135: 33% | L135: 33% | M135: 47 | N135: 75% | O135: 75% | P135: 130 | Q135: 90% | R135: 59% | S135: 153 | T135: 85% | U135: 85% | V135: 198 | W135: 70% | X135: 70% | Y135: 141
A136: 110 | B136: MOSELLE | C136: 42 | D136: MOSELLE EST | E136: 457435 | F136: MERLEBACH | G136: 2.7 | H136: 64% | I136: 52% | J136: 127 | K136: 46% | L136: 46% | M136: 94 | N136: 76% | O136: 76% | P136: 137 | Q136: 93% | R136: 62% | S136: 188 | T136: 77% | U136: 77% | V136: 125 | W136: 61% | X136: 61% | Y136: 67
A137: 110 | B137: MEURTHE ET MOSELLE MEUSE | C137: 31 | D137: VERDUN | E137: 555624 | F137: STENAY | G137: 3.3 | H137: 65% | I137: 52% | J137: 128 | K137: 67% | L137: 67% | M137: 177 | N137: 63% | O137: 63% | P137: 52 | Q137: 91% | R137: 59% | S137: 160 | T137: 82% | U137: 82% | V137: 177 | W137: 52% | X137: 52% | Y137: 22
A138: 110 | B138: AUBE HAUTE MARNE | C138: 21 | D138: CHAUMONT | E138: 451156 | F138: SAINT DIZIER CENTRE | G138: 8.5 | H138: 65% | I138: 52% | J138: 129 | K138: 55% | L138: 55% | M138: 135 | N138: 73% | O138: 73% | P138: 116 | Q138: 88% | R138: 57% | S138: 130 | T138: 71% | U138: 71% | V138: 70 | W138: 67% | X138: 67% | Y138: 102
A139: 110 | B139: MEURTHE ET MOSELLE MEUSE | C139: 27 | D139: PONT A MOUSSON | E139: 554496 | F139: NANCY TROIS MAISONS | G139: 2.3 | H139: 65% | I139: 52% | J139: 130 | K139: 65% | L139: 65% | M139: 166 | N139: 72% | O139: 72% | P139: 104 | Q139: 90% | R139: 58% | S139: 150 | T139: 70% | U139: 70% | V139: 66 | W139: 59% | X139: 59% | Y139: 52
A140: 110 | B140: MOSELLE | C140: 44 | D140: MOSELLE NORD | E140: 457192 | F140: CATTENOM | G140: 1.6 | H140: 65% | I140: 52% | J140: 131 | K140: 53% | L140: 53% | M140: 125 | N140: 69% | O140: 69% | P140: 86 | Q140: 88% | R140: 57% | S140: 133 | T140: 80% | U140: 80% | V140: 148 | W140: 65% | X140: 65% | Y140: 83
A141: 110 | B141: HAUT RHIN | C141: 5130 | D141: COLMAR | E141: 4143 | F141: MUNSTER | G141: 4.3 | H141: 65% | I141: 52% | J141: 132 | K141: 58% | L141: 58% | M141: 139 | N141: 68% | O141: 68% | P141: 78 | Q141: 86% | R141: 54% | S141: 105 | T141: 74% | U141: 74% | V141: 96 | W141: 70% | X141: 70% | Y141: 133
A142: 110 | B142: MEURTHE ET MOSELLE MEUSE | C142: 31 | D142: VERDUN | E142: 455566 | F142: REVIGNY SUR ORNAIN | G142: 2.7 | H142: 65% | I142: 53% | J142: 133 | K142: 48% | L142: 48% | M142: 104 | N142: 78% | O142: 78% | P142: 154 | Q142: 84% | R142: 52% | S142: 81 | T142: 75% | U142: 75% | V142: 105 | W142: 72% | X142: 72% | Y142: 156
A143: 110 | B143: BAS RHIN | C143: 5006 | D143: STRASBOURG | E143: 4027 | F143: SCHILTIGHEIM CENTRE | G143: 4.0 | H143: 65% | I143: 53% | J143: 134 | K143: 71% | L143: 71% | M143: 202 | N143: 63% | O143: 63% | P143: 54 | Q143: 82% | R143: 50% | S143: 69 | T143: 72% | U143: 72% | V143: 73 | W143: 69% | X143: 69% | Y143: 126
A144: 110 | B144: VOSGES | C144: 55 | D144: SAINT DIE | E144: 588461 | F144: MOYENMOUTIER | G144: 4.4 | H144: 65% | I144: 53% | J144: 135 | K144: 44% | L144: 44% | M144: 87 | N144: 71% | O144: 71% | P144: 102 | Q144: 88% | R144: 56% | S144: 128 | T144: 79% | U144: 79% | V144: 138 | W144: 76% | X144: 76% | Y144: 209
A145: 110 | B145: VOSGES | C145: 57 | D145: EPINAL | E145: 588201 | F145: CHANTRAINE | G145: 3.7 | H145: 65% | I145: 53% | J145: 136 | K145: 45% | L145: 45% | M145: 90 | N145: 70% | O145: 70% | P145: 93 | Q145: 85% | R145: 53% | S145: 95 | T145: 83% | U145: 83% | V145: 186 | W145: 75% | X145: 75% | Y145: 197
A146: 110 | B146: BAS RHIN | C146: 5101 | D146: SELESTAT | E146: 4126 | F146: MUTZIG | G146: 2.7 | H146: 66% | I146: 53% | J146: 137 | K146: 63% | L146: 63% | M146: 156 | N146: 60% | O146: 60% | P146: 41 | Q146: 83% | R146: 52% | S146: 76 | T146: 81% | U146: 81% | V146: 161 | W146: 72% | X146: 72% | Y146: 162
A147: 110 | B147: BAS RHIN | C147: 5006 | D147: STRASBOURG | E147: 4020 | F147: STRASBOURG ROBERTSAU | G147: 5.3 | H147: 66% | I147: 53% | J147: 138 | K147: 54% | L147: 54% | M147: 129 | N147: 79% | O147: 79% | P147: 163 | Q147: 65% | R147: 34% | S147: 6 | T147: 85% | U147: 85% | V147: 207 | W147: 76% | X147: 76% | Y147: 206
A148: 110 | B148: BAS RHIN | C148: 5006 | D148: STRASBOURG | E148: 4039 | F148: REICHSTETT | G148: 1.6 | H148: 66% | I148: 53% | J148: 139 | K148: 54% | L148: 54% | M148: 127 | N148: 77% | O148: 77% | P148: 147 | Q148: 79% | R148: 47% | S148: 46 | T148: 76% | U148: 76% | V148: 117 | W148: 75% | X148: 75% | Y148: 185
A149: 110 | B149: BAS RHIN | C149: 5060 | D149: HAGUENAU | E149: 4031 | F149: TRUCHTERSHEIM | G149: 2.3 | H149: 66% | I149: 54% | J149: 140 | K149: 36% | L149: 36% | M149: 51 | N149: 65% | O149: 65% | P149: 64 | Q149: 88% | R149: 56% | S149: 129 | T149: 90% | U149: 90% | V149: 227 | W149: 82% | X149: 82% | Y149: 235
A150: 110 | B150: MARNE ARDENNES | C150: 2 | D150: CHARLEVILLE MEZIERES | E150: 408862 | F150: REVIN | G150: 3.8 | H150: 66% | I150: 54% | J150: 141 | K150: 43% | L150: 43% | M150: 83 | N150: 82% | O150: 82% | P150: 186 | Q150: 94% | R150: 62% | S150: 196 | T150: 73% | U150: 73% | V150: 80 | W150: 70% | X150: 70% | Y150: 137
A151: 110 | B151: VOSGES | C151: 57 | D151: EPINAL | E151: 488706 | F151: VITTEL | G151: 3.1 | H151: 66% | I151: 54% | J151: 142 | K151: 50% | L151: 50% | M151: 111 | N151: 81% | O151: 81% | P151: 178 | Q151: 88% | R151: 56% | S151: 125 | T151: 75% | U151: 75% | V151: 106 | W151: 69% | X151: 69% | Y151: 120
A152: 110 | B152: VOSGES | C152: 57 | D152: EPINAL | E152: 588206 | F152: CHARMES | G152: 2.7 | H152: 66% | I152: 54% | J152: 143 | K152: 50% | L152: 50% | M152: 110 | N152: 81% | O152: 81% | P152: 182 | Q152: 83% | R152: 51% | S152: 74 | T152: 78% | U152: 78% | V152: 129 | W152: 72% | X152: 72% | Y152: 164
A153: 110 | B153: MEURTHE ET MOSELLE MEUSE | C153: 26 | D153: NANCY | E153: 554166 | F153: BLAINVILLE | G153: 2.9 | H153: 66% | I153: 54% | J153: 144 | K153: 67% | L153: 67% | M153: 178 | N153: 67% | O153: 67% | P153: 71 | Q153: 90% | R153: 59% | S153: 157 | T153: 70% | U153: 70% | V153: 63 | W153: 70% | X153: 70% | Y153: 130
A154: 110 | B154: MOSELLE | C154: 42 | D154: MOSELLE EST | E154: 557503 | F154: NEUNKIRCH | G154: 3.2 | H154: 66% | I154: 54% | J154: 145 | K154: 11% | L154: 11% | M154: 7 | N154: 88% | O154: 88% | P154: 220 | Q154: 97% | R154: 66% | S154: 226 | T154: 91% | U154: 91% | V154: 231 | W154: 77% | X154: 77% | Y154: 212
A155: 110 | B155: MEURTHE ET MOSELLE MEUSE | C155: 26 | D155: NANCY | E155: 554486 | F155: NANCY POINT CENTRAL | G155: 3.0 | H155: 67% | I155: 54% | J155: 146 | K155: 55% | L155: 55% | M155: 134 | N155: 83% | O155: 83% | P155: 192 | Q155: 76% | R155: 45% | S155: 30 | T155: 81% | U155: 81% | V155: 157 | W155: 70% | X155: 70% | Y155: 135
A156: 110 | B156: AUBE HAUTE MARNE | C156: 21 | D156: CHAUMONT | E156: 410566 | F156: CHAUMONT HOTEL DE VILLE | G156: 10.4 | H156: 67% | I156: 54% | J156: 147 | K156: 46% | L156: 46% | M156: 93 | N156: 81% | O156: 81% | P156: 184 | Q156: 84% | R156: 53% | S156: 92 | T156: 81% | U156: 81% | V156: 156 | W156: 73% | X156: 73% | Y156: 177
A157: 110 | B157: MOSELLE | C157: 45 | D157: METZ | E157: 557441 | F157: METZ PLAPPEVILLE | G157: 2.4 | H157: 67% | I157: 54% | J157: 148 | K157: 64% | L157: 64% | M157: 164 | N157: 81% | O157: 81% | P157: 183 | Q157: 72% | R157: 40% | S157: 17 | T157: 82% | U157: 82% | V157: 169 | W157: 67% | X157: 67% | Y157: 95
A158: 110 | B158: BAS RHIN | C158: 5101 | D158: SELESTAT | E158: 4127 | F158: ROSHEIM | G158: 1.7 | H158: 67% | I158: 54% | J158: 149 | K158: 54% | L158: 54% | M158: 128 | N158: 84% | O158: 84% | P158: 201 | Q158: 74% | R158: 42% | S158: 23 | T158: 84% | U158: 84% | V158: 187 | W158: 71% | X158: 71% | Y158: 146
A159: 110 | B159: HAUT RHIN | C159: 5130 | D159: COLMAR | E159: 4157 | F159: NEUF BRISACH | G159: 2.6 | H159: 67% | I159: 55% | J159: 150 | K159: 70% | L159: 70% | M159: 196 | N159: 74% | O159: 74% | P159: 123 | Q159: 86% | R159: 54% | S159: 108 | T159: 71% | U159: 71% | V159: 69 | W159: 66% | X159: 66% | Y159: 89
A160: 110 | B160: BAS RHIN | C160: 5006 | D160: STRASBOURG | E160: 4045 | F160: STRASBOURG FRANCS BOURGEOIS | G160: 4.2 | H160: 67% | I160: 55% | J160: 151 | K160: 52% | L160: 52% | M160: 119 | N160: 67% | O160: 67% | P160: 73 | Q160: 93% | R160: 61% | S160: 183 | T160: 79% | U160: 79% | V160: 146 | W160: 76% | X160: 76% | Y160: 205
A161: 110 | B161: MEURTHE ET MOSELLE MEUSE | C161: 27 | D161: PONT A MOUSSON | E161: 454355 | F161: JARNY | G161: 4.1 | H161: 67% | I161: 55% | J161: 152 | K161: 48% | L161: 48% | M161: 103 | N161: 77% | O161: 77% | P161: 151 | Q161: 88% | R161: 57% | S161: 132 | T161: 78% | U161: 78% | V161: 127 | W161: 77% | X161: 77% | Y161: 214
A162: 110 | B162: MOSELLE | C162: 45 | D162: METZ | E162: 557459 | F162: MOULINS LES METZ | G162: 2.5 | H162: 67% | I162: 55% | J162: 153 | K162: 41% | L162: 41% | M162: 72 | N162: 83% | O162: 83% | P162: 195 | Q162: 93% | R162: 62% | S162: 189 | T162: 80% | U162: 80% | V162: 153 | W162: 72% | X162: 72% | Y162: 158
A163: 110 | B163: AUBE HAUTE MARNE | C163: 14 | D163: TROYES | E163: 510513 | F163: SAINT PARRES AUX TERTRES | G163: 2.5 | H163: 68% | I163: 55% | J163: 154 | K163: 81% | L163: 81% | M163: 236 | N163: 64% | O163: 64% | P163: 58 | Q163: 89% | R163: 57% | S163: 134 | T163: 68% | U163: 68% | V163: 52 | W163: 68% | X163: 68% | Y163: 106
A164: 110 | B164: MEURTHE ET MOSELLE MEUSE | C164: 27 | D164: PONT A MOUSSON | E164: 454651 | F164: TOUL | G164: 9.7 | H164: 68% | I164: 55% | J164: 155 | K164: 73% | L164: 73% | M164: 211 | N164: 80% | O164: 80% | P164: 173 | Q164: 84% | R164: 53% | S164: 94 | T164: 73% | U164: 73% | V164: 81 | W164: 60% | X164: 60% | Y164: 62
A165: 110 | B165: MOSELLE | C165: 42 | D165: MOSELLE EST | E165: 557210 | F165: CHATEAU SALINS | G165: 1.7 | H165: 68% | I165: 55% | J165: 156 | K165: 67% | L165: 67% | M165: 173 | N165: 73% | O165: 73% | P165: 121 | Q165: 92% | R165: 61% | S165: 177 | T165: 67% | U165: 67% | V165: 35 | W165: 71% | X165: 71% | Y165: 151
A166: 110 | B166: BAS RHIN | C166: 5060 | D166: HAGUENAU | E166: 4085 | F166: INGWILLER | G166: 3.5 | H166: 68% | I166: 55% | J166: 157 | K166: 54% | L166: 54% | M166: 126 | N166: 78% | O166: 78% | P166: 153 | Q166: 92% | R166: 60% | S166: 172 | T166: 78% | U166: 78% | V166: 136 | W166: 69% | X166: 69% | Y166: 125
A167: 110 | B167: VOSGES | C167: 55 | D167: SAINT DIE | E167: 488556 | F167: RAON L ETAPE | G167: 2.2 | H167: 68% | I167: 56% | J167: 158 | K167: 41% | L167: 41% | M167: 74 | N167: 89% | O167: 89% | P167: 226 | Q167: 99% | R167: 67% | S167: 230 | T167: 81% | U167: 81% | V167: 160 | W167: 62% | X167: 62% | Y167: 69
A168: 110 | B168: MARNE ARDENNES | C168: 11 | D168: REIMS | E168: 551309 | F168: REIMS EUROPE | G168: 2.9 | H168: 68% | I168: 56% | J168: 159 | K168: 56% | L168: 56% | M168: 138 | N168: 76% | O168: 76% | P168: 138 | Q168: 95% | R168: 64% | S168: 210 | T168: 74% | U168: 74% | V168: 97 | W168: 70% | X168: 70% | Y168: 140
A169: 110 | B169: MARNE ARDENNES | C169: 2 | D169: CHARLEVILLE MEZIERES | E169: 408806 | F169: SEDAN | G169: 7.6 | H169: 68% | I169: 56% | J169: 160 | K169: 47% | L169: 47% | M169: 98 | N169: 79% | O169: 79% | P169: 161 | Q169: 91% | R169: 60% | S169: 167 | T169: 88% | U169: 88% | V169: 219 | W169: 68% | X169: 68% | Y169: 107
A170: 110 | B170: AUBE HAUTE MARNE | C170: 14 | D170: TROYES | E170: 510523 | F170: LA CHAPELLE ST LUC | G170: 4.7 | H170: 68% | I170: 56% | J170: 161 | K170: 78% | L170: 78% | M170: 233 | N170: 73% | O170: 73% | P170: 118 | Q170: 85% | R170: 54% | S170: 104 | T170: 68% | U170: 68% | V170: 45 | W170: 69% | X170: 69% | Y170: 118
A171: 110 | B171: BAS RHIN | C171: 5006 | D171: STRASBOURG | E171: 4028 | F171: BISCHHEIM | G171: 3.2 | H171: 68% | I171: 56% | J171: 162 | K171: 66% | L171: 66% | M171: 171 | N171: 80% | O171: 80% | P171: 174 | Q171: 79% | R171: 48% | S171: 47 | T171: 72% | U171: 72% | V171: 77 | W171: 75% | X171: 75% | Y171: 195
A172: 110 | B172: MEURTHE ET MOSELLE MEUSE | C172: 26 | D172: NANCY | E172: 554266 | F172: DOMBASLE SUR MEURTHE | G172: 3.3 | H172: 68% | I172: 56% | J172: 163 | K172: 68% | L172: 68% | M172: 182 | N172: 87% | O172: 87% | P172: 214 | Q172: 78% | R172: 47% | S172: 42 | T172: 75% | U172: 75% | V172: 103 | W172: 65% | X172: 65% | Y172: 80
A173: 110 | B173: BAS RHIN | C173: 5101 | D173: SELESTAT | E173: 4007 | F173: ILLKIRCH CENTRE | G173: 6.5 | H173: 68% | I173: 56% | J173: 164 | K173: 68% | L173: 68% | M173: 183 | N173: 77% | O173: 77% | P173: 141 | Q173: 92% | R173: 61% | S173: 178 | T173: 67% | U173: 67% | V173: 42 | W173: 70% | X173: 70% | Y173: 134
A174: 110 | B174: BAS RHIN | C174: 5101 | D174: SELESTAT | E174: 4008 | F174: FEGERSHEIM | G174: 2.4 | H174: 69% | I174: 56% | J174: 165 | K174: 51% | L174: 51% | M174: 114 | N174: 72% | O174: 72% | P174: 111 | Q174: 84% | R174: 52% | S174: 83 | T174: 85% | U174: 85% | V174: 204 | W174: 82% | X174: 82% | Y174: 234
A175: 110 | B175: HAUT RHIN | C175: 5169 | D175: MULHOUSE | E175: 4180 | F175: RIEDISHEIM | G175: 3.3 | H175: 69% | I175: 56% | J175: 166 | K175: 44% | L175: 44% | M175: 86 | N175: 80% | O175: 80% | P175: 169 | Q175: 97% | R175: 66% | S175: 225 | T175: 76% | U175: 76% | V175: 115 | W175: 78% | X175: 78% | Y175: 221
A176: 110 | B176: MARNE ARDENNES | C176: 6 | D176: CHALONS EN CHAMPAGNE | E176: 451166 | F176: VITRY LE FRANCOIS | G176: 3.7 | H176: 69% | I176: 56% | J176: 167 | K176: 75% | L176: 75% | M176: 218 | N176: 68% | O176: 68% | P176: 76 | Q176: 102% | R176: 70% | S176: 234 | T176: 79% | U176: 79% | V176: 139 | W176: 52% | X176: 52% | Y176: 23
A177: 160 | B177: MARNE ARDENNES | C177: 2 | D177: CHARLEVILLE MEZIERES | E177: 508815 | F177: CARIGNAN | G177: 2.7 | H177: 69% | I177: 56% | J177: 168 | K177: 43% | L177: 43% | M177: 82 | N177: 78% | O177: 78% | P177: 156 | Q177: 91% | R177: 60% | S177: 168 | T177: 89% | U177: 89% | V177: 224 | W177: 74% | X177: 74% | Y177: 179
A178: 160 | B178: BAS RHIN | C178: 5101 | D178: SELESTAT | E178: 4107 | F178: VILLE | G178: 2.2 | H178: 69% | I178: 56% | J178: 169 | K178: 73% | L178: 73% | M178: 212 | N178: 65% | O178: 65% | P178: 63 | Q178: 78% | R178: 46% | S178: 39 | T178: 80% | U178: 80% | V178: 150 | W178: 80% | X178: 80% | Y178: 232
A179: 160 | B179: MOSELLE | C179: 45 | D179: METZ | E179: 557436 | F179: METZ CATHEDRALE | G179: 4.0 | H179: 69% | I179: 56% | J179: 170 | K179: 76% | L179: 76% | M179: 222 | N179: 72% | O179: 72% | P179: 106 | Q179: 81% | R179: 49% | S179: 62 | T179: 75% | U179: 75% | V179: 100 | W179: 73% | X179: 73% | Y179: 169
A180: 160 | B180: MOSELLE | C180: 45 | D180: METZ | E180: 557559 | F180: REMILLY | G180: 3.4 | H180: 69% | I180: 57% | J180: 171 | K180: 60% | L180: 60% | M180: 144 | N180: 77% | O180: 77% | P180: 142 | Q180: 89% | R180: 57% | S180: 139 | T180: 85% | U180: 85% | V180: 202 | W180: 66% | X180: 66% | Y180: 90
A181: 160 | B181: AUBE HAUTE MARNE | C181: 14 | D181: TROYES | E181: 410550 | F181: BAR SUR AUBE | G181: 5.2 | H181: 69% | I181: 57% | J181: 172 | K181: 45% | L181: 45% | M181: 91 | N181: 80% | O181: 80% | P181: 171 | Q181: 95% | R181: 63% | S181: 205 | T181: 85% | U181: 85% | V181: 193 | W181: 72% | X181: 72% | Y181: 159
A182: 160 | B182: MOSELLE | C182: 42 | D182: MOSELLE EST | E182: 457614 | F182: SARREBOURG | G182: 7.5 | H182: 69% | I182: 57% | J182: 173 | K182: 56% | L182: 56% | M182: 136 | N182: 79% | O182: 79% | P182: 162 | Q182: 91% | R182: 59% | S182: 161 | T182: 79% | U182: 79% | V182: 144 | W182: 72% | X182: 72% | Y182: 166
A183: 160 | B183: HAUT RHIN | C183: 5169 | D183: MULHOUSE | E183: 4170 | F183: MULHOUSE REUNION | G183: 7.7 | H183: 69% | I183: 57% | J183: 174 | K183: 61% | L183: 61% | M183: 147 | N183: 77% | O183: 77% | P183: 149 | Q183: 95% | R183: 64% | S183: 208 | T183: 75% | U183: 75% | V183: 104 | W183: 69% | X183: 69% | Y183: 124
A184: 160 | B184: BAS RHIN | C184: 5006 | D184: STRASBOURG | E184: 4029 | F184: SCHILTIGHEIM KLEBER | G184: 0.8 | H184: 69% | I184: 57% | J184: 175 | K184: 62% | L184: 62% | M184: 149 | N184: 92% | O184: 92% | P184: 236 | Q184: 80% | R184: 48% | S184: 52 | T184: 76% | U184: 76% | V184: 109 | W184: 69% | X184: 69% | Y184: 121
A185: 160 | B185: MOSELLE | C185: 45 | D185: METZ | E185: 557712 | F185: WOIPPY | G185: 4.4 | H185: 69% | I185: 57% | J185: 176 | K185: 71% | L185: 71% | M185: 203 | N185: 72% | O185: 72% | P185: 108 | Q185: 87% | R185: 56% | S185: 122 | T185: 76% | U185: 76% | V185: 111 | W185: 72% | X185: 72% | Y185: 154
A186: 160 | B186: HAUT RHIN | C186: 5130 | D186: COLMAR | E186: 4132 | F186: COLMAR MARAICHERS | G186: 3.7 | H186: 69% | I186: 57% | J186: 177 | K186: 59% | L186: 59% | M186: 141 | N186: 75% | O186: 75% | P186: 132 | Q186: 85% | R186: 54% | S186: 98 | T186: 83% | U186: 83% | V186: 183 | W186: 77% | X186: 77% | Y186: 213
A187: 160 | B187: BAS RHIN | C187: 5060 | D187: HAGUENAU | E187: 4082 | F187: BOUXWILLER | G187: 2.3 | H187: 70% | I187: 57% | J187: 178 | K187: 35% | L187: 35% | M187: 50 | N187: 84% | O187: 84% | P187: 199 | Q187: 115% | R187: 83% | S187: 239 | T187: 77% | U187: 77% | V187: 122 | W187: 69% | X187: 69% | Y187: 122
A188: 160 | B188: MOSELLE | C188: 44 | D188: MOSELLE NORD | E188: 457180 | F188: BOUSSE | G188: 2.5 | H188: 70% | I188: 58% | J188: 179 | K188: 15% | L188: 15% | M188: 8 | N188: 89% | O188: 89% | P188: 224 | Q188: 95% | R188: 63% | S188: 199 | T188: 96% | U188: 96% | V188: 237 | W188: 89% | X188: 89% | Y188: 241
A189: 160 | B189: BAS RHIN | C189: 5101 | D189: SELESTAT | E189: 4109 | F189: MARCKOLSHEIM | G189: 2.5 | H189: 70% | I189: 58% | J189: 180 | K189: 59% | L189: 59% | M189: 142 | N189: 77% | O189: 77% | P189: 148 | Q189: 95% | R189: 63% | S189: 202 | T189: 80% | U189: 80% | V189: 155 | W189: 72% | X189: 72% | Y189: 160
A190: 160 | B190: MEURTHE ET MOSELLE MEUSE | C190: 27 | D190: PONT A MOUSSON | E190: 454696 | F190: VILLERS GENERAL LECLERC | G190: 4.0 | H190: 70% | I190: 58% | J190: 181 | K190: 65% | L190: 65% | M190: 168 | N190: 85% | O190: 85% | P190: 203 | Q190: 73% | R190: 42% | S190: 21 | T190: 83% | U190: 83% | V190: 180 | W190: 78% | X190: 78% | Y190: 224
A191: 160 | B191: MARNE ARDENNES | C191: 2 | D191: CHARLEVILLE MEZIERES | E191: 508860 | F191: ROCROI | G191: 2.4 | H191: 71% | I191: 58% | J191: 182 | K191: 73% | L191: 73% | M191: 214 | N191: 71% | O191: 71% | P191: 97 | Q191: 93% | R191: 61% | S191: 184 | T191: 79% | U191: 79% | V191: 143 | W191: 69% | X191: 69% | Y191: 119
A192: 160 | B192: MARNE ARDENNES | C192: 11 | D192: REIMS | E192: 451308 | F192: REIMS SAINT THOMAS | G192: 5.5 | H192: 71% | I192: 58% | J192: 183 | K192: 81% | L192: 81% | M192: 237 | N192: 72% | O192: 72% | P192: 107 | Q192: 96% | R192: 64% | S192: 216 | T192: 75% | U192: 75% | V192: 102 | W192: 61% | X192: 61% | Y192: 63
A193: 160 | B193: MOSELLE | C193: 45 | D193: METZ | E193: 557440 | F193: METZ MOZART | G193: 3.0 | H193: 71% | I193: 58% | J193: 184 | K193: 63% | L193: 63% | M193: 158 | N193: 79% | O193: 79% | P193: 159 | Q193: 84% | R193: 52% | S193: 82 | T193: 80% | U193: 80% | V193: 151 | W193: 79% | X193: 79% | Y193: 226
A194: 160 | B194: AUBE HAUTE MARNE | C194: 14 | D194: TROYES | E194: 410510 | F194: TROYES GAMBETTA | G194: 8.7 | H194: 71% | I194: 58% | J194: 185 | K194: 70% | L194: 70% | M194: 198 | N194: 75% | O194: 75% | P194: 133 | Q194: 92% | R194: 61% | S194: 179 | T194: 77% | U194: 77% | V194: 119 | W194: 70% | X194: 70% | Y194: 138
A195: 160 | B195: MEURTHE ET MOSELLE MEUSE | C195: 27 | D195: PONT A MOUSSON | E195: 554196 | F195: CHAMPIGNEULLES | G195: 2.5 | H195: 71% | I195: 58% | J195: 186 | K195: 65% | L195: 65% | M195: 170 | N195: 84% | O195: 84% | P195: 202 | Q195: 90% | R195: 59% | S195: 152 | T195: 71% | U195: 71% | V195: 71 | W195: 74% | X195: 74% | Y195: 181
A196: 160 | B196: BAS RHIN | C196: 5060 | D196: HAGUENAU | E196: 4060 | F196: HAGUENAU HOUBLON | G196: 8.6 | H196: 71% | I196: 59% | J196: 187 | K196: 68% | L196: 68% | M196: 186 | N196: 81% | O196: 81% | P196: 180 | Q196: 84% | R196: 52% | S196: 87 | T196: 78% | U196: 78% | V196: 131 | W196: 75% | X196: 75% | Y196: 194
A197: 160 | B197: MEURTHE ET MOSELLE MEUSE | C197: 26 | D197: NANCY | E197: 554491 | F197: NANCY SAINT SEBASTIEN | G197: 3.5 | H197: 71% | I197: 59% | J197: 188 | K197: 53% | L197: 53% | M197: 122 | N197: 85% | O197: 85% | P197: 207 | Q197: 91% | R197: 59% | S197: 164 | T197: 85% | U197: 85% | V197: 199 | W197: 72% | X197: 72% | Y197: 163
A198: 160 | B198: MOSELLE | C198: 45 | D198: METZ | E198: 557433 | F198: MARANGE SILVANGE | G198: 2.8 | H198: 71% | I198: 59% | J198: 189 | K198: 68% | L198: 68% | M198: 180 | N198: 83% | O198: 83% | P198: 189 | Q198: 91% | R198: 60% | S198: 166 | T198: 80% | U198: 80% | V198: 154 | W198: 65% | X198: 65% | Y198: 79
A199: 160 | B199: MEURTHE ET MOSELLE MEUSE | C199: 26 | D199: NANCY | E199: 454671 | F199: VANDOEUVRE LES NANCY | G199: 4.0 | H199: 71% | I199: 59% | J199: 190 | K199: 68% | L199: 68% | M199: 187 | N199: 78% | O199: 78% | P199: 157 | Q199: 89% | R199: 58% | S199: 143 | T199: 80% | U199: 80% | V199: 152 | W199: 71% | X199: 71% | Y199: 152
A200: 160 | B200: HAUT RHIN | C200: 5169 | D200: MULHOUSE | E200: 4178 | F200: SAINT LOUIS | G200: 6.5 | H200: 71% | I200: 59% | J200: 191 | K200: 68% | L200: 68% | M200: 181 | N200: 77% | O200: 77% | P200: 152 | Q200: 83% | R200: 52% | S200: 79 | T200: 81% | U200: 81% | V200: 163 | W200: 78% | X200: 78% | Y200: 219
A201: 160 | B201: MARNE ARDENNES | C201: 2 | D201: CHARLEVILLE MEZIERES | E201: 508819 | F201: MOUZON | G201: 1.9 | H201: 71% | I201: 59% | J201: 192 | K201: 55% | L201: 55% | M201: 131 | N201: 90% | O201: 90% | P201: 231 | Q201: 82% | R201: 50% | S201: 68 | T201: 92% | U201: 92% | V201: 233 | W201: 70% | X201: 70% | Y201: 136
A202: 160 | B202: VOSGES | C202: 57 | D202: EPINAL | E202: 488256 | F202: DARNEY | G202: 1.6 | H202: 71% | I202: 59% | J202: 193 | K202: 30% | L202: 30% | M202: 37 | N202: 89% | O202: 89% | P202: 229 | Q202: 108% | R202: 76% | S202: 237 | T202: 82% | U202: 82% | V202: 170 | W202: 80% | X202: 80% | Y202: 229
A203: 160 | B203: BAS RHIN | C203: 5101 | D203: SELESTAT | E203: 4101 | F203: SELESTAT CENTRE | G203: 7.9 | H203: 71% | I203: 59% | J203: 194 | K203: 68% | L203: 68% | M203: 185 | N203: 75% | O203: 75% | P203: 135 | Q203: 93% | R203: 61% | S203: 180 | T203: 79% | U203: 79% | V203: 140 | W203: 74% | X203: 74% | Y203: 182
... 48 more rows

Sheet AG_BANCA
B1: Accueil | H1: BAROMETRE BDD - AGENCES
H2: BANCARISATION
H3: =ACCUEIL!F7 -> 2022-09-18
H7: Ventes Nettes produits pondérés | L7: Ventes sur client non détenteur de l’univers | P7: Total Bancarisation
H8: =DATEMAJ!C8 -> au 18/09 | J8: coef | K8: ='RECAP DIRCOM'!AA4 -> 12% | L8: =DATEMAJ!C9 -> au 18/09 | N8: coef | O8: ='RECAP DIRCOM'!AE4 -> 8% | Q8: coef | R8: ='RECAP DIRCOM'!$AH$4 -> 20%
B9: Direction | C9: eds | D9: Territoire | E9: eds | F9: Agence | G9: ="ETP perf "&DATEMAJ!$C$28 -> ETP perf 18-sept | H9: VN | I9: VN / ETP | J9: % Ecart au 1er | K9: Rang | L9: VB | M9: VB / ETP | N9: % Ecart au 1er | O9: Rang | P9: Moyenne ecart au 1er | Q9: % Ecart au 1er | R9: Rang CEGEE
A10: 50 | B10: AUBE HAUTE MARNE | C10: 21 | D10: CHAUMONT | E10: 410541 | F10: LANGRES | G10: =VLOOKUP($E10,'RECAP AG'!$G$6:$CU$247,3,FALSE) -> 8.2 | H10: =VLOOKUP($E10,'RECAP AG'!$G$6:$CU$247,18,FALSE) -> 227.2 | I10: =VLOOKUP($E10,'RECAP AG'!$G$6:$CU$247,19,FALSE) -> 27.84 | J10: =VLOOKUP($E10,'RECAP AG'!$G$6:$CU$247,20,FALSE) -> 73% | K10: =VLOOKUP($E10,'RECAP AG'!$G$6:$CU$247,21,FALSE) -> 65 | L10: =VLOOKUP($E10,'RECAP AG'!$G$6:$CU$247,22,FALSE) -> 386 | M10: =VLOOKUP($E10,'RECAP AG'!$G$6:$CU$247,23,FALSE) -> 47.30 | N10: =VLOOKUP($E10,'RECAP AG'!$G$6:$CU$247,24,FALSE) -> 67% | O10: =VLOOKUP($E10,'RECAP AG'!$G$6:$CU$247,25,FALSE) -> 170 | P10: =VLOOKUP($E10,'RECAP AG'!$G$6:$CU$247,26,FALSE) -> 70% | Q10: =VLOOKUP($E10,'RECAP AG'!$G$6:$CU$247,27,FALSE) -> 70% | R10: =VLOOKUP($E10,'RECAP AG'!$G$6:$CU$247,28,FALSE) -> 96
A11: 50 | B11: AUBE HAUTE MARNE | C11: 21 | D11: CHAUMONT | E11: 410566 | F11: CHAUMONT HOTEL DE VILLE | G11: =VLOOKUP($E11,'RECAP AG'!$G$6:$CU$247,3,FALSE) -> 10.4 | H11: =VLOOKUP($E11,'RECAP AG'!$G$6:$CU$247,18,FALSE) -> 90.2 | I11: =VLOOKUP($E11,'RECAP AG'!$G$6:$CU$247,19,FALSE) -> 8.67 | J11: =VLOOKUP($E11,'RECAP AG'!$G$6:$CU$247,20,FALSE) -> 92% | K11: =VLOOKUP($E11,'RECAP AG'!$G$6:$CU$247,21,FALSE) -> 175 | L11: =VLOOKUP($E11,'RECAP AG'!$G$6:$CU$247,22,FALSE) -> 500 | M11: =VLOOKUP($E11,'RECAP AG'!$G$6:$CU$247,23,FALSE) -> 48.08 | N11: =VLOOKUP($E11,'RECAP AG'!$G$6:$CU$247,24,FALSE) -> 66% | O11: =VLOOKUP($E11,'RECAP AG'!$G$6:$CU$247,25,FALSE) -> 167 | P11: =VLOOKUP($E11,'RECAP AG'!$G$6:$CU$247,26,FALSE) -> 81% | Q11: =VLOOKUP($E11,'RECAP AG'!$G$6:$CU$247,27,FALSE) -> 81% | R11: =VLOOKUP($E11,'RECAP AG'!$G$6:$CU$247,28,FALSE) -> 184
A12: 50 | B12: AUBE HAUTE MARNE | C12: 21 | D12: CHAUMONT | E12: 510590 | F12: CHAUMONT REPUBLIQUE | G12: =VLOOKUP($E12,'RECAP AG'!$G$6:$CU$247,3,FALSE) -> 2.9 | H12: =VLOOKUP($E12,'RECAP AG'!$G$6:$CU$247,18,FALSE) -> 40.0 | I12: =VLOOKUP($E12,'RECAP AG'!$G$6:$CU$247,19,FALSE) -> 14.04 | J12: =VLOOKUP($E12,'RECAP AG'!$G$6:$CU$247,20,FALSE) -> 86% | K12: =VLOOKUP($E12,'RECAP AG'!$G$6:$CU$247,21,FALSE) -> 146 | L12: =VLOOKUP($E12,'RECAP AG'!$G$6:$CU$247,22,FALSE) -> 191 | M12: =VLOOKUP($E12,'RECAP AG'!$G$6:$CU$247,23,FALSE) -> 67.02 | N12: =VLOOKUP($E12,'RECAP AG'!$G$6:$CU$247,24,FALSE) -> 53% | O12: =VLOOKUP($E12,'RECAP AG'!$G$6:$CU$247,25,FALSE) -> 70 | P12: =VLOOKUP($E12,'RECAP AG'!$G$6:$CU$247,26,FALSE) -> 73% | Q12: =VLOOKUP($E12,'RECAP AG'!$G$6:$CU$247,27,FALSE) -> 73% | R12: =VLOOKUP($E12,'RECAP AG'!$G$6:$CU$247,28,FALSE) -> 117
A13: 50 | B13: AUBE HAUTE MARNE | C13: 21 | D13: CHAUMONT | E13: 451154 | F13: JOINVILLE | G13: =VLOOKUP($E13,'RECAP AG'!$G$6:$CU$247,3,FALSE) -> 1.8 | H13: =VLOOKUP($E13,'RECAP AG'!$G$6:$CU$247,18,FALSE) -> 40.2 | I13: =VLOOKUP($E13,'RECAP AG'!$G$6:$CU$247,19,FALSE) -> 22.46 | J13: =VLOOKUP($E13,'RECAP AG'!$G$6:$CU$247,20,FALSE) -> 78% | K13: =VLOOKUP($E13,'RECAP AG'!$G$6:$CU$247,21,FALSE) -> 90 | L13: =VLOOKUP($E13,'RECAP AG'!$G$6:$CU$247,22,FALSE) -> 130 | M13: =VLOOKUP($E13,'RECAP AG'!$G$6:$CU$247,23,FALSE) -> 72.63 | N13: =VLOOKUP($E13,'RECAP AG'!$G$6:$CU$247,24,FALSE) -> 49% | O13: =VLOOKUP($E13,'RECAP AG'!$G$6:$CU$247,25,FALSE) -> 48 | P13: =VLOOKUP($E13,'RECAP AG'!$G$6:$CU$247,26,FALSE) -> 66% | Q13: =VLOOKUP($E13,'RECAP AG'!$G$6:$CU$247,27,FALSE) -> 66% | R13: =VLOOKUP($E13,'RECAP AG'!$G$6:$CU$247,28,FALSE) -> 69
A14: 50 | B14: AUBE HAUTE MARNE | C14: 21 | D14: CHAUMONT | E14: 451156 | F14: SAINT DIZIER CENTRE | G14: =VLOOKUP($E14,'RECAP AG'!$G$6:$CU$247,3,FALSE) -> 8.5 | H14: =VLOOKUP($E14,'RECAP AG'!$G$6:$CU$247,18,FALSE) -> 132.6 | I14: =VLOOKUP($E14,'RECAP AG'!$G$6:$CU$247,19,FALSE) -> 15.56 | J14: =VLOOKUP($E14,'RECAP AG'!$G$6:$CU$247,20,FALSE) -> 85% | K14: =VLOOKUP($E14,'RECAP AG'!$G$6:$CU$247,21,FALSE) -> 138 | L14: =VLOOKUP($E14,'RECAP AG'!$G$6:$CU$247,22,FALSE) -> 544 | M14: =VLOOKUP($E14,'RECAP AG'!$G$6:$CU$247,23,FALSE) -> 63.85 | N14: =VLOOKUP($E14,'RECAP AG'!$G$6:$CU$247,24,FALSE) -> 55% | O14: =VLOOKUP($E14,'RECAP AG'!$G$6:$CU$247,25,FALSE) -> 82 | P14: =VLOOKUP($E14,'RECAP AG'!$G$6:$CU$247,26,FALSE) -> 73% | Q14: =VLOOKUP($E14,'RECAP AG'!$G$6:$CU$247,27,FALSE) -> 73% | R14: =VLOOKUP($E14,'RECAP AG'!$G$6:$CU$247,28,FALSE) -> 116
A15: 50 | B15: AUBE HAUTE MARNE | C15: 21 | D15: CHAUMONT | E15: 451151 | F15: WASSY | G15: =VLOOKUP($E15,'RECAP AG'!$G$6:$CU$247,3,FALSE) -> 1.9 | H15: =VLOOKUP($E15,'RECAP AG'!$G$6:$CU$247,18,FALSE) -> 19.4 | I15: =VLOOKUP($E15,'RECAP AG'!$G$6:$CU$247,19,FALSE) -> 10.10 | J15: =VLOOKUP($E15,'RECAP AG'!$G$6:$CU$247,20,FALSE) -> 90% | K15: =VLOOKUP($E15,'RECAP AG'!$G$6:$CU$247,21,FALSE) -> 168 | L15: =VLOOKUP($E15,'RECAP AG'!$G$6:$CU$247,22,FALSE) -> 94 | M15: =VLOOKUP($E15,'RECAP AG'!$G$6:$CU$247,23,FALSE) -> 48.96 | N15: =VLOOKUP($E15,'RECAP AG'!$G$6:$CU$247,24,FALSE) -> 66% | O15: =VLOOKUP($E15,'RECAP AG'!$G$6:$CU$247,25,FALSE) -> 162 | P15: =VLOOKUP($E15,'RECAP AG'!$G$6:$CU$247,26,FALSE) -> 80% | Q15: =VLOOKUP($E15,'RECAP AG'!$G$6:$CU$247,27,FALSE) -> 80% | R15: =VLOOKUP($E15,'RECAP AG'!$G$6:$CU$247,28,FALSE) -> 175
A16: 50 | B16: AUBE HAUTE MARNE | C16: 14 | D16: TROYES | E16: 510523 | F16: LA CHAPELLE ST LUC | G16: =VLOOKUP($E16,'RECAP AG'!$G$6:$CU$247,3,FALSE) -> 4.7 | H16: =VLOOKUP($E16,'RECAP AG'!$G$6:$CU$247,18,FALSE) -> 53.3 | I16: =VLOOKUP($E16,'RECAP AG'!$G$6:$CU$247,19,FALSE) -> 11.41 | J16: =VLOOKUP($E16,'RECAP AG'!$G$6:$CU$247,20,FALSE) -> 89% | K16: =VLOOKUP($E16,'RECAP AG'!$G$6:$CU$247,21,FALSE) -> 165 | L16: =VLOOKUP($E16,'RECAP AG'!$G$6:$CU$247,22,FALSE) -> 335 | M16: =VLOOKUP($E16,'RECAP AG'!$G$6:$CU$247,23,FALSE) -> 71.73 | N16: =VLOOKUP($E16,'RECAP AG'!$G$6:$CU$247,24,FALSE) -> 50% | O16: =VLOOKUP($E16,'RECAP AG'!$G$6:$CU$247,25,FALSE) -> 52 | P16: =VLOOKUP($E16,'RECAP AG'!$G$6:$CU$247,26,FALSE) -> 73% | Q16: =VLOOKUP($E16,'RECAP AG'!$G$6:$CU$247,27,FALSE) -> 73% | R16: =VLOOKUP($E16,'RECAP AG'!$G$6:$CU$247,28,FALSE) -> 118
A17: 50 | B17: AUBE HAUTE MARNE | C17: 14 | D17: TROYES | E17: 510530 | F17: ARCIS SUR AUBE | G17: =VLOOKUP($E17,'RECAP AG'!$G$6:$CU$247,3,FALSE) -> 3.6 | H17: =VLOOKUP($E17,'RECAP AG'!$G$6:$CU$247,18,FALSE) -> 57.1 | I17: =VLOOKUP($E17,'RECAP AG'!$G$6:$CU$247,19,FALSE) -> 15.69 | J17: =VLOOKUP($E17,'RECAP AG'!$G$6:$CU$247,20,FALSE) -> 85% | K17: =VLOOKUP($E17,'RECAP AG'!$G$6:$CU$247,21,FALSE) -> 135 | L17: =VLOOKUP($E17,'RECAP AG'!$G$6:$CU$247,22,FALSE) -> 181 | M17: =VLOOKUP($E17,'RECAP AG'!$G$6:$CU$247,23,FALSE) -> 49.73 | N17: =VLOOKUP($E17,'RECAP AG'!$G$6:$CU$247,24,FALSE) -> 65% | O17: =VLOOKUP($E17,'RECAP AG'!$G$6:$CU$247,25,FALSE) -> 156 | P17: =VLOOKUP($E17,'RECAP AG'!$G$6:$CU$247,26,FALSE) -> 77% | Q17: =VLOOKUP($E17,'RECAP AG'!$G$6:$CU$247,27,FALSE) -> 77% | R17: =VLOOKUP($E17,'RECAP AG'!$G$6:$CU$247,28,FALSE) -> 144
A18: 50 | B18: AUBE HAUTE MARNE | C18: 14 | D18: TROYES | E18: 410550 | F18: BAR SUR AUBE | G18: =VLOOKUP($E18,'RECAP AG'!$G$6:$CU$247,3,FALSE) -> 5.2 | H18: =VLOOKUP($E18,'RECAP AG'!$G$6:$CU$247,18,FALSE) -> 65.3 | I18: =VLOOKUP($E18,'RECAP AG'!$G$6:$CU$247,19,FALSE) -> 12.58 | J18: =VLOOKUP($E18,'RECAP AG'!$G$6:$CU$247,20,FALSE) -> 88% | K18: =VLOOKUP($E18,'RECAP AG'!$G$6:$CU$247,21,FALSE) -> 156 | L18: =VLOOKUP($E18,'RECAP AG'!$G$6:$CU$247,22,FALSE) -> 240 | M18: =VLOOKUP($E18,'RECAP AG'!$G$6:$CU$247,23,FALSE) -> 46.24 | N18: =VLOOKUP($E18,'RECAP AG'!$G$6:$CU$247,24,FALSE) -> 67% | O18: =VLOOKUP($E18,'RECAP AG'!$G$6:$CU$247,25,FALSE) -> 180 | P18: =VLOOKUP($E18,'RECAP AG'!$G$6:$CU$247,26,FALSE) -> 80% | Q18: =VLOOKUP($E18,'RECAP AG'!$G$6:$CU$247,27,FALSE) -> 80% | R18: =VLOOKUP($E18,'RECAP AG'!$G$6:$CU$247,28,FALSE) -> 171
A19: 50 | B19: AUBE HAUTE MARNE | C19: 14 | D19: TROYES | E19: 510556 | F19: BAR SUR SEINE | G19: =VLOOKUP($E19,'RECAP AG'!$G$6:$CU$247,3,FALSE) -> 2.7 | H19: =VLOOKUP($E19,'RECAP AG'!$G$6:$CU$247,18,FALSE) -> 11.6 | I19: =VLOOKUP($E19,'RECAP AG'!$G$6:$CU$247,19,FALSE) -> 4.38 | J19: =VLOOKUP($E19,'RECAP AG'!$G$6:$CU$247,20,FALSE) -> 96% | K19: =VLOOKUP($E19,'RECAP AG'!$G$6:$CU$247,21,FALSE) -> 200 | L19: =VLOOKUP($E19,'RECAP AG'!$G$6:$CU$247,22,FALSE) -> 102 | M19: =VLOOKUP($E19,'RECAP AG'!$G$6:$CU$247,23,FALSE) -> 38.49 | N19: =VLOOKUP($E19,'RECAP AG'!$G$6:$CU$247,24,FALSE) -> 73% | O19: =VLOOKUP($E19,'RECAP AG'!$G$6:$CU$247,25,FALSE) -> 216 | P19: =VLOOKUP($E19,'RECAP AG'!$G$6:$CU$247,26,FALSE) -> 87% | Q19: =VLOOKUP($E19,'RECAP AG'!$G$6:$CU$247,27,FALSE) -> 87% | R19: =VLOOKUP($E19,'RECAP AG'!$G$6:$CU$247,28,FALSE) -> 213
A20: 50 | B20: AUBE HAUTE MARNE | C20: 14 | D20: TROYES | E20: 510570 | F20: NOGENT SUR SEINE | G20: =VLOOKUP($E20,'RECAP AG'!$G$6:$CU$247,3,FALSE) -> 4.2 | H20: =VLOOKUP($E20,'RECAP AG'!$G$6:$CU$247,18,FALSE) -> 83.1 | I20: =VLOOKUP($E20,'RECAP AG'!$G$6:$CU$247,19,FALSE) -> 19.88 | J20: =VLOOKUP($E20,'RECAP AG'!$G$6:$CU$247,20,FALSE) -> 81% | K20: =VLOOKUP($E20,'RECAP AG'!$G$6:$CU$247,21,FALSE) -> 106 | L20: =VLOOKUP($E20,'RECAP AG'!$G$6:$CU$247,22,FALSE) -> 241 | M20: =VLOOKUP($E20,'RECAP AG'!$G$6:$CU$247,23,FALSE) -> 57.66 | N20: =VLOOKUP($E20,'RECAP AG'!$G$6:$CU$247,24,FALSE) -> 59% | O20: =VLOOKUP($E20,'RECAP AG'!$G$6:$CU$247,25,FALSE) -> 115 | P20: =VLOOKUP($E20,'RECAP AG'!$G$6:$CU$247,26,FALSE) -> 72% | Q20: =VLOOKUP($E20,'RECAP AG'!$G$6:$CU$247,27,FALSE) -> 72% | R20: =VLOOKUP($E20,'RECAP AG'!$G$6:$CU$247,28,FALSE) -> 109
A21: 50 | B21: AUBE HAUTE MARNE | C21: 14 | D21: TROYES | E21: 410571 | F21: ROMILLY SUR SEINE | G21: =VLOOKUP($E21,'RECAP AG'!$G$6:$CU$247,3,FALSE) -> 4.8 | H21: =VLOOKUP($E21,'RECAP AG'!$G$6:$CU$247,18,FALSE) -> 11.4 | I21: =VLOOKUP($E21,'RECAP AG'!$G$6:$CU$247,19,FALSE) -> 2.38 | J21: =VLOOKUP($E21,'RECAP AG'!$G$6:$CU$247,20,FALSE) -> 98% | K21: =VLOOKUP($E21,'RECAP AG'!$G$6:$CU$247,21,FALSE) -> 207 | L21: =VLOOKUP($E21,'RECAP AG'!$G$6:$CU$247,22,FALSE) -> 252 | M21: =VLOOKUP($E21,'RECAP AG'!$G$6:$CU$247,23,FALSE) -> 52.61 | N21: =VLOOKUP($E21,'RECAP AG'!$G$6:$CU$247,24,FALSE) -> 63% | O21: =VLOOKUP($E21,'RECAP AG'!$G$6:$CU$247,25,FALSE) -> 141 | P21: =VLOOKUP($E21,'RECAP AG'!$G$6:$CU$247,26,FALSE) -> 84% | Q21: =VLOOKUP($E21,'RECAP AG'!$G$6:$CU$247,27,FALSE) -> 84% | R21: =VLOOKUP($E21,'RECAP AG'!$G$6:$CU$247,28,FALSE) -> 198
A22: 50 | B22: AUBE HAUTE MARNE | C22: 14 | D22: TROYES | E22: 510520 | F22: SAINT ANDRE LES VERGERS | G22: =VLOOKUP($E22,'RECAP AG'!$G$6:$CU$247,3,FALSE) -> 3.1 | H22: =VLOOKUP($E22,'RECAP AG'!$G$6:$CU$247,18,FALSE) -> 6.2 | I22: =VLOOKUP($E22,'RECAP AG'!$G$6:$CU$247,19,FALSE) -> 2.02 | J22: =VLOOKUP($E22,'RECAP AG'!$G$6:$CU$247,20,FALSE) -> 98% | K22: =VLOOKUP($E22,'RECAP AG'!$G$6:$CU$247,21,FALSE) -> 209 | L22: =VLOOKUP($E22,'RECAP AG'!$G$6:$CU$247,22,FALSE) -> 210 | M22: =VLOOKUP($E22,'RECAP AG'!$G$6:$CU$247,23,FALSE) -> 68.40 | N22: =VLOOKUP($E22,'RECAP AG'!$G$6:$CU$247,24,FALSE) -> 52% | O22: =VLOOKUP($E22,'RECAP AG'!$G$6:$CU$247,25,FALSE) -> 63 | P22: =VLOOKUP($E22,'RECAP AG'!$G$6:$CU$247,26,FALSE) -> 80% | Q22: =VLOOKUP($E22,'RECAP AG'!$G$6:$CU$247,27,FALSE) -> 80% | R22: =VLOOKUP($E22,'RECAP AG'!$G$6:$CU$247,28,FALSE) -> 170
A23: 50 | B23: AUBE HAUTE MARNE | C23: 14 | D23: TROYES | E23: 410524 | F23: SAINT JULIEN LES VILLAS | G23: =VLOOKUP($E23,'RECAP AG'!$G$6:$CU$247,3,FALSE) -> 5.2 | H23: =VLOOKUP($E23,'RECAP AG'!$G$6:$CU$247,18,FALSE) -> 38.8 | I23: =VLOOKUP($E23,'RECAP AG'!$G$6:$CU$247,19,FALSE) -> 7.45 | J23: =VLOOKUP($E23,'RECAP AG'!$G$6:$CU$247,20,FALSE) -> 93% | K23: =VLOOKUP($E23,'RECAP AG'!$G$6:$CU$247,21,FALSE) -> 186 | L23: =VLOOKUP($E23,'RECAP AG'!$G$6:$CU$247,22,FALSE) -> 257 | M23: =VLOOKUP($E23,'RECAP AG'!$G$6:$CU$247,23,FALSE) -> 49.33 | N23: =VLOOKUP($E23,'RECAP AG'!$G$6:$CU$247,24,FALSE) -> 65% | O23: =VLOOKUP($E23,'RECAP AG'!$G$6:$CU$247,25,FALSE) -> 160 | P23: =VLOOKUP($E23,'RECAP AG'!$G$6:$CU$247,26,FALSE) -> 82% | Q23: =VLOOKUP($E23,'RECAP AG'!$G$6:$CU$247,27,FALSE) -> 82% | R23: =VLOOKUP($E23,'RECAP AG'!$G$6:$CU$247,28,FALSE) -> 185
A24: 50 | B24: AUBE HAUTE MARNE | C24: 14 | D24: TROYES | E24: 410521 | F24: SAINTE SAVINE | G24: =VLOOKUP($E24,'RECAP AG'!$G$6:$CU$247,3,FALSE) -> 4.1 | H24: =VLOOKUP($E24,'RECAP AG'!$G$6:$CU$247,18,FALSE) -> 20.5 | I24: =VLOOKUP($E24,'RECAP AG'!$G$6:$CU$247,19,FALSE) -> 4.96 | J24: =VLOOKUP($E24,'RECAP AG'!$G$6:$CU$247,20,FALSE) -> 95% | K24: =VLOOKUP($E24,'RECAP AG'!$G$6:$CU$247,21,FALSE) -> 197 | L24: =VLOOKUP($E24,'RECAP AG'!$G$6:$CU$247,22,FALSE) -> 212 | M24: =VLOOKUP($E24,'RECAP AG'!$G$6:$CU$247,23,FALSE) -> 51.33 | N24: =VLOOKUP($E24,'RECAP AG'!$G$6:$CU$247,24,FALSE) -> 64% | O24: =VLOOKUP($E24,'RECAP AG'!$G$6:$CU$247,25,FALSE) -> 149 | P24: =VLOOKUP($E24,'RECAP AG'!$G$6:$CU$247,26,FALSE) -> 83% | Q24: =VLOOKUP($E24,'RECAP AG'!$G$6:$CU$247,27,FALSE) -> 83% | R24: =VLOOKUP($E24,'RECAP AG'!$G$6:$CU$247,28,FALSE) -> 190
A25: 50 | B25: AUBE HAUTE MARNE | C25: 14 | D25: TROYES | E25: 510513 | F25: SAINT PARRES AUX TERTRES | G25: =VLOOKUP($E25,'RECAP AG'!$G$6:$CU$247,3,FALSE) -> 2.5 | H25: =VLOOKUP($E25,'RECAP AG'!$G$6:$CU$247,18,FALSE) -> 52.4 | I25: =VLOOKUP($E25,'RECAP AG'!$G$6:$CU$247,19,FALSE) -> 21.13 | J25: =VLOOKUP($E25,'RECAP AG'!$G$6:$CU$247,20,FALSE) -> 79% | K25: =VLOOKUP($E25,'RECAP AG'!$G$6:$CU$247,21,FALSE) -> 97 | L25: =VLOOKUP($E25,'RECAP AG'!$G$6:$CU$247,22,FALSE) -> 205 | M25: =VLOOKUP($E25,'RECAP AG'!$G$6:$CU$247,23,FALSE) -> 82.66 | N25: =VLOOKUP($E25,'RECAP AG'!$G$6:$CU$247,24,FALSE) -> 42% | O25: =VLOOKUP($E25,'RECAP AG'!$G$6:$CU$247,25,FALSE) -> 30 | P25: =VLOOKUP($E25,'RECAP AG'!$G$6:$CU$247,26,FALSE) -> 64% | Q25: =VLOOKUP($E25,'RECAP AG'!$G$6:$CU$247,27,FALSE) -> 64% | R25: =VLOOKUP($E25,'RECAP AG'!$G$6:$CU$247,28,FALSE) -> 58
A26: 50 | B26: AUBE HAUTE MARNE | C26: 14 | D26: TROYES | E26: 410510 | F26: TROYES GAMBETTA | G26: =VLOOKUP($E26,'RECAP AG'!$G$6:$CU$247,3,FALSE) -> 8.7 | H26: =VLOOKUP($E26,'RECAP AG'!$G$6:$CU$247,18,FALSE) -> 142.9 | I26: =VLOOKUP($E26,'RECAP AG'!$G$6:$CU$247,19,FALSE) -> 16.35 | J26: =VLOOKUP($E26,'RECAP AG'!$G$6:$CU$247,20,FALSE) -> 84% | K26: =VLOOKUP($E26,'RECAP AG'!$G$6:$CU$247,21,FALSE) -> 133 | L26: =VLOOKUP($E26,'RECAP AG'!$G$6:$CU$247,22,FALSE) -> 470 | M26: =VLOOKUP($E26,'RECAP AG'!$G$6:$CU$247,23,FALSE) -> 53.78 | N26: =VLOOKUP($E26,'RECAP AG'!$G$6:$CU$247,24,FALSE) -> 62% | O26: =VLOOKUP($E26,'RECAP AG'!$G$6:$CU$247,25,FALSE) -> 135 | P26: =VLOOKUP($E26,'RECAP AG'!$G$6:$CU$247,26,FALSE) -> 75% | Q26: =VLOOKUP($E26,'RECAP AG'!$G$6:$CU$247,27,FALSE) -> 75% | R26: =VLOOKUP($E26,'RECAP AG'!$G$6:$CU$247,28,FALSE) -> 133
A27: 50 | B27: AUBE HAUTE MARNE | C27: 14 | D27: TROYES | E27: 410512 | F27: TROYES ZOLA | G27: =VLOOKUP($E27,'RECAP AG'!$G$6:$CU$247,3,FALSE) -> 5.4 | H27: =VLOOKUP($E27,'RECAP AG'!$G$6:$CU$247,18,FALSE) -> -17.0 | I27: =VLOOKUP($E27,'RECAP AG'!$G$6:$CU$247,19,FALSE) -> -3.13 | J27: =VLOOKUP($E27,'RECAP AG'!$G$6:$CU$247,20,FALSE) -> 103% | K27: =VLOOKUP($E27,'RECAP AG'!$G$6:$CU$247,21,FALSE) -> 226 | L27: =VLOOKUP($E27,'RECAP AG'!$G$6:$CU$247,22,FALSE) -> 264 | M27: =VLOOKUP($E27,'RECAP AG'!$G$6:$CU$247,23,FALSE) -> 48.62 | N27: =VLOOKUP($E27,'RECAP AG'!$G$6:$CU$247,24,FALSE) -> 66% | O27: =VLOOKUP($E27,'RECAP AG'!$G$6:$CU$247,25,FALSE) -> 163 | P27: =VLOOKUP($E27,'RECAP AG'!$G$6:$CU$247,26,FALSE) -> 88% | Q27: =VLOOKUP($E27,'RECAP AG'!$G$6:$CU$247,27,FALSE) -> 88% | R27: =VLOOKUP($E27,'RECAP AG'!$G$6:$CU$247,28,FALSE) -> 221
A28: 262 | B28: BAS RHIN | C28: 5060 | D28: HAGUENAU | E28: 4057 | F28: BISCHWILLER | G28: =VLOOKUP($E28,'RECAP AG'!$G$6:$CU$247,3,FALSE) -> 7.0 | H28: =VLOOKUP($E28,'RECAP AG'!$G$6:$CU$247,18,FALSE) -> 261.8 | I28: =VLOOKUP($E28,'RECAP AG'!$G$6:$CU$247,19,FALSE) -> 37.19 | J28: =VLOOKUP($E28,'RECAP AG'!$G$6:$CU$247,20,FALSE) -> 64% | K28: =VLOOKUP($E28,'RECAP AG'!$G$6:$CU$247,21,FALSE) -> 31 | L28: =VLOOKUP($E28,'RECAP AG'!$G$6:$CU$247,22,FALSE) -> 328 | M28: =VLOOKUP($E28,'RECAP AG'!$G$6:$CU$247,23,FALSE) -> 46.59 | N28: =VLOOKUP($E28,'RECAP AG'!$G$6:$CU$247,24,FALSE) -> 67% | O28: =VLOOKUP($E28,'RECAP AG'!$G$6:$CU$247,25,FALSE) -> 175 | P28: =VLOOKUP($E28,'RECAP AG'!$G$6:$CU$247,26,FALSE) -> 65% | Q28: =VLOOKUP($E28,'RECAP AG'!$G$6:$CU$247,27,FALSE) -> 65% | R28: =VLOOKUP($E28,'RECAP AG'!$G$6:$CU$247,28,FALSE) -> 61
A29: 262 | B29: BAS RHIN | C29: 5060 | D29: HAGUENAU | E29: 4082 | F29: BOUXWILLER | G29: =VLOOKUP($E29,'RECAP AG'!$G$6:$CU$247,3,FALSE) -> 2.3 | H29: =VLOOKUP($E29,'RECAP AG'!$G$6:$CU$247,18,FALSE) -> 14.9 | I29: =VLOOKUP($E29,'RECAP AG'!$G$6:$CU$247,19,FALSE) -> 6.37 | J29: =VLOOKUP($E29,'RECAP AG'!$G$6:$CU$247,20,FALSE) -> 94% | K29: =VLOOKUP($E29,'RECAP AG'!$G$6:$CU$247,21,FALSE) -> 190 | L29: =VLOOKUP($E29,'RECAP AG'!$G$6:$CU$247,22,FALSE) -> 101 | M29: =VLOOKUP($E29,'RECAP AG'!$G$6:$CU$247,23,FALSE) -> 43.16 | N29: =VLOOKUP($E29,'RECAP AG'!$G$6:$CU$247,24,FALSE) -> 70% | O29: =VLOOKUP($E29,'RECAP AG'!$G$6:$CU$247,25,FALSE) -> 199 | P29: =VLOOKUP($E29,'RECAP AG'!$G$6:$CU$247,26,FALSE) -> 84% | Q29: =VLOOKUP($E29,'RECAP AG'!$G$6:$CU$247,27,FALSE) -> 84% | R29: =VLOOKUP($E29,'RECAP AG'!$G$6:$CU$247,28,FALSE) -> 199
A30: 262 | B30: BAS RHIN | C30: 5060 | D30: HAGUENAU | E30: 4030 | F30: BRUMATH | G30: =VLOOKUP($E30,'RECAP AG'!$G$6:$CU$247,3,FALSE) -> 3.8 | H30: =VLOOKUP($E30,'RECAP AG'!$G$6:$CU$247,18,FALSE) -> 113.4 | I30: =VLOOKUP($E30,'RECAP AG'!$G$6:$CU$247,19,FALSE) -> 29.76 | J30: =VLOOKUP($E30,'RECAP AG'!$G$6:$CU$247,20,FALSE) -> 71% | K30: =VLOOKUP($E30,'RECAP AG'!$G$6:$CU$247,21,FALSE) -> 55 | L30: =VLOOKUP($E30,'RECAP AG'!$G$6:$CU$247,22,FALSE) -> 177 | M30: =VLOOKUP($E30,'RECAP AG'!$G$6:$CU$247,23,FALSE) -> 46.46 | N30: =VLOOKUP($E30,'RECAP AG'!$G$6:$CU$247,24,FALSE) -> 67% | O30: =VLOOKUP($E30,'RECAP AG'!$G$6:$CU$247,25,FALSE) -> 178 | P30: =VLOOKUP($E30,'RECAP AG'!$G$6:$CU$247,26,FALSE) -> 69% | Q30: =VLOOKUP($E30,'RECAP AG'!$G$6:$CU$247,27,FALSE) -> 69% | R30: =VLOOKUP($E30,'RECAP AG'!$G$6:$CU$247,28,FALSE) -> 89
A31: 262 | B31: BAS RHIN | C31: 5060 | D31: HAGUENAU | E31: 4060 | F31: HAGUENAU HOUBLON | G31: =VLOOKUP($E31,'RECAP AG'!$G$6:$CU$247,3,FALSE) -> 8.6 | H31: =VLOOKUP($E31,'RECAP AG'!$G$6:$CU$247,18,FALSE) -> 100.2 | I31: =VLOOKUP($E31,'RECAP AG'!$G$6:$CU$247,19,FALSE) -> 11.62 | J31: =VLOOKUP($E31,'RECAP AG'!$G$6:$CU$247,20,FALSE) -> 89% | K31: =VLOOKUP($E31,'RECAP AG'!$G$6:$CU$247,21,FALSE) -> 164 | L31: =VLOOKUP($E31,'RECAP AG'!$G$6:$CU$247,22,FALSE) -> 379 | M31: =VLOOKUP($E31,'RECAP AG'!$G$6:$CU$247,23,FALSE) -> 43.97 | N31: =VLOOKUP($E31,'RECAP AG'!$G$6:$CU$247,24,FALSE) -> 69% | O31: =VLOOKUP($E31,'RECAP AG'!$G$6:$CU$247,25,FALSE) -> 195 | P31: =VLOOKUP($E31,'RECAP AG'!$G$6:$CU$247,26,FALSE) -> 81% | Q31: =VLOOKUP($E31,'RECAP AG'!$G$6:$CU$247,27,FALSE) -> 81% | R31: =VLOOKUP($E31,'RECAP AG'!$G$6:$CU$247,28,FALSE) -> 180
A32: 262 | B32: BAS RHIN | C32: 5060 | D32: HAGUENAU | E32: 4092 | F32: HOCHFELDEN | G32: =VLOOKUP($E32,'RECAP AG'!$G$6:$CU$247,3,FALSE) -> 1.9 | H32: =VLOOKUP($E32,'RECAP AG'!$G$6:$CU$247,18,FALSE) -> 26.0 | I32: =VLOOKUP($E32,'RECAP AG'!$G$6:$CU$247,19,FALSE) -> 13.47 | J32: =VLOOKUP($E32,'RECAP AG'!$G$6:$CU$247,20,FALSE) -> 87% | K32: =VLOOKUP($E32,'RECAP AG'!$G$6:$CU$247,21,FALSE) -> 152 | L32: =VLOOKUP($E32,'RECAP AG'!$G$6:$CU$247,22,FALSE) -> 127 | M32: =VLOOKUP($E32,'RECAP AG'!$G$6:$CU$247,23,FALSE) -> 65.80 | N32: =VLOOKUP($E32,'RECAP AG'!$G$6:$CU$247,24,FALSE) -> 54% | O32: =VLOOKUP($E32,'RECAP AG'!$G$6:$CU$247,25,FALSE) -> 78 | P32: =VLOOKUP($E32,'RECAP AG'!$G$6:$CU$247,26,FALSE) -> 74% | Q32: =VLOOKUP($E32,'RECAP AG'!$G$6:$CU$247,27,FALSE) -> 74% | R32: =VLOOKUP($E32,'RECAP AG'!$G$6:$CU$247,28,FALSE) -> 122
A33: 262 | B33: BAS RHIN | C33: 5060 | D33: HAGUENAU | E33: 4041 | F33: HOERDT | G33: =VLOOKUP($E33,'RECAP AG'!$G$6:$CU$247,3,FALSE) -> 1.7 | H33: =VLOOKUP($E33,'RECAP AG'!$G$6:$CU$247,18,FALSE) -> 25.4 | I33: =VLOOKUP($E33,'RECAP AG'!$G$6:$CU$247,19,FALSE) -> 15.21 | J33: =VLOOKUP($E33,'RECAP AG'!$G$6:$CU$247,20,FALSE) -> 85% | K33: =VLOOKUP($E33,'RECAP AG'!$G$6:$CU$247,21,FALSE) -> 140 | L33: =VLOOKUP($E33,'RECAP AG'!$G$6:$CU$247,22,FALSE) -> 77 | M33: =VLOOKUP($E33,'RECAP AG'!$G$6:$CU$247,23,FALSE) -> 46.11 | N33: =VLOOKUP($E33,'RECAP AG'!$G$6:$CU$247,24,FALSE) -> 68% | O33: =VLOOKUP($E33,'RECAP AG'!$G$6:$CU$247,25,FALSE) -> 182 | P33: =VLOOKUP($E33,'RECAP AG'!$G$6:$CU$247,26,FALSE) -> 78% | Q33: =VLOOKUP($E33,'RECAP AG'!$G$6:$CU$247,27,FALSE) -> 78% | R33: =VLOOKUP($E33,'RECAP AG'!$G$6:$CU$247,28,FALSE) -> 155
A34: 262 | B34: BAS RHIN | C34: 5060 | D34: HAGUENAU | E34: 4085 | F34: INGWILLER | G34: =VLOOKUP($E34,'RECAP AG'!$G$6:$CU$247,3,FALSE) -> 3.5 | H34: =VLOOKUP($E34,'RECAP AG'!$G$6:$CU$247,18,FALSE) -> 43.8 | I34: =VLOOKUP($E34,'RECAP AG'!$G$6:$CU$247,19,FALSE) -> 12.44 | J34: =VLOOKUP($E34,'RECAP AG'!$G$6:$CU$247,20,FALSE) -> 88% | K34: =VLOOKUP($E34,'RECAP AG'!$G$6:$CU$247,21,FALSE) -> 157 | L34: =VLOOKUP($E34,'RECAP AG'!$G$6:$CU$247,22,FALSE) -> 186 | M34: =VLOOKUP($E34,'RECAP AG'!$G$6:$CU$247,23,FALSE) -> 52.84 | N34: =VLOOKUP($E34,'RECAP AG'!$G$6:$CU$247,24,FALSE) -> 63% | O34: =VLOOKUP($E34,'RECAP AG'!$G$6:$CU$247,25,FALSE) -> 139 | P34: =VLOOKUP($E34,'RECAP AG'!$G$6:$CU$247,26,FALSE) -> 78% | Q34: =VLOOKUP($E34,'RECAP AG'!$G$6:$CU$247,27,FALSE) -> 78% | R34: =VLOOKUP($E34,'RECAP AG'!$G$6:$CU$247,28,FALSE) -> 153
A35: 262 | B35: BAS RHIN | C35: 5060 | D35: HAGUENAU | E35: 4066 | F35: NIEDERBRONN LES BAINS | G35: =VLOOKUP($E35,'RECAP AG'!$G$6:$CU$247,3,FALSE) -> 5.7 | H35: =VLOOKUP($E35,'RECAP AG'!$G$6:$CU$247,18,FALSE) -> -2.2 | I35: =VLOOKUP($E35,'RECAP AG'!$G$6:$CU$247,19,FALSE) -> -0.39 | J35: =VLOOKUP($E35,'RECAP AG'!$G$6:$CU$247,20,FALSE) -> 100% | K35: =VLOOKUP($E35,'RECAP AG'!$G$6:$CU$247,21,FALSE) -> 219 | L35: =VLOOKUP($E35,'RECAP AG'!$G$6:$CU$247,22,FALSE) -> 258 | M35: =VLOOKUP($E35,'RECAP AG'!$G$6:$CU$247,23,FALSE) -> 45.42 | N35: =VLOOKUP($E35,'RECAP AG'!$G$6:$CU$247,24,FALSE) -> 68% | O35: =VLOOKUP($E35,'RECAP AG'!$G$6:$CU$247,25,FALSE) -> 186 | P35: =VLOOKUP($E35,'RECAP AG'!$G$6:$CU$247,26,FALSE) -> 87% | Q35: =VLOOKUP($E35,'RECAP AG'!$G$6:$CU$247,27,FALSE) -> 87% | R35: =VLOOKUP($E35,'RECAP AG'!$G$6:$CU$247,28,FALSE) -> 216
A36: 262 | B36: BAS RHIN | C36: 5060 | D36: HAGUENAU | E36: 4067 | F36: PFAFFENHOFFEN | G36: =VLOOKUP($E36,'RECAP AG'!$G$6:$CU$247,3,FALSE) -> 1.9 | H36: =VLOOKUP($E36,'RECAP AG'!$G$6:$CU$247,18,FALSE) -> 46.2 | I36: =VLOOKUP($E36,'RECAP AG'!$G$6:$CU$247,19,FALSE) -> 24.71 | J36: =VLOOKUP($E36,'RECAP AG'!$G$6:$CU$247,20,FALSE) -> 76% | K36: =VLOOKUP($E36,'RECAP AG'!$G$6:$CU$247,21,FALSE) -> 79 | L36: =VLOOKUP($E36,'RECAP AG'!$G$6:$CU$247,22,FALSE) -> 96 | M36: =VLOOKUP($E36,'RECAP AG'!$G$6:$CU$247,23,FALSE) -> 51.34 | N36: =VLOOKUP($E36,'RECAP AG'!$G$6:$CU$247,24,FALSE) -> 64% | O36: =VLOOKUP($E36,'RECAP AG'!$G$6:$CU$247,25,FALSE) -> 148 | P36: =VLOOKUP($E36,'RECAP AG'!$G$6:$CU$247,26,FALSE) -> 71% | Q36: =VLOOKUP($E36,'RECAP AG'!$G$6:$CU$247,27,FALSE) -> 71% | R36: =VLOOKUP($E36,'RECAP AG'!$G$6:$CU$247,28,FALSE) -> 98
A37: 262 | B37: BAS RHIN | C37: 5060 | D37: HAGUENAU | E37: 4095 | F37: SARRE UNION | G37: =VLOOKUP($E37,'RECAP AG'!$G$6:$CU$247,3,FALSE) -> 2.7 | H37: =VLOOKUP($E37,'RECAP AG'!$G$6:$CU$247,18,FALSE) -> 21.6 | I37: =VLOOKUP($E37,'RECAP AG'!$G$6:$CU$247,19,FALSE) -> 8.15 | J37: =VLOOKUP($E37,'RECAP AG'!$G$6:$CU$247,20,FALSE) -> 92% | K37: =VLOOKUP($E37,'RECAP AG'!$G$6:$CU$247,21,FALSE) -> 183 | L37: =VLOOKUP($E37,'RECAP AG'!$G$6:$CU$247,22,FALSE) -> 104 | M37: =VLOOKUP($E37,'RECAP AG'!$G$6:$CU$247,23,FALSE) -> 39.25 | N37: =VLOOKUP($E37,'RECAP AG'!$G$6:$CU$247,24,FALSE) -> 72% | O37: =VLOOKUP($E37,'RECAP AG'!$G$6:$CU$247,25,FALSE) -> 214 | P37: =VLOOKUP($E37,'RECAP AG'!$G$6:$CU$247,26,FALSE) -> 84% | Q37: =VLOOKUP($E37,'RECAP AG'!$G$6:$CU$247,27,FALSE) -> 84% | R37: =VLOOKUP($E37,'RECAP AG'!$G$6:$CU$247,28,FALSE) -> 200
A38: 262 | B38: BAS RHIN | C38: 5060 | D38: HAGUENAU | E38: 4087 | F38: SAVERNE | G38: =VLOOKUP($E38,'RECAP AG'!$G$6:$CU$247,3,FALSE) -> 5.9 | H38: =VLOOKUP($E38,'RECAP AG'!$G$6:$CU$247,18,FALSE) -> 145.0 | I38: =VLOOKUP($E38,'RECAP AG'!$G$6:$CU$247,19,FALSE) -> 24.62 | J38: =VLOOKUP($E38,'RECAP AG'!$G$6:$CU$247,20,FALSE) -> 76% | K38: =VLOOKUP($E38,'RECAP AG'!$G$6:$CU$247,21,FALSE) -> 80 | L38: =VLOOKUP($E38,'RECAP AG'!$G$6:$CU$247,22,FALSE) -> 259 | M38: =VLOOKUP($E38,'RECAP AG'!$G$6:$CU$247,23,FALSE) -> 43.97 | N38: =VLOOKUP($E38,'RECAP AG'!$G$6:$CU$247,24,FALSE) -> 69% | O38: =VLOOKUP($E38,'RECAP AG'!$G$6:$CU$247,25,FALSE) -> 194 | P38: =VLOOKUP($E38,'RECAP AG'!$G$6:$CU$247,26,FALSE) -> 73% | Q38: =VLOOKUP($E38,'RECAP AG'!$G$6:$CU$247,27,FALSE) -> 73% | R38: =VLOOKUP($E38,'RECAP AG'!$G$6:$CU$247,28,FALSE) -> 119
A39: 262 | B39: BAS RHIN | C39: 5060 | D39: HAGUENAU | E39: 4031 | F39: TRUCHTERSHEIM | G39: =VLOOKUP($E39,'RECAP AG'!$G$6:$CU$247,3,FALSE) -> 2.3 | H39: =VLOOKUP($E39,'RECAP AG'!$G$6:$CU$247,18,FALSE) -> 96.5 | I39: =VLOOKUP($E39,'RECAP AG'!$G$6:$CU$247,19,FALSE) -> 41.42 | J39: =VLOOKUP($E39,'RECAP AG'!$G$6:$CU$247,20,FALSE) -> 60% | K39: =VLOOKUP($E39,'RECAP AG'!$G$6:$CU$247,21,FALSE) -> 17 | L39: =VLOOKUP($E39,'RECAP AG'!$G$6:$CU$247,22,FALSE) -> 85 | M39: =VLOOKUP($E39,'RECAP AG'!$G$6:$CU$247,23,FALSE) -> 36.48 | N39: =VLOOKUP($E39,'RECAP AG'!$G$6:$CU$247,24,FALSE) -> 74% | O39: =VLOOKUP($E39,'RECAP AG'!$G$6:$CU$247,25,FALSE) -> 226 | P39: =VLOOKUP($E39,'RECAP AG'!$G$6:$CU$247,26,FALSE) -> 65% | Q39: =VLOOKUP($E39,'RECAP AG'!$G$6:$CU$247,27,FALSE) -> 65% | R39: =VLOOKUP($E39,'RECAP AG'!$G$6:$CU$247,28,FALSE) -> 64
A40: 262 | B40: BAS RHIN | C40: 5060 | D40: HAGUENAU | E40: 4071 | F40: WISSEMBOURG | G40: =VLOOKUP($E40,'RECAP AG'!$G$6:$CU$247,3,FALSE) -> 7.9 | H40: =VLOOKUP($E40,'RECAP AG'!$G$6:$CU$247,18,FALSE) -> 181.6 | I40: =VLOOKUP($E40,'RECAP AG'!$G$6:$CU$247,19,FALSE) -> 22.90 | J40: =VLOOKUP($E40,'RECAP AG'!$G$6:$CU$247,20,FALSE) -> 78% | K40: =VLOOKUP($E40,'RECAP AG'!$G$6:$CU$247,21,FALSE) -> 88 | L40: =VLOOKUP($E40,'RECAP AG'!$G$6:$CU$247,22,FALSE) -> 486 | M40: =VLOOKUP($E40,'RECAP AG'!$G$6:$CU$247,23,FALSE) -> 61.29 | N40: =VLOOKUP($E40,'RECAP AG'!$G$6:$CU$247,24,FALSE) -> 57% | O40: =VLOOKUP($E40,'RECAP AG'!$G$6:$CU$247,25,FALSE) -> 95 | P40: =VLOOKUP($E40,'RECAP AG'!$G$6:$CU$247,26,FALSE) -> 69% | Q40: =VLOOKUP($E40,'RECAP AG'!$G$6:$CU$247,27,FALSE) -> 69% | R40: =VLOOKUP($E40,'RECAP AG'!$G$6:$CU$247,28,FALSE) -> 88
A41: 262 | B41: BAS RHIN | C41: 5101 | D41: SELESTAT | E41: 4113 | F41: BARR | G41: =VLOOKUP($E41,'RECAP AG'!$G$6:$CU$247,3,FALSE) -> 2.9 | H41: =VLOOKUP($E41,'RECAP AG'!$G$6:$CU$247,18,FALSE) -> 113.0 | I41: =VLOOKUP($E41,'RECAP AG'!$G$6:$CU$247,19,FALSE) -> 39.37 | J41: =VLOOKUP($E41,'RECAP AG'!$G$6:$CU$247,20,FALSE) -> 62% | K41: =VLOOKUP($E41,'RECAP AG'!$G$6:$CU$247,21,FALSE) -> 23 | L41: =VLOOKUP($E41,'RECAP AG'!$G$6:$CU$247,22,FALSE) -> 187 | M41: =VLOOKUP($E41,'RECAP AG'!$G$6:$CU$247,23,FALSE) -> 65.16 | N41: =VLOOKUP($E41,'RECAP AG'!$G$6:$CU$247,24,FALSE) -> 54% | O41: =VLOOKUP($E41,'RECAP AG'!$G$6:$CU$247,25,FALSE) -> 79 | P41: =VLOOKUP($E41,'RECAP AG'!$G$6:$CU$247,26,FALSE) -> 59% | Q41: =VLOOKUP($E41,'RECAP AG'!$G$6:$CU$247,27,FALSE) -> 59% | R41: =VLOOKUP($E41,'RECAP AG'!$G$6:$CU$247,28,FALSE) -> 36
A42: 262 | B42: BAS RHIN | C42: 5101 | D42: SELESTAT | E42: 4111 | F42: BENFELD | G42: =VLOOKUP($E42,'RECAP AG'!$G$6:$CU$247,3,FALSE) -> 3.0 | H42: =VLOOKUP($E42,'RECAP AG'!$G$6:$CU$247,18,FALSE) -> 5.3 | I42: =VLOOKUP($E42,'RECAP AG'!$G$6:$CU$247,19,FALSE) -> 1.75 | J42: =VLOOKUP($E42,'RECAP AG'!$G$6:$CU$247,20,FALSE) -> 98% | K42: =VLOOKUP($E42,'RECAP AG'!$G$6:$CU$247,21,FALSE) -> 210 | L42: =VLOOKUP($E42,'RECAP AG'!$G$6:$CU$247,22,FALSE) -> 110 | M42: =VLOOKUP($E42,'RECAP AG'!$G$6:$CU$247,23,FALSE) -> 36.30 | N42: =VLOOKUP($E42,'RECAP AG'!$G$6:$CU$247,24,FALSE) -> 74% | O42: =VLOOKUP($E42,'RECAP AG'!$G$6:$CU$247,25,FALSE) -> 227 | P42: =VLOOKUP($E42,'RECAP AG'!$G$6:$CU$247,26,FALSE) -> 89% | Q42: =VLOOKUP($E42,'RECAP AG'!$G$6:$CU$247,27,FALSE) -> 89% | R42: =VLOOKUP($E42,'RECAP AG'!$G$6:$CU$247,28,FALSE) -> 225
A43: 262 | B43: BAS RHIN | C43: 5101 | D43: SELESTAT | E43: 4104 | F43: ERSTEIN | G43: =VLOOKUP($E43,'RECAP AG'!$G$6:$CU$247,3,FALSE) -> 4.2 | H43: =VLOOKUP($E43,'RECAP AG'!$G$6:$CU$247,18,FALSE) -> 222.7 | I43: =VLOOKUP($E43,'RECAP AG'!$G$6:$CU$247,19,FALSE) -> 53.15 | J43: =VLOOKUP($E43,'RECAP AG'!$G$6:$CU$247,20,FALSE) -> 48% | K43: =VLOOKUP($E43,'RECAP AG'!$G$6:$CU$247,21,FALSE) -> 5 | L43: =VLOOKUP($E43,'RECAP AG'!$G$6:$CU$247,22,FALSE) -> 279 | M43: =VLOOKUP($E43,'RECAP AG'!$G$6:$CU$247,23,FALSE) -> 66.59 | N43: =VLOOKUP($E43,'RECAP AG'!$G$6:$CU$247,24,FALSE) -> 53% | O43: =VLOOKUP($E43,'RECAP AG'!$G$6:$CU$247,25,FALSE) -> 71 | P43: =VLOOKUP($E43,'RECAP AG'!$G$6:$CU$247,26,FALSE) -> 50% | Q43: =VLOOKUP($E43,'RECAP AG'!$G$6:$CU$247,27,FALSE) -> 50% | R43: =VLOOKUP($E43,'RECAP AG'!$G$6:$CU$247,28,FALSE) -> 14
A44: 262 | B44: BAS RHIN | C44: 5101 | D44: SELESTAT | E44: 4008 | F44: FEGERSHEIM | G44: =VLOOKUP($E44,'RECAP AG'!$G$6:$CU$247,3,FALSE) -> 2.4 | H44: =VLOOKUP($E44,'RECAP AG'!$G$6:$CU$247,18,FALSE) -> 70.3 | I44: =VLOOKUP($E44,'RECAP AG'!$G$6:$CU$247,19,FALSE) -> 29.29 | J44: =VLOOKUP($E44,'RECAP AG'!$G$6:$CU$247,20,FALSE) -> 71% | K44: =VLOOKUP($E44,'RECAP AG'!$G$6:$CU$247,21,FALSE) -> 56 | L44: =VLOOKUP($E44,'RECAP AG'!$G$6:$CU$247,22,FALSE) -> 89 | M44: =VLOOKUP($E44,'RECAP AG'!$G$6:$CU$247,23,FALSE) -> 37.08 | N44: =VLOOKUP($E44,'RECAP AG'!$G$6:$CU$247,24,FALSE) -> 74% | O44: =VLOOKUP($E44,'RECAP AG'!$G$6:$CU$247,25,FALSE) -> 224 | P44: =VLOOKUP($E44,'RECAP AG'!$G$6:$CU$247,26,FALSE) -> 72% | Q44: =VLOOKUP($E44,'RECAP AG'!$G$6:$CU$247,27,FALSE) -> 72% | R44: =VLOOKUP($E44,'RECAP AG'!$G$6:$CU$247,28,FALSE) -> 111
A45: 262 | B45: BAS RHIN | C45: 5101 | D45: SELESTAT | E45: 4007 | F45: ILLKIRCH CENTRE | G45: =VLOOKUP($E45,'RECAP AG'!$G$6:$CU$247,3,FALSE) -> 6.5 | H45: =VLOOKUP($E45,'RECAP AG'!$G$6:$CU$247,18,FALSE) -> 110.1 | I45: =VLOOKUP($E45,'RECAP AG'!$G$6:$CU$247,19,FALSE) -> 16.91 | J45: =VLOOKUP($E45,'RECAP AG'!$G$6:$CU$247,20,FALSE) -> 83% | K45: =VLOOKUP($E45,'RECAP AG'!$G$6:$CU$247,21,FALSE) -> 129 | L45: =VLOOKUP($E45,'RECAP AG'!$G$6:$CU$247,22,FALSE) -> 314 | M45: =VLOOKUP($E45,'RECAP AG'!$G$6:$CU$247,23,FALSE) -> 48.23 | N45: =VLOOKUP($E45,'RECAP AG'!$G$6:$CU$247,24,FALSE) -> 66% | O45: =VLOOKUP($E45,'RECAP AG'!$G$6:$CU$247,25,FALSE) -> 165 | P45: =VLOOKUP($E45,'RECAP AG'!$G$6:$CU$247,26,FALSE) -> 77% | Q45: =VLOOKUP($E45,'RECAP AG'!$G$6:$CU$247,27,FALSE) -> 77% | R45: =VLOOKUP($E45,'RECAP AG'!$G$6:$CU$247,28,FALSE) -> 141
A46: 262 | B46: BAS RHIN | C46: 5101 | D46: SELESTAT | E46: 4015 | F46: LINGOLSHEIM | G46: =VLOOKUP($E46,'RECAP AG'!$G$6:$CU$247,3,FALSE) -> 2.5 | H46: =VLOOKUP($E46,'RECAP AG'!$G$6:$CU$247,18,FALSE) -> -26.9 | I46: =VLOOKUP($E46,'RECAP AG'!$G$6:$CU$247,19,FALSE) -> -10.89 | J46: =VLOOKUP($E46,'RECAP AG'!$G$6:$CU$247,20,FALSE) -> 111% | K46: =VLOOKUP($E46,'RECAP AG'!$G$6:$CU$247,21,FALSE) -> 236 | L46: =VLOOKUP($E46,'RECAP AG'!$G$6:$CU$247,22,FALSE) -> 151 | M46: =VLOOKUP($E46,'RECAP AG'!$G$6:$CU$247,23,FALSE) -> 61.13 | N46: =VLOOKUP($E46,'RECAP AG'!$G$6:$CU$247,24,FALSE) -> 57% | O46: =VLOOKUP($E46,'RECAP AG'!$G$6:$CU$247,25,FALSE) -> 98 | P46: =VLOOKUP($E46,'RECAP AG'!$G$6:$CU$247,26,FALSE) -> 89% | Q46: =VLOOKUP($E46,'RECAP AG'!$G$6:$CU$247,27,FALSE) -> 89% | R46: =VLOOKUP($E46,'RECAP AG'!$G$6:$CU$247,28,FALSE) -> 228
A47: 262 | B47: BAS RHIN | C47: 5101 | D47: SELESTAT | E47: 4109 | F47: MARCKOLSHEIM | G47: =VLOOKUP($E47,'RECAP AG'!$G$6:$CU$247,3,FALSE) -> 2.5 | H47: =VLOOKUP($E47,'RECAP AG'!$G$6:$CU$247,18,FALSE) -> 43.8 | I47: =VLOOKUP($E47,'RECAP AG'!$G$6:$CU$247,19,FALSE) -> 17.52 | J47: =VLOOKUP($E47,'RECAP AG'!$G$6:$CU$247,20,FALSE) -> 83% | K47: =VLOOKUP($E47,'RECAP AG'!$G$6:$CU$247,21,FALSE) -> 124 | L47: =VLOOKUP($E47,'RECAP AG'!$G$6:$CU$247,22,FALSE) -> 113 | M47: =VLOOKUP($E47,'RECAP AG'!$G$6:$CU$247,23,FALSE) -> 45.20 | N47: =VLOOKUP($E47,'RECAP AG'!$G$6:$CU$247,24,FALSE) -> 68% | O47: =VLOOKUP($E47,'RECAP AG'!$G$6:$CU$247,25,FALSE) -> 191 | P47: =VLOOKUP($E47,'RECAP AG'!$G$6:$CU$247,26,FALSE) -> 77% | Q47: =VLOOKUP($E47,'RECAP AG'!$G$6:$CU$247,27,FALSE) -> 77% | R47: =VLOOKUP($E47,'RECAP AG'!$G$6:$CU$247,28,FALSE) -> 148
A48: 262 | B48: BAS RHIN | C48: 5101 | D48: SELESTAT | E48: 4120 | F48: WASSELONNE | G48: =VLOOKUP($E48,'RECAP AG'!$G$6:$CU$247,3,FALSE) -> 2.8 | H48: =VLOOKUP($E48,'RECAP AG'!$G$6:$CU$247,18,FALSE) -> 1.2 | I48: =VLOOKUP($E48,'RECAP AG'!$G$6:$CU$247,19,FALSE) -> 0.43 | J48: =VLOOKUP($E48,'RECAP AG'!$G$6:$CU$247,20,FALSE) -> 100% | K48: =VLOOKUP($E48,'RECAP AG'!$G$6:$CU$247,21,FALSE) -> 213 | L48: =VLOOKUP($E48,'RECAP AG'!$G$6:$CU$247,22,FALSE) -> 160 | M48: =VLOOKUP($E48,'RECAP AG'!$G$6:$CU$247,23,FALSE) -> 57.35 | N48: =VLOOKUP($E48,'RECAP AG'!$G$6:$CU$247,24,FALSE) -> 60% | O48: =VLOOKUP($E48,'RECAP AG'!$G$6:$CU$247,25,FALSE) -> 118 | P48: =VLOOKUP($E48,'RECAP AG'!$G$6:$CU$247,26,FALSE) -> 84% | Q48: =VLOOKUP($E48,'RECAP AG'!$G$6:$CU$247,27,FALSE) -> 84% | R48: =VLOOKUP($E48,'RECAP AG'!$G$6:$CU$247,28,FALSE) -> 196
A49: 262 | B49: BAS RHIN | C49: 5101 | D49: SELESTAT | E49: 4116 | F49: MOLSHEIM | G49: =VLOOKUP($E49,'RECAP AG'!$G$6:$CU$247,3,FALSE) -> 3.9 | H49: =VLOOKUP($E49,'RECAP AG'!$G$6:$CU$247,18,FALSE) -> -2.7 | I49: =VLOOKUP($E49,'RECAP AG'!$G$6:$CU$247,19,FALSE) -> -0.70 | J49: =VLOOKUP($E49,'RECAP AG'!$G$6:$CU$247,20,FALSE) -> 101% | K49: =VLOOKUP($E49,'RECAP AG'!$G$6:$CU$247,21,FALSE) -> 221 | L49: =VLOOKUP($E49,'RECAP AG'!$G$6:$CU$247,22,FALSE) -> 132 | M49: =VLOOKUP($E49,'RECAP AG'!$G$6:$CU$247,23,FALSE) -> 34.29 | N49: =VLOOKUP($E49,'RECAP AG'!$G$6:$CU$247,24,FALSE) -> 76% | O49: =VLOOKUP($E49,'RECAP AG'!$G$6:$CU$247,25,FALSE) -> 234 | P49: =VLOOKUP($E49,'RECAP AG'!$G$6:$CU$247,26,FALSE) -> 91% | Q49: =VLOOKUP($E49,'RECAP AG'!$G$6:$CU$247,27,FALSE) -> 91% | R49: =VLOOKUP($E49,'RECAP AG'!$G$6:$CU$247,28,FALSE) -> 235
